Workbook

Sheet Model Structure
A1: Regulatory Costing Calculator 2.2
A2: For Support Contact: | B2: Need Help? Email the developer! Avoir besoin d'aide? Envoyer un email au développeur !!
A3: Initial model based on the "Regulatory Cost Model", developed by the Government of Alberta, Regulatory Review Secretariat. Model adapted for the Government of Canada by the Regulatory Affairs Sector of the Treasury Board of Canada Secretariat.
A4: Objective: | B4: Quantify and monetize (1) the direct administrative costs associated with INs and OUTs under the "One-for-One" Rule, and (2) the direct compliance and administrative costs associated with flexible options for the Small Business Lens.
A5: Version Date: | B5: 2016-06-20
A6: Methodology: | B6: Standard Cost Model: | C6: http://www.oecd.org/gov/regulatory-policy/34227698.pdf
A8: Refer to the TBS Guides for the “One-for-One” Rule and the Small Business Lens for definitions and instructions on the "One-for-One" Rule and the Small Business Lens.
A9: Guide for the "One-for-One" Rule | B9: Guide sur la règle du « un pour un »
A10: Guide for the Small Business Lens | B10: Guide sur la Lentille des petites entreprises
A12: Step-by-Step Guide:
A13: Step | B13: Instructions | C13: Relevant sheets:
A14: Step 1 | B14: Ensure that macros are enabled (security level should be set at "medium" or "low" in Tools/Macros/Security (Excel 2003)). For Excel 2010 users, be sure to enable content when opening the file or through the file menu. | C14: Model Structure
A15: Step 2 | B15: Complete the "Profile" Sheet and select all industries impacted (See instructions on the "Profile" and "Business Counts_Canada" sheets) | C15: Profile | D15: Business Counts
A16: Step 3 | B16: If applying the Small Business Lens, complete the "Compliance Costs" and "Administrative Costs" sheets. Custom forms are available to enter the required information. These can be opened either via the "Regulatory Cost Calculator" Ribbon in the menu, or by control buttons on the sheets. Alternatively, cost item can be entered manually in the spreadsheet. | C16: Compliance Costs | D16: Admin Costs
A17: Step 4 | B17: If applying the One-for-One Rule, complete the "Administrative Costs" sheet only. | C17: Admin Costs
A18: Step 5 | B18: For the Small Business Lens regulatory flexibility analysis, run the calculator once for the initial option, export the Scenario File, and press "Set Initial Option". This will copy the results to the "Initial Option" in the below table. Next, change the required inputs to match the flexible option. The table below will now have both the initial option results and the flexible option results and can be copy and pasted for inclusion in the Small Business Lens section of the RIAS. It is a good idea to also export the flexible option to a separate scenario file for future reference. | C18: Reporting

Sheet Profile
A1: The Regulatory Costing Calculator - Treasury Board of Canada Secretariat
A2: 1- Initiative Profile
C3: Basic information | D3: Assumptions / notes
A4: 1 | B4: Name of regulatory change: | C4: Regulations Supporting the Safe International and Interprovincial Operation of Self-Driving Vehicles
A6: 2 | B6: Select type: | C6: "IN" (One-for-One Rule)
A8: 3 | B8: Responsible Department (s): | C8: Autonomous Vehicles Agency of Canada
A10: 4 | B10: Brief description of the regulation: | C10: This regulation is intended to set guidelines for the safe operation of self-driving vehicles (SDV) used for commercial purposes to transport goods between provinces and into neighboring countries. The regulation sets up minimal standards required for businesses to be licensed operators of such vehicles and requires retailers to provide key data before being registered as approved sellers of such vehicles.
C11: Will be used as the first year for the analysis
A12: 5 | B12: Year of registration (YYYY)*: | C12: 2017
B13: *Will be used as base year for the analysis
A14: 6 | B14: Time period for the analysis (minimum 10 years) | C14: 10
B15: Period over which costs will be discounted. Minimum 10 years for Cost-Benefit Analyses, and must be set at 10 for INs and OUTs.
A17: 7 | B17: Discount rate*** for the analysis (7%) | C17: 0.07
B18: Must be set at 7% for INs and OUTs. | C18: =PeriodFactor(discount,timeperiod) -> 7.023581541
A20: 2- Number of Stakeholders, by group and business size
H21: Ratios:
B22: Table of stakeholder groups and business sizes | C22: A | D22: B | E22: C | F22: D | G22: E
C23: 1. Small | D23: 2. Medium and Large | E23: 3. All Businesses | F23: Growth Rate | G23: Is a Business | J23: =C23 -> 1. Small | K23: =D23 -> 2. Medium and Large | L23: =E23 -> 3. All Businesses
E24: ALL | F24: ALL | G24: ALL
A25: 1 | B25: Truck Transportation using SDV | C25: =SUM($C$43) -> 70269 | D25: =SUM($D$43) -> 212 | E25: =IF($B$25="Empty/Vide",0,$C$25 + $D$25) -> 70481 | F25: 0.1 | H25: =IF(OR($E$35="",$E$35=0),0,E25/$E$35) -> 0.9989370146 | I25: =B25 -> Truck Transportation using SDV | J25: =IF(OR(ISBLANK(C25),C25=0),0,(C25/C$35)) -> 0.9992889546 | K25: =IF(OR(ISBLANK(D25), $D$35=0),0,(D25/D$35)) -> 0.8945147679 | L25: =IF(OR(E25="",E25=0),0,(E25/E$35)) -> 0.9989370146
A26: 2 | B26: Vehicle Dealers Selling SDV | C26: 50 | D26: 25 | E26: =IF($B$26="Empty/Vide",0,$C$26 + $D$26) -> 75 | F26: 0.1 | H26: 0.00106298543 | I26: Vehicle Dealers Selling SDV | J26: =IF(OR(ISBLANK(C26),C26=0),0,(C26/C$35)) -> 0.0007110453789 | K26: =IF(OR(ISBLANK(D26), $D$35=0),0,(D26/D$35)) -> 0.1054852321 | L26: =IF(OR(E26="",E26=0),0,(E26/E$35)) -> 0.00106298543
A27: 3 | B27: Empty/Vide | E27: =IF($B$27="Empty/Vide",0,$C$27 + $D$27) -> 0 | H27: 0 | I27: Empty/Vide | J27: 0 | K27: 0 | L27: 0
A28: 4 | B28: Empty/Vide | E28: =IF($B$28="Empty/Vide",0,$C$28 + $D$28) -> 0 | H28: 0 | I28: Empty/Vide | J28: 0 | K28: 0 | L28: 0
A29: 5 | B29: Empty/Vide | E29: =IF($B$29="Empty/Vide",0,$C$29 + $D$29) -> 0 | H29: 0 | I29: Empty/Vide | J29: 0 | K29: 0 | L29: 0
A30: 6 | B30: Empty/Vide | E30: =IF($B$30="Empty/Vide",0,$C$30 + $D$30) -> 0 | H30: 0 | I30: Empty/Vide | J30: 0 | K30: 0 | L30: 0
A31: 7 | B31: Empty/Vide | E31: =IF($B$31="Empty/Vide",0,$C$31 + $D$31) -> 0 | H31: 0 | I31: Empty/Vide | J31: 0 | K31: 0 | L31: 0
A32: 8 | B32: Empty/Vide | E32: =IF($B$32="Empty/Vide",0,$C$32 + $D$32) -> 0 | H32: 0 | I32: Empty/Vide | J32: 0 | K32: 0 | L32: 0
A33: 9 | B33: Empty/Vide | E33: =IF($B$33="Empty/Vide",0,$C$33 + $D$33) -> 0 | H33: 0 | I33: Empty/Vide | J33: 0 | K33: 0 | L33: 0
A34: 10 | B34: Empty/Vide | E34: =IF($B$34="Empty/Vide",0,$C$34 + $D$34) -> 0 | H34: 0 | I34: Empty/Vide | J34: 0 | K34: 0 | L34: 0
B35: All groups / all selected industries | C35: =SUM(C25:C34) -> 70319 | D35: =SUM(D25:D34) -> 237 | E35: =SUM(E25:E34) -> 70556 | F35: =SUMPRODUCT(F25:F34,H25:H34) -> 0.1 | I35: All groups / all selected industries | J35: =IF(OR(C35="",C35=0),"",(C35/C$35)) -> 1 | K35: =IF(OR(D35="",D35=0),"",(D35/D$35)) -> 1 | L35: =IF(OR(E35="",E35=0),"",(E35/E$35)) -> 1
B38: List of industries impacted (do not enter data here):
B39: Industry | C39: 1. Small | D39: 2. Medium and Large | E39: 3. All Businesses
B41: All Selected Industries | C41: =SUM(C42:C5008) -> 73863 | D41: =SUM(D42:D5008) -> 459 | E41: =SUM(E42:E5008) -> 74322
A42: 1 | B42: 441110 - New Car Dealers - Concessionnaires d'automobiles neuves | C42: 3594 | D42: 247 | E42: 3841
A43: 2 | B43: 484 - Truck Transportation - Transport par camion | C43: 70269 | D43: 212 | E43: 70481
A44: 3
A45: 4
A46: 5
A47: 6
A48: 7
A49: 8
A50: 9
A51: 10
A52: 11
A53: 12
A54: 13
A55: 14
A56: 15
A57: 16
A58: 17
A59: 18
A60: 19
A61: 20
A62: 21
A63: 22
A64: 23
A65: 24
A66: 25
A67: 26
A68: 27
A69: 28
A70: 29
A71: 30
A72: 31
A73: 32
A74: 33
A75: 34
A76: 35
A77: 36
A78: 37
A79: 38
A80: 39
A81: 40
A82: 41
A83: 42
A84: 43
A85: 44
A86: 45
A87: 46
A88: 47
A89: 48
A90: 49
A91: 50
A92: 51
A93: 52
A94: 53
A95: 54
A96: 55
A97: 56
A98: 57
A99: 58
A100: 59
A101: 60
A102: 61
A103: 62
A104: 63
A105: 64
A106: 65
A107: 66
A108: 67
A109: 68

Sheet Compliance Costs
A1: The Regulatory Costing Calculator - Treasury Board of Canada Secretariat
A2: 3- Compliance Costs
B3: Note: all costs are in 2012 Canadian dollars
B4: Discount Rate | D4: =discount -> 0.07 | F4: Time period (years) | H4: =Profile!C14 -> 10
AD5: Capital costs | AF5: Labour costs
B6: Activities | D6: Timing | H6: Stakeholders impacted | P6: Capital Costs | U6: Labour costs | AB6: Assumptions / Notes | AD6: Periodic discount rate | AE6: Periodic factor | AF6: Periodic discount rate | AG6: Periodic factor (PF) | AH6: Total costs (all business sizes) | AL6: Total costs (small businesses) | AP6: Total costs (medium and large businesses) | AU6: Adjusted Business Counts - Labour | AX6: Adjusted Business Counts - Capital | BA6: Adjusted Business Counts - Labour | BD6: Adjusted Count of Businesses - Capital
A7: Number | B7: Description | D7: Timing | E7: Start Year (only if custom) | F7: End Year (only if custom) | H7: Stakeholder Group | I7: Stakeholder Size | J7: % of Stakeholders Impacted | K7: UPFRONT TIMING - Include Existing Businesses & New Entrants? / ONGOING TIMING - Include ONLY New Entrants? | L7: # of Small Stakeholders Impacted | M7: # of Medium & Large Stakeholders Impacted | N7: Total # of Stakeholders Impacted | P7: Number of Units (Leave Blank if N/A) | Q7: Cost per Unit (Leave Blank if N/A) | R7: Frequency (Times per Year) | S7: Cost Per Event (Price) | U7: Internal or External Staff? | V7: Staff Level (leave blank if N/A) | W7: Time spent (hours) | X7: Frequency (times per year) | Y7: Cost Per Hour (including Overhead) | Z7: Cost Per Event (Price) | AE7: Custom costs - annuity discount factor | AH7: Upfront costs (first year) | AI7: Total present value (all costs) | AJ7: Annualized (all costs) | AL7: Upfront costs (first year) | AM7: Total present value (all costs) | AN7: Annualized (all costs) | AP7: Upfront costs (first year) | AQ7: Total present value (all costs) | AR7: Annualized (all costs) | AT7: Annual Growth Rate | AU7: Small | AV7: Medium+ | AW7: Total | AX7: Small | AY7: Medium+ | AZ7: Totals | BA7: New Entrants Period 0 - Small | BB7: New Entrants Period 0 - Medium+ | BC7: New Entrants Period 0 - Total | BD7: New Entrants Period 0 - Small | BE7: New Entrants Period 0 - Medium+ | BF7: New Entrants Period 0 - Total | BN7: ='Admin Costs'!BG7 -> 0 | BO7: ='Admin Costs'!BH7 -> Custom Year List | BP7: ='Admin Costs'!BI7 -> Stakeholder List
A8: 1 | B8: Install GPS Tracking Devices | D8: 1. Upfront | E8: =fiscalyear -> 2017 | F8: =fiscalyear -> 2017 | H8: Truck Transportation using SDV | I8: 3. All Businesses | J8: 0.1 | K8: TRUE | L8: =IF(ISBLANK($H8),"",(IF(OR(MID($I8,1,1)="1",MID($I8,1,1)="3"),INDEX(Profile!$C$23:$E$35,MATCH($H8,Profile!$B$23:$B$35,0),1),0)*$J8)) -> 7026.9 | M8: =IF(ISBLANK($H8),"",(IF(OR(MID($I8,1,1)="2",MID($I8,1,1)="3"),INDEX(Profile!$C$23:$E$35,MATCH($H8,Profile!$B$23:$B$35,0),2),0))*$J8) -> 21.2 | N8: =IF(H8="","",L8+M8) -> 7048.1 | P8: 15 | Q8: 340 | R8: 1 | S8: =IF(P8="","",P8*Q8) -> 5100 | U8: Internal | V8: 26 Machine operators and assemblers | W8: 3 | X8: 1 | Y8: =IF(OR(ISBLANK(U8),ISBLANK(V8)),"",(IF(MID(U8,1,1)="E",Premium,overhead)+1)*INDEX('Labour Costs'!$C$4:$C$51,MATCH(MID(V8,1,2),'Labour Costs'!$F$4:$F$51,0))) -> 25.9375 | Z8: =IF(Y8="","",Y8*W8) -> 77.8125 | AB8: 10% of transportation companies contacted in consultations have expressed an interest in transferring fleets to SDV. These comnanies will be required to install GPS tracking units, which cost $340, on all SDV used, an average of 15 vehicles per company. The installation will be done by machine operators, internally employed by the companies and will take 3 hours to complete. | AD8: =IF(ISNUMBER(IF(S8="",0,PeriodRate(discount,R8))),IF(S8="",0,PeriodRate(discount,R8)),0) -> 0.07 | AE8: =IF(ISNUMBER(IF(S8="",0,PeriodFactor(AD8,(R8*(timeperiod))))),IF(S8="",0,PeriodFactor(AD8,(R8*(timeperiod)))),0) -> 7.023581541 | AF8: =IF(ISNUMBER(IF(Y8="",0,PeriodRate(discount,X8))),IF(Y8="",0,PeriodRate(discount,X8)),0) -> 0.07 | AG8: =IF(Z8="",0,PeriodFactor(AF8,(X8*(timeperiod)))) -> 7.023581541 | AH8: =IF(MID($D8,1,1)="1",IF(OR($X8<>"",$X8<>0),$Z8*$N8*$X8,0)+IF(OR($P8<>"",$P8<>0),$S8*$N8*$R8,0),0) -> 36493740.28 | AI8: =$AH8+IF($AG8=0,0,$AG8*$AW8*$Z8)+IF($AE8=0,0,$AE8*$S8*$AZ8) -> 75241229.78 | AJ8: =IF(NOT(ISNUMBER(AI8)),"",(AI8/AF)) -> 10712658.4 | AL8: =IF(MID($D8,1,1)="1",IF(OR($X8<>"",$X8<>0),$Z8*$L8*$X8,0)+IF(OR($P8<>"",$P8<>0),$S8*$L8*$R8,0),0) -> 36383970.66 | AM8: =$AL8+IF($AG8=0,0,$AG8*$AU8*$Z8)+IF($AE8=0,0,$AE8*$S8*$AX8) -> 75014911.47 | AN8: =IF(NOT(ISNUMBER(AM8)),"",(AM8/AF)) -> 10680435.76 | AP8: =IF(MID($D8,1,1)="1",IF(OR($X8<>"",$X8<>0),$Z8*$M8*$X8,0)+IF(OR($P8<>"",$P8<>0),$S8*$M8*$R8,0),0) -> 109769.625 | AQ8: =$AP8+IF($AG8=0,0,$AG8*$AV8*$Z8)+IF($AE8=0,0,$AE8*$S8*$AY8) -> 226318.3087 | AR8: =IF(NOT(ISNUMBER(AQ8)),"",(AQ8/AF)) -> 32222.63561 | AT8: =IF(H8<>"",OFFSET(Profile!$F$24,MATCH(H8,Profile!$B$25:$B$35,0),0),0) -> 0.1 | AU8: =IF($U8="",0,IF(MID($D8,1,1)="1",IF(OR(LOWER($K8)="vrai",LOWER($K8)="true"),popcorrect(BA8,$AT8,fiscalyear,fiscalyear,fiscalyear+timeperiod,$X8,discount),0),popcorrect(IF(OR(LOWER($K8)="vrai",LOWER($K8)="true"),BA8,L8),$AT8,fiscalyear,$E8,$F8,$X8,discount))) -> 1062.258798 | AV8: =IF($U8="",0,IF(MID($D8,1,1)="1",IF(OR(LOWER($K8)="vrai",LOWER($K8)="true"),popcorrect(BB8,$AT8,fiscalyear,fiscalyear,fiscalyear+timeperiod,$X8,discount),0),popcorrect(IF(OR(LOWER($K8)="vrai",LOWER($K8)="true"),BB8,M8),$AT8,fiscalyear,$E8,$F8,$X8,discount))) -> 3.204811014 | AW8: =IF($U8="",0,IF(MID($D8,1,1)="1",IF(OR(LOWER($K8)="vrai",LOWER($K8)="true"),popcorrect(BC8,$AT8,fiscalyear,fiscalyear,fiscalyear+timeperiod,$X8,discount),0),popcorrect(IF(OR(LOWER($K8)="vrai",LOWER($K8)="true"),BC8,N8),$AT8,fiscalyear,$E8,$F8,$X8,discount))) -> 1065.463609 | AX8: =IF($P8="",0,IF(MID($D8,1,1)="1",IF(OR(LOWER($K8)="vraiI",LOWER($K8)="true"),popcorrect(BD8,$AT8,fiscalyear,fiscalyear,fiscalyear+timeperiod,$R8,discount),0),popcorrect(IF(OR(LOWER($K8)="vrai",LOWER($K8)="true"),BD8,L8),$AT8,fiscalyear,$E8,$F8,$R8,discount))) -> 1062.258798 | AY8: =IF($P8="",0,IF(MID($D8,1,1)="1",IF(OR(LOWER($K8)="vraiI",LOWER($K8)="true"),popcorrect(BE8,$AT8,fiscalyear,fiscalyear,fiscalyear+timeperiod,$R8,discount),0),popcorrect(IF(OR(LOWER($K8)="vrai",LOWER($K8)="true"),BE8,M8),$AT8,fiscalyear,$E8,$F8,$R8,discount))) -> 3.204811014 | AZ8: =IF($P8="",0,IF(MID($D8,1,1)="1",IF(OR(LOWER($K8)="vraiI",LOWER($K8)="true"),popcorrect(BF8,$AT8,fiscalyear,fiscalyear,fiscalyear+timeperiod,$R8,discount),0),popcorrect(IF(OR(LOWER($K8)="vrai",LOWER($K8)="true"),BF8,N8),$AT8,fiscalyear,$E8,$F8,$R8,discount))) -> 1065.463609 | BA8: =IF(AND($AT8<>0,$X8>0),(L8*(1+PeriodRate($AT8,$X8))-L8)/(1+PeriodRate($AT8,$X8)),0) -> 638.8090909 | BB8: =IF(AND($AT8<>0,$X8>0),(M8*(1+PeriodRate($AT8,$X8))-M8)/(1+PeriodRate($AT8,$X8)),0) -> 1.927272727 | BC8: =IF(AND($AT8<>0,$X8>0),(N8*(1+PeriodRate($AT8,$X8))-N8)/(1+PeriodRate($AT8,$X8)),0) -> 640.7363636 | BD8: =IF(AND($AT8<>0,$R8>0),(L8*(1+PeriodRate($AT8,$R8))-L8)/(1+PeriodRate($AT8,$R8)),0) -> 638.8090909 | BE8: =IF(AND($AT8<>0,$R8>0),(M8*(1+PeriodRate($AT8,$R8))-M8)/(1+PeriodRate($AT8,$R8)),0) -> 1.927272727 | BF8: =IF(AND($AT8<>0,$R8>0),(N8*(1+PeriodRate($AT8,$R8))-N8)/(1+PeriodRate($AT8,$R8)),0) -> 640.7363636 | BN8: ='Admin Costs'!BG8 -> 1 | BO8: ='Admin Costs'!BH8 -> 2017 | BP8: ='Admin Costs'!BI8 -> Truck Transportation using SDV | BU8: Activity | BV8: CInput1
A9: 2 | L9: =IF(ISBLANK($H9),"",(IF(OR(MID($I9,1,1)="1",MID($I9,1,1)="3"),INDEX(Profile!$C$23:$E$35,MATCH($H9,Profile!$B$23:$B$35,0),1),0)*$J9)) ->  | M9: =IF(ISBLANK($H9),"",(IF(OR(MID($I9,1,1)="2",MID($I9,1,1)="3"),INDEX(Profile!$C$23:$E$35,MATCH($H9,Profile!$B$23:$B$35,0),2),0))*$J9) ->  | S9: =IF(P9="","",P9*Q9) ->  | Y9: =IF(OR(ISBLANK(U9),ISBLANK(V9)),"",(IF(MID(U9,1,1)="E",Premium,overhead)+1)*INDEX('Labour Costs'!$C$4:$C$51,MATCH(MID(V9,1,2),'Labour Costs'!$F$4:$F$51,0))) ->  | Z9: =IF(Y9="","",Y9*W9) ->  | AD9: =IF(ISNUMBER(IF(S9="",0,PeriodRate(discount,R9))),IF(S9="",0,PeriodRate(discount,R9)),0) -> 0 | AE9: 0 | AF9: =IF(ISNUMBER(IF(Y9="",0,PeriodRate(discount,X9))),IF(Y9="",0,PeriodRate(discount,X9)),0) -> 0 | AG9: 0 | AH9: =IF(MID($D9,1,1)="1",IF(OR($X9<>"",$X9<>0),$Z9*$N9*$X9,0)+IF(OR($P9<>"",$P9<>0),$S9*$N9*$R9,0),0) -> 0 | AI9: =$AH9+IF($AG9=0,0,$AG9*$AW9*$Z9)+IF($AE9=0,0,$AE9*$S9*$AZ9) -> 0 | AJ9: 0 | AL9: =IF(MID($D9,1,1)="1",IF(OR($X9<>"",$X9<>0),$Z9*$L9*$X9,0)+IF(OR($P9<>"",$P9<>0),$S9*$L9*$R9,0),0) -> 0 | AM9: =$AL9+IF($AG9=0,0,$AG9*$AU9*$Z9)+IF($AE9=0,0,$AE9*$S9*$AX9) -> 0 | AN9: 0 | AP9: =IF(MID($D9,1,1)="1",IF(OR($X9<>"",$X9<>0),$Z9*$M9*$X9,0)+IF(OR($P9<>"",$P9<>0),$S9*$M9*$R9,0),0) -> 0 | AQ9: =$AP9+IF($AG9=0,0,$AG9*$AV9*$Z9)+IF($AE9=0,0,$AE9*$S9*$AY9) -> 0 | AR9: =IF(NOT(ISNUMBER(AQ9)),"",(AQ9/AF)) -> 0 | AT9: =IF(H9<>"",OFFSET(Profile!$F$24,MATCH(H9,Profile!$B$25:$B$35,0),0),0) -> 0 | AU9: =IF($U9="",0,IF(MID($D9,1,1)="1",IF(OR(LOWER($K9)="vrai",LOWER($K9)="true"),popcorrect(BA9,$AT9,fiscalyear,fiscalyear,fiscalyear+timeperiod,$X9,discount),0),popcorrect(IF(OR(LOWER($K9)="vrai",LOWER($K9)="true"),BA9,L9),$AT9,fiscalyear,$E9,$F9,$X9,discount))) -> 0 | AV9: =IF($U9="",0,IF(MID($D9,1,1)="1",IF(OR(LOWER($K9)="vrai",LOWER($K9)="true"),popcorrect(BB9,$AT9,fiscalyear,fiscalyear,fiscalyear+timeperiod,$X9,discount),0),popcorrect(IF(OR(LOWER($K9)="vrai",LOWER($K9)="true"),BB9,M9),$AT9,fiscalyear,$E9,$F9,$X9,discount))) -> 0 | AW9: =IF($U9="",0,IF(MID($D9,1,1)="1",IF(OR(LOWER($K9)="vrai",LOWER($K9)="true"),popcorrect(BC9,$AT9,fiscalyear,fiscalyear,fiscalyear+timeperiod,$X9,discount),0),popcorrect(IF(OR(LOWER($K9)="vrai",LOWER($K9)="true"),BC9,N9),$AT9,fiscalyear,$E9,$F9,$X9,discount))) -> 0 | AX9: =IF($P9="",0,IF(MID($D9,1,1)="1",IF(OR(LOWER($K9)="vraiI",LOWER($K9)="true"),popcorrect(BD9,$AT9,fiscalyear,fiscalyear,fiscalyear+timeperiod,$R9,discount),0),popcorrect(IF(OR(LOWER($K9)="vrai",LOWER($K9)="true"),BD9,L9),$AT9,fiscalyear,$E9,$F9,$R9,discount))) -> 0 | AY9: =IF($P9="",0,IF(MID($D9,1,1)="1",IF(OR(LOWER($K9)="vraiI",LOWER($K9)="true"),popcorrect(BE9,$AT9,fiscalyear,fiscalyear,fiscalyear+timeperiod,$R9,discount),0),popcorrect(IF(OR(LOWER($K9)="vrai",LOWER($K9)="true"),BE9,M9),$AT9,fiscalyear,$E9,$F9,$R9,discount))) -> 0 | AZ9: =IF($P9="",0,IF(MID($D9,1,1)="1",IF(OR(LOWER($K9)="vraiI",LOWER($K9)="true"),popcorrect(BF9,$AT9,fiscalyear,fiscalyear,fiscalyear+timeperiod,$R9,discount),0),popcorrect(IF(OR(LOWER($K9)="vrai",LOWER($K9)="true"),BF9,N9),$AT9,fiscalyear,$E9,$F9,$R9,discount))) -> 0 | BA9: =IF(AND($AT9<>0,$X9>0),(L9*(1+PeriodRate($AT9,$X9))-L9)/(1+PeriodRate($AT9,$X9)),0) -> 0 | BB9: =IF(AND($AT9<>0,$X9>0),(M9*(1+PeriodRate($AT9,$X9))-M9)/(1+PeriodRate($AT9,$X9)),0) -> 0 | BC9: =IF(AND($AT9<>0,$X9>0),(N9*(1+PeriodRate($AT9,$X9))-N9)/(1+PeriodRate($AT9,$X9)),0) -> 0 | BD9: =IF(AND($AT9<>0,$R9>0),(L9*(1+PeriodRate($AT9,$R9))-L9)/(1+PeriodRate($AT9,$R9)),0) -> 0 | BE9: =IF(AND($AT9<>0,$R9>0),(M9*(1+PeriodRate($AT9,$R9))-M9)/(1+PeriodRate($AT9,$R9)),0) -> 0 | BF9: =IF(AND($AT9<>0,$R9>0),(N9*(1+PeriodRate($AT9,$R9))-N9)/(1+PeriodRate($AT9,$R9)),0) -> 0 | BN9: ='Admin Costs'!BG9 -> 2 | BO9: ='Admin Costs'!BH9 -> 2018 | BP9: ='Admin Costs'!BI9 -> Vehicle Dealers Selling SDV | BU9: Stakeholder | BV9: CInput2
A10: 3 | L10: =IF(ISBLANK($H10),"",(IF(OR(MID($I10,1,1)="1",MID($I10,1,1)="3"),INDEX(Profile!$C$23:$E$35,MATCH($H10,Profile!$B$23:$B$35,0),1),0)*$J10)) ->  | M10: =IF(ISBLANK($H10),"",(IF(OR(MID($I10,1,1)="2",MID($I10,1,1)="3"),INDEX(Profile!$C$23:$E$35,MATCH($H10,Profile!$B$23:$B$35,0),2),0))*$J10) ->  | Y10: =IF(OR(ISBLANK(U10),ISBLANK(V10)),"",(IF(MID(U10,1,1)="E",Premium,overhead)+1)*INDEX('Labour Costs'!$C$4:$C$51,MATCH(MID(V10,1,2),'Labour Costs'!$F$4:$F$51,0))) ->  | Z10: =IF(Y10="","",Y10*W10) ->  | AD10: =IF(ISNUMBER(IF(S10="",0,PeriodRate(discount,R10))),IF(S10="",0,PeriodRate(discount,R10)),0) -> 0 | AE10: 0 | AF10: =IF(ISNUMBER(IF(Y10="",0,PeriodRate(discount,X10))),IF(Y10="",0,PeriodRate(discount,X10)),0) -> 0 | AG10: 0 | AH10: 0 | AI10: =$AH10+IF($AG10=0,0,$AG10*$AW10*$Z10)+IF($AE10=0,0,$AE10*$S10*$AZ10) -> 0 | AJ10: 0 | AL10: 0 | AM10: 0 | AN10: 0 | AP10: 0 | AQ10: 0 | AR10: =IF(NOT(ISNUMBER(AQ10)),"",(AQ10/AF)) -> 0 | AT10: =IF(H10<>"",OFFSET(Profile!$F$24,MATCH(H10,Profile!$B$25:$B$35,0),0),0) -> 0 | AU10: =IF($U10="",0,IF(MID($D10,1,1)="1",IF(OR(LOWER($K10)="vrai",LOWER($K10)="true"),popcorrect(BA10,$AT10,fiscalyear,fiscalyear,fiscalyear+timeperiod,$X10,discount),0),popcorrect(IF(OR(LOWER($K10)="vrai",LOWER($K10)="true"),BA10,L10),$AT10,fiscalyear,$E10,$F10,$X10,discount))) -> 0 | AV10: =IF($U10="",0,IF(MID($D10,1,1)="1",IF(OR(LOWER($K10)="vrai",LOWER($K10)="true"),popcorrect(BB10,$AT10,fiscalyear,fiscalyear,fiscalyear+timeperiod,$X10,discount),0),popcorrect(IF(OR(LOWER($K10)="vrai",LOWER($K10)="true"),BB10,M10),$AT10,fiscalyear,$E10,$F10,$X10,discount))) -> 0 | AW10: =IF($U10="",0,IF(MID($D10,1,1)="1",IF(OR(LOWER($K10)="vrai",LOWER($K10)="true"),popcorrect(BC10,$AT10,fiscalyear,fiscalyear,fiscalyear+timeperiod,$X10,discount),0),popcorrect(IF(OR(LOWER($K10)="vrai",LOWER($K10)="true"),BC10,N10),$AT10,fiscalyear,$E10,$F10,$X10,discount))) -> 0 | AX10: =IF($P10="",0,IF(MID($D10,1,1)="1",IF(OR(LOWER($K10)="vraiI",LOWER($K10)="true"),popcorrect(BD10,$AT10,fiscalyear,fiscalyear,fiscalyear+timeperiod,$R10,discount),0),popcorrect(IF(OR(LOWER($K10)="vrai",LOWER($K10)="true"),BD10,L10),$AT10,fiscalyear,$E10,$F10,$R10,discount))) -> 0 | AY10: =IF($P10="",0,IF(MID($D10,1,1)="1",IF(OR(LOWER($K10)="vraiI",LOWER($K10)="true"),popcorrect(BE10,$AT10,fiscalyear,fiscalyear,fiscalyear+timeperiod,$R10,discount),0),popcorrect(IF(OR(LOWER($K10)="vrai",LOWER($K10)="true"),BE10,M10),$AT10,fiscalyear,$E10,$F10,$R10,discount))) -> 0 | AZ10: =IF($P10="",0,IF(MID($D10,1,1)="1",IF(OR(LOWER($K10)="vraiI",LOWER($K10)="true"),popcorrect(BF10,$AT10,fiscalyear,fiscalyear,fiscalyear+timeperiod,$R10,discount),0),popcorrect(IF(OR(LOWER($K10)="vrai",LOWER($K10)="true"),BF10,N10),$AT10,fiscalyear,$E10,$F10,$R10,discount))) -> 0 | BA10: =IF(AND($AT10<>0,$X10>0),(L10*(1+PeriodRate($AT10,$X10))-L10)/(1+PeriodRate($AT10,$X10)),0) -> 0 | BB10: =IF(AND($AT10<>0,$X10>0),(M10*(1+PeriodRate($AT10,$X10))-M10)/(1+PeriodRate($AT10,$X10)),0) -> 0 | BC10: =IF(AND($AT10<>0,$X10>0),(N10*(1+PeriodRate($AT10,$X10))-N10)/(1+PeriodRate($AT10,$X10)),0) -> 0 | BD10: =IF(AND($AT10<>0,$R10>0),(L10*(1+PeriodRate($AT10,$R10))-L10)/(1+PeriodRate($AT10,$R10)),0) -> 0 | BE10: =IF(AND($AT10<>0,$R10>0),(M10*(1+PeriodRate($AT10,$R10))-M10)/(1+PeriodRate($AT10,$R10)),0) -> 0 | BF10: =IF(AND($AT10<>0,$R10>0),(N10*(1+PeriodRate($AT10,$R10))-N10)/(1+PeriodRate($AT10,$R10)),0) -> 0 | BN10: ='Admin Costs'!BG10 -> 3 | BO10: ='Admin Costs'!BH10 -> 2019 | BP10: ='Admin Costs'!BI10 -> Empty/Vide | BU10: Biz Size | BV10: CInput3
A11: 4 | L11: =IF(ISBLANK($H11),"",(IF(OR(MID($I11,1,1)="1",MID($I11,1,1)="3"),INDEX(Profile!$C$23:$E$35,MATCH($H11,Profile!$B$23:$B$35,0),1),0)*$J11)) ->  | M11: =IF(ISBLANK($H11),"",(IF(OR(MID($I11,1,1)="2",MID($I11,1,1)="3"),INDEX(Profile!$C$23:$E$35,MATCH($H11,Profile!$B$23:$B$35,0),2),0))*$J11) ->  | Y11: =IF(OR(ISBLANK(U11),ISBLANK(V11)),"",(IF(MID(U11,1,1)="E",Premium,overhead)+1)*INDEX('Labour Costs'!$C$4:$C$51,MATCH(MID(V11,1,2),'Labour Costs'!$F$4:$F$51,0))) ->  | AD11: =IF(ISNUMBER(IF(S11="",0,PeriodRate(discount,R11))),IF(S11="",0,PeriodRate(discount,R11)),0) -> 0 | AE11: 0 | AF11: =IF(ISNUMBER(IF(Y11="",0,PeriodRate(discount,X11))),IF(Y11="",0,PeriodRate(discount,X11)),0) -> 0 | AG11: 0 | AH11: 0 | AI11: 0 | AJ11: 0 | AL11: 0 | AM11: 0 | AN11: 0 | AP11: 0 | AQ11: 0 | AR11: =IF(NOT(ISNUMBER(AQ11)),"",(AQ11/AF)) -> 0 | AT11: =IF(H11<>"",OFFSET(Profile!$F$24,MATCH(H11,Profile!$B$25:$B$35,0),0),0) -> 0 | AU11: =IF($U11="",0,IF(MID($D11,1,1)="1",IF(OR(LOWER($K11)="vrai",LOWER($K11)="true"),popcorrect(BA11,$AT11,fiscalyear,fiscalyear,fiscalyear+timeperiod,$X11,discount),0),popcorrect(IF(OR(LOWER($K11)="vrai",LOWER($K11)="true"),BA11,L11),$AT11,fiscalyear,$E11,$F11,$X11,discount))) -> 0 | AV11: =IF($U11="",0,IF(MID($D11,1,1)="1",IF(OR(LOWER($K11)="vrai",LOWER($K11)="true"),popcorrect(BB11,$AT11,fiscalyear,fiscalyear,fiscalyear+timeperiod,$X11,discount),0),popcorrect(IF(OR(LOWER($K11)="vrai",LOWER($K11)="true"),BB11,M11),$AT11,fiscalyear,$E11,$F11,$X11,discount))) -> 0 | AW11: =IF($U11="",0,IF(MID($D11,1,1)="1",IF(OR(LOWER($K11)="vrai",LOWER($K11)="true"),popcorrect(BC11,$AT11,fiscalyear,fiscalyear,fiscalyear+timeperiod,$X11,discount),0),popcorrect(IF(OR(LOWER($K11)="vrai",LOWER($K11)="true"),BC11,N11),$AT11,fiscalyear,$E11,$F11,$X11,discount))) -> 0 | AX11: =IF($P11="",0,IF(MID($D11,1,1)="1",IF(OR(LOWER($K11)="vraiI",LOWER($K11)="true"),popcorrect(BD11,$AT11,fiscalyear,fiscalyear,fiscalyear+timeperiod,$R11,discount),0),popcorrect(IF(OR(LOWER($K11)="vrai",LOWER($K11)="true"),BD11,L11),$AT11,fiscalyear,$E11,$F11,$R11,discount))) -> 0 | AY11: =IF($P11="",0,IF(MID($D11,1,1)="1",IF(OR(LOWER($K11)="vraiI",LOWER($K11)="true"),popcorrect(BE11,$AT11,fiscalyear,fiscalyear,fiscalyear+timeperiod,$R11,discount),0),popcorrect(IF(OR(LOWER($K11)="vrai",LOWER($K11)="true"),BE11,M11),$AT11,fiscalyear,$E11,$F11,$R11,discount))) -> 0 | AZ11: =IF($P11="",0,IF(MID($D11,1,1)="1",IF(OR(LOWER($K11)="vraiI",LOWER($K11)="true"),popcorrect(BF11,$AT11,fiscalyear,fiscalyear,fiscalyear+timeperiod,$R11,discount),0),popcorrect(IF(OR(LOWER($K11)="vrai",LOWER($K11)="true"),BF11,N11),$AT11,fiscalyear,$E11,$F11,$R11,discount))) -> 0 | BA11: =IF(AND($AT11<>0,$X11>0),(L11*(1+PeriodRate($AT11,$X11))-L11)/(1+PeriodRate($AT11,$X11)),0) -> 0 | BB11: =IF(AND($AT11<>0,$X11>0),(M11*(1+PeriodRate($AT11,$X11))-M11)/(1+PeriodRate($AT11,$X11)),0) -> 0 | BC11: =IF(AND($AT11<>0,$X11>0),(N11*(1+PeriodRate($AT11,$X11))-N11)/(1+PeriodRate($AT11,$X11)),0) -> 0 | BD11: =IF(AND($AT11<>0,$R11>0),(L11*(1+PeriodRate($AT11,$R11))-L11)/(1+PeriodRate($AT11,$R11)),0) -> 0 | BE11: =IF(AND($AT11<>0,$R11>0),(M11*(1+PeriodRate($AT11,$R11))-M11)/(1+PeriodRate($AT11,$R11)),0) -> 0 | BF11: =IF(AND($AT11<>0,$R11>0),(N11*(1+PeriodRate($AT11,$R11))-N11)/(1+PeriodRate($AT11,$R11)),0) -> 0 | BN11: ='Admin Costs'!BG11 -> 4 | BO11: ='Admin Costs'!BH11 -> 2020 | BP11: ='Admin Costs'!BI11 -> Empty/Vide | BU11: Portion | BV11: CInput4 | BW11: 1
A12: 5 | L12: =IF(ISBLANK($H12),"",(IF(OR(MID($I12,1,1)="1",MID($I12,1,1)="3"),INDEX(Profile!$C$23:$E$35,MATCH($H12,Profile!$B$23:$B$35,0),1),0)*$J12)) ->  | M12: =IF(ISBLANK($H12),"",(IF(OR(MID($I12,1,1)="2",MID($I12,1,1)="3"),INDEX(Profile!$C$23:$E$35,MATCH($H12,Profile!$B$23:$B$35,0),2),0))*$J12) ->  | Y12: =IF(OR(ISBLANK(U12),ISBLANK(V12)),"",(IF(MID(U12,1,1)="E",Premium,overhead)+1)*INDEX('Labour Costs'!$C$4:$C$51,MATCH(MID(V12,1,2),'Labour Costs'!$F$4:$F$51,0))) ->  | AD12: =IF(ISNUMBER(IF(S12="",0,PeriodRate(discount,R12))),IF(S12="",0,PeriodRate(discount,R12)),0) -> 0 | AE12: 0 | AF12: =IF(ISNUMBER(IF(Y12="",0,PeriodRate(discount,X12))),IF(Y12="",0,PeriodRate(discount,X12)),0) -> 0 | AG12: 0 | AH12: 0 | AI12: 0 | AJ12: 0 | AL12: 0 | AM12: 0 | AN12: 0 | AP12: 0 | AQ12: 0 | AR12: =IF(NOT(ISNUMBER(AQ12)),"",(AQ12/AF)) -> 0 | AT12: =IF(H12<>"",OFFSET(Profile!$F$24,MATCH(H12,Profile!$B$25:$B$35,0),0),0) -> 0 | AU12: =IF($U12="",0,IF(MID($D12,1,1)="1",IF(OR(LOWER($K12)="vrai",LOWER($K12)="true"),popcorrect(BA12,$AT12,fiscalyear,fiscalyear,fiscalyear+timeperiod,$X12,discount),0),popcorrect(IF(OR(LOWER($K12)="vrai",LOWER($K12)="true"),BA12,L12),$AT12,fiscalyear,$E12,$F12,$X12,discount))) -> 0 | AV12: =IF($U12="",0,IF(MID($D12,1,1)="1",IF(OR(LOWER($K12)="vrai",LOWER($K12)="true"),popcorrect(BB12,$AT12,fiscalyear,fiscalyear,fiscalyear+timeperiod,$X12,discount),0),popcorrect(IF(OR(LOWER($K12)="vrai",LOWER($K12)="true"),BB12,M12),$AT12,fiscalyear,$E12,$F12,$X12,discount))) -> 0 | AW12: =IF($U12="",0,IF(MID($D12,1,1)="1",IF(OR(LOWER($K12)="vrai",LOWER($K12)="true"),popcorrect(BC12,$AT12,fiscalyear,fiscalyear,fiscalyear+timeperiod,$X12,discount),0),popcorrect(IF(OR(LOWER($K12)="vrai",LOWER($K12)="true"),BC12,N12),$AT12,fiscalyear,$E12,$F12,$X12,discount))) -> 0 | AX12: =IF($P12="",0,IF(MID($D12,1,1)="1",IF(OR(LOWER($K12)="vraiI",LOWER($K12)="true"),popcorrect(BD12,$AT12,fiscalyear,fiscalyear,fiscalyear+timeperiod,$R12,discount),0),popcorrect(IF(OR(LOWER($K12)="vrai",LOWER($K12)="true"),BD12,L12),$AT12,fiscalyear,$E12,$F12,$R12,discount))) -> 0 | AY12: =IF($P12="",0,IF(MID($D12,1,1)="1",IF(OR(LOWER($K12)="vraiI",LOWER($K12)="true"),popcorrect(BE12,$AT12,fiscalyear,fiscalyear,fiscalyear+timeperiod,$R12,discount),0),popcorrect(IF(OR(LOWER($K12)="vrai",LOWER($K12)="true"),BE12,M12),$AT12,fiscalyear,$E12,$F12,$R12,discount))) -> 0 | AZ12: =IF($P12="",0,IF(MID($D12,1,1)="1",IF(OR(LOWER($K12)="vraiI",LOWER($K12)="true"),popcorrect(BF12,$AT12,fiscalyear,fiscalyear,fiscalyear+timeperiod,$R12,discount),0),popcorrect(IF(OR(LOWER($K12)="vrai",LOWER($K12)="true"),BF12,N12),$AT12,fiscalyear,$E12,$F12,$R12,discount))) -> 0 | BA12: =IF(AND($AT12<>0,$X12>0),(L12*(1+PeriodRate($AT12,$X12))-L12)/(1+PeriodRate($AT12,$X12)),0) -> 0 | BB12: =IF(AND($AT12<>0,$X12>0),(M12*(1+PeriodRate($AT12,$X12))-M12)/(1+PeriodRate($AT12,$X12)),0) -> 0 | BC12: =IF(AND($AT12<>0,$X12>0),(N12*(1+PeriodRate($AT12,$X12))-N12)/(1+PeriodRate($AT12,$X12)),0) -> 0 | BD12: =IF(AND($AT12<>0,$R12>0),(L12*(1+PeriodRate($AT12,$R12))-L12)/(1+PeriodRate($AT12,$R12)),0) -> 0 | BE12: =IF(AND($AT12<>0,$R12>0),(M12*(1+PeriodRate($AT12,$R12))-M12)/(1+PeriodRate($AT12,$R12)),0) -> 0 | BF12: =IF(AND($AT12<>0,$R12>0),(N12*(1+PeriodRate($AT12,$R12))-N12)/(1+PeriodRate($AT12,$R12)),0) -> 0 | BN12: ='Admin Costs'!BG12 -> 5 | BO12: ='Admin Costs'!BH12 -> 2021 | BP12: ='Admin Costs'!BI12 -> Empty/Vide | BU12: Timing | BV12: CInput5
A13: 6 | L13: =IF(ISBLANK($H13),"",(IF(OR(MID($I13,1,1)="1",MID($I13,1,1)="3"),INDEX(Profile!$C$23:$E$35,MATCH($H13,Profile!$B$23:$B$35,0),1),0)*$J13)) ->  | M13: =IF(ISBLANK($H13),"",(IF(OR(MID($I13,1,1)="2",MID($I13,1,1)="3"),INDEX(Profile!$C$23:$E$35,MATCH($H13,Profile!$B$23:$B$35,0),2),0))*$J13) ->  | Y13: =IF(OR(ISBLANK(U13),ISBLANK(V13)),"",(IF(MID(U13,1,1)="E",Premium,overhead)+1)*INDEX('Labour Costs'!$C$4:$C$51,MATCH(MID(V13,1,2),'Labour Costs'!$F$4:$F$51,0))) ->  | AD13: =IF(ISNUMBER(IF(S13="",0,PeriodRate(discount,R13))),IF(S13="",0,PeriodRate(discount,R13)),0) -> 0 | AE13: 0 | AF13: =IF(ISNUMBER(IF(Y13="",0,PeriodRate(discount,X13))),IF(Y13="",0,PeriodRate(discount,X13)),0) -> 0 | AG13: 0 | AH13: 0 | AI13: 0 | AJ13: 0 | AL13: 0 | AM13: 0 | AN13: 0 | AP13: 0 | AQ13: 0 | AR13: 0 | AT13: =IF(H13<>"",OFFSET(Profile!$F$24,MATCH(H13,Profile!$B$25:$B$35,0),0),0) -> 0 | AU13: =IF($U13="",0,IF(MID($D13,1,1)="1",IF(OR(LOWER($K13)="vrai",LOWER($K13)="true"),popcorrect(BA13,$AT13,fiscalyear,fiscalyear,fiscalyear+timeperiod,$X13,discount),0),popcorrect(IF(OR(LOWER($K13)="vrai",LOWER($K13)="true"),BA13,L13),$AT13,fiscalyear,$E13,$F13,$X13,discount))) -> 0 | AV13: =IF($U13="",0,IF(MID($D13,1,1)="1",IF(OR(LOWER($K13)="vrai",LOWER($K13)="true"),popcorrect(BB13,$AT13,fiscalyear,fiscalyear,fiscalyear+timeperiod,$X13,discount),0),popcorrect(IF(OR(LOWER($K13)="vrai",LOWER($K13)="true"),BB13,M13),$AT13,fiscalyear,$E13,$F13,$X13,discount))) -> 0 | AW13: =IF($U13="",0,IF(MID($D13,1,1)="1",IF(OR(LOWER($K13)="vrai",LOWER($K13)="true"),popcorrect(BC13,$AT13,fiscalyear,fiscalyear,fiscalyear+timeperiod,$X13,discount),0),popcorrect(IF(OR(LOWER($K13)="vrai",LOWER($K13)="true"),BC13,N13),$AT13,fiscalyear,$E13,$F13,$X13,discount))) -> 0 | AX13: =IF($P13="",0,IF(MID($D13,1,1)="1",IF(OR(LOWER($K13)="vraiI",LOWER($K13)="true"),popcorrect(BD13,$AT13,fiscalyear,fiscalyear,fiscalyear+timeperiod,$R13,discount),0),popcorrect(IF(OR(LOWER($K13)="vrai",LOWER($K13)="true"),BD13,L13),$AT13,fiscalyear,$E13,$F13,$R13,discount))) -> 0 | AY13: =IF($P13="",0,IF(MID($D13,1,1)="1",IF(OR(LOWER($K13)="vraiI",LOWER($K13)="true"),popcorrect(BE13,$AT13,fiscalyear,fiscalyear,fiscalyear+timeperiod,$R13,discount),0),popcorrect(IF(OR(LOWER($K13)="vrai",LOWER($K13)="true"),BE13,M13),$AT13,fiscalyear,$E13,$F13,$R13,discount))) -> 0 | AZ13: =IF($P13="",0,IF(MID($D13,1,1)="1",IF(OR(LOWER($K13)="vraiI",LOWER($K13)="true"),popcorrect(BF13,$AT13,fiscalyear,fiscalyear,fiscalyear+timeperiod,$R13,discount),0),popcorrect(IF(OR(LOWER($K13)="vrai",LOWER($K13)="true"),BF13,N13),$AT13,fiscalyear,$E13,$F13,$R13,discount))) -> 0 | BA13: =IF(AND($AT13<>0,$X13>0),(L13*(1+PeriodRate($AT13,$X13))-L13)/(1+PeriodRate($AT13,$X13)),0) -> 0 | BB13: =IF(AND($AT13<>0,$X13>0),(M13*(1+PeriodRate($AT13,$X13))-M13)/(1+PeriodRate($AT13,$X13)),0) -> 0 | BC13: =IF(AND($AT13<>0,$X13>0),(N13*(1+PeriodRate($AT13,$X13))-N13)/(1+PeriodRate($AT13,$X13)),0) -> 0 | BD13: =IF(AND($AT13<>0,$R13>0),(L13*(1+PeriodRate($AT13,$R13))-L13)/(1+PeriodRate($AT13,$R13)),0) -> 0 | BE13: =IF(AND($AT13<>0,$R13>0),(M13*(1+PeriodRate($AT13,$R13))-M13)/(1+PeriodRate($AT13,$R13)),0) -> 0 | BF13: =IF(AND($AT13<>0,$R13>0),(N13*(1+PeriodRate($AT13,$R13))-N13)/(1+PeriodRate($AT13,$R13)),0) -> 0 | BN13: ='Admin Costs'!BG13 -> 6 | BO13: ='Admin Costs'!BH13 -> 2022 | BP13: ='Admin Costs'!BI13 -> Empty/Vide | BU13: Start Year | BV13: CInput6
A14: 7 | L14: =IF(ISBLANK($H14),"",(IF(OR(MID($I14,1,1)="1",MID($I14,1,1)="3"),INDEX(Profile!$C$23:$E$35,MATCH($H14,Profile!$B$23:$B$35,0),1),0)*$J14)) ->  | M14: =IF(ISBLANK($H14),"",(IF(OR(MID($I14,1,1)="2",MID($I14,1,1)="3"),INDEX(Profile!$C$23:$E$35,MATCH($H14,Profile!$B$23:$B$35,0),2),0))*$J14) ->  | Y14: =IF(OR(ISBLANK(U14),ISBLANK(V14)),"",(IF(MID(U14,1,1)="E",Premium,overhead)+1)*INDEX('Labour Costs'!$C$4:$C$51,MATCH(MID(V14,1,2),'Labour Costs'!$F$4:$F$51,0))) ->  | AD14: =IF(ISNUMBER(IF(S14="",0,PeriodRate(discount,R14))),IF(S14="",0,PeriodRate(discount,R14)),0) -> 0 | AE14: =IF(ISNUMBER(IF(S14="",0,PeriodFactor(AD14,(R14*(timeperiod))))),IF(S14="",0,PeriodFactor(AD14,(R14*(timeperiod)))),0) -> 0 | AF14: =IF(ISNUMBER(IF(Y14="",0,PeriodRate(discount,X14))),IF(Y14="",0,PeriodRate(discount,X14)),0) -> 0 | AG14: =IF(Z14="",0,PeriodFactor(AF14,(X14*(timeperiod)))) -> 0 | AH14: 0 | AI14: 0 | AJ14: =IF(NOT(ISNUMBER(AI14)),"",(AI14/AF)) -> 0 | AL14: 0 | AM14: 0 | AN14: =IF(NOT(ISNUMBER(AM14)),"",(AM14/AF)) -> 0 | AP14: 0 | AQ14: 0 | AR14: 0 | AT14: =IF(H14<>"",OFFSET(Profile!$F$24,MATCH(H14,Profile!$B$25:$B$35,0),0),0) -> 0 | AU14: =IF($U14="",0,IF(MID($D14,1,1)="1",IF(OR(LOWER($K14)="vrai",LOWER($K14)="true"),popcorrect(BA14,$AT14,fiscalyear,fiscalyear,fiscalyear+timeperiod,$X14,discount),0),popcorrect(IF(OR(LOWER($K14)="vrai",LOWER($K14)="true"),BA14,L14),$AT14,fiscalyear,$E14,$F14,$X14,discount))) -> 0 | AV14: =IF($U14="",0,IF(MID($D14,1,1)="1",IF(OR(LOWER($K14)="vrai",LOWER($K14)="true"),popcorrect(BB14,$AT14,fiscalyear,fiscalyear,fiscalyear+timeperiod,$X14,discount),0),popcorrect(IF(OR(LOWER($K14)="vrai",LOWER($K14)="true"),BB14,M14),$AT14,fiscalyear,$E14,$F14,$X14,discount))) -> 0 | AW14: =IF($U14="",0,IF(MID($D14,1,1)="1",IF(OR(LOWER($K14)="vrai",LOWER($K14)="true"),popcorrect(BC14,$AT14,fiscalyear,fiscalyear,fiscalyear+timeperiod,$X14,discount),0),popcorrect(IF(OR(LOWER($K14)="vrai",LOWER($K14)="true"),BC14,N14),$AT14,fiscalyear,$E14,$F14,$X14,discount))) -> 0 | AX14: =IF($P14="",0,IF(MID($D14,1,1)="1",IF(OR(LOWER($K14)="vraiI",LOWER($K14)="true"),popcorrect(BD14,$AT14,fiscalyear,fiscalyear,fiscalyear+timeperiod,$R14,discount),0),popcorrect(IF(OR(LOWER($K14)="vrai",LOWER($K14)="true"),BD14,L14),$AT14,fiscalyear,$E14,$F14,$R14,discount))) -> 0 | AY14: =IF($P14="",0,IF(MID($D14,1,1)="1",IF(OR(LOWER($K14)="vraiI",LOWER($K14)="true"),popcorrect(BE14,$AT14,fiscalyear,fiscalyear,fiscalyear+timeperiod,$R14,discount),0),popcorrect(IF(OR(LOWER($K14)="vrai",LOWER($K14)="true"),BE14,M14),$AT14,fiscalyear,$E14,$F14,$R14,discount))) -> 0 | AZ14: =IF($P14="",0,IF(MID($D14,1,1)="1",IF(OR(LOWER($K14)="vraiI",LOWER($K14)="true"),popcorrect(BF14,$AT14,fiscalyear,fiscalyear,fiscalyear+timeperiod,$R14,discount),0),popcorrect(IF(OR(LOWER($K14)="vrai",LOWER($K14)="true"),BF14,N14),$AT14,fiscalyear,$E14,$F14,$R14,discount))) -> 0 | BA14: =IF(AND($AT14<>0,$X14>0),(L14*(1+PeriodRate($AT14,$X14))-L14)/(1+PeriodRate($AT14,$X14)),0) -> 0 | BB14: =IF(AND($AT14<>0,$X14>0),(M14*(1+PeriodRate($AT14,$X14))-M14)/(1+PeriodRate($AT14,$X14)),0) -> 0 | BC14: =IF(AND($AT14<>0,$X14>0),(N14*(1+PeriodRate($AT14,$X14))-N14)/(1+PeriodRate($AT14,$X14)),0) -> 0 | BD14: =IF(AND($AT14<>0,$R14>0),(L14*(1+PeriodRate($AT14,$R14))-L14)/(1+PeriodRate($AT14,$R14)),0) -> 0 | BE14: =IF(AND($AT14<>0,$R14>0),(M14*(1+PeriodRate($AT14,$R14))-M14)/(1+PeriodRate($AT14,$R14)),0) -> 0 | BF14: =IF(AND($AT14<>0,$R14>0),(N14*(1+PeriodRate($AT14,$R14))-N14)/(1+PeriodRate($AT14,$R14)),0) -> 0 | BN14: ='Admin Costs'!BG14 -> 7 | BO14: ='Admin Costs'!BH14 -> 2023 | BP14: ='Admin Costs'!BI14 -> Empty/Vide | BU14: End Year | BV14: CInput7
A15: 8 | L15: =IF(ISBLANK($H15),"",(IF(OR(MID($I15,1,1)="1",MID($I15,1,1)="3"),INDEX(Profile!$C$23:$E$35,MATCH($H15,Profile!$B$23:$B$35,0),1),0)*$J15)) ->  | M15: =IF(ISBLANK($H15),"",(IF(OR(MID($I15,1,1)="2",MID($I15,1,1)="3"),INDEX(Profile!$C$23:$E$35,MATCH($H15,Profile!$B$23:$B$35,0),2),0))*$J15) ->  | Y15: =IF(OR(ISBLANK(U15),ISBLANK(V15)),"",(IF(MID(U15,1,1)="E",Premium,overhead)+1)*INDEX('Labour Costs'!$C$4:$C$51,MATCH(MID(V15,1,2),'Labour Costs'!$F$4:$F$51,0))) ->  | AD15: =IF(ISNUMBER(IF(S15="",0,PeriodRate(discount,R15))),IF(S15="",0,PeriodRate(discount,R15)),0) -> 0 | AE15: 0 | AF15: =IF(ISNUMBER(IF(Y15="",0,PeriodRate(discount,X15))),IF(Y15="",0,PeriodRate(discount,X15)),0) -> 0 | AG15: 0 | AH15: 0 | AI15: 0 | AJ15: 0 | AL15: 0 | AM15: 0 | AN15: 0 | AP15: 0 | AQ15: 0 | AR15: 0 | AT15: =IF(H15<>"",OFFSET(Profile!$F$24,MATCH(H15,Profile!$B$25:$B$35,0),0),0) -> 0 | AU15: =IF($U15="",0,IF(MID($D15,1,1)="1",IF(OR(LOWER($K15)="vrai",LOWER($K15)="true"),popcorrect(BA15,$AT15,fiscalyear,fiscalyear,fiscalyear+timeperiod,$X15,discount),0),popcorrect(IF(OR(LOWER($K15)="vrai",LOWER($K15)="true"),BA15,L15),$AT15,fiscalyear,$E15,$F15,$X15,discount))) -> 0 | AV15: =IF($U15="",0,IF(MID($D15,1,1)="1",IF(OR(LOWER($K15)="vrai",LOWER($K15)="true"),popcorrect(BB15,$AT15,fiscalyear,fiscalyear,fiscalyear+timeperiod,$X15,discount),0),popcorrect(IF(OR(LOWER($K15)="vrai",LOWER($K15)="true"),BB15,M15),$AT15,fiscalyear,$E15,$F15,$X15,discount))) -> 0 | AW15: =IF($U15="",0,IF(MID($D15,1,1)="1",IF(OR(LOWER($K15)="vrai",LOWER($K15)="true"),popcorrect(BC15,$AT15,fiscalyear,fiscalyear,fiscalyear+timeperiod,$X15,discount),0),popcorrect(IF(OR(LOWER($K15)="vrai",LOWER($K15)="true"),BC15,N15),$AT15,fiscalyear,$E15,$F15,$X15,discount))) -> 0 | AX15: =IF($P15="",0,IF(MID($D15,1,1)="1",IF(OR(LOWER($K15)="vraiI",LOWER($K15)="true"),popcorrect(BD15,$AT15,fiscalyear,fiscalyear,fiscalyear+timeperiod,$R15,discount),0),popcorrect(IF(OR(LOWER($K15)="vrai",LOWER($K15)="true"),BD15,L15),$AT15,fiscalyear,$E15,$F15,$R15,discount))) -> 0 | AY15: =IF($P15="",0,IF(MID($D15,1,1)="1",IF(OR(LOWER($K15)="vraiI",LOWER($K15)="true"),popcorrect(BE15,$AT15,fiscalyear,fiscalyear,fiscalyear+timeperiod,$R15,discount),0),popcorrect(IF(OR(LOWER($K15)="vrai",LOWER($K15)="true"),BE15,M15),$AT15,fiscalyear,$E15,$F15,$R15,discount))) -> 0 | AZ15: =IF($P15="",0,IF(MID($D15,1,1)="1",IF(OR(LOWER($K15)="vraiI",LOWER($K15)="true"),popcorrect(BF15,$AT15,fiscalyear,fiscalyear,fiscalyear+timeperiod,$R15,discount),0),popcorrect(IF(OR(LOWER($K15)="vrai",LOWER($K15)="true"),BF15,N15),$AT15,fiscalyear,$E15,$F15,$R15,discount))) -> 0 | BA15: =IF(AND($AT15<>0,$X15>0),(L15*(1+PeriodRate($AT15,$X15))-L15)/(1+PeriodRate($AT15,$X15)),0) -> 0 | BB15: =IF(AND($AT15<>0,$X15>0),(M15*(1+PeriodRate($AT15,$X15))-M15)/(1+PeriodRate($AT15,$X15)),0) -> 0 | BC15: =IF(AND($AT15<>0,$X15>0),(N15*(1+PeriodRate($AT15,$X15))-N15)/(1+PeriodRate($AT15,$X15)),0) -> 0 | BD15: =IF(AND($AT15<>0,$R15>0),(L15*(1+PeriodRate($AT15,$R15))-L15)/(1+PeriodRate($AT15,$R15)),0) -> 0 | BE15: =IF(AND($AT15<>0,$R15>0),(M15*(1+PeriodRate($AT15,$R15))-M15)/(1+PeriodRate($AT15,$R15)),0) -> 0 | BF15: =IF(AND($AT15<>0,$R15>0),(N15*(1+PeriodRate($AT15,$R15))-N15)/(1+PeriodRate($AT15,$R15)),0) -> 0 | BN15: ='Admin Costs'!BG15 -> 8 | BO15: ='Admin Costs'!BH15 -> 2024 | BP15: ='Admin Costs'!BI15 -> Empty/Vide | BU15: Number of Units | BV15: CInput8
A16: 9 | L16: =IF(ISBLANK($H16),"",(IF(OR(MID($I16,1,1)="1",MID($I16,1,1)="3"),INDEX(Profile!$C$23:$E$35,MATCH($H16,Profile!$B$23:$B$35,0),1),0)*$J16)) ->  | M16: =IF(ISBLANK($H16),"",(IF(OR(MID($I16,1,1)="2",MID($I16,1,1)="3"),INDEX(Profile!$C$23:$E$35,MATCH($H16,Profile!$B$23:$B$35,0),2),0))*$J16) ->  | Y16: =IF(OR(ISBLANK(U16),ISBLANK(V16)),"",(IF(MID(U16,1,1)="E",Premium,overhead)+1)*INDEX('Labour Costs'!$C$4:$C$51,MATCH(MID(V16,1,2),'Labour Costs'!$F$4:$F$51,0))) ->  | AD16: =IF(ISNUMBER(IF(S16="",0,PeriodRate(discount,R16))),IF(S16="",0,PeriodRate(discount,R16)),0) -> 0 | AE16: 0 | AF16: =IF(ISNUMBER(IF(Y16="",0,PeriodRate(discount,X16))),IF(Y16="",0,PeriodRate(discount,X16)),0) -> 0 | AG16: 0 | AH16: 0 | AI16: 0 | AJ16: 0 | AL16: 0 | AM16: 0 | AN16: 0 | AP16: 0 | AQ16: 0 | AR16: 0 | AT16: =IF(H16<>"",OFFSET(Profile!$F$24,MATCH(H16,Profile!$B$25:$B$35,0),0),0) -> 0 | AU16: =IF($U16="",0,IF(MID($D16,1,1)="1",IF(OR(LOWER($K16)="vrai",LOWER($K16)="true"),popcorrect(BA16,$AT16,fiscalyear,fiscalyear,fiscalyear+timeperiod,$X16,discount),0),popcorrect(IF(OR(LOWER($K16)="vrai",LOWER($K16)="true"),BA16,L16),$AT16,fiscalyear,$E16,$F16,$X16,discount))) -> 0 | AV16: =IF($U16="",0,IF(MID($D16,1,1)="1",IF(OR(LOWER($K16)="vrai",LOWER($K16)="true"),popcorrect(BB16,$AT16,fiscalyear,fiscalyear,fiscalyear+timeperiod,$X16,discount),0),popcorrect(IF(OR(LOWER($K16)="vrai",LOWER($K16)="true"),BB16,M16),$AT16,fiscalyear,$E16,$F16,$X16,discount))) -> 0 | AW16: =IF($U16="",0,IF(MID($D16,1,1)="1",IF(OR(LOWER($K16)="vrai",LOWER($K16)="true"),popcorrect(BC16,$AT16,fiscalyear,fiscalyear,fiscalyear+timeperiod,$X16,discount),0),popcorrect(IF(OR(LOWER($K16)="vrai",LOWER($K16)="true"),BC16,N16),$AT16,fiscalyear,$E16,$F16,$X16,discount))) -> 0 | AX16: =IF($P16="",0,IF(MID($D16,1,1)="1",IF(OR(LOWER($K16)="vraiI",LOWER($K16)="true"),popcorrect(BD16,$AT16,fiscalyear,fiscalyear,fiscalyear+timeperiod,$R16,discount),0),popcorrect(IF(OR(LOWER($K16)="vrai",LOWER($K16)="true"),BD16,L16),$AT16,fiscalyear,$E16,$F16,$R16,discount))) -> 0 | AY16: =IF($P16="",0,IF(MID($D16,1,1)="1",IF(OR(LOWER($K16)="vraiI",LOWER($K16)="true"),popcorrect(BE16,$AT16,fiscalyear,fiscalyear,fiscalyear+timeperiod,$R16,discount),0),popcorrect(IF(OR(LOWER($K16)="vrai",LOWER($K16)="true"),BE16,M16),$AT16,fiscalyear,$E16,$F16,$R16,discount))) -> 0 | AZ16: =IF($P16="",0,IF(MID($D16,1,1)="1",IF(OR(LOWER($K16)="vraiI",LOWER($K16)="true"),popcorrect(BF16,$AT16,fiscalyear,fiscalyear,fiscalyear+timeperiod,$R16,discount),0),popcorrect(IF(OR(LOWER($K16)="vrai",LOWER($K16)="true"),BF16,N16),$AT16,fiscalyear,$E16,$F16,$R16,discount))) -> 0 | BA16: =IF(AND($AT16<>0,$X16>0),(L16*(1+PeriodRate($AT16,$X16))-L16)/(1+PeriodRate($AT16,$X16)),0) -> 0 | BB16: =IF(AND($AT16<>0,$X16>0),(M16*(1+PeriodRate($AT16,$X16))-M16)/(1+PeriodRate($AT16,$X16)),0) -> 0 | BC16: =IF(AND($AT16<>0,$X16>0),(N16*(1+PeriodRate($AT16,$X16))-N16)/(1+PeriodRate($AT16,$X16)),0) -> 0 | BD16: =IF(AND($AT16<>0,$R16>0),(L16*(1+PeriodRate($AT16,$R16))-L16)/(1+PeriodRate($AT16,$R16)),0) -> 0 | BE16: =IF(AND($AT16<>0,$R16>0),(M16*(1+PeriodRate($AT16,$R16))-M16)/(1+PeriodRate($AT16,$R16)),0) -> 0 | BF16: =IF(AND($AT16<>0,$R16>0),(N16*(1+PeriodRate($AT16,$R16))-N16)/(1+PeriodRate($AT16,$R16)),0) -> 0 | BN16: ='Admin Costs'!BG16 -> 9 | BO16: ='Admin Costs'!BH16 -> 2025 | BP16: ='Admin Costs'!BI16 -> Empty/Vide | BU16: Cost Per Unit | BV16: CInput9
A17: 10 | L17: =IF(ISBLANK($H17),"",(IF(OR(MID($I17,1,1)="1",MID($I17,1,1)="3"),INDEX(Profile!$C$23:$E$35,MATCH($H17,Profile!$B$23:$B$35,0),1),0)*$J17)) ->  | M17: =IF(ISBLANK($H17),"",(IF(OR(MID($I17,1,1)="2",MID($I17,1,1)="3"),INDEX(Profile!$C$23:$E$35,MATCH($H17,Profile!$B$23:$B$35,0),2),0))*$J17) ->  | Y17: =IF(OR(ISBLANK(U17),ISBLANK(V17)),"",(IF(MID(U17,1,1)="E",Premium,overhead)+1)*INDEX('Labour Costs'!$C$4:$C$51,MATCH(MID(V17,1,2),'Labour Costs'!$F$4:$F$51,0))) ->  | AD17: =IF(ISNUMBER(IF(S17="",0,PeriodRate(discount,R17))),IF(S17="",0,PeriodRate(discount,R17)),0) -> 0 | AE17: 0 | AF17: =IF(ISNUMBER(IF(Y17="",0,PeriodRate(discount,X17))),IF(Y17="",0,PeriodRate(discount,X17)),0) -> 0 | AG17: 0 | AH17: 0 | AI17: 0 | AJ17: 0 | AL17: 0 | AM17: 0 | AN17: 0 | AP17: 0 | AQ17: 0 | AR17: 0 | AT17: =IF(H17<>"",OFFSET(Profile!$F$24,MATCH(H17,Profile!$B$25:$B$35,0),0),0) -> 0 | AU17: =IF($U17="",0,IF(MID($D17,1,1)="1",IF(OR(LOWER($K17)="vrai",LOWER($K17)="true"),popcorrect(BA17,$AT17,fiscalyear,fiscalyear,fiscalyear+timeperiod,$X17,discount),0),popcorrect(IF(OR(LOWER($K17)="vrai",LOWER($K17)="true"),BA17,L17),$AT17,fiscalyear,$E17,$F17,$X17,discount))) -> 0 | AV17: =IF($U17="",0,IF(MID($D17,1,1)="1",IF(OR(LOWER($K17)="vrai",LOWER($K17)="true"),popcorrect(BB17,$AT17,fiscalyear,fiscalyear,fiscalyear+timeperiod,$X17,discount),0),popcorrect(IF(OR(LOWER($K17)="vrai",LOWER($K17)="true"),BB17,M17),$AT17,fiscalyear,$E17,$F17,$X17,discount))) -> 0 | AW17: =IF($U17="",0,IF(MID($D17,1,1)="1",IF(OR(LOWER($K17)="vrai",LOWER($K17)="true"),popcorrect(BC17,$AT17,fiscalyear,fiscalyear,fiscalyear+timeperiod,$X17,discount),0),popcorrect(IF(OR(LOWER($K17)="vrai",LOWER($K17)="true"),BC17,N17),$AT17,fiscalyear,$E17,$F17,$X17,discount))) -> 0 | AX17: =IF($P17="",0,IF(MID($D17,1,1)="1",IF(OR(LOWER($K17)="vraiI",LOWER($K17)="true"),popcorrect(BD17,$AT17,fiscalyear,fiscalyear,fiscalyear+timeperiod,$R17,discount),0),popcorrect(IF(OR(LOWER($K17)="vrai",LOWER($K17)="true"),BD17,L17),$AT17,fiscalyear,$E17,$F17,$R17,discount))) -> 0 | AY17: =IF($P17="",0,IF(MID($D17,1,1)="1",IF(OR(LOWER($K17)="vraiI",LOWER($K17)="true"),popcorrect(BE17,$AT17,fiscalyear,fiscalyear,fiscalyear+timeperiod,$R17,discount),0),popcorrect(IF(OR(LOWER($K17)="vrai",LOWER($K17)="true"),BE17,M17),$AT17,fiscalyear,$E17,$F17,$R17,discount))) -> 0 | AZ17: =IF($P17="",0,IF(MID($D17,1,1)="1",IF(OR(LOWER($K17)="vraiI",LOWER($K17)="true"),popcorrect(BF17,$AT17,fiscalyear,fiscalyear,fiscalyear+timeperiod,$R17,discount),0),popcorrect(IF(OR(LOWER($K17)="vrai",LOWER($K17)="true"),BF17,N17),$AT17,fiscalyear,$E17,$F17,$R17,discount))) -> 0 | BA17: =IF(AND($AT17<>0,$X17>0),(L17*(1+PeriodRate($AT17,$X17))-L17)/(1+PeriodRate($AT17,$X17)),0) -> 0 | BB17: =IF(AND($AT17<>0,$X17>0),(M17*(1+PeriodRate($AT17,$X17))-M17)/(1+PeriodRate($AT17,$X17)),0) -> 0 | BC17: =IF(AND($AT17<>0,$X17>0),(N17*(1+PeriodRate($AT17,$X17))-N17)/(1+PeriodRate($AT17,$X17)),0) -> 0 | BD17: =IF(AND($AT17<>0,$R17>0),(L17*(1+PeriodRate($AT17,$R17))-L17)/(1+PeriodRate($AT17,$R17)),0) -> 0 | BE17: =IF(AND($AT17<>0,$R17>0),(M17*(1+PeriodRate($AT17,$R17))-M17)/(1+PeriodRate($AT17,$R17)),0) -> 0 | BF17: =IF(AND($AT17<>0,$R17>0),(N17*(1+PeriodRate($AT17,$R17))-N17)/(1+PeriodRate($AT17,$R17)),0) -> 0 | BN17: ='Admin Costs'!BG17 -> 10 | BO17: ='Admin Costs'!BH17 -> 2026 | BP17: ='Admin Costs'!BI17 -> Empty/Vide | BU17: Frequency (capital) | BV17: CInput10
A18: 11 | L18: =IF(ISBLANK($H18),"",(IF(OR(MID($I18,1,1)="1",MID($I18,1,1)="3"),INDEX(Profile!$C$23:$E$35,MATCH($H18,Profile!$B$23:$B$35,0),1),0)*$J18)) ->  | M18: =IF(ISBLANK($H18),"",(IF(OR(MID($I18,1,1)="2",MID($I18,1,1)="3"),INDEX(Profile!$C$23:$E$35,MATCH($H18,Profile!$B$23:$B$35,0),2),0))*$J18) ->  | Y18: =IF(OR(ISBLANK(U18),ISBLANK(V18)),"",(IF(MID(U18,1,1)="E",Premium,overhead)+1)*INDEX('Labour Costs'!$C$4:$C$51,MATCH(MID(V18,1,2),'Labour Costs'!$F$4:$F$51,0))) ->  | AD18: =IF(ISNUMBER(IF(S18="",0,PeriodRate(discount,R18))),IF(S18="",0,PeriodRate(discount,R18)),0) -> 0 | AE18: 0 | AF18: =IF(ISNUMBER(IF(Y18="",0,PeriodRate(discount,X18))),IF(Y18="",0,PeriodRate(discount,X18)),0) -> 0 | AG18: 0 | AH18: 0 | AI18: 0 | AJ18: 0 | AL18: 0 | AM18: 0 | AN18: 0 | AP18: 0 | AQ18: 0 | AR18: 0 | AT18: =IF(H18<>"",OFFSET(Profile!$F$24,MATCH(H18,Profile!$B$25:$B$35,0),0),0) -> 0 | AU18: =IF($U18="",0,IF(MID($D18,1,1)="1",IF(OR(LOWER($K18)="vrai",LOWER($K18)="true"),popcorrect(BA18,$AT18,fiscalyear,fiscalyear,fiscalyear+timeperiod,$X18,discount),0),popcorrect(IF(OR(LOWER($K18)="vrai",LOWER($K18)="true"),BA18,L18),$AT18,fiscalyear,$E18,$F18,$X18,discount))) -> 0 | AV18: =IF($U18="",0,IF(MID($D18,1,1)="1",IF(OR(LOWER($K18)="vrai",LOWER($K18)="true"),popcorrect(BB18,$AT18,fiscalyear,fiscalyear,fiscalyear+timeperiod,$X18,discount),0),popcorrect(IF(OR(LOWER($K18)="vrai",LOWER($K18)="true"),BB18,M18),$AT18,fiscalyear,$E18,$F18,$X18,discount))) -> 0 | AW18: =IF($U18="",0,IF(MID($D18,1,1)="1",IF(OR(LOWER($K18)="vrai",LOWER($K18)="true"),popcorrect(BC18,$AT18,fiscalyear,fiscalyear,fiscalyear+timeperiod,$X18,discount),0),popcorrect(IF(OR(LOWER($K18)="vrai",LOWER($K18)="true"),BC18,N18),$AT18,fiscalyear,$E18,$F18,$X18,discount))) -> 0 | AX18: =IF($P18="",0,IF(MID($D18,1,1)="1",IF(OR(LOWER($K18)="vraiI",LOWER($K18)="true"),popcorrect(BD18,$AT18,fiscalyear,fiscalyear,fiscalyear+timeperiod,$R18,discount),0),popcorrect(IF(OR(LOWER($K18)="vrai",LOWER($K18)="true"),BD18,L18),$AT18,fiscalyear,$E18,$F18,$R18,discount))) -> 0 | AY18: =IF($P18="",0,IF(MID($D18,1,1)="1",IF(OR(LOWER($K18)="vraiI",LOWER($K18)="true"),popcorrect(BE18,$AT18,fiscalyear,fiscalyear,fiscalyear+timeperiod,$R18,discount),0),popcorrect(IF(OR(LOWER($K18)="vrai",LOWER($K18)="true"),BE18,M18),$AT18,fiscalyear,$E18,$F18,$R18,discount))) -> 0 | AZ18: =IF($P18="",0,IF(MID($D18,1,1)="1",IF(OR(LOWER($K18)="vraiI",LOWER($K18)="true"),popcorrect(BF18,$AT18,fiscalyear,fiscalyear,fiscalyear+timeperiod,$R18,discount),0),popcorrect(IF(OR(LOWER($K18)="vrai",LOWER($K18)="true"),BF18,N18),$AT18,fiscalyear,$E18,$F18,$R18,discount))) -> 0 | BA18: =IF(AND($AT18<>0,$X18>0),(L18*(1+PeriodRate($AT18,$X18))-L18)/(1+PeriodRate($AT18,$X18)),0) -> 0 | BB18: =IF(AND($AT18<>0,$X18>0),(M18*(1+PeriodRate($AT18,$X18))-M18)/(1+PeriodRate($AT18,$X18)),0) -> 0 | BC18: =IF(AND($AT18<>0,$X18>0),(N18*(1+PeriodRate($AT18,$X18))-N18)/(1+PeriodRate($AT18,$X18)),0) -> 0 | BD18: =IF(AND($AT18<>0,$R18>0),(L18*(1+PeriodRate($AT18,$R18))-L18)/(1+PeriodRate($AT18,$R18)),0) -> 0 | BE18: =IF(AND($AT18<>0,$R18>0),(M18*(1+PeriodRate($AT18,$R18))-M18)/(1+PeriodRate($AT18,$R18)),0) -> 0 | BF18: =IF(AND($AT18<>0,$R18>0),(N18*(1+PeriodRate($AT18,$R18))-N18)/(1+PeriodRate($AT18,$R18)),0) -> 0 | BN18: ='Admin Costs'!BG18 -> 11 | BO18: ='Admin Costs'!BH18 -> 2027 | BP18: ='Admin Costs'!BI18 -> All groups / all selected industries | BU18: Staff Level | BV18: CInput11
A19: 12 | L19: =IF(ISBLANK($H19),"",(IF(OR(MID($I19,1,1)="1",MID($I19,1,1)="3"),INDEX(Profile!$C$23:$E$35,MATCH($H19,Profile!$B$23:$B$35,0),1),0)*$J19)) ->  | M19: =IF(ISBLANK($H19),"",(IF(OR(MID($I19,1,1)="2",MID($I19,1,1)="3"),INDEX(Profile!$C$23:$E$35,MATCH($H19,Profile!$B$23:$B$35,0),2),0))*$J19) ->  | Y19: =IF(OR(ISBLANK(U19),ISBLANK(V19)),"",(IF(MID(U19,1,1)="E",Premium,overhead)+1)*INDEX('Labour Costs'!$C$4:$C$51,MATCH(MID(V19,1,2),'Labour Costs'!$F$4:$F$51,0))) ->  | AD19: =IF(ISNUMBER(IF(S19="",0,PeriodRate(discount,R19))),IF(S19="",0,PeriodRate(discount,R19)),0) -> 0 | AE19: 0 | AF19: =IF(ISNUMBER(IF(Y19="",0,PeriodRate(discount,X19))),IF(Y19="",0,PeriodRate(discount,X19)),0) -> 0 | AG19: 0 | AH19: 0 | AI19: 0 | AJ19: 0 | AL19: 0 | AM19: 0 | AN19: 0 | AP19: 0 | AQ19: 0 | AR19: 0 | AT19: =IF(H19<>"",OFFSET(Profile!$F$24,MATCH(H19,Profile!$B$25:$B$35,0),0),0) -> 0 | AU19: =IF($U19="",0,IF(MID($D19,1,1)="1",IF(OR(LOWER($K19)="vrai",LOWER($K19)="true"),popcorrect(BA19,$AT19,fiscalyear,fiscalyear,fiscalyear+timeperiod,$X19,discount),0),popcorrect(IF(OR(LOWER($K19)="vrai",LOWER($K19)="true"),BA19,L19),$AT19,fiscalyear,$E19,$F19,$X19,discount))) -> 0 | AV19: =IF($U19="",0,IF(MID($D19,1,1)="1",IF(OR(LOWER($K19)="vrai",LOWER($K19)="true"),popcorrect(BB19,$AT19,fiscalyear,fiscalyear,fiscalyear+timeperiod,$X19,discount),0),popcorrect(IF(OR(LOWER($K19)="vrai",LOWER($K19)="true"),BB19,M19),$AT19,fiscalyear,$E19,$F19,$X19,discount))) -> 0 | AW19: =IF($U19="",0,IF(MID($D19,1,1)="1",IF(OR(LOWER($K19)="vrai",LOWER($K19)="true"),popcorrect(BC19,$AT19,fiscalyear,fiscalyear,fiscalyear+timeperiod,$X19,discount),0),popcorrect(IF(OR(LOWER($K19)="vrai",LOWER($K19)="true"),BC19,N19),$AT19,fiscalyear,$E19,$F19,$X19,discount))) -> 0 | AX19: =IF($P19="",0,IF(MID($D19,1,1)="1",IF(OR(LOWER($K19)="vraiI",LOWER($K19)="true"),popcorrect(BD19,$AT19,fiscalyear,fiscalyear,fiscalyear+timeperiod,$R19,discount),0),popcorrect(IF(OR(LOWER($K19)="vrai",LOWER($K19)="true"),BD19,L19),$AT19,fiscalyear,$E19,$F19,$R19,discount))) -> 0 | AY19: =IF($P19="",0,IF(MID($D19,1,1)="1",IF(OR(LOWER($K19)="vraiI",LOWER($K19)="true"),popcorrect(BE19,$AT19,fiscalyear,fiscalyear,fiscalyear+timeperiod,$R19,discount),0),popcorrect(IF(OR(LOWER($K19)="vrai",LOWER($K19)="true"),BE19,M19),$AT19,fiscalyear,$E19,$F19,$R19,discount))) -> 0 | AZ19: =IF($P19="",0,IF(MID($D19,1,1)="1",IF(OR(LOWER($K19)="vraiI",LOWER($K19)="true"),popcorrect(BF19,$AT19,fiscalyear,fiscalyear,fiscalyear+timeperiod,$R19,discount),0),popcorrect(IF(OR(LOWER($K19)="vrai",LOWER($K19)="true"),BF19,N19),$AT19,fiscalyear,$E19,$F19,$R19,discount))) -> 0 | BA19: =IF(AND($AT19<>0,$X19>0),(L19*(1+PeriodRate($AT19,$X19))-L19)/(1+PeriodRate($AT19,$X19)),0) -> 0 | BB19: =IF(AND($AT19<>0,$X19>0),(M19*(1+PeriodRate($AT19,$X19))-M19)/(1+PeriodRate($AT19,$X19)),0) -> 0 | BC19: =IF(AND($AT19<>0,$X19>0),(N19*(1+PeriodRate($AT19,$X19))-N19)/(1+PeriodRate($AT19,$X19)),0) -> 0 | BD19: =IF(AND($AT19<>0,$R19>0),(L19*(1+PeriodRate($AT19,$R19))-L19)/(1+PeriodRate($AT19,$R19)),0) -> 0 | BE19: =IF(AND($AT19<>0,$R19>0),(M19*(1+PeriodRate($AT19,$R19))-M19)/(1+PeriodRate($AT19,$R19)),0) -> 0 | BF19: =IF(AND($AT19<>0,$R19>0),(N19*(1+PeriodRate($AT19,$R19))-N19)/(1+PeriodRate($AT19,$R19)),0) -> 0 | BN19: ='Admin Costs'!BG19 -> 12 | BO19: ='Admin Costs'!BH19 ->  | BP19: ='Admin Costs'!BI19 -> 0 | BU19: Internal External | BV19: CInput12
A20: 13 | L20: =IF(ISBLANK($H20),"",(IF(OR(MID($I20,1,1)="1",MID($I20,1,1)="3"),INDEX(Profile!$C$23:$E$35,MATCH($H20,Profile!$B$23:$B$35,0),1),0)*$J20)) ->  | M20: =IF(ISBLANK($H20),"",(IF(OR(MID($I20,1,1)="2",MID($I20,1,1)="3"),INDEX(Profile!$C$23:$E$35,MATCH($H20,Profile!$B$23:$B$35,0),2),0))*$J20) ->  | Y20: =IF(OR(ISBLANK(U20),ISBLANK(V20)),"",(IF(MID(U20,1,1)="E",Premium,overhead)+1)*INDEX('Labour Costs'!$C$4:$C$51,MATCH(MID(V20,1,2),'Labour Costs'!$F$4:$F$51,0))) ->  | AD20: =IF(ISNUMBER(IF(S20="",0,PeriodRate(discount,R20))),IF(S20="",0,PeriodRate(discount,R20)),0) -> 0 | AE20: 0 | AF20: =IF(ISNUMBER(IF(Y20="",0,PeriodRate(discount,X20))),IF(Y20="",0,PeriodRate(discount,X20)),0) -> 0 | AG20: 0 | AH20: 0 | AI20: 0 | AJ20: 0 | AL20: 0 | AM20: 0 | AN20: 0 | AP20: 0 | AQ20: 0 | AR20: 0 | AT20: =IF(H20<>"",OFFSET(Profile!$F$24,MATCH(H20,Profile!$B$25:$B$35,0),0),0) -> 0 | AU20: =IF($U20="",0,IF(MID($D20,1,1)="1",IF(OR(LOWER($K20)="vrai",LOWER($K20)="true"),popcorrect(BA20,$AT20,fiscalyear,fiscalyear,fiscalyear+timeperiod,$X20,discount),0),popcorrect(IF(OR(LOWER($K20)="vrai",LOWER($K20)="true"),BA20,L20),$AT20,fiscalyear,$E20,$F20,$X20,discount))) -> 0 | AV20: =IF($U20="",0,IF(MID($D20,1,1)="1",IF(OR(LOWER($K20)="vrai",LOWER($K20)="true"),popcorrect(BB20,$AT20,fiscalyear,fiscalyear,fiscalyear+timeperiod,$X20,discount),0),popcorrect(IF(OR(LOWER($K20)="vrai",LOWER($K20)="true"),BB20,M20),$AT20,fiscalyear,$E20,$F20,$X20,discount))) -> 0 | AW20: =IF($U20="",0,IF(MID($D20,1,1)="1",IF(OR(LOWER($K20)="vrai",LOWER($K20)="true"),popcorrect(BC20,$AT20,fiscalyear,fiscalyear,fiscalyear+timeperiod,$X20,discount),0),popcorrect(IF(OR(LOWER($K20)="vrai",LOWER($K20)="true"),BC20,N20),$AT20,fiscalyear,$E20,$F20,$X20,discount))) -> 0 | AX20: =IF($P20="",0,IF(MID($D20,1,1)="1",IF(OR(LOWER($K20)="vraiI",LOWER($K20)="true"),popcorrect(BD20,$AT20,fiscalyear,fiscalyear,fiscalyear+timeperiod,$R20,discount),0),popcorrect(IF(OR(LOWER($K20)="vrai",LOWER($K20)="true"),BD20,L20),$AT20,fiscalyear,$E20,$F20,$R20,discount))) -> 0 | AY20: =IF($P20="",0,IF(MID($D20,1,1)="1",IF(OR(LOWER($K20)="vraiI",LOWER($K20)="true"),popcorrect(BE20,$AT20,fiscalyear,fiscalyear,fiscalyear+timeperiod,$R20,discount),0),popcorrect(IF(OR(LOWER($K20)="vrai",LOWER($K20)="true"),BE20,M20),$AT20,fiscalyear,$E20,$F20,$R20,discount))) -> 0 | AZ20: =IF($P20="",0,IF(MID($D20,1,1)="1",IF(OR(LOWER($K20)="vraiI",LOWER($K20)="true"),popcorrect(BF20,$AT20,fiscalyear,fiscalyear,fiscalyear+timeperiod,$R20,discount),0),popcorrect(IF(OR(LOWER($K20)="vrai",LOWER($K20)="true"),BF20,N20),$AT20,fiscalyear,$E20,$F20,$R20,discount))) -> 0 | BA20: =IF(AND($AT20<>0,$X20>0),(L20*(1+PeriodRate($AT20,$X20))-L20)/(1+PeriodRate($AT20,$X20)),0) -> 0 | BB20: =IF(AND($AT20<>0,$X20>0),(M20*(1+PeriodRate($AT20,$X20))-M20)/(1+PeriodRate($AT20,$X20)),0) -> 0 | BC20: =IF(AND($AT20<>0,$X20>0),(N20*(1+PeriodRate($AT20,$X20))-N20)/(1+PeriodRate($AT20,$X20)),0) -> 0 | BD20: =IF(AND($AT20<>0,$R20>0),(L20*(1+PeriodRate($AT20,$R20))-L20)/(1+PeriodRate($AT20,$R20)),0) -> 0 | BE20: =IF(AND($AT20<>0,$R20>0),(M20*(1+PeriodRate($AT20,$R20))-M20)/(1+PeriodRate($AT20,$R20)),0) -> 0 | BF20: =IF(AND($AT20<>0,$R20>0),(N20*(1+PeriodRate($AT20,$R20))-N20)/(1+PeriodRate($AT20,$R20)),0) -> 0 | BN20: ='Admin Costs'!BG20 -> 13 | BO20: ='Admin Costs'!BH20 ->  | BU20: Time (Hours) | BV20: CInput13
A21: 14 | L21: =IF(ISBLANK($H21),"",(IF(OR(MID($I21,1,1)="1",MID($I21,1,1)="3"),INDEX(Profile!$C$23:$E$35,MATCH($H21,Profile!$B$23:$B$35,0),1),0)*$J21)) ->  | M21: =IF(ISBLANK($H21),"",(IF(OR(MID($I21,1,1)="2",MID($I21,1,1)="3"),INDEX(Profile!$C$23:$E$35,MATCH($H21,Profile!$B$23:$B$35,0),2),0))*$J21) ->  | Y21: =IF(OR(ISBLANK(U21),ISBLANK(V21)),"",(IF(MID(U21,1,1)="E",Premium,overhead)+1)*INDEX('Labour Costs'!$C$4:$C$51,MATCH(MID(V21,1,2),'Labour Costs'!$F$4:$F$51,0))) ->  | AD21: =IF(ISNUMBER(IF(S21="",0,PeriodRate(discount,R21))),IF(S21="",0,PeriodRate(discount,R21)),0) -> 0 | AE21: 0 | AF21: =IF(ISNUMBER(IF(Y21="",0,PeriodRate(discount,X21))),IF(Y21="",0,PeriodRate(discount,X21)),0) -> 0 | AG21: 0 | AH21: 0 | AI21: 0 | AJ21: 0 | AL21: 0 | AM21: 0 | AN21: 0 | AP21: 0 | AQ21: 0 | AR21: 0 | AT21: =IF(H21<>"",OFFSET(Profile!$F$24,MATCH(H21,Profile!$B$25:$B$35,0),0),0) -> 0 | AU21: =IF($U21="",0,IF(MID($D21,1,1)="1",IF(OR(LOWER($K21)="vrai",LOWER($K21)="true"),popcorrect(BA21,$AT21,fiscalyear,fiscalyear,fiscalyear+timeperiod,$X21,discount),0),popcorrect(IF(OR(LOWER($K21)="vrai",LOWER($K21)="true"),BA21,L21),$AT21,fiscalyear,$E21,$F21,$X21,discount))) -> 0 | AV21: =IF($U21="",0,IF(MID($D21,1,1)="1",IF(OR(LOWER($K21)="vrai",LOWER($K21)="true"),popcorrect(BB21,$AT21,fiscalyear,fiscalyear,fiscalyear+timeperiod,$X21,discount),0),popcorrect(IF(OR(LOWER($K21)="vrai",LOWER($K21)="true"),BB21,M21),$AT21,fiscalyear,$E21,$F21,$X21,discount))) -> 0 | AW21: =IF($U21="",0,IF(MID($D21,1,1)="1",IF(OR(LOWER($K21)="vrai",LOWER($K21)="true"),popcorrect(BC21,$AT21,fiscalyear,fiscalyear,fiscalyear+timeperiod,$X21,discount),0),popcorrect(IF(OR(LOWER($K21)="vrai",LOWER($K21)="true"),BC21,N21),$AT21,fiscalyear,$E21,$F21,$X21,discount))) -> 0 | AX21: =IF($P21="",0,IF(MID($D21,1,1)="1",IF(OR(LOWER($K21)="vraiI",LOWER($K21)="true"),popcorrect(BD21,$AT21,fiscalyear,fiscalyear,fiscalyear+timeperiod,$R21,discount),0),popcorrect(IF(OR(LOWER($K21)="vrai",LOWER($K21)="true"),BD21,L21),$AT21,fiscalyear,$E21,$F21,$R21,discount))) -> 0 | AY21: =IF($P21="",0,IF(MID($D21,1,1)="1",IF(OR(LOWER($K21)="vraiI",LOWER($K21)="true"),popcorrect(BE21,$AT21,fiscalyear,fiscalyear,fiscalyear+timeperiod,$R21,discount),0),popcorrect(IF(OR(LOWER($K21)="vrai",LOWER($K21)="true"),BE21,M21),$AT21,fiscalyear,$E21,$F21,$R21,discount))) -> 0 | AZ21: =IF($P21="",0,IF(MID($D21,1,1)="1",IF(OR(LOWER($K21)="vraiI",LOWER($K21)="true"),popcorrect(BF21,$AT21,fiscalyear,fiscalyear,fiscalyear+timeperiod,$R21,discount),0),popcorrect(IF(OR(LOWER($K21)="vrai",LOWER($K21)="true"),BF21,N21),$AT21,fiscalyear,$E21,$F21,$R21,discount))) -> 0 | BA21: =IF(AND($AT21<>0,$X21>0),(L21*(1+PeriodRate($AT21,$X21))-L21)/(1+PeriodRate($AT21,$X21)),0) -> 0 | BB21: =IF(AND($AT21<>0,$X21>0),(M21*(1+PeriodRate($AT21,$X21))-M21)/(1+PeriodRate($AT21,$X21)),0) -> 0 | BC21: =IF(AND($AT21<>0,$X21>0),(N21*(1+PeriodRate($AT21,$X21))-N21)/(1+PeriodRate($AT21,$X21)),0) -> 0 | BD21: =IF(AND($AT21<>0,$R21>0),(L21*(1+PeriodRate($AT21,$R21))-L21)/(1+PeriodRate($AT21,$R21)),0) -> 0 | BE21: =IF(AND($AT21<>0,$R21>0),(M21*(1+PeriodRate($AT21,$R21))-M21)/(1+PeriodRate($AT21,$R21)),0) -> 0 | BF21: =IF(AND($AT21<>0,$R21>0),(N21*(1+PeriodRate($AT21,$R21))-N21)/(1+PeriodRate($AT21,$R21)),0) -> 0 | BN21: ='Admin Costs'!BG21 -> 14 | BO21: ='Admin Costs'!BH21 ->  | BU21: Frequency (Labour) | BV21: CInput14
A22: 15 | L22: =IF(ISBLANK($H22),"",(IF(OR(MID($I22,1,1)="1",MID($I22,1,1)="3"),INDEX(Profile!$C$23:$E$35,MATCH($H22,Profile!$B$23:$B$35,0),1),0)*$J22)) ->  | M22: =IF(ISBLANK($H22),"",(IF(OR(MID($I22,1,1)="2",MID($I22,1,1)="3"),INDEX(Profile!$C$23:$E$35,MATCH($H22,Profile!$B$23:$B$35,0),2),0))*$J22) ->  | Y22: =IF(OR(ISBLANK(U22),ISBLANK(V22)),"",(IF(MID(U22,1,1)="E",Premium,overhead)+1)*INDEX('Labour Costs'!$C$4:$C$51,MATCH(MID(V22,1,2),'Labour Costs'!$F$4:$F$51,0))) ->  | AD22: =IF(ISNUMBER(IF(S22="",0,PeriodRate(discount,R22))),IF(S22="",0,PeriodRate(discount,R22)),0) -> 0 | AE22: 0 | AF22: =IF(ISNUMBER(IF(Y22="",0,PeriodRate(discount,X22))),IF(Y22="",0,PeriodRate(discount,X22)),0) -> 0 | AG22: 0 | AH22: 0 | AI22: 0 | AJ22: 0 | AL22: 0 | AM22: 0 | AN22: 0 | AP22: 0 | AQ22: 0 | AR22: 0 | AT22: =IF(H22<>"",OFFSET(Profile!$F$24,MATCH(H22,Profile!$B$25:$B$35,0),0),0) -> 0 | AU22: =IF($U22="",0,IF(MID($D22,1,1)="1",IF(OR(LOWER($K22)="vrai",LOWER($K22)="true"),popcorrect(BA22,$AT22,fiscalyear,fiscalyear,fiscalyear+timeperiod,$X22,discount),0),popcorrect(IF(OR(LOWER($K22)="vrai",LOWER($K22)="true"),BA22,L22),$AT22,fiscalyear,$E22,$F22,$X22,discount))) -> 0 | AV22: =IF($U22="",0,IF(MID($D22,1,1)="1",IF(OR(LOWER($K22)="vrai",LOWER($K22)="true"),popcorrect(BB22,$AT22,fiscalyear,fiscalyear,fiscalyear+timeperiod,$X22,discount),0),popcorrect(IF(OR(LOWER($K22)="vrai",LOWER($K22)="true"),BB22,M22),$AT22,fiscalyear,$E22,$F22,$X22,discount))) -> 0 | AW22: =IF($U22="",0,IF(MID($D22,1,1)="1",IF(OR(LOWER($K22)="vrai",LOWER($K22)="true"),popcorrect(BC22,$AT22,fiscalyear,fiscalyear,fiscalyear+timeperiod,$X22,discount),0),popcorrect(IF(OR(LOWER($K22)="vrai",LOWER($K22)="true"),BC22,N22),$AT22,fiscalyear,$E22,$F22,$X22,discount))) -> 0 | AX22: =IF($P22="",0,IF(MID($D22,1,1)="1",IF(OR(LOWER($K22)="vraiI",LOWER($K22)="true"),popcorrect(BD22,$AT22,fiscalyear,fiscalyear,fiscalyear+timeperiod,$R22,discount),0),popcorrect(IF(OR(LOWER($K22)="vrai",LOWER($K22)="true"),BD22,L22),$AT22,fiscalyear,$E22,$F22,$R22,discount))) -> 0 | AY22: =IF($P22="",0,IF(MID($D22,1,1)="1",IF(OR(LOWER($K22)="vraiI",LOWER($K22)="true"),popcorrect(BE22,$AT22,fiscalyear,fiscalyear,fiscalyear+timeperiod,$R22,discount),0),popcorrect(IF(OR(LOWER($K22)="vrai",LOWER($K22)="true"),BE22,M22),$AT22,fiscalyear,$E22,$F22,$R22,discount))) -> 0 | AZ22: =IF($P22="",0,IF(MID($D22,1,1)="1",IF(OR(LOWER($K22)="vraiI",LOWER($K22)="true"),popcorrect(BF22,$AT22,fiscalyear,fiscalyear,fiscalyear+timeperiod,$R22,discount),0),popcorrect(IF(OR(LOWER($K22)="vrai",LOWER($K22)="true"),BF22,N22),$AT22,fiscalyear,$E22,$F22,$R22,discount))) -> 0 | BA22: =IF(AND($AT22<>0,$X22>0),(L22*(1+PeriodRate($AT22,$X22))-L22)/(1+PeriodRate($AT22,$X22)),0) -> 0 | BB22: =IF(AND($AT22<>0,$X22>0),(M22*(1+PeriodRate($AT22,$X22))-M22)/(1+PeriodRate($AT22,$X22)),0) -> 0 | BC22: =IF(AND($AT22<>0,$X22>0),(N22*(1+PeriodRate($AT22,$X22))-N22)/(1+PeriodRate($AT22,$X22)),0) -> 0 | BD22: =IF(AND($AT22<>0,$R22>0),(L22*(1+PeriodRate($AT22,$R22))-L22)/(1+PeriodRate($AT22,$R22)),0) -> 0 | BE22: =IF(AND($AT22<>0,$R22>0),(M22*(1+PeriodRate($AT22,$R22))-M22)/(1+PeriodRate($AT22,$R22)),0) -> 0 | BF22: =IF(AND($AT22<>0,$R22>0),(N22*(1+PeriodRate($AT22,$R22))-N22)/(1+PeriodRate($AT22,$R22)),0) -> 0 | BN22: ='Admin Costs'!BG22 -> 15 | BO22: ='Admin Costs'!BH22 ->  | BU22: Description | BV22: CInput15
A23: 16 | L23: =IF(ISBLANK($H23),"",(IF(OR(MID($I23,1,1)="1",MID($I23,1,1)="3"),INDEX(Profile!$C$23:$E$35,MATCH($H23,Profile!$B$23:$B$35,0),1),0)*$J23)) ->  | M23: =IF(ISBLANK($H23),"",(IF(OR(MID($I23,1,1)="2",MID($I23,1,1)="3"),INDEX(Profile!$C$23:$E$35,MATCH($H23,Profile!$B$23:$B$35,0),2),0))*$J23) ->  | Y23: =IF(OR(ISBLANK(U23),ISBLANK(V23)),"",(IF(MID(U23,1,1)="E",Premium,overhead)+1)*INDEX('Labour Costs'!$C$4:$C$51,MATCH(MID(V23,1,2),'Labour Costs'!$F$4:$F$51,0))) ->  | AD23: =IF(ISNUMBER(IF(S23="",0,PeriodRate(discount,R23))),IF(S23="",0,PeriodRate(discount,R23)),0) -> 0 | AE23: 0 | AF23: =IF(ISNUMBER(IF(Y23="",0,PeriodRate(discount,X23))),IF(Y23="",0,PeriodRate(discount,X23)),0) -> 0 | AG23: 0 | AH23: 0 | AI23: 0 | AJ23: 0 | AL23: 0 | AM23: 0 | AN23: 0 | AP23: 0 | AQ23: 0 | AR23: 0 | AT23: =IF(H23<>"",OFFSET(Profile!$F$24,MATCH(H23,Profile!$B$25:$B$35,0),0),0) -> 0 | AU23: =IF($U23="",0,IF(MID($D23,1,1)="1",IF(OR(LOWER($K23)="vrai",LOWER($K23)="true"),popcorrect(BA23,$AT23,fiscalyear,fiscalyear,fiscalyear+timeperiod,$X23,discount),0),popcorrect(IF(OR(LOWER($K23)="vrai",LOWER($K23)="true"),BA23,L23),$AT23,fiscalyear,$E23,$F23,$X23,discount))) -> 0 | AV23: =IF($U23="",0,IF(MID($D23,1,1)="1",IF(OR(LOWER($K23)="vrai",LOWER($K23)="true"),popcorrect(BB23,$AT23,fiscalyear,fiscalyear,fiscalyear+timeperiod,$X23,discount),0),popcorrect(IF(OR(LOWER($K23)="vrai",LOWER($K23)="true"),BB23,M23),$AT23,fiscalyear,$E23,$F23,$X23,discount))) -> 0 | AW23: =IF($U23="",0,IF(MID($D23,1,1)="1",IF(OR(LOWER($K23)="vrai",LOWER($K23)="true"),popcorrect(BC23,$AT23,fiscalyear,fiscalyear,fiscalyear+timeperiod,$X23,discount),0),popcorrect(IF(OR(LOWER($K23)="vrai",LOWER($K23)="true"),BC23,N23),$AT23,fiscalyear,$E23,$F23,$X23,discount))) -> 0 | AX23: =IF($P23="",0,IF(MID($D23,1,1)="1",IF(OR(LOWER($K23)="vraiI",LOWER($K23)="true"),popcorrect(BD23,$AT23,fiscalyear,fiscalyear,fiscalyear+timeperiod,$R23,discount),0),popcorrect(IF(OR(LOWER($K23)="vrai",LOWER($K23)="true"),BD23,L23),$AT23,fiscalyear,$E23,$F23,$R23,discount))) -> 0 | AY23: =IF($P23="",0,IF(MID($D23,1,1)="1",IF(OR(LOWER($K23)="vraiI",LOWER($K23)="true"),popcorrect(BE23,$AT23,fiscalyear,fiscalyear,fiscalyear+timeperiod,$R23,discount),0),popcorrect(IF(OR(LOWER($K23)="vrai",LOWER($K23)="true"),BE23,M23),$AT23,fiscalyear,$E23,$F23,$R23,discount))) -> 0 | AZ23: =IF($P23="",0,IF(MID($D23,1,1)="1",IF(OR(LOWER($K23)="vraiI",LOWER($K23)="true"),popcorrect(BF23,$AT23,fiscalyear,fiscalyear,fiscalyear+timeperiod,$R23,discount),0),popcorrect(IF(OR(LOWER($K23)="vrai",LOWER($K23)="true"),BF23,N23),$AT23,fiscalyear,$E23,$F23,$R23,discount))) -> 0 | BA23: =IF(AND($AT23<>0,$X23>0),(L23*(1+PeriodRate($AT23,$X23))-L23)/(1+PeriodRate($AT23,$X23)),0) -> 0 | BB23: =IF(AND($AT23<>0,$X23>0),(M23*(1+PeriodRate($AT23,$X23))-M23)/(1+PeriodRate($AT23,$X23)),0) -> 0 | BC23: =IF(AND($AT23<>0,$X23>0),(N23*(1+PeriodRate($AT23,$X23))-N23)/(1+PeriodRate($AT23,$X23)),0) -> 0 | BD23: =IF(AND($AT23<>0,$R23>0),(L23*(1+PeriodRate($AT23,$R23))-L23)/(1+PeriodRate($AT23,$R23)),0) -> 0 | BE23: =IF(AND($AT23<>0,$R23>0),(M23*(1+PeriodRate($AT23,$R23))-M23)/(1+PeriodRate($AT23,$R23)),0) -> 0 | BF23: =IF(AND($AT23<>0,$R23>0),(N23*(1+PeriodRate($AT23,$R23))-N23)/(1+PeriodRate($AT23,$R23)),0) -> 0 | BN23: ='Admin Costs'!BG23 -> 16 | BO23: ='Admin Costs'!BH23 ->  | BU23: New Entrants | BV23: CInput16 | BW23: FALSE
A24: 17 | L24: =IF(ISBLANK($H24),"",(IF(OR(MID($I24,1,1)="1",MID($I24,1,1)="3"),INDEX(Profile!$C$23:$E$35,MATCH($H24,Profile!$B$23:$B$35,0),1),0)*$J24)) ->  | M24: =IF(ISBLANK($H24),"",(IF(OR(MID($I24,1,1)="2",MID($I24,1,1)="3"),INDEX(Profile!$C$23:$E$35,MATCH($H24,Profile!$B$23:$B$35,0),2),0))*$J24) ->  | Y24: =IF(OR(ISBLANK(U24),ISBLANK(V24)),"",(IF(MID(U24,1,1)="E",Premium,overhead)+1)*INDEX('Labour Costs'!$C$4:$C$51,MATCH(MID(V24,1,2),'Labour Costs'!$F$4:$F$51,0))) ->  | AD24: =IF(ISNUMBER(IF(S24="",0,PeriodRate(discount,R24))),IF(S24="",0,PeriodRate(discount,R24)),0) -> 0 | AE24: 0 | AF24: =IF(ISNUMBER(IF(Y24="",0,PeriodRate(discount,X24))),IF(Y24="",0,PeriodRate(discount,X24)),0) -> 0 | AG24: 0 | AH24: 0 | AI24: 0 | AJ24: 0 | AL24: 0 | AM24: 0 | AN24: 0 | AP24: 0 | AQ24: 0 | AR24: 0 | AT24: =IF(H24<>"",OFFSET(Profile!$F$24,MATCH(H24,Profile!$B$25:$B$35,0),0),0) -> 0 | AU24: =IF($U24="",0,IF(MID($D24,1,1)="1",IF(OR(LOWER($K24)="vrai",LOWER($K24)="true"),popcorrect(BA24,$AT24,fiscalyear,fiscalyear,fiscalyear+timeperiod,$X24,discount),0),popcorrect(IF(OR(LOWER($K24)="vrai",LOWER($K24)="true"),BA24,L24),$AT24,fiscalyear,$E24,$F24,$X24,discount))) -> 0 | AV24: =IF($U24="",0,IF(MID($D24,1,1)="1",IF(OR(LOWER($K24)="vrai",LOWER($K24)="true"),popcorrect(BB24,$AT24,fiscalyear,fiscalyear,fiscalyear+timeperiod,$X24,discount),0),popcorrect(IF(OR(LOWER($K24)="vrai",LOWER($K24)="true"),BB24,M24),$AT24,fiscalyear,$E24,$F24,$X24,discount))) -> 0 | AW24: =IF($U24="",0,IF(MID($D24,1,1)="1",IF(OR(LOWER($K24)="vrai",LOWER($K24)="true"),popcorrect(BC24,$AT24,fiscalyear,fiscalyear,fiscalyear+timeperiod,$X24,discount),0),popcorrect(IF(OR(LOWER($K24)="vrai",LOWER($K24)="true"),BC24,N24),$AT24,fiscalyear,$E24,$F24,$X24,discount))) -> 0 | AX24: =IF($P24="",0,IF(MID($D24,1,1)="1",IF(OR(LOWER($K24)="vraiI",LOWER($K24)="true"),popcorrect(BD24,$AT24,fiscalyear,fiscalyear,fiscalyear+timeperiod,$R24,discount),0),popcorrect(IF(OR(LOWER($K24)="vrai",LOWER($K24)="true"),BD24,L24),$AT24,fiscalyear,$E24,$F24,$R24,discount))) -> 0 | AY24: =IF($P24="",0,IF(MID($D24,1,1)="1",IF(OR(LOWER($K24)="vraiI",LOWER($K24)="true"),popcorrect(BE24,$AT24,fiscalyear,fiscalyear,fiscalyear+timeperiod,$R24,discount),0),popcorrect(IF(OR(LOWER($K24)="vrai",LOWER($K24)="true"),BE24,M24),$AT24,fiscalyear,$E24,$F24,$R24,discount))) -> 0 | AZ24: =IF($P24="",0,IF(MID($D24,1,1)="1",IF(OR(LOWER($K24)="vraiI",LOWER($K24)="true"),popcorrect(BF24,$AT24,fiscalyear,fiscalyear,fiscalyear+timeperiod,$R24,discount),0),popcorrect(IF(OR(LOWER($K24)="vrai",LOWER($K24)="true"),BF24,N24),$AT24,fiscalyear,$E24,$F24,$R24,discount))) -> 0 | BA24: =IF(AND($AT24<>0,$X24>0),(L24*(1+PeriodRate($AT24,$X24))-L24)/(1+PeriodRate($AT24,$X24)),0) -> 0 | BB24: =IF(AND($AT24<>0,$X24>0),(M24*(1+PeriodRate($AT24,$X24))-M24)/(1+PeriodRate($AT24,$X24)),0) -> 0 | BC24: =IF(AND($AT24<>0,$X24>0),(N24*(1+PeriodRate($AT24,$X24))-N24)/(1+PeriodRate($AT24,$X24)),0) -> 0 | BD24: =IF(AND($AT24<>0,$R24>0),(L24*(1+PeriodRate($AT24,$R24))-L24)/(1+PeriodRate($AT24,$R24)),0) -> 0 | BE24: =IF(AND($AT24<>0,$R24>0),(M24*(1+PeriodRate($AT24,$R24))-M24)/(1+PeriodRate($AT24,$R24)),0) -> 0 | BF24: =IF(AND($AT24<>0,$R24>0),(N24*(1+PeriodRate($AT24,$R24))-N24)/(1+PeriodRate($AT24,$R24)),0) -> 0 | BN24: ='Admin Costs'!BG24 -> 17 | BO24: ='Admin Costs'!BH24 ->  | BV24: WhatRow
A25: 18 | L25: =IF(ISBLANK($H25),"",(IF(OR(MID($I25,1,1)="1",MID($I25,1,1)="3"),INDEX(Profile!$C$23:$E$35,MATCH($H25,Profile!$B$23:$B$35,0),1),0)*$J25)) ->  | M25: =IF(ISBLANK($H25),"",(IF(OR(MID($I25,1,1)="2",MID($I25,1,1)="3"),INDEX(Profile!$C$23:$E$35,MATCH($H25,Profile!$B$23:$B$35,0),2),0))*$J25) ->  | Y25: =IF(OR(ISBLANK(U25),ISBLANK(V25)),"",(IF(MID(U25,1,1)="E",Premium,overhead)+1)*INDEX('Labour Costs'!$C$4:$C$51,MATCH(MID(V25,1,2),'Labour Costs'!$F$4:$F$51,0))) ->  | AD25: =IF(ISNUMBER(IF(S25="",0,PeriodRate(discount,R25))),IF(S25="",0,PeriodRate(discount,R25)),0) -> 0 | AE25: 0 | AF25: =IF(ISNUMBER(IF(Y25="",0,PeriodRate(discount,X25))),IF(Y25="",0,PeriodRate(discount,X25)),0) -> 0 | AG25: 0 | AH25: 0 | AI25: 0 | AJ25: 0 | AL25: 0 | AM25: 0 | AN25: 0 | AP25: 0 | AQ25: 0 | AR25: 0 | AT25: =IF(H25<>"",OFFSET(Profile!$F$24,MATCH(H25,Profile!$B$25:$B$35,0),0),0) -> 0 | AU25: =IF($U25="",0,IF(MID($D25,1,1)="1",IF(OR(LOWER($K25)="vrai",LOWER($K25)="true"),popcorrect(BA25,$AT25,fiscalyear,fiscalyear,fiscalyear+timeperiod,$X25,discount),0),popcorrect(IF(OR(LOWER($K25)="vrai",LOWER($K25)="true"),BA25,L25),$AT25,fiscalyear,$E25,$F25,$X25,discount))) -> 0 | AV25: =IF($U25="",0,IF(MID($D25,1,1)="1",IF(OR(LOWER($K25)="vrai",LOWER($K25)="true"),popcorrect(BB25,$AT25,fiscalyear,fiscalyear,fiscalyear+timeperiod,$X25,discount),0),popcorrect(IF(OR(LOWER($K25)="vrai",LOWER($K25)="true"),BB25,M25),$AT25,fiscalyear,$E25,$F25,$X25,discount))) -> 0 | AW25: =IF($U25="",0,IF(MID($D25,1,1)="1",IF(OR(LOWER($K25)="vrai",LOWER($K25)="true"),popcorrect(BC25,$AT25,fiscalyear,fiscalyear,fiscalyear+timeperiod,$X25,discount),0),popcorrect(IF(OR(LOWER($K25)="vrai",LOWER($K25)="true"),BC25,N25),$AT25,fiscalyear,$E25,$F25,$X25,discount))) -> 0 | AX25: =IF($P25="",0,IF(MID($D25,1,1)="1",IF(OR(LOWER($K25)="vraiI",LOWER($K25)="true"),popcorrect(BD25,$AT25,fiscalyear,fiscalyear,fiscalyear+timeperiod,$R25,discount),0),popcorrect(IF(OR(LOWER($K25)="vrai",LOWER($K25)="true"),BD25,L25),$AT25,fiscalyear,$E25,$F25,$R25,discount))) -> 0 | AY25: =IF($P25="",0,IF(MID($D25,1,1)="1",IF(OR(LOWER($K25)="vraiI",LOWER($K25)="true"),popcorrect(BE25,$AT25,fiscalyear,fiscalyear,fiscalyear+timeperiod,$R25,discount),0),popcorrect(IF(OR(LOWER($K25)="vrai",LOWER($K25)="true"),BE25,M25),$AT25,fiscalyear,$E25,$F25,$R25,discount))) -> 0 | AZ25: =IF($P25="",0,IF(MID($D25,1,1)="1",IF(OR(LOWER($K25)="vraiI",LOWER($K25)="true"),popcorrect(BF25,$AT25,fiscalyear,fiscalyear,fiscalyear+timeperiod,$R25,discount),0),popcorrect(IF(OR(LOWER($K25)="vrai",LOWER($K25)="true"),BF25,N25),$AT25,fiscalyear,$E25,$F25,$R25,discount))) -> 0 | BA25: =IF(AND($AT25<>0,$X25>0),(L25*(1+PeriodRate($AT25,$X25))-L25)/(1+PeriodRate($AT25,$X25)),0) -> 0 | BB25: =IF(AND($AT25<>0,$X25>0),(M25*(1+PeriodRate($AT25,$X25))-M25)/(1+PeriodRate($AT25,$X25)),0) -> 0 | BC25: =IF(AND($AT25<>0,$X25>0),(N25*(1+PeriodRate($AT25,$X25))-N25)/(1+PeriodRate($AT25,$X25)),0) -> 0 | BD25: =IF(AND($AT25<>0,$R25>0),(L25*(1+PeriodRate($AT25,$R25))-L25)/(1+PeriodRate($AT25,$R25)),0) -> 0 | BE25: =IF(AND($AT25<>0,$R25>0),(M25*(1+PeriodRate($AT25,$R25))-M25)/(1+PeriodRate($AT25,$R25)),0) -> 0 | BF25: =IF(AND($AT25<>0,$R25>0),(N25*(1+PeriodRate($AT25,$R25))-N25)/(1+PeriodRate($AT25,$R25)),0) -> 0 | BN25: ='Admin Costs'!BG25 -> 18 | BO25: ='Admin Costs'!BH25 -> 
A26: 19 | L26: =IF(ISBLANK($H26),"",(IF(OR(MID($I26,1,1)="1",MID($I26,1,1)="3"),INDEX(Profile!$C$23:$E$35,MATCH($H26,Profile!$B$23:$B$35,0),1),0)*$J26)) ->  | M26: =IF(ISBLANK($H26),"",(IF(OR(MID($I26,1,1)="2",MID($I26,1,1)="3"),INDEX(Profile!$C$23:$E$35,MATCH($H26,Profile!$B$23:$B$35,0),2),0))*$J26) ->  | Y26: =IF(OR(ISBLANK(U26),ISBLANK(V26)),"",(IF(MID(U26,1,1)="E",Premium,overhead)+1)*INDEX('Labour Costs'!$C$4:$C$51,MATCH(MID(V26,1,2),'Labour Costs'!$F$4:$F$51,0))) ->  | AD26: =IF(ISNUMBER(IF(S26="",0,PeriodRate(discount,R26))),IF(S26="",0,PeriodRate(discount,R26)),0) -> 0 | AE26: 0 | AF26: =IF(ISNUMBER(IF(Y26="",0,PeriodRate(discount,X26))),IF(Y26="",0,PeriodRate(discount,X26)),0) -> 0 | AG26: 0 | AH26: 0 | AI26: 0 | AJ26: 0 | AL26: 0 | AM26: 0 | AN26: 0 | AP26: 0 | AQ26: 0 | AR26: 0 | AT26: =IF(H26<>"",OFFSET(Profile!$F$24,MATCH(H26,Profile!$B$25:$B$35,0),0),0) -> 0 | AU26: =IF($U26="",0,IF(MID($D26,1,1)="1",IF(OR(LOWER($K26)="vrai",LOWER($K26)="true"),popcorrect(BA26,$AT26,fiscalyear,fiscalyear,fiscalyear+timeperiod,$X26,discount),0),popcorrect(IF(OR(LOWER($K26)="vrai",LOWER($K26)="true"),BA26,L26),$AT26,fiscalyear,$E26,$F26,$X26,discount))) -> 0 | AV26: =IF($U26="",0,IF(MID($D26,1,1)="1",IF(OR(LOWER($K26)="vrai",LOWER($K26)="true"),popcorrect(BB26,$AT26,fiscalyear,fiscalyear,fiscalyear+timeperiod,$X26,discount),0),popcorrect(IF(OR(LOWER($K26)="vrai",LOWER($K26)="true"),BB26,M26),$AT26,fiscalyear,$E26,$F26,$X26,discount))) -> 0 | AW26: =IF($U26="",0,IF(MID($D26,1,1)="1",IF(OR(LOWER($K26)="vrai",LOWER($K26)="true"),popcorrect(BC26,$AT26,fiscalyear,fiscalyear,fiscalyear+timeperiod,$X26,discount),0),popcorrect(IF(OR(LOWER($K26)="vrai",LOWER($K26)="true"),BC26,N26),$AT26,fiscalyear,$E26,$F26,$X26,discount))) -> 0 | AX26: =IF($P26="",0,IF(MID($D26,1,1)="1",IF(OR(LOWER($K26)="vraiI",LOWER($K26)="true"),popcorrect(BD26,$AT26,fiscalyear,fiscalyear,fiscalyear+timeperiod,$R26,discount),0),popcorrect(IF(OR(LOWER($K26)="vrai",LOWER($K26)="true"),BD26,L26),$AT26,fiscalyear,$E26,$F26,$R26,discount))) -> 0 | AY26: =IF($P26="",0,IF(MID($D26,1,1)="1",IF(OR(LOWER($K26)="vraiI",LOWER($K26)="true"),popcorrect(BE26,$AT26,fiscalyear,fiscalyear,fiscalyear+timeperiod,$R26,discount),0),popcorrect(IF(OR(LOWER($K26)="vrai",LOWER($K26)="true"),BE26,M26),$AT26,fiscalyear,$E26,$F26,$R26,discount))) -> 0 | AZ26: =IF($P26="",0,IF(MID($D26,1,1)="1",IF(OR(LOWER($K26)="vraiI",LOWER($K26)="true"),popcorrect(BF26,$AT26,fiscalyear,fiscalyear,fiscalyear+timeperiod,$R26,discount),0),popcorrect(IF(OR(LOWER($K26)="vrai",LOWER($K26)="true"),BF26,N26),$AT26,fiscalyear,$E26,$F26,$R26,discount))) -> 0 | BA26: =IF(AND($AT26<>0,$X26>0),(L26*(1+PeriodRate($AT26,$X26))-L26)/(1+PeriodRate($AT26,$X26)),0) -> 0 | BB26: =IF(AND($AT26<>0,$X26>0),(M26*(1+PeriodRate($AT26,$X26))-M26)/(1+PeriodRate($AT26,$X26)),0) -> 0 | BC26: =IF(AND($AT26<>0,$X26>0),(N26*(1+PeriodRate($AT26,$X26))-N26)/(1+PeriodRate($AT26,$X26)),0) -> 0 | BD26: =IF(AND($AT26<>0,$R26>0),(L26*(1+PeriodRate($AT26,$R26))-L26)/(1+PeriodRate($AT26,$R26)),0) -> 0 | BE26: =IF(AND($AT26<>0,$R26>0),(M26*(1+PeriodRate($AT26,$R26))-M26)/(1+PeriodRate($AT26,$R26)),0) -> 0 | BF26: =IF(AND($AT26<>0,$R26>0),(N26*(1+PeriodRate($AT26,$R26))-N26)/(1+PeriodRate($AT26,$R26)),0) -> 0 | BN26: ='Admin Costs'!BG26 -> 19 | BO26: ='Admin Costs'!BH26 -> 
A27: 20 | L27: =IF(ISBLANK($H27),"",(IF(OR(MID($I27,1,1)="1",MID($I27,1,1)="3"),INDEX(Profile!$C$23:$E$35,MATCH($H27,Profile!$B$23:$B$35,0),1),0)*$J27)) ->  | M27: =IF(ISBLANK($H27),"",(IF(OR(MID($I27,1,1)="2",MID($I27,1,1)="3"),INDEX(Profile!$C$23:$E$35,MATCH($H27,Profile!$B$23:$B$35,0),2),0))*$J27) ->  | Y27: =IF(OR(ISBLANK(U27),ISBLANK(V27)),"",(IF(MID(U27,1,1)="E",Premium,overhead)+1)*INDEX('Labour Costs'!$C$4:$C$51,MATCH(MID(V27,1,2),'Labour Costs'!$F$4:$F$51,0))) ->  | AD27: =IF(ISNUMBER(IF(S27="",0,PeriodRate(discount,R27))),IF(S27="",0,PeriodRate(discount,R27)),0) -> 0 | AE27: 0 | AF27: =IF(ISNUMBER(IF(Y27="",0,PeriodRate(discount,X27))),IF(Y27="",0,PeriodRate(discount,X27)),0) -> 0 | AG27: 0 | AH27: 0 | AI27: 0 | AJ27: 0 | AL27: 0 | AM27: 0 | AN27: 0 | AP27: 0 | AQ27: 0 | AR27: 0 | AT27: =IF(H27<>"",OFFSET(Profile!$F$24,MATCH(H27,Profile!$B$25:$B$35,0),0),0) -> 0 | AU27: =IF($U27="",0,IF(MID($D27,1,1)="1",IF(OR(LOWER($K27)="vrai",LOWER($K27)="true"),popcorrect(BA27,$AT27,fiscalyear,fiscalyear,fiscalyear+timeperiod,$X27,discount),0),popcorrect(IF(OR(LOWER($K27)="vrai",LOWER($K27)="true"),BA27,L27),$AT27,fiscalyear,$E27,$F27,$X27,discount))) -> 0 | AV27: =IF($U27="",0,IF(MID($D27,1,1)="1",IF(OR(LOWER($K27)="vrai",LOWER($K27)="true"),popcorrect(BB27,$AT27,fiscalyear,fiscalyear,fiscalyear+timeperiod,$X27,discount),0),popcorrect(IF(OR(LOWER($K27)="vrai",LOWER($K27)="true"),BB27,M27),$AT27,fiscalyear,$E27,$F27,$X27,discount))) -> 0 | AW27: =IF($U27="",0,IF(MID($D27,1,1)="1",IF(OR(LOWER($K27)="vrai",LOWER($K27)="true"),popcorrect(BC27,$AT27,fiscalyear,fiscalyear,fiscalyear+timeperiod,$X27,discount),0),popcorrect(IF(OR(LOWER($K27)="vrai",LOWER($K27)="true"),BC27,N27),$AT27,fiscalyear,$E27,$F27,$X27,discount))) -> 0 | AX27: =IF($P27="",0,IF(MID($D27,1,1)="1",IF(OR(LOWER($K27)="vraiI",LOWER($K27)="true"),popcorrect(BD27,$AT27,fiscalyear,fiscalyear,fiscalyear+timeperiod,$R27,discount),0),popcorrect(IF(OR(LOWER($K27)="vrai",LOWER($K27)="true"),BD27,L27),$AT27,fiscalyear,$E27,$F27,$R27,discount))) -> 0 | AY27: =IF($P27="",0,IF(MID($D27,1,1)="1",IF(OR(LOWER($K27)="vraiI",LOWER($K27)="true"),popcorrect(BE27,$AT27,fiscalyear,fiscalyear,fiscalyear+timeperiod,$R27,discount),0),popcorrect(IF(OR(LOWER($K27)="vrai",LOWER($K27)="true"),BE27,M27),$AT27,fiscalyear,$E27,$F27,$R27,discount))) -> 0 | AZ27: =IF($P27="",0,IF(MID($D27,1,1)="1",IF(OR(LOWER($K27)="vraiI",LOWER($K27)="true"),popcorrect(BF27,$AT27,fiscalyear,fiscalyear,fiscalyear+timeperiod,$R27,discount),0),popcorrect(IF(OR(LOWER($K27)="vrai",LOWER($K27)="true"),BF27,N27),$AT27,fiscalyear,$E27,$F27,$R27,discount))) -> 0 | BA27: =IF(AND($AT27<>0,$X27>0),(L27*(1+PeriodRate($AT27,$X27))-L27)/(1+PeriodRate($AT27,$X27)),0) -> 0 | BB27: =IF(AND($AT27<>0,$X27>0),(M27*(1+PeriodRate($AT27,$X27))-M27)/(1+PeriodRate($AT27,$X27)),0) -> 0 | BC27: =IF(AND($AT27<>0,$X27>0),(N27*(1+PeriodRate($AT27,$X27))-N27)/(1+PeriodRate($AT27,$X27)),0) -> 0 | BD27: =IF(AND($AT27<>0,$R27>0),(L27*(1+PeriodRate($AT27,$R27))-L27)/(1+PeriodRate($AT27,$R27)),0) -> 0 | BE27: =IF(AND($AT27<>0,$R27>0),(M27*(1+PeriodRate($AT27,$R27))-M27)/(1+PeriodRate($AT27,$R27)),0) -> 0 | BF27: =IF(AND($AT27<>0,$R27>0),(N27*(1+PeriodRate($AT27,$R27))-N27)/(1+PeriodRate($AT27,$R27)),0) -> 0 | BN27: ='Admin Costs'!BG27 -> 20 | BO27: ='Admin Costs'!BH27 -> 
A28: 21 | L28: =IF(ISBLANK($H28),"",(IF(OR(MID($I28,1,1)="1",MID($I28,1,1)="3"),INDEX(Profile!$C$23:$E$35,MATCH($H28,Profile!$B$23:$B$35,0),1),0)*$J28)) ->  | M28: =IF(ISBLANK($H28),"",(IF(OR(MID($I28,1,1)="2",MID($I28,1,1)="3"),INDEX(Profile!$C$23:$E$35,MATCH($H28,Profile!$B$23:$B$35,0),2),0))*$J28) ->  | Y28: =IF(OR(ISBLANK(U28),ISBLANK(V28)),"",(IF(MID(U28,1,1)="E",Premium,overhead)+1)*INDEX('Labour Costs'!$C$4:$C$51,MATCH(MID(V28,1,2),'Labour Costs'!$F$4:$F$51,0))) ->  | AD28: =IF(ISNUMBER(IF(S28="",0,PeriodRate(discount,R28))),IF(S28="",0,PeriodRate(discount,R28)),0) -> 0 | AE28: 0 | AF28: =IF(ISNUMBER(IF(Y28="",0,PeriodRate(discount,X28))),IF(Y28="",0,PeriodRate(discount,X28)),0) -> 0 | AG28: 0 | AH28: 0 | AI28: 0 | AJ28: 0 | AL28: 0 | AM28: 0 | AN28: 0 | AP28: 0 | AQ28: 0 | AR28: 0 | AT28: =IF(H28<>"",OFFSET(Profile!$F$24,MATCH(H28,Profile!$B$25:$B$35,0),0),0) -> 0 | AU28: =IF($U28="",0,IF(MID($D28,1,1)="1",IF(OR(LOWER($K28)="vrai",LOWER($K28)="true"),popcorrect(BA28,$AT28,fiscalyear,fiscalyear,fiscalyear+timeperiod,$X28,discount),0),popcorrect(IF(OR(LOWER($K28)="vrai",LOWER($K28)="true"),BA28,L28),$AT28,fiscalyear,$E28,$F28,$X28,discount))) -> 0 | AV28: =IF($U28="",0,IF(MID($D28,1,1)="1",IF(OR(LOWER($K28)="vrai",LOWER($K28)="true"),popcorrect(BB28,$AT28,fiscalyear,fiscalyear,fiscalyear+timeperiod,$X28,discount),0),popcorrect(IF(OR(LOWER($K28)="vrai",LOWER($K28)="true"),BB28,M28),$AT28,fiscalyear,$E28,$F28,$X28,discount))) -> 0 | AW28: =IF($U28="",0,IF(MID($D28,1,1)="1",IF(OR(LOWER($K28)="vrai",LOWER($K28)="true"),popcorrect(BC28,$AT28,fiscalyear,fiscalyear,fiscalyear+timeperiod,$X28,discount),0),popcorrect(IF(OR(LOWER($K28)="vrai",LOWER($K28)="true"),BC28,N28),$AT28,fiscalyear,$E28,$F28,$X28,discount))) -> 0 | AX28: =IF($P28="",0,IF(MID($D28,1,1)="1",IF(OR(LOWER($K28)="vraiI",LOWER($K28)="true"),popcorrect(BD28,$AT28,fiscalyear,fiscalyear,fiscalyear+timeperiod,$R28,discount),0),popcorrect(IF(OR(LOWER($K28)="vrai",LOWER($K28)="true"),BD28,L28),$AT28,fiscalyear,$E28,$F28,$R28,discount))) -> 0 | AY28: =IF($P28="",0,IF(MID($D28,1,1)="1",IF(OR(LOWER($K28)="vraiI",LOWER($K28)="true"),popcorrect(BE28,$AT28,fiscalyear,fiscalyear,fiscalyear+timeperiod,$R28,discount),0),popcorrect(IF(OR(LOWER($K28)="vrai",LOWER($K28)="true"),BE28,M28),$AT28,fiscalyear,$E28,$F28,$R28,discount))) -> 0 | AZ28: =IF($P28="",0,IF(MID($D28,1,1)="1",IF(OR(LOWER($K28)="vraiI",LOWER($K28)="true"),popcorrect(BF28,$AT28,fiscalyear,fiscalyear,fiscalyear+timeperiod,$R28,discount),0),popcorrect(IF(OR(LOWER($K28)="vrai",LOWER($K28)="true"),BF28,N28),$AT28,fiscalyear,$E28,$F28,$R28,discount))) -> 0 | BA28: =IF(AND($AT28<>0,$X28>0),(L28*(1+PeriodRate($AT28,$X28))-L28)/(1+PeriodRate($AT28,$X28)),0) -> 0 | BB28: =IF(AND($AT28<>0,$X28>0),(M28*(1+PeriodRate($AT28,$X28))-M28)/(1+PeriodRate($AT28,$X28)),0) -> 0 | BC28: =IF(AND($AT28<>0,$X28>0),(N28*(1+PeriodRate($AT28,$X28))-N28)/(1+PeriodRate($AT28,$X28)),0) -> 0 | BD28: =IF(AND($AT28<>0,$R28>0),(L28*(1+PeriodRate($AT28,$R28))-L28)/(1+PeriodRate($AT28,$R28)),0) -> 0 | BE28: =IF(AND($AT28<>0,$R28>0),(M28*(1+PeriodRate($AT28,$R28))-M28)/(1+PeriodRate($AT28,$R28)),0) -> 0 | BF28: =IF(AND($AT28<>0,$R28>0),(N28*(1+PeriodRate($AT28,$R28))-N28)/(1+PeriodRate($AT28,$R28)),0) -> 0 | BN28: ='Admin Costs'!BG28 -> 21 | BO28: ='Admin Costs'!BH28 -> 
A29: 22 | L29: =IF(ISBLANK($H29),"",(IF(OR(MID($I29,1,1)="1",MID($I29,1,1)="3"),INDEX(Profile!$C$23:$E$35,MATCH($H29,Profile!$B$23:$B$35,0),1),0)*$J29)) ->  | M29: =IF(ISBLANK($H29),"",(IF(OR(MID($I29,1,1)="2",MID($I29,1,1)="3"),INDEX(Profile!$C$23:$E$35,MATCH($H29,Profile!$B$23:$B$35,0),2),0))*$J29) ->  | Y29: =IF(OR(ISBLANK(U29),ISBLANK(V29)),"",(IF(MID(U29,1,1)="E",Premium,overhead)+1)*INDEX('Labour Costs'!$C$4:$C$51,MATCH(MID(V29,1,2),'Labour Costs'!$F$4:$F$51,0))) ->  | AD29: =IF(ISNUMBER(IF(S29="",0,PeriodRate(discount,R29))),IF(S29="",0,PeriodRate(discount,R29)),0) -> 0 | AE29: 0 | AF29: =IF(ISNUMBER(IF(Y29="",0,PeriodRate(discount,X29))),IF(Y29="",0,PeriodRate(discount,X29)),0) -> 0 | AG29: 0 | AH29: 0 | AI29: 0 | AJ29: 0 | AL29: 0 | AM29: 0 | AN29: 0 | AP29: 0 | AQ29: 0 | AR29: 0 | AT29: =IF(H29<>"",OFFSET(Profile!$F$24,MATCH(H29,Profile!$B$25:$B$35,0),0),0) -> 0 | AU29: =IF($U29="",0,IF(MID($D29,1,1)="1",IF(OR(LOWER($K29)="vrai",LOWER($K29)="true"),popcorrect(BA29,$AT29,fiscalyear,fiscalyear,fiscalyear+timeperiod,$X29,discount),0),popcorrect(IF(OR(LOWER($K29)="vrai",LOWER($K29)="true"),BA29,L29),$AT29,fiscalyear,$E29,$F29,$X29,discount))) -> 0 | AV29: =IF($U29="",0,IF(MID($D29,1,1)="1",IF(OR(LOWER($K29)="vrai",LOWER($K29)="true"),popcorrect(BB29,$AT29,fiscalyear,fiscalyear,fiscalyear+timeperiod,$X29,discount),0),popcorrect(IF(OR(LOWER($K29)="vrai",LOWER($K29)="true"),BB29,M29),$AT29,fiscalyear,$E29,$F29,$X29,discount))) -> 0 | AW29: =IF($U29="",0,IF(MID($D29,1,1)="1",IF(OR(LOWER($K29)="vrai",LOWER($K29)="true"),popcorrect(BC29,$AT29,fiscalyear,fiscalyear,fiscalyear+timeperiod,$X29,discount),0),popcorrect(IF(OR(LOWER($K29)="vrai",LOWER($K29)="true"),BC29,N29),$AT29,fiscalyear,$E29,$F29,$X29,discount))) -> 0 | AX29: =IF($P29="",0,IF(MID($D29,1,1)="1",IF(OR(LOWER($K29)="vraiI",LOWER($K29)="true"),popcorrect(BD29,$AT29,fiscalyear,fiscalyear,fiscalyear+timeperiod,$R29,discount),0),popcorrect(IF(OR(LOWER($K29)="vrai",LOWER($K29)="true"),BD29,L29),$AT29,fiscalyear,$E29,$F29,$R29,discount))) -> 0 | AY29: =IF($P29="",0,IF(MID($D29,1,1)="1",IF(OR(LOWER($K29)="vraiI",LOWER($K29)="true"),popcorrect(BE29,$AT29,fiscalyear,fiscalyear,fiscalyear+timeperiod,$R29,discount),0),popcorrect(IF(OR(LOWER($K29)="vrai",LOWER($K29)="true"),BE29,M29),$AT29,fiscalyear,$E29,$F29,$R29,discount))) -> 0 | AZ29: =IF($P29="",0,IF(MID($D29,1,1)="1",IF(OR(LOWER($K29)="vraiI",LOWER($K29)="true"),popcorrect(BF29,$AT29,fiscalyear,fiscalyear,fiscalyear+timeperiod,$R29,discount),0),popcorrect(IF(OR(LOWER($K29)="vrai",LOWER($K29)="true"),BF29,N29),$AT29,fiscalyear,$E29,$F29,$R29,discount))) -> 0 | BA29: =IF(AND($AT29<>0,$X29>0),(L29*(1+PeriodRate($AT29,$X29))-L29)/(1+PeriodRate($AT29,$X29)),0) -> 0 | BB29: =IF(AND($AT29<>0,$X29>0),(M29*(1+PeriodRate($AT29,$X29))-M29)/(1+PeriodRate($AT29,$X29)),0) -> 0 | BC29: =IF(AND($AT29<>0,$X29>0),(N29*(1+PeriodRate($AT29,$X29))-N29)/(1+PeriodRate($AT29,$X29)),0) -> 0 | BD29: =IF(AND($AT29<>0,$R29>0),(L29*(1+PeriodRate($AT29,$R29))-L29)/(1+PeriodRate($AT29,$R29)),0) -> 0 | BE29: =IF(AND($AT29<>0,$R29>0),(M29*(1+PeriodRate($AT29,$R29))-M29)/(1+PeriodRate($AT29,$R29)),0) -> 0 | BF29: =IF(AND($AT29<>0,$R29>0),(N29*(1+PeriodRate($AT29,$R29))-N29)/(1+PeriodRate($AT29,$R29)),0) -> 0 | BN29: ='Admin Costs'!BG29 -> 22 | BO29: ='Admin Costs'!BH29 -> 
A30: 23 | L30: =IF(ISBLANK($H30),"",(IF(OR(MID($I30,1,1)="1",MID($I30,1,1)="3"),INDEX(Profile!$C$23:$E$35,MATCH($H30,Profile!$B$23:$B$35,0),1),0)*$J30)) ->  | M30: =IF(ISBLANK($H30),"",(IF(OR(MID($I30,1,1)="2",MID($I30,1,1)="3"),INDEX(Profile!$C$23:$E$35,MATCH($H30,Profile!$B$23:$B$35,0),2),0))*$J30) ->  | Y30: =IF(OR(ISBLANK(U30),ISBLANK(V30)),"",(IF(MID(U30,1,1)="E",Premium,overhead)+1)*INDEX('Labour Costs'!$C$4:$C$51,MATCH(MID(V30,1,2),'Labour Costs'!$F$4:$F$51,0))) ->  | AD30: =IF(ISNUMBER(IF(S30="",0,PeriodRate(discount,R30))),IF(S30="",0,PeriodRate(discount,R30)),0) -> 0 | AE30: 0 | AF30: =IF(ISNUMBER(IF(Y30="",0,PeriodRate(discount,X30))),IF(Y30="",0,PeriodRate(discount,X30)),0) -> 0 | AG30: 0 | AH30: 0 | AI30: 0 | AJ30: 0 | AL30: 0 | AM30: 0 | AN30: 0 | AP30: 0 | AQ30: 0 | AR30: 0 | AT30: =IF(H30<>"",OFFSET(Profile!$F$24,MATCH(H30,Profile!$B$25:$B$35,0),0),0) -> 0 | AU30: =IF($U30="",0,IF(MID($D30,1,1)="1",IF(OR(LOWER($K30)="vrai",LOWER($K30)="true"),popcorrect(BA30,$AT30,fiscalyear,fiscalyear,fiscalyear+timeperiod,$X30,discount),0),popcorrect(IF(OR(LOWER($K30)="vrai",LOWER($K30)="true"),BA30,L30),$AT30,fiscalyear,$E30,$F30,$X30,discount))) -> 0 | AV30: =IF($U30="",0,IF(MID($D30,1,1)="1",IF(OR(LOWER($K30)="vrai",LOWER($K30)="true"),popcorrect(BB30,$AT30,fiscalyear,fiscalyear,fiscalyear+timeperiod,$X30,discount),0),popcorrect(IF(OR(LOWER($K30)="vrai",LOWER($K30)="true"),BB30,M30),$AT30,fiscalyear,$E30,$F30,$X30,discount))) -> 0 | AW30: =IF($U30="",0,IF(MID($D30,1,1)="1",IF(OR(LOWER($K30)="vrai",LOWER($K30)="true"),popcorrect(BC30,$AT30,fiscalyear,fiscalyear,fiscalyear+timeperiod,$X30,discount),0),popcorrect(IF(OR(LOWER($K30)="vrai",LOWER($K30)="true"),BC30,N30),$AT30,fiscalyear,$E30,$F30,$X30,discount))) -> 0 | AX30: =IF($P30="",0,IF(MID($D30,1,1)="1",IF(OR(LOWER($K30)="vraiI",LOWER($K30)="true"),popcorrect(BD30,$AT30,fiscalyear,fiscalyear,fiscalyear+timeperiod,$R30,discount),0),popcorrect(IF(OR(LOWER($K30)="vrai",LOWER($K30)="true"),BD30,L30),$AT30,fiscalyear,$E30,$F30,$R30,discount))) -> 0 | AY30: =IF($P30="",0,IF(MID($D30,1,1)="1",IF(OR(LOWER($K30)="vraiI",LOWER($K30)="true"),popcorrect(BE30,$AT30,fiscalyear,fiscalyear,fiscalyear+timeperiod,$R30,discount),0),popcorrect(IF(OR(LOWER($K30)="vrai",LOWER($K30)="true"),BE30,M30),$AT30,fiscalyear,$E30,$F30,$R30,discount))) -> 0 | AZ30: =IF($P30="",0,IF(MID($D30,1,1)="1",IF(OR(LOWER($K30)="vraiI",LOWER($K30)="true"),popcorrect(BF30,$AT30,fiscalyear,fiscalyear,fiscalyear+timeperiod,$R30,discount),0),popcorrect(IF(OR(LOWER($K30)="vrai",LOWER($K30)="true"),BF30,N30),$AT30,fiscalyear,$E30,$F30,$R30,discount))) -> 0 | BA30: =IF(AND($AT30<>0,$X30>0),(L30*(1+PeriodRate($AT30,$X30))-L30)/(1+PeriodRate($AT30,$X30)),0) -> 0 | BB30: =IF(AND($AT30<>0,$X30>0),(M30*(1+PeriodRate($AT30,$X30))-M30)/(1+PeriodRate($AT30,$X30)),0) -> 0 | BC30: =IF(AND($AT30<>0,$X30>0),(N30*(1+PeriodRate($AT30,$X30))-N30)/(1+PeriodRate($AT30,$X30)),0) -> 0 | BD30: =IF(AND($AT30<>0,$R30>0),(L30*(1+PeriodRate($AT30,$R30))-L30)/(1+PeriodRate($AT30,$R30)),0) -> 0 | BE30: =IF(AND($AT30<>0,$R30>0),(M30*(1+PeriodRate($AT30,$R30))-M30)/(1+PeriodRate($AT30,$R30)),0) -> 0 | BF30: =IF(AND($AT30<>0,$R30>0),(N30*(1+PeriodRate($AT30,$R30))-N30)/(1+PeriodRate($AT30,$R30)),0) -> 0 | BN30: ='Admin Costs'!BG30 -> 23 | BO30: ='Admin Costs'!BH30 -> 
A31: 24 | L31: =IF(ISBLANK($H31),"",(IF(OR(MID($I31,1,1)="1",MID($I31,1,1)="3"),INDEX(Profile!$C$23:$E$35,MATCH($H31,Profile!$B$23:$B$35,0),1),0)*$J31)) ->  | M31: =IF(ISBLANK($H31),"",(IF(OR(MID($I31,1,1)="2",MID($I31,1,1)="3"),INDEX(Profile!$C$23:$E$35,MATCH($H31,Profile!$B$23:$B$35,0),2),0))*$J31) ->  | Y31: =IF(OR(ISBLANK(U31),ISBLANK(V31)),"",(IF(MID(U31,1,1)="E",Premium,overhead)+1)*INDEX('Labour Costs'!$C$4:$C$51,MATCH(MID(V31,1,2),'Labour Costs'!$F$4:$F$51,0))) ->  | AD31: =IF(ISNUMBER(IF(S31="",0,PeriodRate(discount,R31))),IF(S31="",0,PeriodRate(discount,R31)),0) -> 0 | AE31: 0 | AF31: =IF(ISNUMBER(IF(Y31="",0,PeriodRate(discount,X31))),IF(Y31="",0,PeriodRate(discount,X31)),0) -> 0 | AG31: 0 | AH31: 0 | AI31: 0 | AJ31: 0 | AL31: 0 | AM31: 0 | AN31: 0 | AP31: 0 | AQ31: 0 | AR31: 0 | AT31: =IF(H31<>"",OFFSET(Profile!$F$24,MATCH(H31,Profile!$B$25:$B$35,0),0),0) -> 0 | AU31: =IF($U31="",0,IF(MID($D31,1,1)="1",IF(OR(LOWER($K31)="vrai",LOWER($K31)="true"),popcorrect(BA31,$AT31,fiscalyear,fiscalyear,fiscalyear+timeperiod,$X31,discount),0),popcorrect(IF(OR(LOWER($K31)="vrai",LOWER($K31)="true"),BA31,L31),$AT31,fiscalyear,$E31,$F31,$X31,discount))) -> 0 | AV31: =IF($U31="",0,IF(MID($D31,1,1)="1",IF(OR(LOWER($K31)="vrai",LOWER($K31)="true"),popcorrect(BB31,$AT31,fiscalyear,fiscalyear,fiscalyear+timeperiod,$X31,discount),0),popcorrect(IF(OR(LOWER($K31)="vrai",LOWER($K31)="true"),BB31,M31),$AT31,fiscalyear,$E31,$F31,$X31,discount))) -> 0 | AW31: =IF($U31="",0,IF(MID($D31,1,1)="1",IF(OR(LOWER($K31)="vrai",LOWER($K31)="true"),popcorrect(BC31,$AT31,fiscalyear,fiscalyear,fiscalyear+timeperiod,$X31,discount),0),popcorrect(IF(OR(LOWER($K31)="vrai",LOWER($K31)="true"),BC31,N31),$AT31,fiscalyear,$E31,$F31,$X31,discount))) -> 0 | AX31: =IF($P31="",0,IF(MID($D31,1,1)="1",IF(OR(LOWER($K31)="vraiI",LOWER($K31)="true"),popcorrect(BD31,$AT31,fiscalyear,fiscalyear,fiscalyear+timeperiod,$R31,discount),0),popcorrect(IF(OR(LOWER($K31)="vrai",LOWER($K31)="true"),BD31,L31),$AT31,fiscalyear,$E31,$F31,$R31,discount))) -> 0 | AY31: =IF($P31="",0,IF(MID($D31,1,1)="1",IF(OR(LOWER($K31)="vraiI",LOWER($K31)="true"),popcorrect(BE31,$AT31,fiscalyear,fiscalyear,fiscalyear+timeperiod,$R31,discount),0),popcorrect(IF(OR(LOWER($K31)="vrai",LOWER($K31)="true"),BE31,M31),$AT31,fiscalyear,$E31,$F31,$R31,discount))) -> 0 | AZ31: =IF($P31="",0,IF(MID($D31,1,1)="1",IF(OR(LOWER($K31)="vraiI",LOWER($K31)="true"),popcorrect(BF31,$AT31,fiscalyear,fiscalyear,fiscalyear+timeperiod,$R31,discount),0),popcorrect(IF(OR(LOWER($K31)="vrai",LOWER($K31)="true"),BF31,N31),$AT31,fiscalyear,$E31,$F31,$R31,discount))) -> 0 | BA31: =IF(AND($AT31<>0,$X31>0),(L31*(1+PeriodRate($AT31,$X31))-L31)/(1+PeriodRate($AT31,$X31)),0) -> 0 | BB31: =IF(AND($AT31<>0,$X31>0),(M31*(1+PeriodRate($AT31,$X31))-M31)/(1+PeriodRate($AT31,$X31)),0) -> 0 | BC31: =IF(AND($AT31<>0,$X31>0),(N31*(1+PeriodRate($AT31,$X31))-N31)/(1+PeriodRate($AT31,$X31)),0) -> 0 | BD31: =IF(AND($AT31<>0,$R31>0),(L31*(1+PeriodRate($AT31,$R31))-L31)/(1+PeriodRate($AT31,$R31)),0) -> 0 | BE31: =IF(AND($AT31<>0,$R31>0),(M31*(1+PeriodRate($AT31,$R31))-M31)/(1+PeriodRate($AT31,$R31)),0) -> 0 | BF31: =IF(AND($AT31<>0,$R31>0),(N31*(1+PeriodRate($AT31,$R31))-N31)/(1+PeriodRate($AT31,$R31)),0) -> 0 | BN31: ='Admin Costs'!BG31 -> 24 | BO31: ='Admin Costs'!BH31 -> 
A32: 25 | L32: =IF(ISBLANK($H32),"",(IF(OR(MID($I32,1,1)="1",MID($I32,1,1)="3"),INDEX(Profile!$C$23:$E$35,MATCH($H32,Profile!$B$23:$B$35,0),1),0)*$J32)) ->  | M32: =IF(ISBLANK($H32),"",(IF(OR(MID($I32,1,1)="2",MID($I32,1,1)="3"),INDEX(Profile!$C$23:$E$35,MATCH($H32,Profile!$B$23:$B$35,0),2),0))*$J32) ->  | Y32: =IF(OR(ISBLANK(U32),ISBLANK(V32)),"",(IF(MID(U32,1,1)="E",Premium,overhead)+1)*INDEX('Labour Costs'!$C$4:$C$51,MATCH(MID(V32,1,2),'Labour Costs'!$F$4:$F$51,0))) ->  | AD32: =IF(ISNUMBER(IF(S32="",0,PeriodRate(discount,R32))),IF(S32="",0,PeriodRate(discount,R32)),0) -> 0 | AE32: 0 | AF32: =IF(ISNUMBER(IF(Y32="",0,PeriodRate(discount,X32))),IF(Y32="",0,PeriodRate(discount,X32)),0) -> 0 | AG32: 0 | AH32: 0 | AI32: 0 | AJ32: 0 | AL32: 0 | AM32: 0 | AN32: 0 | AP32: 0 | AQ32: 0 | AR32: 0 | AT32: =IF(H32<>"",OFFSET(Profile!$F$24,MATCH(H32,Profile!$B$25:$B$35,0),0),0) -> 0 | AU32: =IF($U32="",0,IF(MID($D32,1,1)="1",IF(OR(LOWER($K32)="vrai",LOWER($K32)="true"),popcorrect(BA32,$AT32,fiscalyear,fiscalyear,fiscalyear+timeperiod,$X32,discount),0),popcorrect(IF(OR(LOWER($K32)="vrai",LOWER($K32)="true"),BA32,L32),$AT32,fiscalyear,$E32,$F32,$X32,discount))) -> 0 | AV32: =IF($U32="",0,IF(MID($D32,1,1)="1",IF(OR(LOWER($K32)="vrai",LOWER($K32)="true"),popcorrect(BB32,$AT32,fiscalyear,fiscalyear,fiscalyear+timeperiod,$X32,discount),0),popcorrect(IF(OR(LOWER($K32)="vrai",LOWER($K32)="true"),BB32,M32),$AT32,fiscalyear,$E32,$F32,$X32,discount))) -> 0 | AW32: =IF($U32="",0,IF(MID($D32,1,1)="1",IF(OR(LOWER($K32)="vrai",LOWER($K32)="true"),popcorrect(BC32,$AT32,fiscalyear,fiscalyear,fiscalyear+timeperiod,$X32,discount),0),popcorrect(IF(OR(LOWER($K32)="vrai",LOWER($K32)="true"),BC32,N32),$AT32,fiscalyear,$E32,$F32,$X32,discount))) -> 0 | AX32: =IF($P32="",0,IF(MID($D32,1,1)="1",IF(OR(LOWER($K32)="vraiI",LOWER($K32)="true"),popcorrect(BD32,$AT32,fiscalyear,fiscalyear,fiscalyear+timeperiod,$R32,discount),0),popcorrect(IF(OR(LOWER($K32)="vrai",LOWER($K32)="true"),BD32,L32),$AT32,fiscalyear,$E32,$F32,$R32,discount))) -> 0 | AY32: =IF($P32="",0,IF(MID($D32,1,1)="1",IF(OR(LOWER($K32)="vraiI",LOWER($K32)="true"),popcorrect(BE32,$AT32,fiscalyear,fiscalyear,fiscalyear+timeperiod,$R32,discount),0),popcorrect(IF(OR(LOWER($K32)="vrai",LOWER($K32)="true"),BE32,M32),$AT32,fiscalyear,$E32,$F32,$R32,discount))) -> 0 | AZ32: =IF($P32="",0,IF(MID($D32,1,1)="1",IF(OR(LOWER($K32)="vraiI",LOWER($K32)="true"),popcorrect(BF32,$AT32,fiscalyear,fiscalyear,fiscalyear+timeperiod,$R32,discount),0),popcorrect(IF(OR(LOWER($K32)="vrai",LOWER($K32)="true"),BF32,N32),$AT32,fiscalyear,$E32,$F32,$R32,discount))) -> 0 | BA32: =IF(AND($AT32<>0,$X32>0),(L32*(1+PeriodRate($AT32,$X32))-L32)/(1+PeriodRate($AT32,$X32)),0) -> 0 | BB32: =IF(AND($AT32<>0,$X32>0),(M32*(1+PeriodRate($AT32,$X32))-M32)/(1+PeriodRate($AT32,$X32)),0) -> 0 | BC32: =IF(AND($AT32<>0,$X32>0),(N32*(1+PeriodRate($AT32,$X32))-N32)/(1+PeriodRate($AT32,$X32)),0) -> 0 | BD32: =IF(AND($AT32<>0,$R32>0),(L32*(1+PeriodRate($AT32,$R32))-L32)/(1+PeriodRate($AT32,$R32)),0) -> 0 | BE32: =IF(AND($AT32<>0,$R32>0),(M32*(1+PeriodRate($AT32,$R32))-M32)/(1+PeriodRate($AT32,$R32)),0) -> 0 | BF32: =IF(AND($AT32<>0,$R32>0),(N32*(1+PeriodRate($AT32,$R32))-N32)/(1+PeriodRate($AT32,$R32)),0) -> 0 | BN32: ='Admin Costs'!BG32 -> 25 | BO32: ='Admin Costs'!BH32 -> 
A33: 26 | L33: =IF(ISBLANK($H33),"",(IF(OR(MID($I33,1,1)="1",MID($I33,1,1)="3"),INDEX(Profile!$C$23:$E$35,MATCH($H33,Profile!$B$23:$B$35,0),1),0)*$J33)) ->  | M33: =IF(ISBLANK($H33),"",(IF(OR(MID($I33,1,1)="2",MID($I33,1,1)="3"),INDEX(Profile!$C$23:$E$35,MATCH($H33,Profile!$B$23:$B$35,0),2),0))*$J33) ->  | Y33: =IF(OR(ISBLANK(U33),ISBLANK(V33)),"",(IF(MID(U33,1,1)="E",Premium,overhead)+1)*INDEX('Labour Costs'!$C$4:$C$51,MATCH(MID(V33,1,2),'Labour Costs'!$F$4:$F$51,0))) ->  | AD33: =IF(ISNUMBER(IF(S33="",0,PeriodRate(discount,R33))),IF(S33="",0,PeriodRate(discount,R33)),0) -> 0 | AE33: 0 | AF33: =IF(ISNUMBER(IF(Y33="",0,PeriodRate(discount,X33))),IF(Y33="",0,PeriodRate(discount,X33)),0) -> 0 | AG33: 0 | AH33: 0 | AI33: 0 | AJ33: 0 | AL33: 0 | AM33: 0 | AN33: 0 | AP33: 0 | AQ33: 0 | AR33: 0 | AT33: =IF(H33<>"",OFFSET(Profile!$F$24,MATCH(H33,Profile!$B$25:$B$35,0),0),0) -> 0 | AU33: =IF($U33="",0,IF(MID($D33,1,1)="1",IF(OR(LOWER($K33)="vrai",LOWER($K33)="true"),popcorrect(BA33,$AT33,fiscalyear,fiscalyear,fiscalyear+timeperiod,$X33,discount),0),popcorrect(IF(OR(LOWER($K33)="vrai",LOWER($K33)="true"),BA33,L33),$AT33,fiscalyear,$E33,$F33,$X33,discount))) -> 0 | AV33: =IF($U33="",0,IF(MID($D33,1,1)="1",IF(OR(LOWER($K33)="vrai",LOWER($K33)="true"),popcorrect(BB33,$AT33,fiscalyear,fiscalyear,fiscalyear+timeperiod,$X33,discount),0),popcorrect(IF(OR(LOWER($K33)="vrai",LOWER($K33)="true"),BB33,M33),$AT33,fiscalyear,$E33,$F33,$X33,discount))) -> 0 | AW33: =IF($U33="",0,IF(MID($D33,1,1)="1",IF(OR(LOWER($K33)="vrai",LOWER($K33)="true"),popcorrect(BC33,$AT33,fiscalyear,fiscalyear,fiscalyear+timeperiod,$X33,discount),0),popcorrect(IF(OR(LOWER($K33)="vrai",LOWER($K33)="true"),BC33,N33),$AT33,fiscalyear,$E33,$F33,$X33,discount))) -> 0 | AX33: =IF($P33="",0,IF(MID($D33,1,1)="1",IF(OR(LOWER($K33)="vraiI",LOWER($K33)="true"),popcorrect(BD33,$AT33,fiscalyear,fiscalyear,fiscalyear+timeperiod,$R33,discount),0),popcorrect(IF(OR(LOWER($K33)="vrai",LOWER($K33)="true"),BD33,L33),$AT33,fiscalyear,$E33,$F33,$R33,discount))) -> 0 | AY33: =IF($P33="",0,IF(MID($D33,1,1)="1",IF(OR(LOWER($K33)="vraiI",LOWER($K33)="true"),popcorrect(BE33,$AT33,fiscalyear,fiscalyear,fiscalyear+timeperiod,$R33,discount),0),popcorrect(IF(OR(LOWER($K33)="vrai",LOWER($K33)="true"),BE33,M33),$AT33,fiscalyear,$E33,$F33,$R33,discount))) -> 0 | AZ33: =IF($P33="",0,IF(MID($D33,1,1)="1",IF(OR(LOWER($K33)="vraiI",LOWER($K33)="true"),popcorrect(BF33,$AT33,fiscalyear,fiscalyear,fiscalyear+timeperiod,$R33,discount),0),popcorrect(IF(OR(LOWER($K33)="vrai",LOWER($K33)="true"),BF33,N33),$AT33,fiscalyear,$E33,$F33,$R33,discount))) -> 0 | BA33: =IF(AND($AT33<>0,$X33>0),(L33*(1+PeriodRate($AT33,$X33))-L33)/(1+PeriodRate($AT33,$X33)),0) -> 0 | BB33: =IF(AND($AT33<>0,$X33>0),(M33*(1+PeriodRate($AT33,$X33))-M33)/(1+PeriodRate($AT33,$X33)),0) -> 0 | BC33: =IF(AND($AT33<>0,$X33>0),(N33*(1+PeriodRate($AT33,$X33))-N33)/(1+PeriodRate($AT33,$X33)),0) -> 0 | BD33: =IF(AND($AT33<>0,$R33>0),(L33*(1+PeriodRate($AT33,$R33))-L33)/(1+PeriodRate($AT33,$R33)),0) -> 0 | BE33: =IF(AND($AT33<>0,$R33>0),(M33*(1+PeriodRate($AT33,$R33))-M33)/(1+PeriodRate($AT33,$R33)),0) -> 0 | BF33: =IF(AND($AT33<>0,$R33>0),(N33*(1+PeriodRate($AT33,$R33))-N33)/(1+PeriodRate($AT33,$R33)),0) -> 0 | BN33: ='Admin Costs'!BG33 -> 26 | BO33: ='Admin Costs'!BH33 -> 
A34: 27 | L34: =IF(ISBLANK($H34),"",(IF(OR(MID($I34,1,1)="1",MID($I34,1,1)="3"),INDEX(Profile!$C$23:$E$35,MATCH($H34,Profile!$B$23:$B$35,0),1),0)*$J34)) ->  | M34: =IF(ISBLANK($H34),"",(IF(OR(MID($I34,1,1)="2",MID($I34,1,1)="3"),INDEX(Profile!$C$23:$E$35,MATCH($H34,Profile!$B$23:$B$35,0),2),0))*$J34) ->  | Y34: =IF(OR(ISBLANK(U34),ISBLANK(V34)),"",(IF(MID(U34,1,1)="E",Premium,overhead)+1)*INDEX('Labour Costs'!$C$4:$C$51,MATCH(MID(V34,1,2),'Labour Costs'!$F$4:$F$51,0))) ->  | AD34: =IF(ISNUMBER(IF(S34="",0,PeriodRate(discount,R34))),IF(S34="",0,PeriodRate(discount,R34)),0) -> 0 | AE34: 0 | AF34: =IF(ISNUMBER(IF(Y34="",0,PeriodRate(discount,X34))),IF(Y34="",0,PeriodRate(discount,X34)),0) -> 0 | AG34: 0 | AH34: 0 | AI34: 0 | AJ34: 0 | AL34: 0 | AM34: 0 | AN34: 0 | AP34: 0 | AQ34: 0 | AR34: 0 | AT34: =IF(H34<>"",OFFSET(Profile!$F$24,MATCH(H34,Profile!$B$25:$B$35,0),0),0) -> 0 | AU34: =IF($U34="",0,IF(MID($D34,1,1)="1",IF(OR(LOWER($K34)="vrai",LOWER($K34)="true"),popcorrect(BA34,$AT34,fiscalyear,fiscalyear,fiscalyear+timeperiod,$X34,discount),0),popcorrect(IF(OR(LOWER($K34)="vrai",LOWER($K34)="true"),BA34,L34),$AT34,fiscalyear,$E34,$F34,$X34,discount))) -> 0 | AV34: =IF($U34="",0,IF(MID($D34,1,1)="1",IF(OR(LOWER($K34)="vrai",LOWER($K34)="true"),popcorrect(BB34,$AT34,fiscalyear,fiscalyear,fiscalyear+timeperiod,$X34,discount),0),popcorrect(IF(OR(LOWER($K34)="vrai",LOWER($K34)="true"),BB34,M34),$AT34,fiscalyear,$E34,$F34,$X34,discount))) -> 0 | AW34: =IF($U34="",0,IF(MID($D34,1,1)="1",IF(OR(LOWER($K34)="vrai",LOWER($K34)="true"),popcorrect(BC34,$AT34,fiscalyear,fiscalyear,fiscalyear+timeperiod,$X34,discount),0),popcorrect(IF(OR(LOWER($K34)="vrai",LOWER($K34)="true"),BC34,N34),$AT34,fiscalyear,$E34,$F34,$X34,discount))) -> 0 | AX34: =IF($P34="",0,IF(MID($D34,1,1)="1",IF(OR(LOWER($K34)="vraiI",LOWER($K34)="true"),popcorrect(BD34,$AT34,fiscalyear,fiscalyear,fiscalyear+timeperiod,$R34,discount),0),popcorrect(IF(OR(LOWER($K34)="vrai",LOWER($K34)="true"),BD34,L34),$AT34,fiscalyear,$E34,$F34,$R34,discount))) -> 0 | AY34: =IF($P34="",0,IF(MID($D34,1,1)="1",IF(OR(LOWER($K34)="vraiI",LOWER($K34)="true"),popcorrect(BE34,$AT34,fiscalyear,fiscalyear,fiscalyear+timeperiod,$R34,discount),0),popcorrect(IF(OR(LOWER($K34)="vrai",LOWER($K34)="true"),BE34,M34),$AT34,fiscalyear,$E34,$F34,$R34,discount))) -> 0 | AZ34: =IF($P34="",0,IF(MID($D34,1,1)="1",IF(OR(LOWER($K34)="vraiI",LOWER($K34)="true"),popcorrect(BF34,$AT34,fiscalyear,fiscalyear,fiscalyear+timeperiod,$R34,discount),0),popcorrect(IF(OR(LOWER($K34)="vrai",LOWER($K34)="true"),BF34,N34),$AT34,fiscalyear,$E34,$F34,$R34,discount))) -> 0 | BA34: =IF(AND($AT34<>0,$X34>0),(L34*(1+PeriodRate($AT34,$X34))-L34)/(1+PeriodRate($AT34,$X34)),0) -> 0 | BB34: =IF(AND($AT34<>0,$X34>0),(M34*(1+PeriodRate($AT34,$X34))-M34)/(1+PeriodRate($AT34,$X34)),0) -> 0 | BC34: =IF(AND($AT34<>0,$X34>0),(N34*(1+PeriodRate($AT34,$X34))-N34)/(1+PeriodRate($AT34,$X34)),0) -> 0 | BD34: =IF(AND($AT34<>0,$R34>0),(L34*(1+PeriodRate($AT34,$R34))-L34)/(1+PeriodRate($AT34,$R34)),0) -> 0 | BE34: =IF(AND($AT34<>0,$R34>0),(M34*(1+PeriodRate($AT34,$R34))-M34)/(1+PeriodRate($AT34,$R34)),0) -> 0 | BF34: =IF(AND($AT34<>0,$R34>0),(N34*(1+PeriodRate($AT34,$R34))-N34)/(1+PeriodRate($AT34,$R34)),0) -> 0 | BN34: ='Admin Costs'!BG34 -> 27 | BO34: ='Admin Costs'!BH34 -> 
A35: 28 | L35: =IF(ISBLANK($H35),"",(IF(OR(MID($I35,1,1)="1",MID($I35,1,1)="3"),INDEX(Profile!$C$23:$E$35,MATCH($H35,Profile!$B$23:$B$35,0),1),0)*$J35)) ->  | M35: =IF(ISBLANK($H35),"",(IF(OR(MID($I35,1,1)="2",MID($I35,1,1)="3"),INDEX(Profile!$C$23:$E$35,MATCH($H35,Profile!$B$23:$B$35,0),2),0))*$J35) ->  | Y35: =IF(OR(ISBLANK(U35),ISBLANK(V35)),"",(IF(MID(U35,1,1)="E",Premium,overhead)+1)*INDEX('Labour Costs'!$C$4:$C$51,MATCH(MID(V35,1,2),'Labour Costs'!$F$4:$F$51,0))) ->  | AD35: =IF(ISNUMBER(IF(S35="",0,PeriodRate(discount,R35))),IF(S35="",0,PeriodRate(discount,R35)),0) -> 0 | AE35: 0 | AF35: =IF(ISNUMBER(IF(Y35="",0,PeriodRate(discount,X35))),IF(Y35="",0,PeriodRate(discount,X35)),0) -> 0 | AG35: 0 | AH35: 0 | AI35: 0 | AJ35: 0 | AL35: 0 | AM35: 0 | AN35: 0 | AP35: 0 | AQ35: 0 | AR35: 0 | AT35: =IF(H35<>"",OFFSET(Profile!$F$24,MATCH(H35,Profile!$B$25:$B$35,0),0),0) -> 0 | AU35: =IF($U35="",0,IF(MID($D35,1,1)="1",IF(OR(LOWER($K35)="vrai",LOWER($K35)="true"),popcorrect(BA35,$AT35,fiscalyear,fiscalyear,fiscalyear+timeperiod,$X35,discount),0),popcorrect(IF(OR(LOWER($K35)="vrai",LOWER($K35)="true"),BA35,L35),$AT35,fiscalyear,$E35,$F35,$X35,discount))) -> 0 | AV35: =IF($U35="",0,IF(MID($D35,1,1)="1",IF(OR(LOWER($K35)="vrai",LOWER($K35)="true"),popcorrect(BB35,$AT35,fiscalyear,fiscalyear,fiscalyear+timeperiod,$X35,discount),0),popcorrect(IF(OR(LOWER($K35)="vrai",LOWER($K35)="true"),BB35,M35),$AT35,fiscalyear,$E35,$F35,$X35,discount))) -> 0 | AW35: =IF($U35="",0,IF(MID($D35,1,1)="1",IF(OR(LOWER($K35)="vrai",LOWER($K35)="true"),popcorrect(BC35,$AT35,fiscalyear,fiscalyear,fiscalyear+timeperiod,$X35,discount),0),popcorrect(IF(OR(LOWER($K35)="vrai",LOWER($K35)="true"),BC35,N35),$AT35,fiscalyear,$E35,$F35,$X35,discount))) -> 0 | AX35: =IF($P35="",0,IF(MID($D35,1,1)="1",IF(OR(LOWER($K35)="vraiI",LOWER($K35)="true"),popcorrect(BD35,$AT35,fiscalyear,fiscalyear,fiscalyear+timeperiod,$R35,discount),0),popcorrect(IF(OR(LOWER($K35)="vrai",LOWER($K35)="true"),BD35,L35),$AT35,fiscalyear,$E35,$F35,$R35,discount))) -> 0 | AY35: =IF($P35="",0,IF(MID($D35,1,1)="1",IF(OR(LOWER($K35)="vraiI",LOWER($K35)="true"),popcorrect(BE35,$AT35,fiscalyear,fiscalyear,fiscalyear+timeperiod,$R35,discount),0),popcorrect(IF(OR(LOWER($K35)="vrai",LOWER($K35)="true"),BE35,M35),$AT35,fiscalyear,$E35,$F35,$R35,discount))) -> 0 | AZ35: =IF($P35="",0,IF(MID($D35,1,1)="1",IF(OR(LOWER($K35)="vraiI",LOWER($K35)="true"),popcorrect(BF35,$AT35,fiscalyear,fiscalyear,fiscalyear+timeperiod,$R35,discount),0),popcorrect(IF(OR(LOWER($K35)="vrai",LOWER($K35)="true"),BF35,N35),$AT35,fiscalyear,$E35,$F35,$R35,discount))) -> 0 | BA35: =IF(AND($AT35<>0,$X35>0),(L35*(1+PeriodRate($AT35,$X35))-L35)/(1+PeriodRate($AT35,$X35)),0) -> 0 | BB35: =IF(AND($AT35<>0,$X35>0),(M35*(1+PeriodRate($AT35,$X35))-M35)/(1+PeriodRate($AT35,$X35)),0) -> 0 | BC35: =IF(AND($AT35<>0,$X35>0),(N35*(1+PeriodRate($AT35,$X35))-N35)/(1+PeriodRate($AT35,$X35)),0) -> 0 | BD35: =IF(AND($AT35<>0,$R35>0),(L35*(1+PeriodRate($AT35,$R35))-L35)/(1+PeriodRate($AT35,$R35)),0) -> 0 | BE35: =IF(AND($AT35<>0,$R35>0),(M35*(1+PeriodRate($AT35,$R35))-M35)/(1+PeriodRate($AT35,$R35)),0) -> 0 | BF35: =IF(AND($AT35<>0,$R35>0),(N35*(1+PeriodRate($AT35,$R35))-N35)/(1+PeriodRate($AT35,$R35)),0) -> 0 | BN35: ='Admin Costs'!BG35 -> 28 | BO35: ='Admin Costs'!BH35 -> 
A36: 29 | L36: =IF(ISBLANK($H36),"",(IF(OR(MID($I36,1,1)="1",MID($I36,1,1)="3"),INDEX(Profile!$C$23:$E$35,MATCH($H36,Profile!$B$23:$B$35,0),1),0)*$J36)) ->  | M36: =IF(ISBLANK($H36),"",(IF(OR(MID($I36,1,1)="2",MID($I36,1,1)="3"),INDEX(Profile!$C$23:$E$35,MATCH($H36,Profile!$B$23:$B$35,0),2),0))*$J36) ->  | Y36: =IF(OR(ISBLANK(U36),ISBLANK(V36)),"",(IF(MID(U36,1,1)="E",Premium,overhead)+1)*INDEX('Labour Costs'!$C$4:$C$51,MATCH(MID(V36,1,2),'Labour Costs'!$F$4:$F$51,0))) ->  | AD36: =IF(ISNUMBER(IF(S36="",0,PeriodRate(discount,R36))),IF(S36="",0,PeriodRate(discount,R36)),0) -> 0 | AE36: 0 | AF36: =IF(ISNUMBER(IF(Y36="",0,PeriodRate(discount,X36))),IF(Y36="",0,PeriodRate(discount,X36)),0) -> 0 | AG36: 0 | AH36: 0 | AI36: 0 | AJ36: 0 | AL36: 0 | AM36: 0 | AN36: 0 | AP36: 0 | AQ36: 0 | AR36: 0 | AT36: =IF(H36<>"",OFFSET(Profile!$F$24,MATCH(H36,Profile!$B$25:$B$35,0),0),0) -> 0 | AU36: =IF($U36="",0,IF(MID($D36,1,1)="1",IF(OR(LOWER($K36)="vrai",LOWER($K36)="true"),popcorrect(BA36,$AT36,fiscalyear,fiscalyear,fiscalyear+timeperiod,$X36,discount),0),popcorrect(IF(OR(LOWER($K36)="vrai",LOWER($K36)="true"),BA36,L36),$AT36,fiscalyear,$E36,$F36,$X36,discount))) -> 0 | AV36: =IF($U36="",0,IF(MID($D36,1,1)="1",IF(OR(LOWER($K36)="vrai",LOWER($K36)="true"),popcorrect(BB36,$AT36,fiscalyear,fiscalyear,fiscalyear+timeperiod,$X36,discount),0),popcorrect(IF(OR(LOWER($K36)="vrai",LOWER($K36)="true"),BB36,M36),$AT36,fiscalyear,$E36,$F36,$X36,discount))) -> 0 | AW36: =IF($U36="",0,IF(MID($D36,1,1)="1",IF(OR(LOWER($K36)="vrai",LOWER($K36)="true"),popcorrect(BC36,$AT36,fiscalyear,fiscalyear,fiscalyear+timeperiod,$X36,discount),0),popcorrect(IF(OR(LOWER($K36)="vrai",LOWER($K36)="true"),BC36,N36),$AT36,fiscalyear,$E36,$F36,$X36,discount))) -> 0 | AX36: =IF($P36="",0,IF(MID($D36,1,1)="1",IF(OR(LOWER($K36)="vraiI",LOWER($K36)="true"),popcorrect(BD36,$AT36,fiscalyear,fiscalyear,fiscalyear+timeperiod,$R36,discount),0),popcorrect(IF(OR(LOWER($K36)="vrai",LOWER($K36)="true"),BD36,L36),$AT36,fiscalyear,$E36,$F36,$R36,discount))) -> 0 | AY36: =IF($P36="",0,IF(MID($D36,1,1)="1",IF(OR(LOWER($K36)="vraiI",LOWER($K36)="true"),popcorrect(BE36,$AT36,fiscalyear,fiscalyear,fiscalyear+timeperiod,$R36,discount),0),popcorrect(IF(OR(LOWER($K36)="vrai",LOWER($K36)="true"),BE36,M36),$AT36,fiscalyear,$E36,$F36,$R36,discount))) -> 0 | AZ36: =IF($P36="",0,IF(MID($D36,1,1)="1",IF(OR(LOWER($K36)="vraiI",LOWER($K36)="true"),popcorrect(BF36,$AT36,fiscalyear,fiscalyear,fiscalyear+timeperiod,$R36,discount),0),popcorrect(IF(OR(LOWER($K36)="vrai",LOWER($K36)="true"),BF36,N36),$AT36,fiscalyear,$E36,$F36,$R36,discount))) -> 0 | BA36: =IF(AND($AT36<>0,$X36>0),(L36*(1+PeriodRate($AT36,$X36))-L36)/(1+PeriodRate($AT36,$X36)),0) -> 0 | BB36: =IF(AND($AT36<>0,$X36>0),(M36*(1+PeriodRate($AT36,$X36))-M36)/(1+PeriodRate($AT36,$X36)),0) -> 0 | BC36: =IF(AND($AT36<>0,$X36>0),(N36*(1+PeriodRate($AT36,$X36))-N36)/(1+PeriodRate($AT36,$X36)),0) -> 0 | BD36: =IF(AND($AT36<>0,$R36>0),(L36*(1+PeriodRate($AT36,$R36))-L36)/(1+PeriodRate($AT36,$R36)),0) -> 0 | BE36: =IF(AND($AT36<>0,$R36>0),(M36*(1+PeriodRate($AT36,$R36))-M36)/(1+PeriodRate($AT36,$R36)),0) -> 0 | BF36: =IF(AND($AT36<>0,$R36>0),(N36*(1+PeriodRate($AT36,$R36))-N36)/(1+PeriodRate($AT36,$R36)),0) -> 0 | BN36: ='Admin Costs'!BG36 -> 29 | BO36: ='Admin Costs'!BH36 -> 
A37: 30 | L37: =IF(ISBLANK($H37),"",(IF(OR(MID($I37,1,1)="1",MID($I37,1,1)="3"),INDEX(Profile!$C$23:$E$35,MATCH($H37,Profile!$B$23:$B$35,0),1),0)*$J37)) ->  | M37: =IF(ISBLANK($H37),"",(IF(OR(MID($I37,1,1)="2",MID($I37,1,1)="3"),INDEX(Profile!$C$23:$E$35,MATCH($H37,Profile!$B$23:$B$35,0),2),0))*$J37) ->  | Y37: =IF(OR(ISBLANK(U37),ISBLANK(V37)),"",(IF(MID(U37,1,1)="E",Premium,overhead)+1)*INDEX('Labour Costs'!$C$4:$C$51,MATCH(MID(V37,1,2),'Labour Costs'!$F$4:$F$51,0))) ->  | AD37: =IF(ISNUMBER(IF(S37="",0,PeriodRate(discount,R37))),IF(S37="",0,PeriodRate(discount,R37)),0) -> 0 | AE37: 0 | AF37: =IF(ISNUMBER(IF(Y37="",0,PeriodRate(discount,X37))),IF(Y37="",0,PeriodRate(discount,X37)),0) -> 0 | AG37: 0 | AH37: 0 | AI37: 0 | AJ37: 0 | AL37: 0 | AM37: 0 | AN37: 0 | AP37: 0 | AQ37: 0 | AR37: 0 | AT37: =IF(H37<>"",OFFSET(Profile!$F$24,MATCH(H37,Profile!$B$25:$B$35,0),0),0) -> 0 | AU37: =IF($U37="",0,IF(MID($D37,1,1)="1",IF(OR(LOWER($K37)="vrai",LOWER($K37)="true"),popcorrect(BA37,$AT37,fiscalyear,fiscalyear,fiscalyear+timeperiod,$X37,discount),0),popcorrect(IF(OR(LOWER($K37)="vrai",LOWER($K37)="true"),BA37,L37),$AT37,fiscalyear,$E37,$F37,$X37,discount))) -> 0 | AV37: =IF($U37="",0,IF(MID($D37,1,1)="1",IF(OR(LOWER($K37)="vrai",LOWER($K37)="true"),popcorrect(BB37,$AT37,fiscalyear,fiscalyear,fiscalyear+timeperiod,$X37,discount),0),popcorrect(IF(OR(LOWER($K37)="vrai",LOWER($K37)="true"),BB37,M37),$AT37,fiscalyear,$E37,$F37,$X37,discount))) -> 0 | AW37: =IF($U37="",0,IF(MID($D37,1,1)="1",IF(OR(LOWER($K37)="vrai",LOWER($K37)="true"),popcorrect(BC37,$AT37,fiscalyear,fiscalyear,fiscalyear+timeperiod,$X37,discount),0),popcorrect(IF(OR(LOWER($K37)="vrai",LOWER($K37)="true"),BC37,N37),$AT37,fiscalyear,$E37,$F37,$X37,discount))) -> 0 | AX37: =IF($P37="",0,IF(MID($D37,1,1)="1",IF(OR(LOWER($K37)="vraiI",LOWER($K37)="true"),popcorrect(BD37,$AT37,fiscalyear,fiscalyear,fiscalyear+timeperiod,$R37,discount),0),popcorrect(IF(OR(LOWER($K37)="vrai",LOWER($K37)="true"),BD37,L37),$AT37,fiscalyear,$E37,$F37,$R37,discount))) -> 0 | AY37: =IF($P37="",0,IF(MID($D37,1,1)="1",IF(OR(LOWER($K37)="vraiI",LOWER($K37)="true"),popcorrect(BE37,$AT37,fiscalyear,fiscalyear,fiscalyear+timeperiod,$R37,discount),0),popcorrect(IF(OR(LOWER($K37)="vrai",LOWER($K37)="true"),BE37,M37),$AT37,fiscalyear,$E37,$F37,$R37,discount))) -> 0 | AZ37: =IF($P37="",0,IF(MID($D37,1,1)="1",IF(OR(LOWER($K37)="vraiI",LOWER($K37)="true"),popcorrect(BF37,$AT37,fiscalyear,fiscalyear,fiscalyear+timeperiod,$R37,discount),0),popcorrect(IF(OR(LOWER($K37)="vrai",LOWER($K37)="true"),BF37,N37),$AT37,fiscalyear,$E37,$F37,$R37,discount))) -> 0 | BA37: =IF(AND($AT37<>0,$X37>0),(L37*(1+PeriodRate($AT37,$X37))-L37)/(1+PeriodRate($AT37,$X37)),0) -> 0 | BB37: =IF(AND($AT37<>0,$X37>0),(M37*(1+PeriodRate($AT37,$X37))-M37)/(1+PeriodRate($AT37,$X37)),0) -> 0 | BC37: =IF(AND($AT37<>0,$X37>0),(N37*(1+PeriodRate($AT37,$X37))-N37)/(1+PeriodRate($AT37,$X37)),0) -> 0 | BD37: =IF(AND($AT37<>0,$R37>0),(L37*(1+PeriodRate($AT37,$R37))-L37)/(1+PeriodRate($AT37,$R37)),0) -> 0 | BE37: =IF(AND($AT37<>0,$R37>0),(M37*(1+PeriodRate($AT37,$R37))-M37)/(1+PeriodRate($AT37,$R37)),0) -> 0 | BF37: =IF(AND($AT37<>0,$R37>0),(N37*(1+PeriodRate($AT37,$R37))-N37)/(1+PeriodRate($AT37,$R37)),0) -> 0 | BN37: ='Admin Costs'!BG37 -> 30 | BO37: ='Admin Costs'!BH37 -> 
A38: 31 | L38: =IF(ISBLANK($H38),"",(IF(OR(MID($I38,1,1)="1",MID($I38,1,1)="3"),INDEX(Profile!$C$23:$E$35,MATCH($H38,Profile!$B$23:$B$35,0),1),0)*$J38)) ->  | M38: =IF(ISBLANK($H38),"",(IF(OR(MID($I38,1,1)="2",MID($I38,1,1)="3"),INDEX(Profile!$C$23:$E$35,MATCH($H38,Profile!$B$23:$B$35,0),2),0))*$J38) ->  | Y38: =IF(OR(ISBLANK(U38),ISBLANK(V38)),"",(IF(MID(U38,1,1)="E",Premium,overhead)+1)*INDEX('Labour Costs'!$C$4:$C$51,MATCH(MID(V38,1,2),'Labour Costs'!$F$4:$F$51,0))) ->  | AD38: =IF(ISNUMBER(IF(S38="",0,PeriodRate(discount,R38))),IF(S38="",0,PeriodRate(discount,R38)),0) -> 0 | AE38: 0 | AF38: =IF(ISNUMBER(IF(Y38="",0,PeriodRate(discount,X38))),IF(Y38="",0,PeriodRate(discount,X38)),0) -> 0 | AG38: 0 | AH38: 0 | AI38: 0 | AJ38: 0 | AL38: 0 | AM38: 0 | AN38: 0 | AP38: 0 | AQ38: 0 | AR38: 0 | AT38: =IF(H38<>"",OFFSET(Profile!$F$24,MATCH(H38,Profile!$B$25:$B$35,0),0),0) -> 0 | AU38: =IF($U38="",0,IF(MID($D38,1,1)="1",IF(OR(LOWER($K38)="vrai",LOWER($K38)="true"),popcorrect(BA38,$AT38,fiscalyear,fiscalyear,fiscalyear+timeperiod,$X38,discount),0),popcorrect(IF(OR(LOWER($K38)="vrai",LOWER($K38)="true"),BA38,L38),$AT38,fiscalyear,$E38,$F38,$X38,discount))) -> 0 | AV38: =IF($U38="",0,IF(MID($D38,1,1)="1",IF(OR(LOWER($K38)="vrai",LOWER($K38)="true"),popcorrect(BB38,$AT38,fiscalyear,fiscalyear,fiscalyear+timeperiod,$X38,discount),0),popcorrect(IF(OR(LOWER($K38)="vrai",LOWER($K38)="true"),BB38,M38),$AT38,fiscalyear,$E38,$F38,$X38,discount))) -> 0 | AW38: =IF($U38="",0,IF(MID($D38,1,1)="1",IF(OR(LOWER($K38)="vrai",LOWER($K38)="true"),popcorrect(BC38,$AT38,fiscalyear,fiscalyear,fiscalyear+timeperiod,$X38,discount),0),popcorrect(IF(OR(LOWER($K38)="vrai",LOWER($K38)="true"),BC38,N38),$AT38,fiscalyear,$E38,$F38,$X38,discount))) -> 0 | AX38: =IF($P38="",0,IF(MID($D38,1,1)="1",IF(OR(LOWER($K38)="vraiI",LOWER($K38)="true"),popcorrect(BD38,$AT38,fiscalyear,fiscalyear,fiscalyear+timeperiod,$R38,discount),0),popcorrect(IF(OR(LOWER($K38)="vrai",LOWER($K38)="true"),BD38,L38),$AT38,fiscalyear,$E38,$F38,$R38,discount))) -> 0 | AY38: =IF($P38="",0,IF(MID($D38,1,1)="1",IF(OR(LOWER($K38)="vraiI",LOWER($K38)="true"),popcorrect(BE38,$AT38,fiscalyear,fiscalyear,fiscalyear+timeperiod,$R38,discount),0),popcorrect(IF(OR(LOWER($K38)="vrai",LOWER($K38)="true"),BE38,M38),$AT38,fiscalyear,$E38,$F38,$R38,discount))) -> 0 | AZ38: =IF($P38="",0,IF(MID($D38,1,1)="1",IF(OR(LOWER($K38)="vraiI",LOWER($K38)="true"),popcorrect(BF38,$AT38,fiscalyear,fiscalyear,fiscalyear+timeperiod,$R38,discount),0),popcorrect(IF(OR(LOWER($K38)="vrai",LOWER($K38)="true"),BF38,N38),$AT38,fiscalyear,$E38,$F38,$R38,discount))) -> 0 | BA38: =IF(AND($AT38<>0,$X38>0),(L38*(1+PeriodRate($AT38,$X38))-L38)/(1+PeriodRate($AT38,$X38)),0) -> 0 | BB38: =IF(AND($AT38<>0,$X38>0),(M38*(1+PeriodRate($AT38,$X38))-M38)/(1+PeriodRate($AT38,$X38)),0) -> 0 | BC38: =IF(AND($AT38<>0,$X38>0),(N38*(1+PeriodRate($AT38,$X38))-N38)/(1+PeriodRate($AT38,$X38)),0) -> 0 | BD38: =IF(AND($AT38<>0,$R38>0),(L38*(1+PeriodRate($AT38,$R38))-L38)/(1+PeriodRate($AT38,$R38)),0) -> 0 | BE38: =IF(AND($AT38<>0,$R38>0),(M38*(1+PeriodRate($AT38,$R38))-M38)/(1+PeriodRate($AT38,$R38)),0) -> 0 | BF38: =IF(AND($AT38<>0,$R38>0),(N38*(1+PeriodRate($AT38,$R38))-N38)/(1+PeriodRate($AT38,$R38)),0) -> 0 | BN38: ='Admin Costs'!BG38 -> 31 | BO38: ='Admin Costs'!BH38 -> 
A39: 32 | L39: =IF(ISBLANK($H39),"",(IF(OR(MID($I39,1,1)="1",MID($I39,1,1)="3"),INDEX(Profile!$C$23:$E$35,MATCH($H39,Profile!$B$23:$B$35,0),1),0)*$J39)) ->  | M39: =IF(ISBLANK($H39),"",(IF(OR(MID($I39,1,1)="2",MID($I39,1,1)="3"),INDEX(Profile!$C$23:$E$35,MATCH($H39,Profile!$B$23:$B$35,0),2),0))*$J39) ->  | Y39: =IF(OR(ISBLANK(U39),ISBLANK(V39)),"",(IF(MID(U39,1,1)="E",Premium,overhead)+1)*INDEX('Labour Costs'!$C$4:$C$51,MATCH(MID(V39,1,2),'Labour Costs'!$F$4:$F$51,0))) ->  | AD39: =IF(ISNUMBER(IF(S39="",0,PeriodRate(discount,R39))),IF(S39="",0,PeriodRate(discount,R39)),0) -> 0 | AE39: 0 | AF39: =IF(ISNUMBER(IF(Y39="",0,PeriodRate(discount,X39))),IF(Y39="",0,PeriodRate(discount,X39)),0) -> 0 | AG39: 0 | AH39: 0 | AI39: 0 | AJ39: 0 | AL39: 0 | AM39: 0 | AN39: 0 | AP39: 0 | AQ39: 0 | AR39: 0 | AT39: =IF(H39<>"",OFFSET(Profile!$F$24,MATCH(H39,Profile!$B$25:$B$35,0),0),0) -> 0 | AU39: =IF($U39="",0,IF(MID($D39,1,1)="1",IF(OR(LOWER($K39)="vrai",LOWER($K39)="true"),popcorrect(BA39,$AT39,fiscalyear,fiscalyear,fiscalyear+timeperiod,$X39,discount),0),popcorrect(IF(OR(LOWER($K39)="vrai",LOWER($K39)="true"),BA39,L39),$AT39,fiscalyear,$E39,$F39,$X39,discount))) -> 0 | AV39: =IF($U39="",0,IF(MID($D39,1,1)="1",IF(OR(LOWER($K39)="vrai",LOWER($K39)="true"),popcorrect(BB39,$AT39,fiscalyear,fiscalyear,fiscalyear+timeperiod,$X39,discount),0),popcorrect(IF(OR(LOWER($K39)="vrai",LOWER($K39)="true"),BB39,M39),$AT39,fiscalyear,$E39,$F39,$X39,discount))) -> 0 | AW39: =IF($U39="",0,IF(MID($D39,1,1)="1",IF(OR(LOWER($K39)="vrai",LOWER($K39)="true"),popcorrect(BC39,$AT39,fiscalyear,fiscalyear,fiscalyear+timeperiod,$X39,discount),0),popcorrect(IF(OR(LOWER($K39)="vrai",LOWER($K39)="true"),BC39,N39),$AT39,fiscalyear,$E39,$F39,$X39,discount))) -> 0 | AX39: =IF($P39="",0,IF(MID($D39,1,1)="1",IF(OR(LOWER($K39)="vraiI",LOWER($K39)="true"),popcorrect(BD39,$AT39,fiscalyear,fiscalyear,fiscalyear+timeperiod,$R39,discount),0),popcorrect(IF(OR(LOWER($K39)="vrai",LOWER($K39)="true"),BD39,L39),$AT39,fiscalyear,$E39,$F39,$R39,discount))) -> 0 | AY39: =IF($P39="",0,IF(MID($D39,1,1)="1",IF(OR(LOWER($K39)="vraiI",LOWER($K39)="true"),popcorrect(BE39,$AT39,fiscalyear,fiscalyear,fiscalyear+timeperiod,$R39,discount),0),popcorrect(IF(OR(LOWER($K39)="vrai",LOWER($K39)="true"),BE39,M39),$AT39,fiscalyear,$E39,$F39,$R39,discount))) -> 0 | AZ39: =IF($P39="",0,IF(MID($D39,1,1)="1",IF(OR(LOWER($K39)="vraiI",LOWER($K39)="true"),popcorrect(BF39,$AT39,fiscalyear,fiscalyear,fiscalyear+timeperiod,$R39,discount),0),popcorrect(IF(OR(LOWER($K39)="vrai",LOWER($K39)="true"),BF39,N39),$AT39,fiscalyear,$E39,$F39,$R39,discount))) -> 0 | BA39: =IF(AND($AT39<>0,$X39>0),(L39*(1+PeriodRate($AT39,$X39))-L39)/(1+PeriodRate($AT39,$X39)),0) -> 0 | BB39: =IF(AND($AT39<>0,$X39>0),(M39*(1+PeriodRate($AT39,$X39))-M39)/(1+PeriodRate($AT39,$X39)),0) -> 0 | BC39: =IF(AND($AT39<>0,$X39>0),(N39*(1+PeriodRate($AT39,$X39))-N39)/(1+PeriodRate($AT39,$X39)),0) -> 0 | BD39: =IF(AND($AT39<>0,$R39>0),(L39*(1+PeriodRate($AT39,$R39))-L39)/(1+PeriodRate($AT39,$R39)),0) -> 0 | BE39: =IF(AND($AT39<>0,$R39>0),(M39*(1+PeriodRate($AT39,$R39))-M39)/(1+PeriodRate($AT39,$R39)),0) -> 0 | BF39: =IF(AND($AT39<>0,$R39>0),(N39*(1+PeriodRate($AT39,$R39))-N39)/(1+PeriodRate($AT39,$R39)),0) -> 0 | BN39: ='Admin Costs'!BG39 -> 32 | BO39: ='Admin Costs'!BH39 -> 
A40: 33 | L40: =IF(ISBLANK($H40),"",(IF(OR(MID($I40,1,1)="1",MID($I40,1,1)="3"),INDEX(Profile!$C$23:$E$35,MATCH($H40,Profile!$B$23:$B$35,0),1),0)*$J40)) ->  | M40: =IF(ISBLANK($H40),"",(IF(OR(MID($I40,1,1)="2",MID($I40,1,1)="3"),INDEX(Profile!$C$23:$E$35,MATCH($H40,Profile!$B$23:$B$35,0),2),0))*$J40) ->  | Y40: =IF(OR(ISBLANK(U40),ISBLANK(V40)),"",(IF(MID(U40,1,1)="E",Premium,overhead)+1)*INDEX('Labour Costs'!$C$4:$C$51,MATCH(MID(V40,1,2),'Labour Costs'!$F$4:$F$51,0))) ->  | AD40: =IF(ISNUMBER(IF(S40="",0,PeriodRate(discount,R40))),IF(S40="",0,PeriodRate(discount,R40)),0) -> 0 | AE40: 0 | AF40: =IF(ISNUMBER(IF(Y40="",0,PeriodRate(discount,X40))),IF(Y40="",0,PeriodRate(discount,X40)),0) -> 0 | AG40: 0 | AH40: 0 | AI40: 0 | AJ40: 0 | AL40: 0 | AM40: 0 | AN40: 0 | AP40: 0 | AQ40: 0 | AR40: 0 | AT40: =IF(H40<>"",OFFSET(Profile!$F$24,MATCH(H40,Profile!$B$25:$B$35,0),0),0) -> 0 | AU40: =IF($U40="",0,IF(MID($D40,1,1)="1",IF(OR(LOWER($K40)="vrai",LOWER($K40)="true"),popcorrect(BA40,$AT40,fiscalyear,fiscalyear,fiscalyear+timeperiod,$X40,discount),0),popcorrect(IF(OR(LOWER($K40)="vrai",LOWER($K40)="true"),BA40,L40),$AT40,fiscalyear,$E40,$F40,$X40,discount))) -> 0 | AV40: =IF($U40="",0,IF(MID($D40,1,1)="1",IF(OR(LOWER($K40)="vrai",LOWER($K40)="true"),popcorrect(BB40,$AT40,fiscalyear,fiscalyear,fiscalyear+timeperiod,$X40,discount),0),popcorrect(IF(OR(LOWER($K40)="vrai",LOWER($K40)="true"),BB40,M40),$AT40,fiscalyear,$E40,$F40,$X40,discount))) -> 0 | AW40: =IF($U40="",0,IF(MID($D40,1,1)="1",IF(OR(LOWER($K40)="vrai",LOWER($K40)="true"),popcorrect(BC40,$AT40,fiscalyear,fiscalyear,fiscalyear+timeperiod,$X40,discount),0),popcorrect(IF(OR(LOWER($K40)="vrai",LOWER($K40)="true"),BC40,N40),$AT40,fiscalyear,$E40,$F40,$X40,discount))) -> 0 | AX40: =IF($P40="",0,IF(MID($D40,1,1)="1",IF(OR(LOWER($K40)="vraiI",LOWER($K40)="true"),popcorrect(BD40,$AT40,fiscalyear,fiscalyear,fiscalyear+timeperiod,$R40,discount),0),popcorrect(IF(OR(LOWER($K40)="vrai",LOWER($K40)="true"),BD40,L40),$AT40,fiscalyear,$E40,$F40,$R40,discount))) -> 0 | AY40: =IF($P40="",0,IF(MID($D40,1,1)="1",IF(OR(LOWER($K40)="vraiI",LOWER($K40)="true"),popcorrect(BE40,$AT40,fiscalyear,fiscalyear,fiscalyear+timeperiod,$R40,discount),0),popcorrect(IF(OR(LOWER($K40)="vrai",LOWER($K40)="true"),BE40,M40),$AT40,fiscalyear,$E40,$F40,$R40,discount))) -> 0 | AZ40: =IF($P40="",0,IF(MID($D40,1,1)="1",IF(OR(LOWER($K40)="vraiI",LOWER($K40)="true"),popcorrect(BF40,$AT40,fiscalyear,fiscalyear,fiscalyear+timeperiod,$R40,discount),0),popcorrect(IF(OR(LOWER($K40)="vrai",LOWER($K40)="true"),BF40,N40),$AT40,fiscalyear,$E40,$F40,$R40,discount))) -> 0 | BA40: =IF(AND($AT40<>0,$X40>0),(L40*(1+PeriodRate($AT40,$X40))-L40)/(1+PeriodRate($AT40,$X40)),0) -> 0 | BB40: =IF(AND($AT40<>0,$X40>0),(M40*(1+PeriodRate($AT40,$X40))-M40)/(1+PeriodRate($AT40,$X40)),0) -> 0 | BC40: =IF(AND($AT40<>0,$X40>0),(N40*(1+PeriodRate($AT40,$X40))-N40)/(1+PeriodRate($AT40,$X40)),0) -> 0 | BD40: =IF(AND($AT40<>0,$R40>0),(L40*(1+PeriodRate($AT40,$R40))-L40)/(1+PeriodRate($AT40,$R40)),0) -> 0 | BE40: =IF(AND($AT40<>0,$R40>0),(M40*(1+PeriodRate($AT40,$R40))-M40)/(1+PeriodRate($AT40,$R40)),0) -> 0 | BF40: =IF(AND($AT40<>0,$R40>0),(N40*(1+PeriodRate($AT40,$R40))-N40)/(1+PeriodRate($AT40,$R40)),0) -> 0 | BN40: ='Admin Costs'!BG40 -> 33 | BO40: ='Admin Costs'!BH40 -> 
A41: 34 | L41: =IF(ISBLANK($H41),"",(IF(OR(MID($I41,1,1)="1",MID($I41,1,1)="3"),INDEX(Profile!$C$23:$E$35,MATCH($H41,Profile!$B$23:$B$35,0),1),0)*$J41)) ->  | M41: =IF(ISBLANK($H41),"",(IF(OR(MID($I41,1,1)="2",MID($I41,1,1)="3"),INDEX(Profile!$C$23:$E$35,MATCH($H41,Profile!$B$23:$B$35,0),2),0))*$J41) ->  | Y41: =IF(OR(ISBLANK(U41),ISBLANK(V41)),"",(IF(MID(U41,1,1)="E",Premium,overhead)+1)*INDEX('Labour Costs'!$C$4:$C$51,MATCH(MID(V41,1,2),'Labour Costs'!$F$4:$F$51,0))) ->  | AD41: =IF(ISNUMBER(IF(S41="",0,PeriodRate(discount,R41))),IF(S41="",0,PeriodRate(discount,R41)),0) -> 0 | AE41: 0 | AF41: =IF(ISNUMBER(IF(Y41="",0,PeriodRate(discount,X41))),IF(Y41="",0,PeriodRate(discount,X41)),0) -> 0 | AG41: 0 | AH41: 0 | AI41: 0 | AJ41: 0 | AL41: 0 | AM41: 0 | AN41: 0 | AP41: 0 | AQ41: 0 | AR41: 0 | AT41: =IF(H41<>"",OFFSET(Profile!$F$24,MATCH(H41,Profile!$B$25:$B$35,0),0),0) -> 0 | AU41: =IF($U41="",0,IF(MID($D41,1,1)="1",IF(OR(LOWER($K41)="vrai",LOWER($K41)="true"),popcorrect(BA41,$AT41,fiscalyear,fiscalyear,fiscalyear+timeperiod,$X41,discount),0),popcorrect(IF(OR(LOWER($K41)="vrai",LOWER($K41)="true"),BA41,L41),$AT41,fiscalyear,$E41,$F41,$X41,discount))) -> 0 | AV41: =IF($U41="",0,IF(MID($D41,1,1)="1",IF(OR(LOWER($K41)="vrai",LOWER($K41)="true"),popcorrect(BB41,$AT41,fiscalyear,fiscalyear,fiscalyear+timeperiod,$X41,discount),0),popcorrect(IF(OR(LOWER($K41)="vrai",LOWER($K41)="true"),BB41,M41),$AT41,fiscalyear,$E41,$F41,$X41,discount))) -> 0 | AW41: =IF($U41="",0,IF(MID($D41,1,1)="1",IF(OR(LOWER($K41)="vrai",LOWER($K41)="true"),popcorrect(BC41,$AT41,fiscalyear,fiscalyear,fiscalyear+timeperiod,$X41,discount),0),popcorrect(IF(OR(LOWER($K41)="vrai",LOWER($K41)="true"),BC41,N41),$AT41,fiscalyear,$E41,$F41,$X41,discount))) -> 0 | AX41: =IF($P41="",0,IF(MID($D41,1,1)="1",IF(OR(LOWER($K41)="vraiI",LOWER($K41)="true"),popcorrect(BD41,$AT41,fiscalyear,fiscalyear,fiscalyear+timeperiod,$R41,discount),0),popcorrect(IF(OR(LOWER($K41)="vrai",LOWER($K41)="true"),BD41,L41),$AT41,fiscalyear,$E41,$F41,$R41,discount))) -> 0 | AY41: =IF($P41="",0,IF(MID($D41,1,1)="1",IF(OR(LOWER($K41)="vraiI",LOWER($K41)="true"),popcorrect(BE41,$AT41,fiscalyear,fiscalyear,fiscalyear+timeperiod,$R41,discount),0),popcorrect(IF(OR(LOWER($K41)="vrai",LOWER($K41)="true"),BE41,M41),$AT41,fiscalyear,$E41,$F41,$R41,discount))) -> 0 | AZ41: =IF($P41="",0,IF(MID($D41,1,1)="1",IF(OR(LOWER($K41)="vraiI",LOWER($K41)="true"),popcorrect(BF41,$AT41,fiscalyear,fiscalyear,fiscalyear+timeperiod,$R41,discount),0),popcorrect(IF(OR(LOWER($K41)="vrai",LOWER($K41)="true"),BF41,N41),$AT41,fiscalyear,$E41,$F41,$R41,discount))) -> 0 | BA41: =IF(AND($AT41<>0,$X41>0),(L41*(1+PeriodRate($AT41,$X41))-L41)/(1+PeriodRate($AT41,$X41)),0) -> 0 | BB41: =IF(AND($AT41<>0,$X41>0),(M41*(1+PeriodRate($AT41,$X41))-M41)/(1+PeriodRate($AT41,$X41)),0) -> 0 | BC41: =IF(AND($AT41<>0,$X41>0),(N41*(1+PeriodRate($AT41,$X41))-N41)/(1+PeriodRate($AT41,$X41)),0) -> 0 | BD41: =IF(AND($AT41<>0,$R41>0),(L41*(1+PeriodRate($AT41,$R41))-L41)/(1+PeriodRate($AT41,$R41)),0) -> 0 | BE41: =IF(AND($AT41<>0,$R41>0),(M41*(1+PeriodRate($AT41,$R41))-M41)/(1+PeriodRate($AT41,$R41)),0) -> 0 | BF41: =IF(AND($AT41<>0,$R41>0),(N41*(1+PeriodRate($AT41,$R41))-N41)/(1+PeriodRate($AT41,$R41)),0) -> 0 | BN41: ='Admin Costs'!BG41 -> 34 | BO41: ='Admin Costs'!BH41 -> 
A42: 35 | L42: =IF(ISBLANK($H42),"",(IF(OR(MID($I42,1,1)="1",MID($I42,1,1)="3"),INDEX(Profile!$C$23:$E$35,MATCH($H42,Profile!$B$23:$B$35,0),1),0)*$J42)) ->  | M42: =IF(ISBLANK($H42),"",(IF(OR(MID($I42,1,1)="2",MID($I42,1,1)="3"),INDEX(Profile!$C$23:$E$35,MATCH($H42,Profile!$B$23:$B$35,0),2),0))*$J42) ->  | Y42: =IF(OR(ISBLANK(U42),ISBLANK(V42)),"",(IF(MID(U42,1,1)="E",Premium,overhead)+1)*INDEX('Labour Costs'!$C$4:$C$51,MATCH(MID(V42,1,2),'Labour Costs'!$F$4:$F$51,0))) ->  | AD42: =IF(ISNUMBER(IF(S42="",0,PeriodRate(discount,R42))),IF(S42="",0,PeriodRate(discount,R42)),0) -> 0 | AE42: 0 | AF42: =IF(ISNUMBER(IF(Y42="",0,PeriodRate(discount,X42))),IF(Y42="",0,PeriodRate(discount,X42)),0) -> 0 | AG42: 0 | AH42: 0 | AI42: 0 | AJ42: 0 | AL42: 0 | AM42: 0 | AN42: 0 | AP42: 0 | AQ42: 0 | AR42: 0 | AT42: =IF(H42<>"",OFFSET(Profile!$F$24,MATCH(H42,Profile!$B$25:$B$35,0),0),0) -> 0 | AU42: =IF($U42="",0,IF(MID($D42,1,1)="1",IF(OR(LOWER($K42)="vrai",LOWER($K42)="true"),popcorrect(BA42,$AT42,fiscalyear,fiscalyear,fiscalyear+timeperiod,$X42,discount),0),popcorrect(IF(OR(LOWER($K42)="vrai",LOWER($K42)="true"),BA42,L42),$AT42,fiscalyear,$E42,$F42,$X42,discount))) -> 0 | AV42: =IF($U42="",0,IF(MID($D42,1,1)="1",IF(OR(LOWER($K42)="vrai",LOWER($K42)="true"),popcorrect(BB42,$AT42,fiscalyear,fiscalyear,fiscalyear+timeperiod,$X42,discount),0),popcorrect(IF(OR(LOWER($K42)="vrai",LOWER($K42)="true"),BB42,M42),$AT42,fiscalyear,$E42,$F42,$X42,discount))) -> 0 | AW42: =IF($U42="",0,IF(MID($D42,1,1)="1",IF(OR(LOWER($K42)="vrai",LOWER($K42)="true"),popcorrect(BC42,$AT42,fiscalyear,fiscalyear,fiscalyear+timeperiod,$X42,discount),0),popcorrect(IF(OR(LOWER($K42)="vrai",LOWER($K42)="true"),BC42,N42),$AT42,fiscalyear,$E42,$F42,$X42,discount))) -> 0 | AX42: =IF($P42="",0,IF(MID($D42,1,1)="1",IF(OR(LOWER($K42)="vraiI",LOWER($K42)="true"),popcorrect(BD42,$AT42,fiscalyear,fiscalyear,fiscalyear+timeperiod,$R42,discount),0),popcorrect(IF(OR(LOWER($K42)="vrai",LOWER($K42)="true"),BD42,L42),$AT42,fiscalyear,$E42,$F42,$R42,discount))) -> 0 | AY42: =IF($P42="",0,IF(MID($D42,1,1)="1",IF(OR(LOWER($K42)="vraiI",LOWER($K42)="true"),popcorrect(BE42,$AT42,fiscalyear,fiscalyear,fiscalyear+timeperiod,$R42,discount),0),popcorrect(IF(OR(LOWER($K42)="vrai",LOWER($K42)="true"),BE42,M42),$AT42,fiscalyear,$E42,$F42,$R42,discount))) -> 0 | AZ42: =IF($P42="",0,IF(MID($D42,1,1)="1",IF(OR(LOWER($K42)="vraiI",LOWER($K42)="true"),popcorrect(BF42,$AT42,fiscalyear,fiscalyear,fiscalyear+timeperiod,$R42,discount),0),popcorrect(IF(OR(LOWER($K42)="vrai",LOWER($K42)="true"),BF42,N42),$AT42,fiscalyear,$E42,$F42,$R42,discount))) -> 0 | BA42: =IF(AND($AT42<>0,$X42>0),(L42*(1+PeriodRate($AT42,$X42))-L42)/(1+PeriodRate($AT42,$X42)),0) -> 0 | BB42: =IF(AND($AT42<>0,$X42>0),(M42*(1+PeriodRate($AT42,$X42))-M42)/(1+PeriodRate($AT42,$X42)),0) -> 0 | BC42: =IF(AND($AT42<>0,$X42>0),(N42*(1+PeriodRate($AT42,$X42))-N42)/(1+PeriodRate($AT42,$X42)),0) -> 0 | BD42: =IF(AND($AT42<>0,$R42>0),(L42*(1+PeriodRate($AT42,$R42))-L42)/(1+PeriodRate($AT42,$R42)),0) -> 0 | BE42: =IF(AND($AT42<>0,$R42>0),(M42*(1+PeriodRate($AT42,$R42))-M42)/(1+PeriodRate($AT42,$R42)),0) -> 0 | BF42: =IF(AND($AT42<>0,$R42>0),(N42*(1+PeriodRate($AT42,$R42))-N42)/(1+PeriodRate($AT42,$R42)),0) -> 0 | BN42: ='Admin Costs'!BG42 -> 35 | BO42: ='Admin Costs'!BH42 -> 
A43: 36 | L43: =IF(ISBLANK($H43),"",(IF(OR(MID($I43,1,1)="1",MID($I43,1,1)="3"),INDEX(Profile!$C$23:$E$35,MATCH($H43,Profile!$B$23:$B$35,0),1),0)*$J43)) ->  | M43: =IF(ISBLANK($H43),"",(IF(OR(MID($I43,1,1)="2",MID($I43,1,1)="3"),INDEX(Profile!$C$23:$E$35,MATCH($H43,Profile!$B$23:$B$35,0),2),0))*$J43) ->  | Y43: =IF(OR(ISBLANK(U43),ISBLANK(V43)),"",(IF(MID(U43,1,1)="E",Premium,overhead)+1)*INDEX('Labour Costs'!$C$4:$C$51,MATCH(MID(V43,1,2),'Labour Costs'!$F$4:$F$51,0))) ->  | AD43: =IF(ISNUMBER(IF(S43="",0,PeriodRate(discount,R43))),IF(S43="",0,PeriodRate(discount,R43)),0) -> 0 | AE43: 0 | AF43: =IF(ISNUMBER(IF(Y43="",0,PeriodRate(discount,X43))),IF(Y43="",0,PeriodRate(discount,X43)),0) -> 0 | AG43: 0 | AH43: 0 | AI43: 0 | AJ43: 0 | AL43: 0 | AM43: 0 | AN43: 0 | AP43: 0 | AQ43: 0 | AR43: 0 | AT43: =IF(H43<>"",OFFSET(Profile!$F$24,MATCH(H43,Profile!$B$25:$B$35,0),0),0) -> 0 | AU43: =IF($U43="",0,IF(MID($D43,1,1)="1",IF(OR(LOWER($K43)="vrai",LOWER($K43)="true"),popcorrect(BA43,$AT43,fiscalyear,fiscalyear,fiscalyear+timeperiod,$X43,discount),0),popcorrect(IF(OR(LOWER($K43)="vrai",LOWER($K43)="true"),BA43,L43),$AT43,fiscalyear,$E43,$F43,$X43,discount))) -> 0 | AV43: =IF($U43="",0,IF(MID($D43,1,1)="1",IF(OR(LOWER($K43)="vrai",LOWER($K43)="true"),popcorrect(BB43,$AT43,fiscalyear,fiscalyear,fiscalyear+timeperiod,$X43,discount),0),popcorrect(IF(OR(LOWER($K43)="vrai",LOWER($K43)="true"),BB43,M43),$AT43,fiscalyear,$E43,$F43,$X43,discount))) -> 0 | AW43: =IF($U43="",0,IF(MID($D43,1,1)="1",IF(OR(LOWER($K43)="vrai",LOWER($K43)="true"),popcorrect(BC43,$AT43,fiscalyear,fiscalyear,fiscalyear+timeperiod,$X43,discount),0),popcorrect(IF(OR(LOWER($K43)="vrai",LOWER($K43)="true"),BC43,N43),$AT43,fiscalyear,$E43,$F43,$X43,discount))) -> 0 | AX43: =IF($P43="",0,IF(MID($D43,1,1)="1",IF(OR(LOWER($K43)="vraiI",LOWER($K43)="true"),popcorrect(BD43,$AT43,fiscalyear,fiscalyear,fiscalyear+timeperiod,$R43,discount),0),popcorrect(IF(OR(LOWER($K43)="vrai",LOWER($K43)="true"),BD43,L43),$AT43,fiscalyear,$E43,$F43,$R43,discount))) -> 0 | AY43: =IF($P43="",0,IF(MID($D43,1,1)="1",IF(OR(LOWER($K43)="vraiI",LOWER($K43)="true"),popcorrect(BE43,$AT43,fiscalyear,fiscalyear,fiscalyear+timeperiod,$R43,discount),0),popcorrect(IF(OR(LOWER($K43)="vrai",LOWER($K43)="true"),BE43,M43),$AT43,fiscalyear,$E43,$F43,$R43,discount))) -> 0 | AZ43: =IF($P43="",0,IF(MID($D43,1,1)="1",IF(OR(LOWER($K43)="vraiI",LOWER($K43)="true"),popcorrect(BF43,$AT43,fiscalyear,fiscalyear,fiscalyear+timeperiod,$R43,discount),0),popcorrect(IF(OR(LOWER($K43)="vrai",LOWER($K43)="true"),BF43,N43),$AT43,fiscalyear,$E43,$F43,$R43,discount))) -> 0 | BA43: =IF(AND($AT43<>0,$X43>0),(L43*(1+PeriodRate($AT43,$X43))-L43)/(1+PeriodRate($AT43,$X43)),0) -> 0 | BB43: =IF(AND($AT43<>0,$X43>0),(M43*(1+PeriodRate($AT43,$X43))-M43)/(1+PeriodRate($AT43,$X43)),0) -> 0 | BC43: =IF(AND($AT43<>0,$X43>0),(N43*(1+PeriodRate($AT43,$X43))-N43)/(1+PeriodRate($AT43,$X43)),0) -> 0 | BD43: =IF(AND($AT43<>0,$R43>0),(L43*(1+PeriodRate($AT43,$R43))-L43)/(1+PeriodRate($AT43,$R43)),0) -> 0 | BE43: =IF(AND($AT43<>0,$R43>0),(M43*(1+PeriodRate($AT43,$R43))-M43)/(1+PeriodRate($AT43,$R43)),0) -> 0 | BF43: =IF(AND($AT43<>0,$R43>0),(N43*(1+PeriodRate($AT43,$R43))-N43)/(1+PeriodRate($AT43,$R43)),0) -> 0 | BN43: ='Admin Costs'!BG43 -> 36 | BO43: ='Admin Costs'!BH43 -> 
A44: 37 | L44: =IF(ISBLANK($H44),"",(IF(OR(MID($I44,1,1)="1",MID($I44,1,1)="3"),INDEX(Profile!$C$23:$E$35,MATCH($H44,Profile!$B$23:$B$35,0),1),0)*$J44)) ->  | M44: =IF(ISBLANK($H44),"",(IF(OR(MID($I44,1,1)="2",MID($I44,1,1)="3"),INDEX(Profile!$C$23:$E$35,MATCH($H44,Profile!$B$23:$B$35,0),2),0))*$J44) ->  | Y44: =IF(OR(ISBLANK(U44),ISBLANK(V44)),"",(IF(MID(U44,1,1)="E",Premium,overhead)+1)*INDEX('Labour Costs'!$C$4:$C$51,MATCH(MID(V44,1,2),'Labour Costs'!$F$4:$F$51,0))) ->  | AD44: =IF(ISNUMBER(IF(S44="",0,PeriodRate(discount,R44))),IF(S44="",0,PeriodRate(discount,R44)),0) -> 0 | AE44: 0 | AF44: =IF(ISNUMBER(IF(Y44="",0,PeriodRate(discount,X44))),IF(Y44="",0,PeriodRate(discount,X44)),0) -> 0 | AG44: 0 | AH44: 0 | AI44: 0 | AJ44: 0 | AL44: 0 | AM44: 0 | AN44: 0 | AP44: 0 | AQ44: 0 | AR44: 0 | AT44: =IF(H44<>"",OFFSET(Profile!$F$24,MATCH(H44,Profile!$B$25:$B$35,0),0),0) -> 0 | AU44: =IF($U44="",0,IF(MID($D44,1,1)="1",IF(OR(LOWER($K44)="vrai",LOWER($K44)="true"),popcorrect(BA44,$AT44,fiscalyear,fiscalyear,fiscalyear+timeperiod,$X44,discount),0),popcorrect(IF(OR(LOWER($K44)="vrai",LOWER($K44)="true"),BA44,L44),$AT44,fiscalyear,$E44,$F44,$X44,discount))) -> 0 | AV44: =IF($U44="",0,IF(MID($D44,1,1)="1",IF(OR(LOWER($K44)="vrai",LOWER($K44)="true"),popcorrect(BB44,$AT44,fiscalyear,fiscalyear,fiscalyear+timeperiod,$X44,discount),0),popcorrect(IF(OR(LOWER($K44)="vrai",LOWER($K44)="true"),BB44,M44),$AT44,fiscalyear,$E44,$F44,$X44,discount))) -> 0 | AW44: =IF($U44="",0,IF(MID($D44,1,1)="1",IF(OR(LOWER($K44)="vrai",LOWER($K44)="true"),popcorrect(BC44,$AT44,fiscalyear,fiscalyear,fiscalyear+timeperiod,$X44,discount),0),popcorrect(IF(OR(LOWER($K44)="vrai",LOWER($K44)="true"),BC44,N44),$AT44,fiscalyear,$E44,$F44,$X44,discount))) -> 0 | AX44: =IF($P44="",0,IF(MID($D44,1,1)="1",IF(OR(LOWER($K44)="vraiI",LOWER($K44)="true"),popcorrect(BD44,$AT44,fiscalyear,fiscalyear,fiscalyear+timeperiod,$R44,discount),0),popcorrect(IF(OR(LOWER($K44)="vrai",LOWER($K44)="true"),BD44,L44),$AT44,fiscalyear,$E44,$F44,$R44,discount))) -> 0 | AY44: =IF($P44="",0,IF(MID($D44,1,1)="1",IF(OR(LOWER($K44)="vraiI",LOWER($K44)="true"),popcorrect(BE44,$AT44,fiscalyear,fiscalyear,fiscalyear+timeperiod,$R44,discount),0),popcorrect(IF(OR(LOWER($K44)="vrai",LOWER($K44)="true"),BE44,M44),$AT44,fiscalyear,$E44,$F44,$R44,discount))) -> 0 | AZ44: =IF($P44="",0,IF(MID($D44,1,1)="1",IF(OR(LOWER($K44)="vraiI",LOWER($K44)="true"),popcorrect(BF44,$AT44,fiscalyear,fiscalyear,fiscalyear+timeperiod,$R44,discount),0),popcorrect(IF(OR(LOWER($K44)="vrai",LOWER($K44)="true"),BF44,N44),$AT44,fiscalyear,$E44,$F44,$R44,discount))) -> 0 | BA44: =IF(AND($AT44<>0,$X44>0),(L44*(1+PeriodRate($AT44,$X44))-L44)/(1+PeriodRate($AT44,$X44)),0) -> 0 | BB44: =IF(AND($AT44<>0,$X44>0),(M44*(1+PeriodRate($AT44,$X44))-M44)/(1+PeriodRate($AT44,$X44)),0) -> 0 | BC44: =IF(AND($AT44<>0,$X44>0),(N44*(1+PeriodRate($AT44,$X44))-N44)/(1+PeriodRate($AT44,$X44)),0) -> 0 | BD44: =IF(AND($AT44<>0,$R44>0),(L44*(1+PeriodRate($AT44,$R44))-L44)/(1+PeriodRate($AT44,$R44)),0) -> 0 | BE44: =IF(AND($AT44<>0,$R44>0),(M44*(1+PeriodRate($AT44,$R44))-M44)/(1+PeriodRate($AT44,$R44)),0) -> 0 | BF44: =IF(AND($AT44<>0,$R44>0),(N44*(1+PeriodRate($AT44,$R44))-N44)/(1+PeriodRate($AT44,$R44)),0) -> 0 | BN44: ='Admin Costs'!BG44 -> 37 | BO44: ='Admin Costs'!BH44 -> 
A45: 38 | L45: =IF(ISBLANK($H45),"",(IF(OR(MID($I45,1,1)="1",MID($I45,1,1)="3"),INDEX(Profile!$C$23:$E$35,MATCH($H45,Profile!$B$23:$B$35,0),1),0)*$J45)) ->  | M45: =IF(ISBLANK($H45),"",(IF(OR(MID($I45,1,1)="2",MID($I45,1,1)="3"),INDEX(Profile!$C$23:$E$35,MATCH($H45,Profile!$B$23:$B$35,0),2),0))*$J45) ->  | Y45: =IF(OR(ISBLANK(U45),ISBLANK(V45)),"",(IF(MID(U45,1,1)="E",Premium,overhead)+1)*INDEX('Labour Costs'!$C$4:$C$51,MATCH(MID(V45,1,2),'Labour Costs'!$F$4:$F$51,0))) ->  | AD45: =IF(ISNUMBER(IF(S45="",0,PeriodRate(discount,R45))),IF(S45="",0,PeriodRate(discount,R45)),0) -> 0 | AE45: 0 | AF45: =IF(ISNUMBER(IF(Y45="",0,PeriodRate(discount,X45))),IF(Y45="",0,PeriodRate(discount,X45)),0) -> 0 | AG45: 0 | AH45: 0 | AI45: 0 | AJ45: 0 | AL45: 0 | AM45: 0 | AN45: 0 | AP45: 0 | AQ45: 0 | AR45: 0 | AT45: =IF(H45<>"",OFFSET(Profile!$F$24,MATCH(H45,Profile!$B$25:$B$35,0),0),0) -> 0 | AU45: =IF($U45="",0,IF(MID($D45,1,1)="1",IF(OR(LOWER($K45)="vrai",LOWER($K45)="true"),popcorrect(BA45,$AT45,fiscalyear,fiscalyear,fiscalyear+timeperiod,$X45,discount),0),popcorrect(IF(OR(LOWER($K45)="vrai",LOWER($K45)="true"),BA45,L45),$AT45,fiscalyear,$E45,$F45,$X45,discount))) -> 0 | AV45: =IF($U45="",0,IF(MID($D45,1,1)="1",IF(OR(LOWER($K45)="vrai",LOWER($K45)="true"),popcorrect(BB45,$AT45,fiscalyear,fiscalyear,fiscalyear+timeperiod,$X45,discount),0),popcorrect(IF(OR(LOWER($K45)="vrai",LOWER($K45)="true"),BB45,M45),$AT45,fiscalyear,$E45,$F45,$X45,discount))) -> 0 | AW45: =IF($U45="",0,IF(MID($D45,1,1)="1",IF(OR(LOWER($K45)="vrai",LOWER($K45)="true"),popcorrect(BC45,$AT45,fiscalyear,fiscalyear,fiscalyear+timeperiod,$X45,discount),0),popcorrect(IF(OR(LOWER($K45)="vrai",LOWER($K45)="true"),BC45,N45),$AT45,fiscalyear,$E45,$F45,$X45,discount))) -> 0 | AX45: =IF($P45="",0,IF(MID($D45,1,1)="1",IF(OR(LOWER($K45)="vraiI",LOWER($K45)="true"),popcorrect(BD45,$AT45,fiscalyear,fiscalyear,fiscalyear+timeperiod,$R45,discount),0),popcorrect(IF(OR(LOWER($K45)="vrai",LOWER($K45)="true"),BD45,L45),$AT45,fiscalyear,$E45,$F45,$R45,discount))) -> 0 | AY45: =IF($P45="",0,IF(MID($D45,1,1)="1",IF(OR(LOWER($K45)="vraiI",LOWER($K45)="true"),popcorrect(BE45,$AT45,fiscalyear,fiscalyear,fiscalyear+timeperiod,$R45,discount),0),popcorrect(IF(OR(LOWER($K45)="vrai",LOWER($K45)="true"),BE45,M45),$AT45,fiscalyear,$E45,$F45,$R45,discount))) -> 0 | AZ45: =IF($P45="",0,IF(MID($D45,1,1)="1",IF(OR(LOWER($K45)="vraiI",LOWER($K45)="true"),popcorrect(BF45,$AT45,fiscalyear,fiscalyear,fiscalyear+timeperiod,$R45,discount),0),popcorrect(IF(OR(LOWER($K45)="vrai",LOWER($K45)="true"),BF45,N45),$AT45,fiscalyear,$E45,$F45,$R45,discount))) -> 0 | BA45: =IF(AND($AT45<>0,$X45>0),(L45*(1+PeriodRate($AT45,$X45))-L45)/(1+PeriodRate($AT45,$X45)),0) -> 0 | BB45: =IF(AND($AT45<>0,$X45>0),(M45*(1+PeriodRate($AT45,$X45))-M45)/(1+PeriodRate($AT45,$X45)),0) -> 0 | BC45: =IF(AND($AT45<>0,$X45>0),(N45*(1+PeriodRate($AT45,$X45))-N45)/(1+PeriodRate($AT45,$X45)),0) -> 0 | BD45: =IF(AND($AT45<>0,$R45>0),(L45*(1+PeriodRate($AT45,$R45))-L45)/(1+PeriodRate($AT45,$R45)),0) -> 0 | BE45: =IF(AND($AT45<>0,$R45>0),(M45*(1+PeriodRate($AT45,$R45))-M45)/(1+PeriodRate($AT45,$R45)),0) -> 0 | BF45: =IF(AND($AT45<>0,$R45>0),(N45*(1+PeriodRate($AT45,$R45))-N45)/(1+PeriodRate($AT45,$R45)),0) -> 0 | BN45: ='Admin Costs'!BG45 -> 38 | BO45: ='Admin Costs'!BH45 -> 
A46: 39 | L46: =IF(ISBLANK($H46),"",(IF(OR(MID($I46,1,1)="1",MID($I46,1,1)="3"),INDEX(Profile!$C$23:$E$35,MATCH($H46,Profile!$B$23:$B$35,0),1),0)*$J46)) ->  | M46: =IF(ISBLANK($H46),"",(IF(OR(MID($I46,1,1)="2",MID($I46,1,1)="3"),INDEX(Profile!$C$23:$E$35,MATCH($H46,Profile!$B$23:$B$35,0),2),0))*$J46) ->  | Y46: =IF(OR(ISBLANK(U46),ISBLANK(V46)),"",(IF(MID(U46,1,1)="E",Premium,overhead)+1)*INDEX('Labour Costs'!$C$4:$C$51,MATCH(MID(V46,1,2),'Labour Costs'!$F$4:$F$51,0))) ->  | AD46: =IF(ISNUMBER(IF(S46="",0,PeriodRate(discount,R46))),IF(S46="",0,PeriodRate(discount,R46)),0) -> 0 | AE46: 0 | AF46: =IF(ISNUMBER(IF(Y46="",0,PeriodRate(discount,X46))),IF(Y46="",0,PeriodRate(discount,X46)),0) -> 0 | AG46: 0 | AH46: 0 | AI46: 0 | AJ46: 0 | AL46: 0 | AM46: 0 | AN46: 0 | AP46: 0 | AQ46: 0 | AR46: 0 | AT46: =IF(H46<>"",OFFSET(Profile!$F$24,MATCH(H46,Profile!$B$25:$B$35,0),0),0) -> 0 | AU46: =IF($U46="",0,IF(MID($D46,1,1)="1",IF(OR(LOWER($K46)="vrai",LOWER($K46)="true"),popcorrect(BA46,$AT46,fiscalyear,fiscalyear,fiscalyear+timeperiod,$X46,discount),0),popcorrect(IF(OR(LOWER($K46)="vrai",LOWER($K46)="true"),BA46,L46),$AT46,fiscalyear,$E46,$F46,$X46,discount))) -> 0 | AV46: =IF($U46="",0,IF(MID($D46,1,1)="1",IF(OR(LOWER($K46)="vrai",LOWER($K46)="true"),popcorrect(BB46,$AT46,fiscalyear,fiscalyear,fiscalyear+timeperiod,$X46,discount),0),popcorrect(IF(OR(LOWER($K46)="vrai",LOWER($K46)="true"),BB46,M46),$AT46,fiscalyear,$E46,$F46,$X46,discount))) -> 0 | AW46: =IF($U46="",0,IF(MID($D46,1,1)="1",IF(OR(LOWER($K46)="vrai",LOWER($K46)="true"),popcorrect(BC46,$AT46,fiscalyear,fiscalyear,fiscalyear+timeperiod,$X46,discount),0),popcorrect(IF(OR(LOWER($K46)="vrai",LOWER($K46)="true"),BC46,N46),$AT46,fiscalyear,$E46,$F46,$X46,discount))) -> 0 | AX46: =IF($P46="",0,IF(MID($D46,1,1)="1",IF(OR(LOWER($K46)="vraiI",LOWER($K46)="true"),popcorrect(BD46,$AT46,fiscalyear,fiscalyear,fiscalyear+timeperiod,$R46,discount),0),popcorrect(IF(OR(LOWER($K46)="vrai",LOWER($K46)="true"),BD46,L46),$AT46,fiscalyear,$E46,$F46,$R46,discount))) -> 0 | AY46: =IF($P46="",0,IF(MID($D46,1,1)="1",IF(OR(LOWER($K46)="vraiI",LOWER($K46)="true"),popcorrect(BE46,$AT46,fiscalyear,fiscalyear,fiscalyear+timeperiod,$R46,discount),0),popcorrect(IF(OR(LOWER($K46)="vrai",LOWER($K46)="true"),BE46,M46),$AT46,fiscalyear,$E46,$F46,$R46,discount))) -> 0 | AZ46: =IF($P46="",0,IF(MID($D46,1,1)="1",IF(OR(LOWER($K46)="vraiI",LOWER($K46)="true"),popcorrect(BF46,$AT46,fiscalyear,fiscalyear,fiscalyear+timeperiod,$R46,discount),0),popcorrect(IF(OR(LOWER($K46)="vrai",LOWER($K46)="true"),BF46,N46),$AT46,fiscalyear,$E46,$F46,$R46,discount))) -> 0 | BA46: =IF(AND($AT46<>0,$X46>0),(L46*(1+PeriodRate($AT46,$X46))-L46)/(1+PeriodRate($AT46,$X46)),0) -> 0 | BB46: =IF(AND($AT46<>0,$X46>0),(M46*(1+PeriodRate($AT46,$X46))-M46)/(1+PeriodRate($AT46,$X46)),0) -> 0 | BC46: =IF(AND($AT46<>0,$X46>0),(N46*(1+PeriodRate($AT46,$X46))-N46)/(1+PeriodRate($AT46,$X46)),0) -> 0 | BD46: =IF(AND($AT46<>0,$R46>0),(L46*(1+PeriodRate($AT46,$R46))-L46)/(1+PeriodRate($AT46,$R46)),0) -> 0 | BE46: =IF(AND($AT46<>0,$R46>0),(M46*(1+PeriodRate($AT46,$R46))-M46)/(1+PeriodRate($AT46,$R46)),0) -> 0 | BF46: =IF(AND($AT46<>0,$R46>0),(N46*(1+PeriodRate($AT46,$R46))-N46)/(1+PeriodRate($AT46,$R46)),0) -> 0 | BN46: ='Admin Costs'!BG46 -> 39 | BO46: ='Admin Costs'!BH46 -> 
A47: 40 | L47: =IF(ISBLANK($H47),"",(IF(OR(MID($I47,1,1)="1",MID($I47,1,1)="3"),INDEX(Profile!$C$23:$E$35,MATCH($H47,Profile!$B$23:$B$35,0),1),0)*$J47)) ->  | M47: =IF(ISBLANK($H47),"",(IF(OR(MID($I47,1,1)="2",MID($I47,1,1)="3"),INDEX(Profile!$C$23:$E$35,MATCH($H47,Profile!$B$23:$B$35,0),2),0))*$J47) ->  | Y47: =IF(OR(ISBLANK(U47),ISBLANK(V47)),"",(IF(MID(U47,1,1)="E",Premium,overhead)+1)*INDEX('Labour Costs'!$C$4:$C$51,MATCH(MID(V47,1,2),'Labour Costs'!$F$4:$F$51,0))) ->  | AD47: =IF(ISNUMBER(IF(S47="",0,PeriodRate(discount,R47))),IF(S47="",0,PeriodRate(discount,R47)),0) -> 0 | AE47: 0 | AF47: =IF(ISNUMBER(IF(Y47="",0,PeriodRate(discount,X47))),IF(Y47="",0,PeriodRate(discount,X47)),0) -> 0 | AG47: 0 | AH47: 0 | AI47: 0 | AJ47: 0 | AL47: 0 | AM47: 0 | AN47: 0 | AP47: 0 | AQ47: 0 | AR47: 0 | AT47: =IF(H47<>"",OFFSET(Profile!$F$24,MATCH(H47,Profile!$B$25:$B$35,0),0),0) -> 0 | AU47: =IF($U47="",0,IF(MID($D47,1,1)="1",IF(OR(LOWER($K47)="vrai",LOWER($K47)="true"),popcorrect(BA47,$AT47,fiscalyear,fiscalyear,fiscalyear+timeperiod,$X47,discount),0),popcorrect(IF(OR(LOWER($K47)="vrai",LOWER($K47)="true"),BA47,L47),$AT47,fiscalyear,$E47,$F47,$X47,discount))) -> 0 | AV47: =IF($U47="",0,IF(MID($D47,1,1)="1",IF(OR(LOWER($K47)="vrai",LOWER($K47)="true"),popcorrect(BB47,$AT47,fiscalyear,fiscalyear,fiscalyear+timeperiod,$X47,discount),0),popcorrect(IF(OR(LOWER($K47)="vrai",LOWER($K47)="true"),BB47,M47),$AT47,fiscalyear,$E47,$F47,$X47,discount))) -> 0 | AW47: =IF($U47="",0,IF(MID($D47,1,1)="1",IF(OR(LOWER($K47)="vrai",LOWER($K47)="true"),popcorrect(BC47,$AT47,fiscalyear,fiscalyear,fiscalyear+timeperiod,$X47,discount),0),popcorrect(IF(OR(LOWER($K47)="vrai",LOWER($K47)="true"),BC47,N47),$AT47,fiscalyear,$E47,$F47,$X47,discount))) -> 0 | AX47: =IF($P47="",0,IF(MID($D47,1,1)="1",IF(OR(LOWER($K47)="vraiI",LOWER($K47)="true"),popcorrect(BD47,$AT47,fiscalyear,fiscalyear,fiscalyear+timeperiod,$R47,discount),0),popcorrect(IF(OR(LOWER($K47)="vrai",LOWER($K47)="true"),BD47,L47),$AT47,fiscalyear,$E47,$F47,$R47,discount))) -> 0 | AY47: =IF($P47="",0,IF(MID($D47,1,1)="1",IF(OR(LOWER($K47)="vraiI",LOWER($K47)="true"),popcorrect(BE47,$AT47,fiscalyear,fiscalyear,fiscalyear+timeperiod,$R47,discount),0),popcorrect(IF(OR(LOWER($K47)="vrai",LOWER($K47)="true"),BE47,M47),$AT47,fiscalyear,$E47,$F47,$R47,discount))) -> 0 | AZ47: =IF($P47="",0,IF(MID($D47,1,1)="1",IF(OR(LOWER($K47)="vraiI",LOWER($K47)="true"),popcorrect(BF47,$AT47,fiscalyear,fiscalyear,fiscalyear+timeperiod,$R47,discount),0),popcorrect(IF(OR(LOWER($K47)="vrai",LOWER($K47)="true"),BF47,N47),$AT47,fiscalyear,$E47,$F47,$R47,discount))) -> 0 | BA47: =IF(AND($AT47<>0,$X47>0),(L47*(1+PeriodRate($AT47,$X47))-L47)/(1+PeriodRate($AT47,$X47)),0) -> 0 | BB47: =IF(AND($AT47<>0,$X47>0),(M47*(1+PeriodRate($AT47,$X47))-M47)/(1+PeriodRate($AT47,$X47)),0) -> 0 | BC47: =IF(AND($AT47<>0,$X47>0),(N47*(1+PeriodRate($AT47,$X47))-N47)/(1+PeriodRate($AT47,$X47)),0) -> 0 | BD47: =IF(AND($AT47<>0,$R47>0),(L47*(1+PeriodRate($AT47,$R47))-L47)/(1+PeriodRate($AT47,$R47)),0) -> 0 | BE47: =IF(AND($AT47<>0,$R47>0),(M47*(1+PeriodRate($AT47,$R47))-M47)/(1+PeriodRate($AT47,$R47)),0) -> 0 | BF47: =IF(AND($AT47<>0,$R47>0),(N47*(1+PeriodRate($AT47,$R47))-N47)/(1+PeriodRate($AT47,$R47)),0) -> 0 | BN47: ='Admin Costs'!BG47 -> 40 | BO47: ='Admin Costs'!BH47 -> 
A48: 41 | L48: =IF(ISBLANK($H48),"",(IF(OR(MID($I48,1,1)="1",MID($I48,1,1)="3"),INDEX(Profile!$C$23:$E$35,MATCH($H48,Profile!$B$23:$B$35,0),1),0)*$J48)) ->  | M48: =IF(ISBLANK($H48),"",(IF(OR(MID($I48,1,1)="2",MID($I48,1,1)="3"),INDEX(Profile!$C$23:$E$35,MATCH($H48,Profile!$B$23:$B$35,0),2),0))*$J48) ->  | N48: =IF(H48="","",L48+M48) ->  | Y48: =IF(OR(ISBLANK(U48),ISBLANK(V48)),"",(IF(MID(U48,1,1)="E",Premium,overhead)+1)*INDEX('Labour Costs'!$C$4:$C$51,MATCH(MID(V48,1,2),'Labour Costs'!$F$4:$F$51,0))) ->  | AD48: =IF(ISNUMBER(IF(S48="",0,PeriodRate(discount,R48))),IF(S48="",0,PeriodRate(discount,R48)),0) -> 0 | AE48: 0 | AF48: =IF(ISNUMBER(IF(Y48="",0,PeriodRate(discount,X48))),IF(Y48="",0,PeriodRate(discount,X48)),0) -> 0 | AG48: 0 | AH48: 0 | AI48: 0 | AJ48: 0 | AL48: 0 | AM48: 0 | AN48: 0 | AP48: 0 | AQ48: 0 | AR48: 0 | AT48: =IF(H48<>"",OFFSET(Profile!$F$24,MATCH(H48,Profile!$B$25:$B$35,0),0),0) -> 0 | AU48: =IF($U48="",0,IF(MID($D48,1,1)="1",IF(OR(LOWER($K48)="vrai",LOWER($K48)="true"),popcorrect(BA48,$AT48,fiscalyear,fiscalyear,fiscalyear+timeperiod,$X48,discount),0),popcorrect(IF(OR(LOWER($K48)="vrai",LOWER($K48)="true"),BA48,L48),$AT48,fiscalyear,$E48,$F48,$X48,discount))) -> 0 | AV48: =IF($U48="",0,IF(MID($D48,1,1)="1",IF(OR(LOWER($K48)="vrai",LOWER($K48)="true"),popcorrect(BB48,$AT48,fiscalyear,fiscalyear,fiscalyear+timeperiod,$X48,discount),0),popcorrect(IF(OR(LOWER($K48)="vrai",LOWER($K48)="true"),BB48,M48),$AT48,fiscalyear,$E48,$F48,$X48,discount))) -> 0 | AW48: =IF($U48="",0,IF(MID($D48,1,1)="1",IF(OR(LOWER($K48)="vrai",LOWER($K48)="true"),popcorrect(BC48,$AT48,fiscalyear,fiscalyear,fiscalyear+timeperiod,$X48,discount),0),popcorrect(IF(OR(LOWER($K48)="vrai",LOWER($K48)="true"),BC48,N48),$AT48,fiscalyear,$E48,$F48,$X48,discount))) -> 0 | AX48: =IF($P48="",0,IF(MID($D48,1,1)="1",IF(OR(LOWER($K48)="vraiI",LOWER($K48)="true"),popcorrect(BD48,$AT48,fiscalyear,fiscalyear,fiscalyear+timeperiod,$R48,discount),0),popcorrect(IF(OR(LOWER($K48)="vrai",LOWER($K48)="true"),BD48,L48),$AT48,fiscalyear,$E48,$F48,$R48,discount))) -> 0 | AY48: =IF($P48="",0,IF(MID($D48,1,1)="1",IF(OR(LOWER($K48)="vraiI",LOWER($K48)="true"),popcorrect(BE48,$AT48,fiscalyear,fiscalyear,fiscalyear+timeperiod,$R48,discount),0),popcorrect(IF(OR(LOWER($K48)="vrai",LOWER($K48)="true"),BE48,M48),$AT48,fiscalyear,$E48,$F48,$R48,discount))) -> 0 | AZ48: =IF($P48="",0,IF(MID($D48,1,1)="1",IF(OR(LOWER($K48)="vraiI",LOWER($K48)="true"),popcorrect(BF48,$AT48,fiscalyear,fiscalyear,fiscalyear+timeperiod,$R48,discount),0),popcorrect(IF(OR(LOWER($K48)="vrai",LOWER($K48)="true"),BF48,N48),$AT48,fiscalyear,$E48,$F48,$R48,discount))) -> 0 | BA48: =IF(AND($AT48<>0,$X48>0),(L48*(1+PeriodRate($AT48,$X48))-L48)/(1+PeriodRate($AT48,$X48)),0) -> 0 | BB48: =IF(AND($AT48<>0,$X48>0),(M48*(1+PeriodRate($AT48,$X48))-M48)/(1+PeriodRate($AT48,$X48)),0) -> 0 | BC48: =IF(AND($AT48<>0,$X48>0),(N48*(1+PeriodRate($AT48,$X48))-N48)/(1+PeriodRate($AT48,$X48)),0) -> 0 | BD48: =IF(AND($AT48<>0,$R48>0),(L48*(1+PeriodRate($AT48,$R48))-L48)/(1+PeriodRate($AT48,$R48)),0) -> 0 | BE48: =IF(AND($AT48<>0,$R48>0),(M48*(1+PeriodRate($AT48,$R48))-M48)/(1+PeriodRate($AT48,$R48)),0) -> 0 | BF48: =IF(AND($AT48<>0,$R48>0),(N48*(1+PeriodRate($AT48,$R48))-N48)/(1+PeriodRate($AT48,$R48)),0) -> 0 | BN48: ='Admin Costs'!BG48 -> 41 | BO48: ='Admin Costs'!BH48 -> 
A49: 42 | L49: =IF(ISBLANK($H49),"",(IF(OR(MID($I49,1,1)="1",MID($I49,1,1)="3"),INDEX(Profile!$C$23:$E$35,MATCH($H49,Profile!$B$23:$B$35,0),1),0)*$J49)) ->  | M49: =IF(ISBLANK($H49),"",(IF(OR(MID($I49,1,1)="2",MID($I49,1,1)="3"),INDEX(Profile!$C$23:$E$35,MATCH($H49,Profile!$B$23:$B$35,0),2),0))*$J49) ->  | Y49: =IF(OR(ISBLANK(U49),ISBLANK(V49)),"",(IF(MID(U49,1,1)="E",Premium,overhead)+1)*INDEX('Labour Costs'!$C$4:$C$51,MATCH(MID(V49,1,2),'Labour Costs'!$F$4:$F$51,0))) ->  | AD49: =IF(ISNUMBER(IF(S49="",0,PeriodRate(discount,R49))),IF(S49="",0,PeriodRate(discount,R49)),0) -> 0 | AE49: 0 | AF49: =IF(ISNUMBER(IF(Y49="",0,PeriodRate(discount,X49))),IF(Y49="",0,PeriodRate(discount,X49)),0) -> 0 | AG49: 0 | AH49: 0 | AI49: 0 | AJ49: 0 | AL49: 0 | AM49: 0 | AN49: 0 | AP49: 0 | AQ49: 0 | AR49: 0 | AT49: =IF(H49<>"",OFFSET(Profile!$F$24,MATCH(H49,Profile!$B$25:$B$35,0),0),0) -> 0 | AU49: =IF($U49="",0,IF(MID($D49,1,1)="1",IF(OR(LOWER($K49)="vrai",LOWER($K49)="true"),popcorrect(BA49,$AT49,fiscalyear,fiscalyear,fiscalyear+timeperiod,$X49,discount),0),popcorrect(IF(OR(LOWER($K49)="vrai",LOWER($K49)="true"),BA49,L49),$AT49,fiscalyear,$E49,$F49,$X49,discount))) -> 0 | AV49: =IF($U49="",0,IF(MID($D49,1,1)="1",IF(OR(LOWER($K49)="vrai",LOWER($K49)="true"),popcorrect(BB49,$AT49,fiscalyear,fiscalyear,fiscalyear+timeperiod,$X49,discount),0),popcorrect(IF(OR(LOWER($K49)="vrai",LOWER($K49)="true"),BB49,M49),$AT49,fiscalyear,$E49,$F49,$X49,discount))) -> 0 | AW49: =IF($U49="",0,IF(MID($D49,1,1)="1",IF(OR(LOWER($K49)="vrai",LOWER($K49)="true"),popcorrect(BC49,$AT49,fiscalyear,fiscalyear,fiscalyear+timeperiod,$X49,discount),0),popcorrect(IF(OR(LOWER($K49)="vrai",LOWER($K49)="true"),BC49,N49),$AT49,fiscalyear,$E49,$F49,$X49,discount))) -> 0 | AX49: =IF($P49="",0,IF(MID($D49,1,1)="1",IF(OR(LOWER($K49)="vraiI",LOWER($K49)="true"),popcorrect(BD49,$AT49,fiscalyear,fiscalyear,fiscalyear+timeperiod,$R49,discount),0),popcorrect(IF(OR(LOWER($K49)="vrai",LOWER($K49)="true"),BD49,L49),$AT49,fiscalyear,$E49,$F49,$R49,discount))) -> 0 | AY49: =IF($P49="",0,IF(MID($D49,1,1)="1",IF(OR(LOWER($K49)="vraiI",LOWER($K49)="true"),popcorrect(BE49,$AT49,fiscalyear,fiscalyear,fiscalyear+timeperiod,$R49,discount),0),popcorrect(IF(OR(LOWER($K49)="vrai",LOWER($K49)="true"),BE49,M49),$AT49,fiscalyear,$E49,$F49,$R49,discount))) -> 0 | AZ49: =IF($P49="",0,IF(MID($D49,1,1)="1",IF(OR(LOWER($K49)="vraiI",LOWER($K49)="true"),popcorrect(BF49,$AT49,fiscalyear,fiscalyear,fiscalyear+timeperiod,$R49,discount),0),popcorrect(IF(OR(LOWER($K49)="vrai",LOWER($K49)="true"),BF49,N49),$AT49,fiscalyear,$E49,$F49,$R49,discount))) -> 0 | BA49: =IF(AND($AT49<>0,$X49>0),(L49*(1+PeriodRate($AT49,$X49))-L49)/(1+PeriodRate($AT49,$X49)),0) -> 0 | BB49: =IF(AND($AT49<>0,$X49>0),(M49*(1+PeriodRate($AT49,$X49))-M49)/(1+PeriodRate($AT49,$X49)),0) -> 0 | BC49: =IF(AND($AT49<>0,$X49>0),(N49*(1+PeriodRate($AT49,$X49))-N49)/(1+PeriodRate($AT49,$X49)),0) -> 0 | BD49: =IF(AND($AT49<>0,$R49>0),(L49*(1+PeriodRate($AT49,$R49))-L49)/(1+PeriodRate($AT49,$R49)),0) -> 0 | BE49: =IF(AND($AT49<>0,$R49>0),(M49*(1+PeriodRate($AT49,$R49))-M49)/(1+PeriodRate($AT49,$R49)),0) -> 0 | BF49: =IF(AND($AT49<>0,$R49>0),(N49*(1+PeriodRate($AT49,$R49))-N49)/(1+PeriodRate($AT49,$R49)),0) -> 0 | BN49: ='Admin Costs'!BG49 -> 42 | BO49: ='Admin Costs'!BH49 -> 
A50: 43 | L50: =IF(ISBLANK($H50),"",(IF(OR(MID($I50,1,1)="1",MID($I50,1,1)="3"),INDEX(Profile!$C$23:$E$35,MATCH($H50,Profile!$B$23:$B$35,0),1),0)*$J50)) ->  | M50: =IF(ISBLANK($H50),"",(IF(OR(MID($I50,1,1)="2",MID($I50,1,1)="3"),INDEX(Profile!$C$23:$E$35,MATCH($H50,Profile!$B$23:$B$35,0),2),0))*$J50) ->  | Y50: =IF(OR(ISBLANK(U50),ISBLANK(V50)),"",(IF(MID(U50,1,1)="E",Premium,overhead)+1)*INDEX('Labour Costs'!$C$4:$C$51,MATCH(MID(V50,1,2),'Labour Costs'!$F$4:$F$51,0))) ->  | AD50: =IF(ISNUMBER(IF(S50="",0,PeriodRate(discount,R50))),IF(S50="",0,PeriodRate(discount,R50)),0) -> 0 | AE50: 0 | AF50: =IF(ISNUMBER(IF(Y50="",0,PeriodRate(discount,X50))),IF(Y50="",0,PeriodRate(discount,X50)),0) -> 0 | AG50: 0 | AH50: 0 | AI50: 0 | AJ50: 0 | AL50: 0 | AM50: 0 | AN50: 0 | AP50: 0 | AQ50: 0 | AR50: 0 | AT50: =IF(H50<>"",OFFSET(Profile!$F$24,MATCH(H50,Profile!$B$25:$B$35,0),0),0) -> 0 | AU50: =IF($U50="",0,IF(MID($D50,1,1)="1",IF(OR(LOWER($K50)="vrai",LOWER($K50)="true"),popcorrect(BA50,$AT50,fiscalyear,fiscalyear,fiscalyear+timeperiod,$X50,discount),0),popcorrect(IF(OR(LOWER($K50)="vrai",LOWER($K50)="true"),BA50,L50),$AT50,fiscalyear,$E50,$F50,$X50,discount))) -> 0 | AV50: =IF($U50="",0,IF(MID($D50,1,1)="1",IF(OR(LOWER($K50)="vrai",LOWER($K50)="true"),popcorrect(BB50,$AT50,fiscalyear,fiscalyear,fiscalyear+timeperiod,$X50,discount),0),popcorrect(IF(OR(LOWER($K50)="vrai",LOWER($K50)="true"),BB50,M50),$AT50,fiscalyear,$E50,$F50,$X50,discount))) -> 0 | AW50: =IF($U50="",0,IF(MID($D50,1,1)="1",IF(OR(LOWER($K50)="vrai",LOWER($K50)="true"),popcorrect(BC50,$AT50,fiscalyear,fiscalyear,fiscalyear+timeperiod,$X50,discount),0),popcorrect(IF(OR(LOWER($K50)="vrai",LOWER($K50)="true"),BC50,N50),$AT50,fiscalyear,$E50,$F50,$X50,discount))) -> 0 | AX50: =IF($P50="",0,IF(MID($D50,1,1)="1",IF(OR(LOWER($K50)="vraiI",LOWER($K50)="true"),popcorrect(BD50,$AT50,fiscalyear,fiscalyear,fiscalyear+timeperiod,$R50,discount),0),popcorrect(IF(OR(LOWER($K50)="vrai",LOWER($K50)="true"),BD50,L50),$AT50,fiscalyear,$E50,$F50,$R50,discount))) -> 0 | AY50: =IF($P50="",0,IF(MID($D50,1,1)="1",IF(OR(LOWER($K50)="vraiI",LOWER($K50)="true"),popcorrect(BE50,$AT50,fiscalyear,fiscalyear,fiscalyear+timeperiod,$R50,discount),0),popcorrect(IF(OR(LOWER($K50)="vrai",LOWER($K50)="true"),BE50,M50),$AT50,fiscalyear,$E50,$F50,$R50,discount))) -> 0 | AZ50: =IF($P50="",0,IF(MID($D50,1,1)="1",IF(OR(LOWER($K50)="vraiI",LOWER($K50)="true"),popcorrect(BF50,$AT50,fiscalyear,fiscalyear,fiscalyear+timeperiod,$R50,discount),0),popcorrect(IF(OR(LOWER($K50)="vrai",LOWER($K50)="true"),BF50,N50),$AT50,fiscalyear,$E50,$F50,$R50,discount))) -> 0 | BA50: =IF(AND($AT50<>0,$X50>0),(L50*(1+PeriodRate($AT50,$X50))-L50)/(1+PeriodRate($AT50,$X50)),0) -> 0 | BB50: =IF(AND($AT50<>0,$X50>0),(M50*(1+PeriodRate($AT50,$X50))-M50)/(1+PeriodRate($AT50,$X50)),0) -> 0 | BC50: =IF(AND($AT50<>0,$X50>0),(N50*(1+PeriodRate($AT50,$X50))-N50)/(1+PeriodRate($AT50,$X50)),0) -> 0 | BD50: =IF(AND($AT50<>0,$R50>0),(L50*(1+PeriodRate($AT50,$R50))-L50)/(1+PeriodRate($AT50,$R50)),0) -> 0 | BE50: =IF(AND($AT50<>0,$R50>0),(M50*(1+PeriodRate($AT50,$R50))-M50)/(1+PeriodRate($AT50,$R50)),0) -> 0 | BF50: =IF(AND($AT50<>0,$R50>0),(N50*(1+PeriodRate($AT50,$R50))-N50)/(1+PeriodRate($AT50,$R50)),0) -> 0 | BN50: ='Admin Costs'!BG50 -> 43 | BO50: ='Admin Costs'!BH50 -> 
A51: 44 | L51: =IF(ISBLANK($H51),"",(IF(OR(MID($I51,1,1)="1",MID($I51,1,1)="3"),INDEX(Profile!$C$23:$E$35,MATCH($H51,Profile!$B$23:$B$35,0),1),0)*$J51)) ->  | M51: =IF(ISBLANK($H51),"",(IF(OR(MID($I51,1,1)="2",MID($I51,1,1)="3"),INDEX(Profile!$C$23:$E$35,MATCH($H51,Profile!$B$23:$B$35,0),2),0))*$J51) ->  | Y51: =IF(OR(ISBLANK(U51),ISBLANK(V51)),"",(IF(MID(U51,1,1)="E",Premium,overhead)+1)*INDEX('Labour Costs'!$C$4:$C$51,MATCH(MID(V51,1,2),'Labour Costs'!$F$4:$F$51,0))) ->  | AD51: =IF(ISNUMBER(IF(S51="",0,PeriodRate(discount,R51))),IF(S51="",0,PeriodRate(discount,R51)),0) -> 0 | AE51: 0 | AF51: =IF(ISNUMBER(IF(Y51="",0,PeriodRate(discount,X51))),IF(Y51="",0,PeriodRate(discount,X51)),0) -> 0 | AG51: 0 | AH51: 0 | AI51: 0 | AJ51: 0 | AL51: 0 | AM51: 0 | AN51: 0 | AP51: 0 | AQ51: 0 | AR51: 0 | AT51: =IF(H51<>"",OFFSET(Profile!$F$24,MATCH(H51,Profile!$B$25:$B$35,0),0),0) -> 0 | AU51: =IF($U51="",0,IF(MID($D51,1,1)="1",IF(OR(LOWER($K51)="vrai",LOWER($K51)="true"),popcorrect(BA51,$AT51,fiscalyear,fiscalyear,fiscalyear+timeperiod,$X51,discount),0),popcorrect(IF(OR(LOWER($K51)="vrai",LOWER($K51)="true"),BA51,L51),$AT51,fiscalyear,$E51,$F51,$X51,discount))) -> 0 | AV51: =IF($U51="",0,IF(MID($D51,1,1)="1",IF(OR(LOWER($K51)="vrai",LOWER($K51)="true"),popcorrect(BB51,$AT51,fiscalyear,fiscalyear,fiscalyear+timeperiod,$X51,discount),0),popcorrect(IF(OR(LOWER($K51)="vrai",LOWER($K51)="true"),BB51,M51),$AT51,fiscalyear,$E51,$F51,$X51,discount))) -> 0 | AW51: =IF($U51="",0,IF(MID($D51,1,1)="1",IF(OR(LOWER($K51)="vrai",LOWER($K51)="true"),popcorrect(BC51,$AT51,fiscalyear,fiscalyear,fiscalyear+timeperiod,$X51,discount),0),popcorrect(IF(OR(LOWER($K51)="vrai",LOWER($K51)="true"),BC51,N51),$AT51,fiscalyear,$E51,$F51,$X51,discount))) -> 0 | AX51: =IF($P51="",0,IF(MID($D51,1,1)="1",IF(OR(LOWER($K51)="vraiI",LOWER($K51)="true"),popcorrect(BD51,$AT51,fiscalyear,fiscalyear,fiscalyear+timeperiod,$R51,discount),0),popcorrect(IF(OR(LOWER($K51)="vrai",LOWER($K51)="true"),BD51,L51),$AT51,fiscalyear,$E51,$F51,$R51,discount))) -> 0 | AY51: =IF($P51="",0,IF(MID($D51,1,1)="1",IF(OR(LOWER($K51)="vraiI",LOWER($K51)="true"),popcorrect(BE51,$AT51,fiscalyear,fiscalyear,fiscalyear+timeperiod,$R51,discount),0),popcorrect(IF(OR(LOWER($K51)="vrai",LOWER($K51)="true"),BE51,M51),$AT51,fiscalyear,$E51,$F51,$R51,discount))) -> 0 | AZ51: =IF($P51="",0,IF(MID($D51,1,1)="1",IF(OR(LOWER($K51)="vraiI",LOWER($K51)="true"),popcorrect(BF51,$AT51,fiscalyear,fiscalyear,fiscalyear+timeperiod,$R51,discount),0),popcorrect(IF(OR(LOWER($K51)="vrai",LOWER($K51)="true"),BF51,N51),$AT51,fiscalyear,$E51,$F51,$R51,discount))) -> 0 | BA51: =IF(AND($AT51<>0,$X51>0),(L51*(1+PeriodRate($AT51,$X51))-L51)/(1+PeriodRate($AT51,$X51)),0) -> 0 | BB51: =IF(AND($AT51<>0,$X51>0),(M51*(1+PeriodRate($AT51,$X51))-M51)/(1+PeriodRate($AT51,$X51)),0) -> 0 | BC51: =IF(AND($AT51<>0,$X51>0),(N51*(1+PeriodRate($AT51,$X51))-N51)/(1+PeriodRate($AT51,$X51)),0) -> 0 | BD51: =IF(AND($AT51<>0,$R51>0),(L51*(1+PeriodRate($AT51,$R51))-L51)/(1+PeriodRate($AT51,$R51)),0) -> 0 | BE51: =IF(AND($AT51<>0,$R51>0),(M51*(1+PeriodRate($AT51,$R51))-M51)/(1+PeriodRate($AT51,$R51)),0) -> 0 | BF51: =IF(AND($AT51<>0,$R51>0),(N51*(1+PeriodRate($AT51,$R51))-N51)/(1+PeriodRate($AT51,$R51)),0) -> 0 | BN51: ='Admin Costs'!BG51 -> 44 | BO51: ='Admin Costs'!BH51 -> 
A52: 45 | L52: =IF(ISBLANK($H52),"",(IF(OR(MID($I52,1,1)="1",MID($I52,1,1)="3"),INDEX(Profile!$C$23:$E$35,MATCH($H52,Profile!$B$23:$B$35,0),1),0)*$J52)) ->  | M52: =IF(ISBLANK($H52),"",(IF(OR(MID($I52,1,1)="2",MID($I52,1,1)="3"),INDEX(Profile!$C$23:$E$35,MATCH($H52,Profile!$B$23:$B$35,0),2),0))*$J52) ->  | Y52: =IF(OR(ISBLANK(U52),ISBLANK(V52)),"",(IF(MID(U52,1,1)="E",Premium,overhead)+1)*INDEX('Labour Costs'!$C$4:$C$51,MATCH(MID(V52,1,2),'Labour Costs'!$F$4:$F$51,0))) ->  | AD52: =IF(ISNUMBER(IF(S52="",0,PeriodRate(discount,R52))),IF(S52="",0,PeriodRate(discount,R52)),0) -> 0 | AE52: 0 | AF52: =IF(ISNUMBER(IF(Y52="",0,PeriodRate(discount,X52))),IF(Y52="",0,PeriodRate(discount,X52)),0) -> 0 | AG52: 0 | AH52: 0 | AI52: 0 | AJ52: 0 | AL52: 0 | AM52: 0 | AN52: 0 | AP52: 0 | AQ52: 0 | AR52: 0 | AT52: =IF(H52<>"",OFFSET(Profile!$F$24,MATCH(H52,Profile!$B$25:$B$35,0),0),0) -> 0 | AU52: =IF($U52="",0,IF(MID($D52,1,1)="1",IF(OR(LOWER($K52)="vrai",LOWER($K52)="true"),popcorrect(BA52,$AT52,fiscalyear,fiscalyear,fiscalyear+timeperiod,$X52,discount),0),popcorrect(IF(OR(LOWER($K52)="vrai",LOWER($K52)="true"),BA52,L52),$AT52,fiscalyear,$E52,$F52,$X52,discount))) -> 0 | AV52: =IF($U52="",0,IF(MID($D52,1,1)="1",IF(OR(LOWER($K52)="vrai",LOWER($K52)="true"),popcorrect(BB52,$AT52,fiscalyear,fiscalyear,fiscalyear+timeperiod,$X52,discount),0),popcorrect(IF(OR(LOWER($K52)="vrai",LOWER($K52)="true"),BB52,M52),$AT52,fiscalyear,$E52,$F52,$X52,discount))) -> 0 | AW52: =IF($U52="",0,IF(MID($D52,1,1)="1",IF(OR(LOWER($K52)="vrai",LOWER($K52)="true"),popcorrect(BC52,$AT52,fiscalyear,fiscalyear,fiscalyear+timeperiod,$X52,discount),0),popcorrect(IF(OR(LOWER($K52)="vrai",LOWER($K52)="true"),BC52,N52),$AT52,fiscalyear,$E52,$F52,$X52,discount))) -> 0 | AX52: =IF($P52="",0,IF(MID($D52,1,1)="1",IF(OR(LOWER($K52)="vraiI",LOWER($K52)="true"),popcorrect(BD52,$AT52,fiscalyear,fiscalyear,fiscalyear+timeperiod,$R52,discount),0),popcorrect(IF(OR(LOWER($K52)="vrai",LOWER($K52)="true"),BD52,L52),$AT52,fiscalyear,$E52,$F52,$R52,discount))) -> 0 | AY52: =IF($P52="",0,IF(MID($D52,1,1)="1",IF(OR(LOWER($K52)="vraiI",LOWER($K52)="true"),popcorrect(BE52,$AT52,fiscalyear,fiscalyear,fiscalyear+timeperiod,$R52,discount),0),popcorrect(IF(OR(LOWER($K52)="vrai",LOWER($K52)="true"),BE52,M52),$AT52,fiscalyear,$E52,$F52,$R52,discount))) -> 0 | AZ52: =IF($P52="",0,IF(MID($D52,1,1)="1",IF(OR(LOWER($K52)="vraiI",LOWER($K52)="true"),popcorrect(BF52,$AT52,fiscalyear,fiscalyear,fiscalyear+timeperiod,$R52,discount),0),popcorrect(IF(OR(LOWER($K52)="vrai",LOWER($K52)="true"),BF52,N52),$AT52,fiscalyear,$E52,$F52,$R52,discount))) -> 0 | BA52: =IF(AND($AT52<>0,$X52>0),(L52*(1+PeriodRate($AT52,$X52))-L52)/(1+PeriodRate($AT52,$X52)),0) -> 0 | BB52: =IF(AND($AT52<>0,$X52>0),(M52*(1+PeriodRate($AT52,$X52))-M52)/(1+PeriodRate($AT52,$X52)),0) -> 0 | BC52: =IF(AND($AT52<>0,$X52>0),(N52*(1+PeriodRate($AT52,$X52))-N52)/(1+PeriodRate($AT52,$X52)),0) -> 0 | BD52: =IF(AND($AT52<>0,$R52>0),(L52*(1+PeriodRate($AT52,$R52))-L52)/(1+PeriodRate($AT52,$R52)),0) -> 0 | BE52: =IF(AND($AT52<>0,$R52>0),(M52*(1+PeriodRate($AT52,$R52))-M52)/(1+PeriodRate($AT52,$R52)),0) -> 0 | BF52: =IF(AND($AT52<>0,$R52>0),(N52*(1+PeriodRate($AT52,$R52))-N52)/(1+PeriodRate($AT52,$R52)),0) -> 0 | BN52: ='Admin Costs'!BG52 -> 45 | BO52: ='Admin Costs'!BH52 -> 
A53: 46 | L53: =IF(ISBLANK($H53),"",(IF(OR(MID($I53,1,1)="1",MID($I53,1,1)="3"),INDEX(Profile!$C$23:$E$35,MATCH($H53,Profile!$B$23:$B$35,0),1),0)*$J53)) ->  | M53: =IF(ISBLANK($H53),"",(IF(OR(MID($I53,1,1)="2",MID($I53,1,1)="3"),INDEX(Profile!$C$23:$E$35,MATCH($H53,Profile!$B$23:$B$35,0),2),0))*$J53) ->  | Y53: =IF(OR(ISBLANK(U53),ISBLANK(V53)),"",(IF(MID(U53,1,1)="E",Premium,overhead)+1)*INDEX('Labour Costs'!$C$4:$C$51,MATCH(MID(V53,1,2),'Labour Costs'!$F$4:$F$51,0))) ->  | AD53: =IF(ISNUMBER(IF(S53="",0,PeriodRate(discount,R53))),IF(S53="",0,PeriodRate(discount,R53)),0) -> 0 | AE53: 0 | AF53: =IF(ISNUMBER(IF(Y53="",0,PeriodRate(discount,X53))),IF(Y53="",0,PeriodRate(discount,X53)),0) -> 0 | AG53: 0 | AH53: 0 | AI53: 0 | AJ53: 0 | AL53: 0 | AM53: 0 | AN53: 0 | AP53: 0 | AQ53: 0 | AR53: 0 | AT53: =IF(H53<>"",OFFSET(Profile!$F$24,MATCH(H53,Profile!$B$25:$B$35,0),0),0) -> 0 | AU53: =IF($U53="",0,IF(MID($D53,1,1)="1",IF(OR(LOWER($K53)="vrai",LOWER($K53)="true"),popcorrect(BA53,$AT53,fiscalyear,fiscalyear,fiscalyear+timeperiod,$X53,discount),0),popcorrect(IF(OR(LOWER($K53)="vrai",LOWER($K53)="true"),BA53,L53),$AT53,fiscalyear,$E53,$F53,$X53,discount))) -> 0 | AV53: =IF($U53="",0,IF(MID($D53,1,1)="1",IF(OR(LOWER($K53)="vrai",LOWER($K53)="true"),popcorrect(BB53,$AT53,fiscalyear,fiscalyear,fiscalyear+timeperiod,$X53,discount),0),popcorrect(IF(OR(LOWER($K53)="vrai",LOWER($K53)="true"),BB53,M53),$AT53,fiscalyear,$E53,$F53,$X53,discount))) -> 0 | AW53: =IF($U53="",0,IF(MID($D53,1,1)="1",IF(OR(LOWER($K53)="vrai",LOWER($K53)="true"),popcorrect(BC53,$AT53,fiscalyear,fiscalyear,fiscalyear+timeperiod,$X53,discount),0),popcorrect(IF(OR(LOWER($K53)="vrai",LOWER($K53)="true"),BC53,N53),$AT53,fiscalyear,$E53,$F53,$X53,discount))) -> 0 | AX53: =IF($P53="",0,IF(MID($D53,1,1)="1",IF(OR(LOWER($K53)="vraiI",LOWER($K53)="true"),popcorrect(BD53,$AT53,fiscalyear,fiscalyear,fiscalyear+timeperiod,$R53,discount),0),popcorrect(IF(OR(LOWER($K53)="vrai",LOWER($K53)="true"),BD53,L53),$AT53,fiscalyear,$E53,$F53,$R53,discount))) -> 0 | AY53: =IF($P53="",0,IF(MID($D53,1,1)="1",IF(OR(LOWER($K53)="vraiI",LOWER($K53)="true"),popcorrect(BE53,$AT53,fiscalyear,fiscalyear,fiscalyear+timeperiod,$R53,discount),0),popcorrect(IF(OR(LOWER($K53)="vrai",LOWER($K53)="true"),BE53,M53),$AT53,fiscalyear,$E53,$F53,$R53,discount))) -> 0 | AZ53: =IF($P53="",0,IF(MID($D53,1,1)="1",IF(OR(LOWER($K53)="vraiI",LOWER($K53)="true"),popcorrect(BF53,$AT53,fiscalyear,fiscalyear,fiscalyear+timeperiod,$R53,discount),0),popcorrect(IF(OR(LOWER($K53)="vrai",LOWER($K53)="true"),BF53,N53),$AT53,fiscalyear,$E53,$F53,$R53,discount))) -> 0 | BA53: =IF(AND($AT53<>0,$X53>0),(L53*(1+PeriodRate($AT53,$X53))-L53)/(1+PeriodRate($AT53,$X53)),0) -> 0 | BB53: =IF(AND($AT53<>0,$X53>0),(M53*(1+PeriodRate($AT53,$X53))-M53)/(1+PeriodRate($AT53,$X53)),0) -> 0 | BC53: =IF(AND($AT53<>0,$X53>0),(N53*(1+PeriodRate($AT53,$X53))-N53)/(1+PeriodRate($AT53,$X53)),0) -> 0 | BD53: =IF(AND($AT53<>0,$R53>0),(L53*(1+PeriodRate($AT53,$R53))-L53)/(1+PeriodRate($AT53,$R53)),0) -> 0 | BE53: =IF(AND($AT53<>0,$R53>0),(M53*(1+PeriodRate($AT53,$R53))-M53)/(1+PeriodRate($AT53,$R53)),0) -> 0 | BF53: =IF(AND($AT53<>0,$R53>0),(N53*(1+PeriodRate($AT53,$R53))-N53)/(1+PeriodRate($AT53,$R53)),0) -> 0 | BN53: ='Admin Costs'!BG53 -> 46 | BO53: ='Admin Costs'!BH53 -> 
A54: 47 | L54: =IF(ISBLANK($H54),"",(IF(OR(MID($I54,1,1)="1",MID($I54,1,1)="3"),INDEX(Profile!$C$23:$E$35,MATCH($H54,Profile!$B$23:$B$35,0),1),0)*$J54)) ->  | M54: =IF(ISBLANK($H54),"",(IF(OR(MID($I54,1,1)="2",MID($I54,1,1)="3"),INDEX(Profile!$C$23:$E$35,MATCH($H54,Profile!$B$23:$B$35,0),2),0))*$J54) ->  | Y54: =IF(OR(ISBLANK(U54),ISBLANK(V54)),"",(IF(MID(U54,1,1)="E",Premium,overhead)+1)*INDEX('Labour Costs'!$C$4:$C$51,MATCH(MID(V54,1,2),'Labour Costs'!$F$4:$F$51,0))) ->  | AD54: =IF(ISNUMBER(IF(S54="",0,PeriodRate(discount,R54))),IF(S54="",0,PeriodRate(discount,R54)),0) -> 0 | AE54: 0 | AF54: =IF(ISNUMBER(IF(Y54="",0,PeriodRate(discount,X54))),IF(Y54="",0,PeriodRate(discount,X54)),0) -> 0 | AG54: 0 | AH54: 0 | AI54: 0 | AJ54: 0 | AL54: 0 | AM54: 0 | AN54: 0 | AP54: 0 | AQ54: 0 | AR54: 0 | AT54: =IF(H54<>"",OFFSET(Profile!$F$24,MATCH(H54,Profile!$B$25:$B$35,0),0),0) -> 0 | AU54: =IF($U54="",0,IF(MID($D54,1,1)="1",IF(OR(LOWER($K54)="vrai",LOWER($K54)="true"),popcorrect(BA54,$AT54,fiscalyear,fiscalyear,fiscalyear+timeperiod,$X54,discount),0),popcorrect(IF(OR(LOWER($K54)="vrai",LOWER($K54)="true"),BA54,L54),$AT54,fiscalyear,$E54,$F54,$X54,discount))) -> 0 | AV54: =IF($U54="",0,IF(MID($D54,1,1)="1",IF(OR(LOWER($K54)="vrai",LOWER($K54)="true"),popcorrect(BB54,$AT54,fiscalyear,fiscalyear,fiscalyear+timeperiod,$X54,discount),0),popcorrect(IF(OR(LOWER($K54)="vrai",LOWER($K54)="true"),BB54,M54),$AT54,fiscalyear,$E54,$F54,$X54,discount))) -> 0 | AW54: =IF($U54="",0,IF(MID($D54,1,1)="1",IF(OR(LOWER($K54)="vrai",LOWER($K54)="true"),popcorrect(BC54,$AT54,fiscalyear,fiscalyear,fiscalyear+timeperiod,$X54,discount),0),popcorrect(IF(OR(LOWER($K54)="vrai",LOWER($K54)="true"),BC54,N54),$AT54,fiscalyear,$E54,$F54,$X54,discount))) -> 0 | AX54: =IF($P54="",0,IF(MID($D54,1,1)="1",IF(OR(LOWER($K54)="vraiI",LOWER($K54)="true"),popcorrect(BD54,$AT54,fiscalyear,fiscalyear,fiscalyear+timeperiod,$R54,discount),0),popcorrect(IF(OR(LOWER($K54)="vrai",LOWER($K54)="true"),BD54,L54),$AT54,fiscalyear,$E54,$F54,$R54,discount))) -> 0 | AY54: =IF($P54="",0,IF(MID($D54,1,1)="1",IF(OR(LOWER($K54)="vraiI",LOWER($K54)="true"),popcorrect(BE54,$AT54,fiscalyear,fiscalyear,fiscalyear+timeperiod,$R54,discount),0),popcorrect(IF(OR(LOWER($K54)="vrai",LOWER($K54)="true"),BE54,M54),$AT54,fiscalyear,$E54,$F54,$R54,discount))) -> 0 | AZ54: =IF($P54="",0,IF(MID($D54,1,1)="1",IF(OR(LOWER($K54)="vraiI",LOWER($K54)="true"),popcorrect(BF54,$AT54,fiscalyear,fiscalyear,fiscalyear+timeperiod,$R54,discount),0),popcorrect(IF(OR(LOWER($K54)="vrai",LOWER($K54)="true"),BF54,N54),$AT54,fiscalyear,$E54,$F54,$R54,discount))) -> 0 | BA54: =IF(AND($AT54<>0,$X54>0),(L54*(1+PeriodRate($AT54,$X54))-L54)/(1+PeriodRate($AT54,$X54)),0) -> 0 | BB54: =IF(AND($AT54<>0,$X54>0),(M54*(1+PeriodRate($AT54,$X54))-M54)/(1+PeriodRate($AT54,$X54)),0) -> 0 | BC54: =IF(AND($AT54<>0,$X54>0),(N54*(1+PeriodRate($AT54,$X54))-N54)/(1+PeriodRate($AT54,$X54)),0) -> 0 | BD54: =IF(AND($AT54<>0,$R54>0),(L54*(1+PeriodRate($AT54,$R54))-L54)/(1+PeriodRate($AT54,$R54)),0) -> 0 | BE54: =IF(AND($AT54<>0,$R54>0),(M54*(1+PeriodRate($AT54,$R54))-M54)/(1+PeriodRate($AT54,$R54)),0) -> 0 | BF54: =IF(AND($AT54<>0,$R54>0),(N54*(1+PeriodRate($AT54,$R54))-N54)/(1+PeriodRate($AT54,$R54)),0) -> 0 | BN54: ='Admin Costs'!BG54 -> 47 | BO54: ='Admin Costs'!BH54 -> 
A55: 48 | L55: =IF(ISBLANK($H55),"",(IF(OR(MID($I55,1,1)="1",MID($I55,1,1)="3"),INDEX(Profile!$C$23:$E$35,MATCH($H55,Profile!$B$23:$B$35,0),1),0)*$J55)) ->  | M55: =IF(ISBLANK($H55),"",(IF(OR(MID($I55,1,1)="2",MID($I55,1,1)="3"),INDEX(Profile!$C$23:$E$35,MATCH($H55,Profile!$B$23:$B$35,0),2),0))*$J55) ->  | Y55: =IF(OR(ISBLANK(U55),ISBLANK(V55)),"",(IF(MID(U55,1,1)="E",Premium,overhead)+1)*INDEX('Labour Costs'!$C$4:$C$51,MATCH(MID(V55,1,2),'Labour Costs'!$F$4:$F$51,0))) ->  | AD55: =IF(ISNUMBER(IF(S55="",0,PeriodRate(discount,R55))),IF(S55="",0,PeriodRate(discount,R55)),0) -> 0 | AE55: 0 | AF55: =IF(ISNUMBER(IF(Y55="",0,PeriodRate(discount,X55))),IF(Y55="",0,PeriodRate(discount,X55)),0) -> 0 | AG55: 0 | AH55: 0 | AI55: 0 | AJ55: 0 | AL55: 0 | AM55: 0 | AN55: 0 | AP55: 0 | AQ55: 0 | AR55: 0 | AT55: =IF(H55<>"",OFFSET(Profile!$F$24,MATCH(H55,Profile!$B$25:$B$35,0),0),0) -> 0 | AU55: =IF($U55="",0,IF(MID($D55,1,1)="1",IF(OR(LOWER($K55)="vrai",LOWER($K55)="true"),popcorrect(BA55,$AT55,fiscalyear,fiscalyear,fiscalyear+timeperiod,$X55,discount),0),popcorrect(IF(OR(LOWER($K55)="vrai",LOWER($K55)="true"),BA55,L55),$AT55,fiscalyear,$E55,$F55,$X55,discount))) -> 0 | AV55: =IF($U55="",0,IF(MID($D55,1,1)="1",IF(OR(LOWER($K55)="vrai",LOWER($K55)="true"),popcorrect(BB55,$AT55,fiscalyear,fiscalyear,fiscalyear+timeperiod,$X55,discount),0),popcorrect(IF(OR(LOWER($K55)="vrai",LOWER($K55)="true"),BB55,M55),$AT55,fiscalyear,$E55,$F55,$X55,discount))) -> 0 | AW55: =IF($U55="",0,IF(MID($D55,1,1)="1",IF(OR(LOWER($K55)="vrai",LOWER($K55)="true"),popcorrect(BC55,$AT55,fiscalyear,fiscalyear,fiscalyear+timeperiod,$X55,discount),0),popcorrect(IF(OR(LOWER($K55)="vrai",LOWER($K55)="true"),BC55,N55),$AT55,fiscalyear,$E55,$F55,$X55,discount))) -> 0 | AX55: =IF($P55="",0,IF(MID($D55,1,1)="1",IF(OR(LOWER($K55)="vraiI",LOWER($K55)="true"),popcorrect(BD55,$AT55,fiscalyear,fiscalyear,fiscalyear+timeperiod,$R55,discount),0),popcorrect(IF(OR(LOWER($K55)="vrai",LOWER($K55)="true"),BD55,L55),$AT55,fiscalyear,$E55,$F55,$R55,discount))) -> 0 | AY55: =IF($P55="",0,IF(MID($D55,1,1)="1",IF(OR(LOWER($K55)="vraiI",LOWER($K55)="true"),popcorrect(BE55,$AT55,fiscalyear,fiscalyear,fiscalyear+timeperiod,$R55,discount),0),popcorrect(IF(OR(LOWER($K55)="vrai",LOWER($K55)="true"),BE55,M55),$AT55,fiscalyear,$E55,$F55,$R55,discount))) -> 0 | AZ55: =IF($P55="",0,IF(MID($D55,1,1)="1",IF(OR(LOWER($K55)="vraiI",LOWER($K55)="true"),popcorrect(BF55,$AT55,fiscalyear,fiscalyear,fiscalyear+timeperiod,$R55,discount),0),popcorrect(IF(OR(LOWER($K55)="vrai",LOWER($K55)="true"),BF55,N55),$AT55,fiscalyear,$E55,$F55,$R55,discount))) -> 0 | BA55: =IF(AND($AT55<>0,$X55>0),(L55*(1+PeriodRate($AT55,$X55))-L55)/(1+PeriodRate($AT55,$X55)),0) -> 0 | BB55: =IF(AND($AT55<>0,$X55>0),(M55*(1+PeriodRate($AT55,$X55))-M55)/(1+PeriodRate($AT55,$X55)),0) -> 0 | BC55: =IF(AND($AT55<>0,$X55>0),(N55*(1+PeriodRate($AT55,$X55))-N55)/(1+PeriodRate($AT55,$X55)),0) -> 0 | BD55: =IF(AND($AT55<>0,$R55>0),(L55*(1+PeriodRate($AT55,$R55))-L55)/(1+PeriodRate($AT55,$R55)),0) -> 0 | BE55: =IF(AND($AT55<>0,$R55>0),(M55*(1+PeriodRate($AT55,$R55))-M55)/(1+PeriodRate($AT55,$R55)),0) -> 0 | BF55: =IF(AND($AT55<>0,$R55>0),(N55*(1+PeriodRate($AT55,$R55))-N55)/(1+PeriodRate($AT55,$R55)),0) -> 0 | BN55: ='Admin Costs'!BG55 -> 48 | BO55: ='Admin Costs'!BH55 -> 
A56: 49 | L56: =IF(ISBLANK($H56),"",(IF(OR(MID($I56,1,1)="1",MID($I56,1,1)="3"),INDEX(Profile!$C$23:$E$35,MATCH($H56,Profile!$B$23:$B$35,0),1),0)*$J56)) ->  | M56: =IF(ISBLANK($H56),"",(IF(OR(MID($I56,1,1)="2",MID($I56,1,1)="3"),INDEX(Profile!$C$23:$E$35,MATCH($H56,Profile!$B$23:$B$35,0),2),0))*$J56) ->  | Y56: =IF(OR(ISBLANK(U56),ISBLANK(V56)),"",(IF(MID(U56,1,1)="E",Premium,overhead)+1)*INDEX('Labour Costs'!$C$4:$C$51,MATCH(MID(V56,1,2),'Labour Costs'!$F$4:$F$51,0))) ->  | AD56: =IF(ISNUMBER(IF(S56="",0,PeriodRate(discount,R56))),IF(S56="",0,PeriodRate(discount,R56)),0) -> 0 | AE56: 0 | AF56: =IF(ISNUMBER(IF(Y56="",0,PeriodRate(discount,X56))),IF(Y56="",0,PeriodRate(discount,X56)),0) -> 0 | AG56: 0 | AH56: 0 | AI56: 0 | AJ56: 0 | AL56: 0 | AM56: 0 | AN56: 0 | AP56: 0 | AQ56: 0 | AR56: 0 | AT56: =IF(H56<>"",OFFSET(Profile!$F$24,MATCH(H56,Profile!$B$25:$B$35,0),0),0) -> 0 | AU56: =IF($U56="",0,IF(MID($D56,1,1)="1",IF(OR(LOWER($K56)="vrai",LOWER($K56)="true"),popcorrect(BA56,$AT56,fiscalyear,fiscalyear,fiscalyear+timeperiod,$X56,discount),0),popcorrect(IF(OR(LOWER($K56)="vrai",LOWER($K56)="true"),BA56,L56),$AT56,fiscalyear,$E56,$F56,$X56,discount))) -> 0 | AV56: =IF($U56="",0,IF(MID($D56,1,1)="1",IF(OR(LOWER($K56)="vrai",LOWER($K56)="true"),popcorrect(BB56,$AT56,fiscalyear,fiscalyear,fiscalyear+timeperiod,$X56,discount),0),popcorrect(IF(OR(LOWER($K56)="vrai",LOWER($K56)="true"),BB56,M56),$AT56,fiscalyear,$E56,$F56,$X56,discount))) -> 0 | AW56: =IF($U56="",0,IF(MID($D56,1,1)="1",IF(OR(LOWER($K56)="vrai",LOWER($K56)="true"),popcorrect(BC56,$AT56,fiscalyear,fiscalyear,fiscalyear+timeperiod,$X56,discount),0),popcorrect(IF(OR(LOWER($K56)="vrai",LOWER($K56)="true"),BC56,N56),$AT56,fiscalyear,$E56,$F56,$X56,discount))) -> 0 | AX56: =IF($P56="",0,IF(MID($D56,1,1)="1",IF(OR(LOWER($K56)="vraiI",LOWER($K56)="true"),popcorrect(BD56,$AT56,fiscalyear,fiscalyear,fiscalyear+timeperiod,$R56,discount),0),popcorrect(IF(OR(LOWER($K56)="vrai",LOWER($K56)="true"),BD56,L56),$AT56,fiscalyear,$E56,$F56,$R56,discount))) -> 0 | AY56: =IF($P56="",0,IF(MID($D56,1,1)="1",IF(OR(LOWER($K56)="vraiI",LOWER($K56)="true"),popcorrect(BE56,$AT56,fiscalyear,fiscalyear,fiscalyear+timeperiod,$R56,discount),0),popcorrect(IF(OR(LOWER($K56)="vrai",LOWER($K56)="true"),BE56,M56),$AT56,fiscalyear,$E56,$F56,$R56,discount))) -> 0 | AZ56: =IF($P56="",0,IF(MID($D56,1,1)="1",IF(OR(LOWER($K56)="vraiI",LOWER($K56)="true"),popcorrect(BF56,$AT56,fiscalyear,fiscalyear,fiscalyear+timeperiod,$R56,discount),0),popcorrect(IF(OR(LOWER($K56)="vrai",LOWER($K56)="true"),BF56,N56),$AT56,fiscalyear,$E56,$F56,$R56,discount))) -> 0 | BA56: =IF(AND($AT56<>0,$X56>0),(L56*(1+PeriodRate($AT56,$X56))-L56)/(1+PeriodRate($AT56,$X56)),0) -> 0 | BB56: =IF(AND($AT56<>0,$X56>0),(M56*(1+PeriodRate($AT56,$X56))-M56)/(1+PeriodRate($AT56,$X56)),0) -> 0 | BC56: =IF(AND($AT56<>0,$X56>0),(N56*(1+PeriodRate($AT56,$X56))-N56)/(1+PeriodRate($AT56,$X56)),0) -> 0 | BD56: =IF(AND($AT56<>0,$R56>0),(L56*(1+PeriodRate($AT56,$R56))-L56)/(1+PeriodRate($AT56,$R56)),0) -> 0 | BE56: =IF(AND($AT56<>0,$R56>0),(M56*(1+PeriodRate($AT56,$R56))-M56)/(1+PeriodRate($AT56,$R56)),0) -> 0 | BF56: =IF(AND($AT56<>0,$R56>0),(N56*(1+PeriodRate($AT56,$R56))-N56)/(1+PeriodRate($AT56,$R56)),0) -> 0
A57: 50 | L57: =IF(ISBLANK($H57),"",(IF(OR(MID($I57,1,1)="1",MID($I57,1,1)="3"),INDEX(Profile!$C$23:$E$35,MATCH($H57,Profile!$B$23:$B$35,0),1),0)*$J57)) ->  | M57: =IF(ISBLANK($H57),"",(IF(OR(MID($I57,1,1)="2",MID($I57,1,1)="3"),INDEX(Profile!$C$23:$E$35,MATCH($H57,Profile!$B$23:$B$35,0),2),0))*$J57) ->  | Y57: =IF(OR(ISBLANK(U57),ISBLANK(V57)),"",(IF(MID(U57,1,1)="E",Premium,overhead)+1)*INDEX('Labour Costs'!$C$4:$C$51,MATCH(MID(V57,1,2),'Labour Costs'!$F$4:$F$51,0))) ->  | AD57: =IF(ISNUMBER(IF(S57="",0,PeriodRate(discount,R57))),IF(S57="",0,PeriodRate(discount,R57)),0) -> 0 | AE57: 0 | AF57: =IF(ISNUMBER(IF(Y57="",0,PeriodRate(discount,X57))),IF(Y57="",0,PeriodRate(discount,X57)),0) -> 0 | AG57: 0 | AH57: 0 | AI57: 0 | AJ57: 0 | AL57: 0 | AM57: 0 | AN57: 0 | AP57: 0 | AQ57: 0 | AR57: 0 | AT57: =IF(H57<>"",OFFSET(Profile!$F$24,MATCH(H57,Profile!$B$25:$B$35,0),0),0) -> 0 | AU57: =IF($U57="",0,IF(MID($D57,1,1)="1",IF(OR(LOWER($K57)="vrai",LOWER($K57)="true"),popcorrect(BA57,$AT57,fiscalyear,fiscalyear,fiscalyear+timeperiod,$X57,discount),0),popcorrect(IF(OR(LOWER($K57)="vrai",LOWER($K57)="true"),BA57,L57),$AT57,fiscalyear,$E57,$F57,$X57,discount))) -> 0 | AV57: =IF($U57="",0,IF(MID($D57,1,1)="1",IF(OR(LOWER($K57)="vrai",LOWER($K57)="true"),popcorrect(BB57,$AT57,fiscalyear,fiscalyear,fiscalyear+timeperiod,$X57,discount),0),popcorrect(IF(OR(LOWER($K57)="vrai",LOWER($K57)="true"),BB57,M57),$AT57,fiscalyear,$E57,$F57,$X57,discount))) -> 0 | AW57: =IF($U57="",0,IF(MID($D57,1,1)="1",IF(OR(LOWER($K57)="vrai",LOWER($K57)="true"),popcorrect(BC57,$AT57,fiscalyear,fiscalyear,fiscalyear+timeperiod,$X57,discount),0),popcorrect(IF(OR(LOWER($K57)="vrai",LOWER($K57)="true"),BC57,N57),$AT57,fiscalyear,$E57,$F57,$X57,discount))) -> 0 | AX57: =IF($P57="",0,IF(MID($D57,1,1)="1",IF(OR(LOWER($K57)="vraiI",LOWER($K57)="true"),popcorrect(BD57,$AT57,fiscalyear,fiscalyear,fiscalyear+timeperiod,$R57,discount),0),popcorrect(IF(OR(LOWER($K57)="vrai",LOWER($K57)="true"),BD57,L57),$AT57,fiscalyear,$E57,$F57,$R57,discount))) -> 0 | AY57: =IF($P57="",0,IF(MID($D57,1,1)="1",IF(OR(LOWER($K57)="vraiI",LOWER($K57)="true"),popcorrect(BE57,$AT57,fiscalyear,fiscalyear,fiscalyear+timeperiod,$R57,discount),0),popcorrect(IF(OR(LOWER($K57)="vrai",LOWER($K57)="true"),BE57,M57),$AT57,fiscalyear,$E57,$F57,$R57,discount))) -> 0 | AZ57: =IF($P57="",0,IF(MID($D57,1,1)="1",IF(OR(LOWER($K57)="vraiI",LOWER($K57)="true"),popcorrect(BF57,$AT57,fiscalyear,fiscalyear,fiscalyear+timeperiod,$R57,discount),0),popcorrect(IF(OR(LOWER($K57)="vrai",LOWER($K57)="true"),BF57,N57),$AT57,fiscalyear,$E57,$F57,$R57,discount))) -> 0 | BA57: =IF(AND($AT57<>0,$X57>0),(L57*(1+PeriodRate($AT57,$X57))-L57)/(1+PeriodRate($AT57,$X57)),0) -> 0 | BB57: =IF(AND($AT57<>0,$X57>0),(M57*(1+PeriodRate($AT57,$X57))-M57)/(1+PeriodRate($AT57,$X57)),0) -> 0 | BC57: =IF(AND($AT57<>0,$X57>0),(N57*(1+PeriodRate($AT57,$X57))-N57)/(1+PeriodRate($AT57,$X57)),0) -> 0 | BD57: =IF(AND($AT57<>0,$R57>0),(L57*(1+PeriodRate($AT57,$R57))-L57)/(1+PeriodRate($AT57,$R57)),0) -> 0 | BE57: =IF(AND($AT57<>0,$R57>0),(M57*(1+PeriodRate($AT57,$R57))-M57)/(1+PeriodRate($AT57,$R57)),0) -> 0 | BF57: =IF(AND($AT57<>0,$R57>0),(N57*(1+PeriodRate($AT57,$R57))-N57)/(1+PeriodRate($AT57,$R57)),0) -> 0
A58: 51 | L58: =IF(ISBLANK($H58),"",(IF(OR(MID($I58,1,1)="1",MID($I58,1,1)="3"),INDEX(Profile!$C$23:$E$35,MATCH($H58,Profile!$B$23:$B$35,0),1),0)*$J58)) ->  | M58: =IF(ISBLANK($H58),"",(IF(OR(MID($I58,1,1)="2",MID($I58,1,1)="3"),INDEX(Profile!$C$23:$E$35,MATCH($H58,Profile!$B$23:$B$35,0),2),0))*$J58) ->  | Y58: =IF(OR(ISBLANK(U58),ISBLANK(V58)),"",(IF(MID(U58,1,1)="E",Premium,overhead)+1)*INDEX('Labour Costs'!$C$4:$C$51,MATCH(MID(V58,1,2),'Labour Costs'!$F$4:$F$51,0))) ->  | AD58: =IF(ISNUMBER(IF(S58="",0,PeriodRate(discount,R58))),IF(S58="",0,PeriodRate(discount,R58)),0) -> 0 | AE58: 0 | AF58: =IF(ISNUMBER(IF(Y58="",0,PeriodRate(discount,X58))),IF(Y58="",0,PeriodRate(discount,X58)),0) -> 0 | AG58: 0 | AH58: 0 | AI58: 0 | AJ58: 0 | AL58: 0 | AM58: 0 | AN58: 0 | AP58: 0 | AQ58: 0 | AR58: 0 | AT58: =IF(H58<>"",OFFSET(Profile!$F$24,MATCH(H58,Profile!$B$25:$B$35,0),0),0) -> 0 | AU58: =IF($U58="",0,IF(MID($D58,1,1)="1",IF(OR(LOWER($K58)="vrai",LOWER($K58)="true"),popcorrect(BA58,$AT58,fiscalyear,fiscalyear,fiscalyear+timeperiod,$X58,discount),0),popcorrect(IF(OR(LOWER($K58)="vrai",LOWER($K58)="true"),BA58,L58),$AT58,fiscalyear,$E58,$F58,$X58,discount))) -> 0 | AV58: =IF($U58="",0,IF(MID($D58,1,1)="1",IF(OR(LOWER($K58)="vrai",LOWER($K58)="true"),popcorrect(BB58,$AT58,fiscalyear,fiscalyear,fiscalyear+timeperiod,$X58,discount),0),popcorrect(IF(OR(LOWER($K58)="vrai",LOWER($K58)="true"),BB58,M58),$AT58,fiscalyear,$E58,$F58,$X58,discount))) -> 0 | AW58: =IF($U58="",0,IF(MID($D58,1,1)="1",IF(OR(LOWER($K58)="vrai",LOWER($K58)="true"),popcorrect(BC58,$AT58,fiscalyear,fiscalyear,fiscalyear+timeperiod,$X58,discount),0),popcorrect(IF(OR(LOWER($K58)="vrai",LOWER($K58)="true"),BC58,N58),$AT58,fiscalyear,$E58,$F58,$X58,discount))) -> 0 | AX58: =IF($P58="",0,IF(MID($D58,1,1)="1",IF(OR(LOWER($K58)="vraiI",LOWER($K58)="true"),popcorrect(BD58,$AT58,fiscalyear,fiscalyear,fiscalyear+timeperiod,$R58,discount),0),popcorrect(IF(OR(LOWER($K58)="vrai",LOWER($K58)="true"),BD58,L58),$AT58,fiscalyear,$E58,$F58,$R58,discount))) -> 0 | AY58: =IF($P58="",0,IF(MID($D58,1,1)="1",IF(OR(LOWER($K58)="vraiI",LOWER($K58)="true"),popcorrect(BE58,$AT58,fiscalyear,fiscalyear,fiscalyear+timeperiod,$R58,discount),0),popcorrect(IF(OR(LOWER($K58)="vrai",LOWER($K58)="true"),BE58,M58),$AT58,fiscalyear,$E58,$F58,$R58,discount))) -> 0 | AZ58: =IF($P58="",0,IF(MID($D58,1,1)="1",IF(OR(LOWER($K58)="vraiI",LOWER($K58)="true"),popcorrect(BF58,$AT58,fiscalyear,fiscalyear,fiscalyear+timeperiod,$R58,discount),0),popcorrect(IF(OR(LOWER($K58)="vrai",LOWER($K58)="true"),BF58,N58),$AT58,fiscalyear,$E58,$F58,$R58,discount))) -> 0 | BA58: =IF(AND($AT58<>0,$X58>0),(L58*(1+PeriodRate($AT58,$X58))-L58)/(1+PeriodRate($AT58,$X58)),0) -> 0 | BB58: =IF(AND($AT58<>0,$X58>0),(M58*(1+PeriodRate($AT58,$X58))-M58)/(1+PeriodRate($AT58,$X58)),0) -> 0 | BC58: =IF(AND($AT58<>0,$X58>0),(N58*(1+PeriodRate($AT58,$X58))-N58)/(1+PeriodRate($AT58,$X58)),0) -> 0 | BD58: =IF(AND($AT58<>0,$R58>0),(L58*(1+PeriodRate($AT58,$R58))-L58)/(1+PeriodRate($AT58,$R58)),0) -> 0 | BE58: =IF(AND($AT58<>0,$R58>0),(M58*(1+PeriodRate($AT58,$R58))-M58)/(1+PeriodRate($AT58,$R58)),0) -> 0 | BF58: =IF(AND($AT58<>0,$R58>0),(N58*(1+PeriodRate($AT58,$R58))-N58)/(1+PeriodRate($AT58,$R58)),0) -> 0
A59: 52 | L59: =IF(ISBLANK($H59),"",(IF(OR(MID($I59,1,1)="1",MID($I59,1,1)="3"),INDEX(Profile!$C$23:$E$35,MATCH($H59,Profile!$B$23:$B$35,0),1),0)*$J59)) ->  | M59: =IF(ISBLANK($H59),"",(IF(OR(MID($I59,1,1)="2",MID($I59,1,1)="3"),INDEX(Profile!$C$23:$E$35,MATCH($H59,Profile!$B$23:$B$35,0),2),0))*$J59) ->  | Y59: =IF(OR(ISBLANK(U59),ISBLANK(V59)),"",(IF(MID(U59,1,1)="E",Premium,overhead)+1)*INDEX('Labour Costs'!$C$4:$C$51,MATCH(MID(V59,1,2),'Labour Costs'!$F$4:$F$51,0))) ->  | AD59: =IF(ISNUMBER(IF(S59="",0,PeriodRate(discount,R59))),IF(S59="",0,PeriodRate(discount,R59)),0) -> 0 | AE59: 0 | AF59: =IF(ISNUMBER(IF(Y59="",0,PeriodRate(discount,X59))),IF(Y59="",0,PeriodRate(discount,X59)),0) -> 0 | AG59: 0 | AH59: 0 | AI59: 0 | AJ59: 0 | AL59: 0 | AM59: 0 | AN59: 0 | AP59: 0 | AQ59: 0 | AR59: 0 | AT59: =IF(H59<>"",OFFSET(Profile!$F$24,MATCH(H59,Profile!$B$25:$B$35,0),0),0) -> 0 | AU59: =IF($U59="",0,IF(MID($D59,1,1)="1",IF(OR(LOWER($K59)="vrai",LOWER($K59)="true"),popcorrect(BA59,$AT59,fiscalyear,fiscalyear,fiscalyear+timeperiod,$X59,discount),0),popcorrect(IF(OR(LOWER($K59)="vrai",LOWER($K59)="true"),BA59,L59),$AT59,fiscalyear,$E59,$F59,$X59,discount))) -> 0 | AV59: =IF($U59="",0,IF(MID($D59,1,1)="1",IF(OR(LOWER($K59)="vrai",LOWER($K59)="true"),popcorrect(BB59,$AT59,fiscalyear,fiscalyear,fiscalyear+timeperiod,$X59,discount),0),popcorrect(IF(OR(LOWER($K59)="vrai",LOWER($K59)="true"),BB59,M59),$AT59,fiscalyear,$E59,$F59,$X59,discount))) -> 0 | AW59: =IF($U59="",0,IF(MID($D59,1,1)="1",IF(OR(LOWER($K59)="vrai",LOWER($K59)="true"),popcorrect(BC59,$AT59,fiscalyear,fiscalyear,fiscalyear+timeperiod,$X59,discount),0),popcorrect(IF(OR(LOWER($K59)="vrai",LOWER($K59)="true"),BC59,N59),$AT59,fiscalyear,$E59,$F59,$X59,discount))) -> 0 | AX59: =IF($P59="",0,IF(MID($D59,1,1)="1",IF(OR(LOWER($K59)="vraiI",LOWER($K59)="true"),popcorrect(BD59,$AT59,fiscalyear,fiscalyear,fiscalyear+timeperiod,$R59,discount),0),popcorrect(IF(OR(LOWER($K59)="vrai",LOWER($K59)="true"),BD59,L59),$AT59,fiscalyear,$E59,$F59,$R59,discount))) -> 0 | AY59: =IF($P59="",0,IF(MID($D59,1,1)="1",IF(OR(LOWER($K59)="vraiI",LOWER($K59)="true"),popcorrect(BE59,$AT59,fiscalyear,fiscalyear,fiscalyear+timeperiod,$R59,discount),0),popcorrect(IF(OR(LOWER($K59)="vrai",LOWER($K59)="true"),BE59,M59),$AT59,fiscalyear,$E59,$F59,$R59,discount))) -> 0 | AZ59: =IF($P59="",0,IF(MID($D59,1,1)="1",IF(OR(LOWER($K59)="vraiI",LOWER($K59)="true"),popcorrect(BF59,$AT59,fiscalyear,fiscalyear,fiscalyear+timeperiod,$R59,discount),0),popcorrect(IF(OR(LOWER($K59)="vrai",LOWER($K59)="true"),BF59,N59),$AT59,fiscalyear,$E59,$F59,$R59,discount))) -> 0 | BA59: =IF(AND($AT59<>0,$X59>0),(L59*(1+PeriodRate($AT59,$X59))-L59)/(1+PeriodRate($AT59,$X59)),0) -> 0 | BB59: =IF(AND($AT59<>0,$X59>0),(M59*(1+PeriodRate($AT59,$X59))-M59)/(1+PeriodRate($AT59,$X59)),0) -> 0 | BC59: =IF(AND($AT59<>0,$X59>0),(N59*(1+PeriodRate($AT59,$X59))-N59)/(1+PeriodRate($AT59,$X59)),0) -> 0 | BD59: =IF(AND($AT59<>0,$R59>0),(L59*(1+PeriodRate($AT59,$R59))-L59)/(1+PeriodRate($AT59,$R59)),0) -> 0 | BE59: =IF(AND($AT59<>0,$R59>0),(M59*(1+PeriodRate($AT59,$R59))-M59)/(1+PeriodRate($AT59,$R59)),0) -> 0 | BF59: =IF(AND($AT59<>0,$R59>0),(N59*(1+PeriodRate($AT59,$R59))-N59)/(1+PeriodRate($AT59,$R59)),0) -> 0
A60: 53 | L60: =IF(ISBLANK($H60),"",(IF(OR(MID($I60,1,1)="1",MID($I60,1,1)="3"),INDEX(Profile!$C$23:$E$35,MATCH($H60,Profile!$B$23:$B$35,0),1),0)*$J60)) ->  | M60: =IF(ISBLANK($H60),"",(IF(OR(MID($I60,1,1)="2",MID($I60,1,1)="3"),INDEX(Profile!$C$23:$E$35,MATCH($H60,Profile!$B$23:$B$35,0),2),0))*$J60) ->  | Y60: =IF(OR(ISBLANK(U60),ISBLANK(V60)),"",(IF(MID(U60,1,1)="E",Premium,overhead)+1)*INDEX('Labour Costs'!$C$4:$C$51,MATCH(MID(V60,1,2),'Labour Costs'!$F$4:$F$51,0))) ->  | AD60: =IF(ISNUMBER(IF(S60="",0,PeriodRate(discount,R60))),IF(S60="",0,PeriodRate(discount,R60)),0) -> 0 | AE60: 0 | AF60: =IF(ISNUMBER(IF(Y60="",0,PeriodRate(discount,X60))),IF(Y60="",0,PeriodRate(discount,X60)),0) -> 0 | AG60: 0 | AH60: 0 | AI60: 0 | AJ60: 0 | AL60: 0 | AM60: 0 | AN60: 0 | AP60: 0 | AQ60: 0 | AR60: 0 | AT60: =IF(H60<>"",OFFSET(Profile!$F$24,MATCH(H60,Profile!$B$25:$B$35,0),0),0) -> 0 | AU60: =IF($U60="",0,IF(MID($D60,1,1)="1",IF(OR(LOWER($K60)="vrai",LOWER($K60)="true"),popcorrect(BA60,$AT60,fiscalyear,fiscalyear,fiscalyear+timeperiod,$X60,discount),0),popcorrect(IF(OR(LOWER($K60)="vrai",LOWER($K60)="true"),BA60,L60),$AT60,fiscalyear,$E60,$F60,$X60,discount))) -> 0 | AV60: =IF($U60="",0,IF(MID($D60,1,1)="1",IF(OR(LOWER($K60)="vrai",LOWER($K60)="true"),popcorrect(BB60,$AT60,fiscalyear,fiscalyear,fiscalyear+timeperiod,$X60,discount),0),popcorrect(IF(OR(LOWER($K60)="vrai",LOWER($K60)="true"),BB60,M60),$AT60,fiscalyear,$E60,$F60,$X60,discount))) -> 0 | AW60: =IF($U60="",0,IF(MID($D60,1,1)="1",IF(OR(LOWER($K60)="vrai",LOWER($K60)="true"),popcorrect(BC60,$AT60,fiscalyear,fiscalyear,fiscalyear+timeperiod,$X60,discount),0),popcorrect(IF(OR(LOWER($K60)="vrai",LOWER($K60)="true"),BC60,N60),$AT60,fiscalyear,$E60,$F60,$X60,discount))) -> 0 | AX60: =IF($P60="",0,IF(MID($D60,1,1)="1",IF(OR(LOWER($K60)="vraiI",LOWER($K60)="true"),popcorrect(BD60,$AT60,fiscalyear,fiscalyear,fiscalyear+timeperiod,$R60,discount),0),popcorrect(IF(OR(LOWER($K60)="vrai",LOWER($K60)="true"),BD60,L60),$AT60,fiscalyear,$E60,$F60,$R60,discount))) -> 0 | AY60: =IF($P60="",0,IF(MID($D60,1,1)="1",IF(OR(LOWER($K60)="vraiI",LOWER($K60)="true"),popcorrect(BE60,$AT60,fiscalyear,fiscalyear,fiscalyear+timeperiod,$R60,discount),0),popcorrect(IF(OR(LOWER($K60)="vrai",LOWER($K60)="true"),BE60,M60),$AT60,fiscalyear,$E60,$F60,$R60,discount))) -> 0 | AZ60: =IF($P60="",0,IF(MID($D60,1,1)="1",IF(OR(LOWER($K60)="vraiI",LOWER($K60)="true"),popcorrect(BF60,$AT60,fiscalyear,fiscalyear,fiscalyear+timeperiod,$R60,discount),0),popcorrect(IF(OR(LOWER($K60)="vrai",LOWER($K60)="true"),BF60,N60),$AT60,fiscalyear,$E60,$F60,$R60,discount))) -> 0 | BA60: =IF(AND($AT60<>0,$X60>0),(L60*(1+PeriodRate($AT60,$X60))-L60)/(1+PeriodRate($AT60,$X60)),0) -> 0 | BB60: =IF(AND($AT60<>0,$X60>0),(M60*(1+PeriodRate($AT60,$X60))-M60)/(1+PeriodRate($AT60,$X60)),0) -> 0 | BC60: =IF(AND($AT60<>0,$X60>0),(N60*(1+PeriodRate($AT60,$X60))-N60)/(1+PeriodRate($AT60,$X60)),0) -> 0 | BD60: =IF(AND($AT60<>0,$R60>0),(L60*(1+PeriodRate($AT60,$R60))-L60)/(1+PeriodRate($AT60,$R60)),0) -> 0 | BE60: =IF(AND($AT60<>0,$R60>0),(M60*(1+PeriodRate($AT60,$R60))-M60)/(1+PeriodRate($AT60,$R60)),0) -> 0 | BF60: =IF(AND($AT60<>0,$R60>0),(N60*(1+PeriodRate($AT60,$R60))-N60)/(1+PeriodRate($AT60,$R60)),0) -> 0
A61: 54 | L61: =IF(ISBLANK($H61),"",(IF(OR(MID($I61,1,1)="1",MID($I61,1,1)="3"),INDEX(Profile!$C$23:$E$35,MATCH($H61,Profile!$B$23:$B$35,0),1),0)*$J61)) ->  | M61: =IF(ISBLANK($H61),"",(IF(OR(MID($I61,1,1)="2",MID($I61,1,1)="3"),INDEX(Profile!$C$23:$E$35,MATCH($H61,Profile!$B$23:$B$35,0),2),0))*$J61) ->  | Y61: =IF(OR(ISBLANK(U61),ISBLANK(V61)),"",(IF(MID(U61,1,1)="E",Premium,overhead)+1)*INDEX('Labour Costs'!$C$4:$C$51,MATCH(MID(V61,1,2),'Labour Costs'!$F$4:$F$51,0))) ->  | AD61: =IF(ISNUMBER(IF(S61="",0,PeriodRate(discount,R61))),IF(S61="",0,PeriodRate(discount,R61)),0) -> 0 | AE61: 0 | AF61: =IF(ISNUMBER(IF(Y61="",0,PeriodRate(discount,X61))),IF(Y61="",0,PeriodRate(discount,X61)),0) -> 0 | AG61: 0 | AH61: 0 | AI61: 0 | AJ61: 0 | AL61: 0 | AM61: 0 | AN61: 0 | AP61: 0 | AQ61: 0 | AR61: 0 | AT61: =IF(H61<>"",OFFSET(Profile!$F$24,MATCH(H61,Profile!$B$25:$B$35,0),0),0) -> 0 | AU61: =IF($U61="",0,IF(MID($D61,1,1)="1",IF(OR(LOWER($K61)="vrai",LOWER($K61)="true"),popcorrect(BA61,$AT61,fiscalyear,fiscalyear,fiscalyear+timeperiod,$X61,discount),0),popcorrect(IF(OR(LOWER($K61)="vrai",LOWER($K61)="true"),BA61,L61),$AT61,fiscalyear,$E61,$F61,$X61,discount))) -> 0 | AV61: =IF($U61="",0,IF(MID($D61,1,1)="1",IF(OR(LOWER($K61)="vrai",LOWER($K61)="true"),popcorrect(BB61,$AT61,fiscalyear,fiscalyear,fiscalyear+timeperiod,$X61,discount),0),popcorrect(IF(OR(LOWER($K61)="vrai",LOWER($K61)="true"),BB61,M61),$AT61,fiscalyear,$E61,$F61,$X61,discount))) -> 0 | AW61: =IF($U61="",0,IF(MID($D61,1,1)="1",IF(OR(LOWER($K61)="vrai",LOWER($K61)="true"),popcorrect(BC61,$AT61,fiscalyear,fiscalyear,fiscalyear+timeperiod,$X61,discount),0),popcorrect(IF(OR(LOWER($K61)="vrai",LOWER($K61)="true"),BC61,N61),$AT61,fiscalyear,$E61,$F61,$X61,discount))) -> 0 | AX61: =IF($P61="",0,IF(MID($D61,1,1)="1",IF(OR(LOWER($K61)="vraiI",LOWER($K61)="true"),popcorrect(BD61,$AT61,fiscalyear,fiscalyear,fiscalyear+timeperiod,$R61,discount),0),popcorrect(IF(OR(LOWER($K61)="vrai",LOWER($K61)="true"),BD61,L61),$AT61,fiscalyear,$E61,$F61,$R61,discount))) -> 0 | AY61: =IF($P61="",0,IF(MID($D61,1,1)="1",IF(OR(LOWER($K61)="vraiI",LOWER($K61)="true"),popcorrect(BE61,$AT61,fiscalyear,fiscalyear,fiscalyear+timeperiod,$R61,discount),0),popcorrect(IF(OR(LOWER($K61)="vrai",LOWER($K61)="true"),BE61,M61),$AT61,fiscalyear,$E61,$F61,$R61,discount))) -> 0 | AZ61: =IF($P61="",0,IF(MID($D61,1,1)="1",IF(OR(LOWER($K61)="vraiI",LOWER($K61)="true"),popcorrect(BF61,$AT61,fiscalyear,fiscalyear,fiscalyear+timeperiod,$R61,discount),0),popcorrect(IF(OR(LOWER($K61)="vrai",LOWER($K61)="true"),BF61,N61),$AT61,fiscalyear,$E61,$F61,$R61,discount))) -> 0 | BA61: =IF(AND($AT61<>0,$X61>0),(L61*(1+PeriodRate($AT61,$X61))-L61)/(1+PeriodRate($AT61,$X61)),0) -> 0 | BB61: =IF(AND($AT61<>0,$X61>0),(M61*(1+PeriodRate($AT61,$X61))-M61)/(1+PeriodRate($AT61,$X61)),0) -> 0 | BC61: =IF(AND($AT61<>0,$X61>0),(N61*(1+PeriodRate($AT61,$X61))-N61)/(1+PeriodRate($AT61,$X61)),0) -> 0 | BD61: =IF(AND($AT61<>0,$R61>0),(L61*(1+PeriodRate($AT61,$R61))-L61)/(1+PeriodRate($AT61,$R61)),0) -> 0 | BE61: =IF(AND($AT61<>0,$R61>0),(M61*(1+PeriodRate($AT61,$R61))-M61)/(1+PeriodRate($AT61,$R61)),0) -> 0 | BF61: =IF(AND($AT61<>0,$R61>0),(N61*(1+PeriodRate($AT61,$R61))-N61)/(1+PeriodRate($AT61,$R61)),0) -> 0
A62: 55 | L62: =IF(ISBLANK($H62),"",(IF(OR(MID($I62,1,1)="1",MID($I62,1,1)="3"),INDEX(Profile!$C$23:$E$35,MATCH($H62,Profile!$B$23:$B$35,0),1),0)*$J62)) ->  | M62: =IF(ISBLANK($H62),"",(IF(OR(MID($I62,1,1)="2",MID($I62,1,1)="3"),INDEX(Profile!$C$23:$E$35,MATCH($H62,Profile!$B$23:$B$35,0),2),0))*$J62) ->  | Y62: =IF(OR(ISBLANK(U62),ISBLANK(V62)),"",(IF(MID(U62,1,1)="E",Premium,overhead)+1)*INDEX('Labour Costs'!$C$4:$C$51,MATCH(MID(V62,1,2),'Labour Costs'!$F$4:$F$51,0))) ->  | AD62: =IF(ISNUMBER(IF(S62="",0,PeriodRate(discount,R62))),IF(S62="",0,PeriodRate(discount,R62)),0) -> 0 | AE62: 0 | AF62: =IF(ISNUMBER(IF(Y62="",0,PeriodRate(discount,X62))),IF(Y62="",0,PeriodRate(discount,X62)),0) -> 0 | AG62: 0 | AH62: 0 | AI62: 0 | AJ62: 0 | AL62: 0 | AM62: 0 | AN62: 0 | AP62: 0 | AQ62: 0 | AR62: 0 | AT62: =IF(H62<>"",OFFSET(Profile!$F$24,MATCH(H62,Profile!$B$25:$B$35,0),0),0) -> 0 | AU62: =IF($U62="",0,IF(MID($D62,1,1)="1",IF(OR(LOWER($K62)="vrai",LOWER($K62)="true"),popcorrect(BA62,$AT62,fiscalyear,fiscalyear,fiscalyear+timeperiod,$X62,discount),0),popcorrect(IF(OR(LOWER($K62)="vrai",LOWER($K62)="true"),BA62,L62),$AT62,fiscalyear,$E62,$F62,$X62,discount))) -> 0 | AV62: =IF($U62="",0,IF(MID($D62,1,1)="1",IF(OR(LOWER($K62)="vrai",LOWER($K62)="true"),popcorrect(BB62,$AT62,fiscalyear,fiscalyear,fiscalyear+timeperiod,$X62,discount),0),popcorrect(IF(OR(LOWER($K62)="vrai",LOWER($K62)="true"),BB62,M62),$AT62,fiscalyear,$E62,$F62,$X62,discount))) -> 0 | AW62: =IF($U62="",0,IF(MID($D62,1,1)="1",IF(OR(LOWER($K62)="vrai",LOWER($K62)="true"),popcorrect(BC62,$AT62,fiscalyear,fiscalyear,fiscalyear+timeperiod,$X62,discount),0),popcorrect(IF(OR(LOWER($K62)="vrai",LOWER($K62)="true"),BC62,N62),$AT62,fiscalyear,$E62,$F62,$X62,discount))) -> 0 | AX62: =IF($P62="",0,IF(MID($D62,1,1)="1",IF(OR(LOWER($K62)="vraiI",LOWER($K62)="true"),popcorrect(BD62,$AT62,fiscalyear,fiscalyear,fiscalyear+timeperiod,$R62,discount),0),popcorrect(IF(OR(LOWER($K62)="vrai",LOWER($K62)="true"),BD62,L62),$AT62,fiscalyear,$E62,$F62,$R62,discount))) -> 0 | AY62: =IF($P62="",0,IF(MID($D62,1,1)="1",IF(OR(LOWER($K62)="vraiI",LOWER($K62)="true"),popcorrect(BE62,$AT62,fiscalyear,fiscalyear,fiscalyear+timeperiod,$R62,discount),0),popcorrect(IF(OR(LOWER($K62)="vrai",LOWER($K62)="true"),BE62,M62),$AT62,fiscalyear,$E62,$F62,$R62,discount))) -> 0 | AZ62: =IF($P62="",0,IF(MID($D62,1,1)="1",IF(OR(LOWER($K62)="vraiI",LOWER($K62)="true"),popcorrect(BF62,$AT62,fiscalyear,fiscalyear,fiscalyear+timeperiod,$R62,discount),0),popcorrect(IF(OR(LOWER($K62)="vrai",LOWER($K62)="true"),BF62,N62),$AT62,fiscalyear,$E62,$F62,$R62,discount))) -> 0 | BA62: =IF(AND($AT62<>0,$X62>0),(L62*(1+PeriodRate($AT62,$X62))-L62)/(1+PeriodRate($AT62,$X62)),0) -> 0 | BB62: =IF(AND($AT62<>0,$X62>0),(M62*(1+PeriodRate($AT62,$X62))-M62)/(1+PeriodRate($AT62,$X62)),0) -> 0 | BC62: =IF(AND($AT62<>0,$X62>0),(N62*(1+PeriodRate($AT62,$X62))-N62)/(1+PeriodRate($AT62,$X62)),0) -> 0 | BD62: =IF(AND($AT62<>0,$R62>0),(L62*(1+PeriodRate($AT62,$R62))-L62)/(1+PeriodRate($AT62,$R62)),0) -> 0 | BE62: =IF(AND($AT62<>0,$R62>0),(M62*(1+PeriodRate($AT62,$R62))-M62)/(1+PeriodRate($AT62,$R62)),0) -> 0 | BF62: =IF(AND($AT62<>0,$R62>0),(N62*(1+PeriodRate($AT62,$R62))-N62)/(1+PeriodRate($AT62,$R62)),0) -> 0
A63: 56 | L63: =IF(ISBLANK($H63),"",(IF(OR(MID($I63,1,1)="1",MID($I63,1,1)="3"),INDEX(Profile!$C$23:$E$35,MATCH($H63,Profile!$B$23:$B$35,0),1),0)*$J63)) ->  | M63: =IF(ISBLANK($H63),"",(IF(OR(MID($I63,1,1)="2",MID($I63,1,1)="3"),INDEX(Profile!$C$23:$E$35,MATCH($H63,Profile!$B$23:$B$35,0),2),0))*$J63) ->  | Y63: =IF(OR(ISBLANK(U63),ISBLANK(V63)),"",(IF(MID(U63,1,1)="E",Premium,overhead)+1)*INDEX('Labour Costs'!$C$4:$C$51,MATCH(MID(V63,1,2),'Labour Costs'!$F$4:$F$51,0))) ->  | AD63: =IF(ISNUMBER(IF(S63="",0,PeriodRate(discount,R63))),IF(S63="",0,PeriodRate(discount,R63)),0) -> 0 | AE63: 0 | AF63: =IF(ISNUMBER(IF(Y63="",0,PeriodRate(discount,X63))),IF(Y63="",0,PeriodRate(discount,X63)),0) -> 0 | AG63: 0 | AH63: 0 | AI63: 0 | AJ63: 0 | AL63: 0 | AM63: 0 | AN63: 0 | AP63: 0 | AQ63: 0 | AR63: 0 | AT63: =IF(H63<>"",OFFSET(Profile!$F$24,MATCH(H63,Profile!$B$25:$B$35,0),0),0) -> 0 | AU63: =IF($U63="",0,IF(MID($D63,1,1)="1",IF(OR(LOWER($K63)="vrai",LOWER($K63)="true"),popcorrect(BA63,$AT63,fiscalyear,fiscalyear,fiscalyear+timeperiod,$X63,discount),0),popcorrect(IF(OR(LOWER($K63)="vrai",LOWER($K63)="true"),BA63,L63),$AT63,fiscalyear,$E63,$F63,$X63,discount))) -> 0 | AV63: =IF($U63="",0,IF(MID($D63,1,1)="1",IF(OR(LOWER($K63)="vrai",LOWER($K63)="true"),popcorrect(BB63,$AT63,fiscalyear,fiscalyear,fiscalyear+timeperiod,$X63,discount),0),popcorrect(IF(OR(LOWER($K63)="vrai",LOWER($K63)="true"),BB63,M63),$AT63,fiscalyear,$E63,$F63,$X63,discount))) -> 0 | AW63: =IF($U63="",0,IF(MID($D63,1,1)="1",IF(OR(LOWER($K63)="vrai",LOWER($K63)="true"),popcorrect(BC63,$AT63,fiscalyear,fiscalyear,fiscalyear+timeperiod,$X63,discount),0),popcorrect(IF(OR(LOWER($K63)="vrai",LOWER($K63)="true"),BC63,N63),$AT63,fiscalyear,$E63,$F63,$X63,discount))) -> 0 | AX63: =IF($P63="",0,IF(MID($D63,1,1)="1",IF(OR(LOWER($K63)="vraiI",LOWER($K63)="true"),popcorrect(BD63,$AT63,fiscalyear,fiscalyear,fiscalyear+timeperiod,$R63,discount),0),popcorrect(IF(OR(LOWER($K63)="vrai",LOWER($K63)="true"),BD63,L63),$AT63,fiscalyear,$E63,$F63,$R63,discount))) -> 0 | AY63: =IF($P63="",0,IF(MID($D63,1,1)="1",IF(OR(LOWER($K63)="vraiI",LOWER($K63)="true"),popcorrect(BE63,$AT63,fiscalyear,fiscalyear,fiscalyear+timeperiod,$R63,discount),0),popcorrect(IF(OR(LOWER($K63)="vrai",LOWER($K63)="true"),BE63,M63),$AT63,fiscalyear,$E63,$F63,$R63,discount))) -> 0 | AZ63: =IF($P63="",0,IF(MID($D63,1,1)="1",IF(OR(LOWER($K63)="vraiI",LOWER($K63)="true"),popcorrect(BF63,$AT63,fiscalyear,fiscalyear,fiscalyear+timeperiod,$R63,discount),0),popcorrect(IF(OR(LOWER($K63)="vrai",LOWER($K63)="true"),BF63,N63),$AT63,fiscalyear,$E63,$F63,$R63,discount))) -> 0 | BA63: =IF(AND($AT63<>0,$X63>0),(L63*(1+PeriodRate($AT63,$X63))-L63)/(1+PeriodRate($AT63,$X63)),0) -> 0 | BB63: =IF(AND($AT63<>0,$X63>0),(M63*(1+PeriodRate($AT63,$X63))-M63)/(1+PeriodRate($AT63,$X63)),0) -> 0 | BC63: =IF(AND($AT63<>0,$X63>0),(N63*(1+PeriodRate($AT63,$X63))-N63)/(1+PeriodRate($AT63,$X63)),0) -> 0 | BD63: =IF(AND($AT63<>0,$R63>0),(L63*(1+PeriodRate($AT63,$R63))-L63)/(1+PeriodRate($AT63,$R63)),0) -> 0 | BE63: =IF(AND($AT63<>0,$R63>0),(M63*(1+PeriodRate($AT63,$R63))-M63)/(1+PeriodRate($AT63,$R63)),0) -> 0 | BF63: =IF(AND($AT63<>0,$R63>0),(N63*(1+PeriodRate($AT63,$R63))-N63)/(1+PeriodRate($AT63,$R63)),0) -> 0
A64: 57 | L64: =IF(ISBLANK($H64),"",(IF(OR(MID($I64,1,1)="1",MID($I64,1,1)="3"),INDEX(Profile!$C$23:$E$35,MATCH($H64,Profile!$B$23:$B$35,0),1),0)*$J64)) ->  | M64: =IF(ISBLANK($H64),"",(IF(OR(MID($I64,1,1)="2",MID($I64,1,1)="3"),INDEX(Profile!$C$23:$E$35,MATCH($H64,Profile!$B$23:$B$35,0),2),0))*$J64) ->  | Y64: =IF(OR(ISBLANK(U64),ISBLANK(V64)),"",(IF(MID(U64,1,1)="E",Premium,overhead)+1)*INDEX('Labour Costs'!$C$4:$C$51,MATCH(MID(V64,1,2),'Labour Costs'!$F$4:$F$51,0))) ->  | AD64: =IF(ISNUMBER(IF(S64="",0,PeriodRate(discount,R64))),IF(S64="",0,PeriodRate(discount,R64)),0) -> 0 | AE64: 0 | AF64: =IF(ISNUMBER(IF(Y64="",0,PeriodRate(discount,X64))),IF(Y64="",0,PeriodRate(discount,X64)),0) -> 0 | AG64: 0 | AH64: 0 | AI64: 0 | AJ64: 0 | AL64: 0 | AM64: 0 | AN64: 0 | AP64: 0 | AQ64: 0 | AR64: 0 | AT64: =IF(H64<>"",OFFSET(Profile!$F$24,MATCH(H64,Profile!$B$25:$B$35,0),0),0) -> 0 | AU64: =IF($U64="",0,IF(MID($D64,1,1)="1",IF(OR(LOWER($K64)="vrai",LOWER($K64)="true"),popcorrect(BA64,$AT64,fiscalyear,fiscalyear,fiscalyear+timeperiod,$X64,discount),0),popcorrect(IF(OR(LOWER($K64)="vrai",LOWER($K64)="true"),BA64,L64),$AT64,fiscalyear,$E64,$F64,$X64,discount))) -> 0 | AV64: =IF($U64="",0,IF(MID($D64,1,1)="1",IF(OR(LOWER($K64)="vrai",LOWER($K64)="true"),popcorrect(BB64,$AT64,fiscalyear,fiscalyear,fiscalyear+timeperiod,$X64,discount),0),popcorrect(IF(OR(LOWER($K64)="vrai",LOWER($K64)="true"),BB64,M64),$AT64,fiscalyear,$E64,$F64,$X64,discount))) -> 0 | AW64: =IF($U64="",0,IF(MID($D64,1,1)="1",IF(OR(LOWER($K64)="vrai",LOWER($K64)="true"),popcorrect(BC64,$AT64,fiscalyear,fiscalyear,fiscalyear+timeperiod,$X64,discount),0),popcorrect(IF(OR(LOWER($K64)="vrai",LOWER($K64)="true"),BC64,N64),$AT64,fiscalyear,$E64,$F64,$X64,discount))) -> 0 | AX64: =IF($P64="",0,IF(MID($D64,1,1)="1",IF(OR(LOWER($K64)="vraiI",LOWER($K64)="true"),popcorrect(BD64,$AT64,fiscalyear,fiscalyear,fiscalyear+timeperiod,$R64,discount),0),popcorrect(IF(OR(LOWER($K64)="vrai",LOWER($K64)="true"),BD64,L64),$AT64,fiscalyear,$E64,$F64,$R64,discount))) -> 0 | AY64: =IF($P64="",0,IF(MID($D64,1,1)="1",IF(OR(LOWER($K64)="vraiI",LOWER($K64)="true"),popcorrect(BE64,$AT64,fiscalyear,fiscalyear,fiscalyear+timeperiod,$R64,discount),0),popcorrect(IF(OR(LOWER($K64)="vrai",LOWER($K64)="true"),BE64,M64),$AT64,fiscalyear,$E64,$F64,$R64,discount))) -> 0 | AZ64: =IF($P64="",0,IF(MID($D64,1,1)="1",IF(OR(LOWER($K64)="vraiI",LOWER($K64)="true"),popcorrect(BF64,$AT64,fiscalyear,fiscalyear,fiscalyear+timeperiod,$R64,discount),0),popcorrect(IF(OR(LOWER($K64)="vrai",LOWER($K64)="true"),BF64,N64),$AT64,fiscalyear,$E64,$F64,$R64,discount))) -> 0 | BA64: =IF(AND($AT64<>0,$X64>0),(L64*(1+PeriodRate($AT64,$X64))-L64)/(1+PeriodRate($AT64,$X64)),0) -> 0 | BB64: =IF(AND($AT64<>0,$X64>0),(M64*(1+PeriodRate($AT64,$X64))-M64)/(1+PeriodRate($AT64,$X64)),0) -> 0 | BC64: =IF(AND($AT64<>0,$X64>0),(N64*(1+PeriodRate($AT64,$X64))-N64)/(1+PeriodRate($AT64,$X64)),0) -> 0 | BD64: =IF(AND($AT64<>0,$R64>0),(L64*(1+PeriodRate($AT64,$R64))-L64)/(1+PeriodRate($AT64,$R64)),0) -> 0 | BE64: =IF(AND($AT64<>0,$R64>0),(M64*(1+PeriodRate($AT64,$R64))-M64)/(1+PeriodRate($AT64,$R64)),0) -> 0 | BF64: =IF(AND($AT64<>0,$R64>0),(N64*(1+PeriodRate($AT64,$R64))-N64)/(1+PeriodRate($AT64,$R64)),0) -> 0
A65: 58 | L65: =IF(ISBLANK($H65),"",(IF(OR(MID($I65,1,1)="1",MID($I65,1,1)="3"),INDEX(Profile!$C$23:$E$35,MATCH($H65,Profile!$B$23:$B$35,0),1),0)*$J65)) ->  | M65: =IF(ISBLANK($H65),"",(IF(OR(MID($I65,1,1)="2",MID($I65,1,1)="3"),INDEX(Profile!$C$23:$E$35,MATCH($H65,Profile!$B$23:$B$35,0),2),0))*$J65) ->  | Y65: =IF(OR(ISBLANK(U65),ISBLANK(V65)),"",(IF(MID(U65,1,1)="E",Premium,overhead)+1)*INDEX('Labour Costs'!$C$4:$C$51,MATCH(MID(V65,1,2),'Labour Costs'!$F$4:$F$51,0))) ->  | AD65: =IF(ISNUMBER(IF(S65="",0,PeriodRate(discount,R65))),IF(S65="",0,PeriodRate(discount,R65)),0) -> 0 | AE65: 0 | AF65: =IF(ISNUMBER(IF(Y65="",0,PeriodRate(discount,X65))),IF(Y65="",0,PeriodRate(discount,X65)),0) -> 0 | AG65: 0 | AH65: 0 | AI65: 0 | AJ65: 0 | AL65: 0 | AM65: 0 | AN65: 0 | AP65: 0 | AQ65: 0 | AR65: 0 | AT65: =IF(H65<>"",OFFSET(Profile!$F$24,MATCH(H65,Profile!$B$25:$B$35,0),0),0) -> 0 | AU65: =IF($U65="",0,IF(MID($D65,1,1)="1",IF(OR(LOWER($K65)="vrai",LOWER($K65)="true"),popcorrect(BA65,$AT65,fiscalyear,fiscalyear,fiscalyear+timeperiod,$X65,discount),0),popcorrect(IF(OR(LOWER($K65)="vrai",LOWER($K65)="true"),BA65,L65),$AT65,fiscalyear,$E65,$F65,$X65,discount))) -> 0 | AV65: =IF($U65="",0,IF(MID($D65,1,1)="1",IF(OR(LOWER($K65)="vrai",LOWER($K65)="true"),popcorrect(BB65,$AT65,fiscalyear,fiscalyear,fiscalyear+timeperiod,$X65,discount),0),popcorrect(IF(OR(LOWER($K65)="vrai",LOWER($K65)="true"),BB65,M65),$AT65,fiscalyear,$E65,$F65,$X65,discount))) -> 0 | AW65: =IF($U65="",0,IF(MID($D65,1,1)="1",IF(OR(LOWER($K65)="vrai",LOWER($K65)="true"),popcorrect(BC65,$AT65,fiscalyear,fiscalyear,fiscalyear+timeperiod,$X65,discount),0),popcorrect(IF(OR(LOWER($K65)="vrai",LOWER($K65)="true"),BC65,N65),$AT65,fiscalyear,$E65,$F65,$X65,discount))) -> 0 | AX65: =IF($P65="",0,IF(MID($D65,1,1)="1",IF(OR(LOWER($K65)="vraiI",LOWER($K65)="true"),popcorrect(BD65,$AT65,fiscalyear,fiscalyear,fiscalyear+timeperiod,$R65,discount),0),popcorrect(IF(OR(LOWER($K65)="vrai",LOWER($K65)="true"),BD65,L65),$AT65,fiscalyear,$E65,$F65,$R65,discount))) -> 0 | AY65: =IF($P65="",0,IF(MID($D65,1,1)="1",IF(OR(LOWER($K65)="vraiI",LOWER($K65)="true"),popcorrect(BE65,$AT65,fiscalyear,fiscalyear,fiscalyear+timeperiod,$R65,discount),0),popcorrect(IF(OR(LOWER($K65)="vrai",LOWER($K65)="true"),BE65,M65),$AT65,fiscalyear,$E65,$F65,$R65,discount))) -> 0 | AZ65: =IF($P65="",0,IF(MID($D65,1,1)="1",IF(OR(LOWER($K65)="vraiI",LOWER($K65)="true"),popcorrect(BF65,$AT65,fiscalyear,fiscalyear,fiscalyear+timeperiod,$R65,discount),0),popcorrect(IF(OR(LOWER($K65)="vrai",LOWER($K65)="true"),BF65,N65),$AT65,fiscalyear,$E65,$F65,$R65,discount))) -> 0 | BA65: =IF(AND($AT65<>0,$X65>0),(L65*(1+PeriodRate($AT65,$X65))-L65)/(1+PeriodRate($AT65,$X65)),0) -> 0 | BB65: =IF(AND($AT65<>0,$X65>0),(M65*(1+PeriodRate($AT65,$X65))-M65)/(1+PeriodRate($AT65,$X65)),0) -> 0 | BC65: =IF(AND($AT65<>0,$X65>0),(N65*(1+PeriodRate($AT65,$X65))-N65)/(1+PeriodRate($AT65,$X65)),0) -> 0 | BD65: =IF(AND($AT65<>0,$R65>0),(L65*(1+PeriodRate($AT65,$R65))-L65)/(1+PeriodRate($AT65,$R65)),0) -> 0 | BE65: =IF(AND($AT65<>0,$R65>0),(M65*(1+PeriodRate($AT65,$R65))-M65)/(1+PeriodRate($AT65,$R65)),0) -> 0 | BF65: =IF(AND($AT65<>0,$R65>0),(N65*(1+PeriodRate($AT65,$R65))-N65)/(1+PeriodRate($AT65,$R65)),0) -> 0
A66: 59 | L66: =IF(ISBLANK($H66),"",(IF(OR(MID($I66,1,1)="1",MID($I66,1,1)="3"),INDEX(Profile!$C$23:$E$35,MATCH($H66,Profile!$B$23:$B$35,0),1),0)*$J66)) ->  | M66: =IF(ISBLANK($H66),"",(IF(OR(MID($I66,1,1)="2",MID($I66,1,1)="3"),INDEX(Profile!$C$23:$E$35,MATCH($H66,Profile!$B$23:$B$35,0),2),0))*$J66) ->  | Y66: =IF(OR(ISBLANK(U66),ISBLANK(V66)),"",(IF(MID(U66,1,1)="E",Premium,overhead)+1)*INDEX('Labour Costs'!$C$4:$C$51,MATCH(MID(V66,1,2),'Labour Costs'!$F$4:$F$51,0))) ->  | AD66: =IF(ISNUMBER(IF(S66="",0,PeriodRate(discount,R66))),IF(S66="",0,PeriodRate(discount,R66)),0) -> 0 | AE66: 0 | AF66: =IF(ISNUMBER(IF(Y66="",0,PeriodRate(discount,X66))),IF(Y66="",0,PeriodRate(discount,X66)),0) -> 0 | AG66: 0 | AH66: 0 | AI66: 0 | AJ66: 0 | AL66: 0 | AM66: 0 | AN66: 0 | AP66: 0 | AQ66: 0 | AR66: 0 | AT66: =IF(H66<>"",OFFSET(Profile!$F$24,MATCH(H66,Profile!$B$25:$B$35,0),0),0) -> 0 | AU66: =IF($U66="",0,IF(MID($D66,1,1)="1",IF(OR(LOWER($K66)="vrai",LOWER($K66)="true"),popcorrect(BA66,$AT66,fiscalyear,fiscalyear,fiscalyear+timeperiod,$X66,discount),0),popcorrect(IF(OR(LOWER($K66)="vrai",LOWER($K66)="true"),BA66,L66),$AT66,fiscalyear,$E66,$F66,$X66,discount))) -> 0 | AV66: =IF($U66="",0,IF(MID($D66,1,1)="1",IF(OR(LOWER($K66)="vrai",LOWER($K66)="true"),popcorrect(BB66,$AT66,fiscalyear,fiscalyear,fiscalyear+timeperiod,$X66,discount),0),popcorrect(IF(OR(LOWER($K66)="vrai",LOWER($K66)="true"),BB66,M66),$AT66,fiscalyear,$E66,$F66,$X66,discount))) -> 0 | AW66: =IF($U66="",0,IF(MID($D66,1,1)="1",IF(OR(LOWER($K66)="vrai",LOWER($K66)="true"),popcorrect(BC66,$AT66,fiscalyear,fiscalyear,fiscalyear+timeperiod,$X66,discount),0),popcorrect(IF(OR(LOWER($K66)="vrai",LOWER($K66)="true"),BC66,N66),$AT66,fiscalyear,$E66,$F66,$X66,discount))) -> 0 | AX66: =IF($P66="",0,IF(MID($D66,1,1)="1",IF(OR(LOWER($K66)="vraiI",LOWER($K66)="true"),popcorrect(BD66,$AT66,fiscalyear,fiscalyear,fiscalyear+timeperiod,$R66,discount),0),popcorrect(IF(OR(LOWER($K66)="vrai",LOWER($K66)="true"),BD66,L66),$AT66,fiscalyear,$E66,$F66,$R66,discount))) -> 0 | AY66: =IF($P66="",0,IF(MID($D66,1,1)="1",IF(OR(LOWER($K66)="vraiI",LOWER($K66)="true"),popcorrect(BE66,$AT66,fiscalyear,fiscalyear,fiscalyear+timeperiod,$R66,discount),0),popcorrect(IF(OR(LOWER($K66)="vrai",LOWER($K66)="true"),BE66,M66),$AT66,fiscalyear,$E66,$F66,$R66,discount))) -> 0 | AZ66: =IF($P66="",0,IF(MID($D66,1,1)="1",IF(OR(LOWER($K66)="vraiI",LOWER($K66)="true"),popcorrect(BF66,$AT66,fiscalyear,fiscalyear,fiscalyear+timeperiod,$R66,discount),0),popcorrect(IF(OR(LOWER($K66)="vrai",LOWER($K66)="true"),BF66,N66),$AT66,fiscalyear,$E66,$F66,$R66,discount))) -> 0 | BA66: =IF(AND($AT66<>0,$X66>0),(L66*(1+PeriodRate($AT66,$X66))-L66)/(1+PeriodRate($AT66,$X66)),0) -> 0 | BB66: =IF(AND($AT66<>0,$X66>0),(M66*(1+PeriodRate($AT66,$X66))-M66)/(1+PeriodRate($AT66,$X66)),0) -> 0 | BC66: =IF(AND($AT66<>0,$X66>0),(N66*(1+PeriodRate($AT66,$X66))-N66)/(1+PeriodRate($AT66,$X66)),0) -> 0 | BD66: =IF(AND($AT66<>0,$R66>0),(L66*(1+PeriodRate($AT66,$R66))-L66)/(1+PeriodRate($AT66,$R66)),0) -> 0 | BE66: =IF(AND($AT66<>0,$R66>0),(M66*(1+PeriodRate($AT66,$R66))-M66)/(1+PeriodRate($AT66,$R66)),0) -> 0 | BF66: =IF(AND($AT66<>0,$R66>0),(N66*(1+PeriodRate($AT66,$R66))-N66)/(1+PeriodRate($AT66,$R66)),0) -> 0
A67: 60 | L67: =IF(ISBLANK($H67),"",(IF(OR(MID($I67,1,1)="1",MID($I67,1,1)="3"),INDEX(Profile!$C$23:$E$35,MATCH($H67,Profile!$B$23:$B$35,0),1),0)*$J67)) ->  | M67: =IF(ISBLANK($H67),"",(IF(OR(MID($I67,1,1)="2",MID($I67,1,1)="3"),INDEX(Profile!$C$23:$E$35,MATCH($H67,Profile!$B$23:$B$35,0),2),0))*$J67) ->  | Y67: =IF(OR(ISBLANK(U67),ISBLANK(V67)),"",(IF(MID(U67,1,1)="E",Premium,overhead)+1)*INDEX('Labour Costs'!$C$4:$C$51,MATCH(MID(V67,1,2),'Labour Costs'!$F$4:$F$51,0))) ->  | AD67: =IF(ISNUMBER(IF(S67="",0,PeriodRate(discount,R67))),IF(S67="",0,PeriodRate(discount,R67)),0) -> 0 | AE67: 0 | AF67: =IF(ISNUMBER(IF(Y67="",0,PeriodRate(discount,X67))),IF(Y67="",0,PeriodRate(discount,X67)),0) -> 0 | AG67: 0 | AH67: 0 | AI67: 0 | AJ67: 0 | AL67: 0 | AM67: 0 | AN67: 0 | AP67: 0 | AQ67: 0 | AR67: 0 | AT67: =IF(H67<>"",OFFSET(Profile!$F$24,MATCH(H67,Profile!$B$25:$B$35,0),0),0) -> 0 | AU67: =IF($U67="",0,IF(MID($D67,1,1)="1",IF(OR(LOWER($K67)="vrai",LOWER($K67)="true"),popcorrect(BA67,$AT67,fiscalyear,fiscalyear,fiscalyear+timeperiod,$X67,discount),0),popcorrect(IF(OR(LOWER($K67)="vrai",LOWER($K67)="true"),BA67,L67),$AT67,fiscalyear,$E67,$F67,$X67,discount))) -> 0 | AV67: =IF($U67="",0,IF(MID($D67,1,1)="1",IF(OR(LOWER($K67)="vrai",LOWER($K67)="true"),popcorrect(BB67,$AT67,fiscalyear,fiscalyear,fiscalyear+timeperiod,$X67,discount),0),popcorrect(IF(OR(LOWER($K67)="vrai",LOWER($K67)="true"),BB67,M67),$AT67,fiscalyear,$E67,$F67,$X67,discount))) -> 0 | AW67: =IF($U67="",0,IF(MID($D67,1,1)="1",IF(OR(LOWER($K67)="vrai",LOWER($K67)="true"),popcorrect(BC67,$AT67,fiscalyear,fiscalyear,fiscalyear+timeperiod,$X67,discount),0),popcorrect(IF(OR(LOWER($K67)="vrai",LOWER($K67)="true"),BC67,N67),$AT67,fiscalyear,$E67,$F67,$X67,discount))) -> 0 | AX67: =IF($P67="",0,IF(MID($D67,1,1)="1",IF(OR(LOWER($K67)="vraiI",LOWER($K67)="true"),popcorrect(BD67,$AT67,fiscalyear,fiscalyear,fiscalyear+timeperiod,$R67,discount),0),popcorrect(IF(OR(LOWER($K67)="vrai",LOWER($K67)="true"),BD67,L67),$AT67,fiscalyear,$E67,$F67,$R67,discount))) -> 0 | AY67: =IF($P67="",0,IF(MID($D67,1,1)="1",IF(OR(LOWER($K67)="vraiI",LOWER($K67)="true"),popcorrect(BE67,$AT67,fiscalyear,fiscalyear,fiscalyear+timeperiod,$R67,discount),0),popcorrect(IF(OR(LOWER($K67)="vrai",LOWER($K67)="true"),BE67,M67),$AT67,fiscalyear,$E67,$F67,$R67,discount))) -> 0 | AZ67: =IF($P67="",0,IF(MID($D67,1,1)="1",IF(OR(LOWER($K67)="vraiI",LOWER($K67)="true"),popcorrect(BF67,$AT67,fiscalyear,fiscalyear,fiscalyear+timeperiod,$R67,discount),0),popcorrect(IF(OR(LOWER($K67)="vrai",LOWER($K67)="true"),BF67,N67),$AT67,fiscalyear,$E67,$F67,$R67,discount))) -> 0 | BA67: =IF(AND($AT67<>0,$X67>0),(L67*(1+PeriodRate($AT67,$X67))-L67)/(1+PeriodRate($AT67,$X67)),0) -> 0 | BB67: =IF(AND($AT67<>0,$X67>0),(M67*(1+PeriodRate($AT67,$X67))-M67)/(1+PeriodRate($AT67,$X67)),0) -> 0 | BC67: =IF(AND($AT67<>0,$X67>0),(N67*(1+PeriodRate($AT67,$X67))-N67)/(1+PeriodRate($AT67,$X67)),0) -> 0 | BD67: =IF(AND($AT67<>0,$R67>0),(L67*(1+PeriodRate($AT67,$R67))-L67)/(1+PeriodRate($AT67,$R67)),0) -> 0 | BE67: =IF(AND($AT67<>0,$R67>0),(M67*(1+PeriodRate($AT67,$R67))-M67)/(1+PeriodRate($AT67,$R67)),0) -> 0 | BF67: =IF(AND($AT67<>0,$R67>0),(N67*(1+PeriodRate($AT67,$R67))-N67)/(1+PeriodRate($AT67,$R67)),0) -> 0
A68: 61 | L68: =IF(ISBLANK($H68),"",(IF(OR(MID($I68,1,1)="1",MID($I68,1,1)="3"),INDEX(Profile!$C$23:$E$35,MATCH($H68,Profile!$B$23:$B$35,0),1),0)*$J68)) ->  | M68: =IF(ISBLANK($H68),"",(IF(OR(MID($I68,1,1)="2",MID($I68,1,1)="3"),INDEX(Profile!$C$23:$E$35,MATCH($H68,Profile!$B$23:$B$35,0),2),0))*$J68) ->  | Y68: =IF(OR(ISBLANK(U68),ISBLANK(V68)),"",(IF(MID(U68,1,1)="E",Premium,overhead)+1)*INDEX('Labour Costs'!$C$4:$C$51,MATCH(MID(V68,1,2),'Labour Costs'!$F$4:$F$51,0))) ->  | AD68: =IF(ISNUMBER(IF(S68="",0,PeriodRate(discount,R68))),IF(S68="",0,PeriodRate(discount,R68)),0) -> 0 | AE68: 0 | AF68: =IF(ISNUMBER(IF(Y68="",0,PeriodRate(discount,X68))),IF(Y68="",0,PeriodRate(discount,X68)),0) -> 0 | AG68: 0 | AH68: 0 | AI68: 0 | AJ68: 0 | AL68: 0 | AM68: 0 | AN68: 0 | AP68: 0 | AQ68: 0 | AR68: 0 | AT68: =IF(H68<>"",OFFSET(Profile!$F$24,MATCH(H68,Profile!$B$25:$B$35,0),0),0) -> 0 | AU68: =IF($U68="",0,IF(MID($D68,1,1)="1",IF(OR(LOWER($K68)="vrai",LOWER($K68)="true"),popcorrect(BA68,$AT68,fiscalyear,fiscalyear,fiscalyear+timeperiod,$X68,discount),0),popcorrect(IF(OR(LOWER($K68)="vrai",LOWER($K68)="true"),BA68,L68),$AT68,fiscalyear,$E68,$F68,$X68,discount))) -> 0 | AV68: =IF($U68="",0,IF(MID($D68,1,1)="1",IF(OR(LOWER($K68)="vrai",LOWER($K68)="true"),popcorrect(BB68,$AT68,fiscalyear,fiscalyear,fiscalyear+timeperiod,$X68,discount),0),popcorrect(IF(OR(LOWER($K68)="vrai",LOWER($K68)="true"),BB68,M68),$AT68,fiscalyear,$E68,$F68,$X68,discount))) -> 0 | AW68: =IF($U68="",0,IF(MID($D68,1,1)="1",IF(OR(LOWER($K68)="vrai",LOWER($K68)="true"),popcorrect(BC68,$AT68,fiscalyear,fiscalyear,fiscalyear+timeperiod,$X68,discount),0),popcorrect(IF(OR(LOWER($K68)="vrai",LOWER($K68)="true"),BC68,N68),$AT68,fiscalyear,$E68,$F68,$X68,discount))) -> 0 | AX68: =IF($P68="",0,IF(MID($D68,1,1)="1",IF(OR(LOWER($K68)="vraiI",LOWER($K68)="true"),popcorrect(BD68,$AT68,fiscalyear,fiscalyear,fiscalyear+timeperiod,$R68,discount),0),popcorrect(IF(OR(LOWER($K68)="vrai",LOWER($K68)="true"),BD68,L68),$AT68,fiscalyear,$E68,$F68,$R68,discount))) -> 0 | AY68: =IF($P68="",0,IF(MID($D68,1,1)="1",IF(OR(LOWER($K68)="vraiI",LOWER($K68)="true"),popcorrect(BE68,$AT68,fiscalyear,fiscalyear,fiscalyear+timeperiod,$R68,discount),0),popcorrect(IF(OR(LOWER($K68)="vrai",LOWER($K68)="true"),BE68,M68),$AT68,fiscalyear,$E68,$F68,$R68,discount))) -> 0 | AZ68: =IF($P68="",0,IF(MID($D68,1,1)="1",IF(OR(LOWER($K68)="vraiI",LOWER($K68)="true"),popcorrect(BF68,$AT68,fiscalyear,fiscalyear,fiscalyear+timeperiod,$R68,discount),0),popcorrect(IF(OR(LOWER($K68)="vrai",LOWER($K68)="true"),BF68,N68),$AT68,fiscalyear,$E68,$F68,$R68,discount))) -> 0 | BA68: =IF(AND($AT68<>0,$X68>0),(L68*(1+PeriodRate($AT68,$X68))-L68)/(1+PeriodRate($AT68,$X68)),0) -> 0 | BB68: =IF(AND($AT68<>0,$X68>0),(M68*(1+PeriodRate($AT68,$X68))-M68)/(1+PeriodRate($AT68,$X68)),0) -> 0 | BC68: =IF(AND($AT68<>0,$X68>0),(N68*(1+PeriodRate($AT68,$X68))-N68)/(1+PeriodRate($AT68,$X68)),0) -> 0 | BD68: =IF(AND($AT68<>0,$R68>0),(L68*(1+PeriodRate($AT68,$R68))-L68)/(1+PeriodRate($AT68,$R68)),0) -> 0 | BE68: =IF(AND($AT68<>0,$R68>0),(M68*(1+PeriodRate($AT68,$R68))-M68)/(1+PeriodRate($AT68,$R68)),0) -> 0 | BF68: =IF(AND($AT68<>0,$R68>0),(N68*(1+PeriodRate($AT68,$R68))-N68)/(1+PeriodRate($AT68,$R68)),0) -> 0
A69: 62 | L69: =IF(ISBLANK($H69),"",(IF(OR(MID($I69,1,1)="1",MID($I69,1,1)="3"),INDEX(Profile!$C$23:$E$35,MATCH($H69,Profile!$B$23:$B$35,0),1),0)*$J69)) ->  | M69: =IF(ISBLANK($H69),"",(IF(OR(MID($I69,1,1)="2",MID($I69,1,1)="3"),INDEX(Profile!$C$23:$E$35,MATCH($H69,Profile!$B$23:$B$35,0),2),0))*$J69) ->  | Y69: =IF(OR(ISBLANK(U69),ISBLANK(V69)),"",(IF(MID(U69,1,1)="E",Premium,overhead)+1)*INDEX('Labour Costs'!$C$4:$C$51,MATCH(MID(V69,1,2),'Labour Costs'!$F$4:$F$51,0))) ->  | AD69: =IF(ISNUMBER(IF(S69="",0,PeriodRate(discount,R69))),IF(S69="",0,PeriodRate(discount,R69)),0) -> 0 | AE69: 0 | AF69: =IF(ISNUMBER(IF(Y69="",0,PeriodRate(discount,X69))),IF(Y69="",0,PeriodRate(discount,X69)),0) -> 0 | AG69: 0 | AH69: 0 | AI69: 0 | AJ69: 0 | AL69: 0 | AM69: 0 | AN69: 0 | AP69: 0 | AQ69: 0 | AR69: 0 | AT69: =IF(H69<>"",OFFSET(Profile!$F$24,MATCH(H69,Profile!$B$25:$B$35,0),0),0) -> 0 | AU69: =IF($U69="",0,IF(MID($D69,1,1)="1",IF(OR(LOWER($K69)="vrai",LOWER($K69)="true"),popcorrect(BA69,$AT69,fiscalyear,fiscalyear,fiscalyear+timeperiod,$X69,discount),0),popcorrect(IF(OR(LOWER($K69)="vrai",LOWER($K69)="true"),BA69,L69),$AT69,fiscalyear,$E69,$F69,$X69,discount))) -> 0 | AV69: =IF($U69="",0,IF(MID($D69,1,1)="1",IF(OR(LOWER($K69)="vrai",LOWER($K69)="true"),popcorrect(BB69,$AT69,fiscalyear,fiscalyear,fiscalyear+timeperiod,$X69,discount),0),popcorrect(IF(OR(LOWER($K69)="vrai",LOWER($K69)="true"),BB69,M69),$AT69,fiscalyear,$E69,$F69,$X69,discount))) -> 0 | AW69: =IF($U69="",0,IF(MID($D69,1,1)="1",IF(OR(LOWER($K69)="vrai",LOWER($K69)="true"),popcorrect(BC69,$AT69,fiscalyear,fiscalyear,fiscalyear+timeperiod,$X69,discount),0),popcorrect(IF(OR(LOWER($K69)="vrai",LOWER($K69)="true"),BC69,N69),$AT69,fiscalyear,$E69,$F69,$X69,discount))) -> 0 | AX69: =IF($P69="",0,IF(MID($D69,1,1)="1",IF(OR(LOWER($K69)="vraiI",LOWER($K69)="true"),popcorrect(BD69,$AT69,fiscalyear,fiscalyear,fiscalyear+timeperiod,$R69,discount),0),popcorrect(IF(OR(LOWER($K69)="vrai",LOWER($K69)="true"),BD69,L69),$AT69,fiscalyear,$E69,$F69,$R69,discount))) -> 0 | AY69: =IF($P69="",0,IF(MID($D69,1,1)="1",IF(OR(LOWER($K69)="vraiI",LOWER($K69)="true"),popcorrect(BE69,$AT69,fiscalyear,fiscalyear,fiscalyear+timeperiod,$R69,discount),0),popcorrect(IF(OR(LOWER($K69)="vrai",LOWER($K69)="true"),BE69,M69),$AT69,fiscalyear,$E69,$F69,$R69,discount))) -> 0 | AZ69: =IF($P69="",0,IF(MID($D69,1,1)="1",IF(OR(LOWER($K69)="vraiI",LOWER($K69)="true"),popcorrect(BF69,$AT69,fiscalyear,fiscalyear,fiscalyear+timeperiod,$R69,discount),0),popcorrect(IF(OR(LOWER($K69)="vrai",LOWER($K69)="true"),BF69,N69),$AT69,fiscalyear,$E69,$F69,$R69,discount))) -> 0 | BA69: =IF(AND($AT69<>0,$X69>0),(L69*(1+PeriodRate($AT69,$X69))-L69)/(1+PeriodRate($AT69,$X69)),0) -> 0 | BB69: =IF(AND($AT69<>0,$X69>0),(M69*(1+PeriodRate($AT69,$X69))-M69)/(1+PeriodRate($AT69,$X69)),0) -> 0 | BC69: =IF(AND($AT69<>0,$X69>0),(N69*(1+PeriodRate($AT69,$X69))-N69)/(1+PeriodRate($AT69,$X69)),0) -> 0 | BD69: =IF(AND($AT69<>0,$R69>0),(L69*(1+PeriodRate($AT69,$R69))-L69)/(1+PeriodRate($AT69,$R69)),0) -> 0 | BE69: =IF(AND($AT69<>0,$R69>0),(M69*(1+PeriodRate($AT69,$R69))-M69)/(1+PeriodRate($AT69,$R69)),0) -> 0 | BF69: =IF(AND($AT69<>0,$R69>0),(N69*(1+PeriodRate($AT69,$R69))-N69)/(1+PeriodRate($AT69,$R69)),0) -> 0
A70: 63 | L70: =IF(ISBLANK($H70),"",(IF(OR(MID($I70,1,1)="1",MID($I70,1,1)="3"),INDEX(Profile!$C$23:$E$35,MATCH($H70,Profile!$B$23:$B$35,0),1),0)*$J70)) ->  | M70: =IF(ISBLANK($H70),"",(IF(OR(MID($I70,1,1)="2",MID($I70,1,1)="3"),INDEX(Profile!$C$23:$E$35,MATCH($H70,Profile!$B$23:$B$35,0),2),0))*$J70) ->  | Y70: =IF(OR(ISBLANK(U70),ISBLANK(V70)),"",(IF(MID(U70,1,1)="E",Premium,overhead)+1)*INDEX('Labour Costs'!$C$4:$C$51,MATCH(MID(V70,1,2),'Labour Costs'!$F$4:$F$51,0))) ->  | AD70: =IF(ISNUMBER(IF(S70="",0,PeriodRate(discount,R70))),IF(S70="",0,PeriodRate(discount,R70)),0) -> 0 | AE70: 0 | AF70: =IF(ISNUMBER(IF(Y70="",0,PeriodRate(discount,X70))),IF(Y70="",0,PeriodRate(discount,X70)),0) -> 0 | AG70: 0 | AH70: 0 | AI70: 0 | AJ70: 0 | AL70: 0 | AM70: 0 | AN70: 0 | AP70: 0 | AQ70: 0 | AR70: 0 | AT70: =IF(H70<>"",OFFSET(Profile!$F$24,MATCH(H70,Profile!$B$25:$B$35,0),0),0) -> 0 | AU70: =IF($U70="",0,IF(MID($D70,1,1)="1",IF(OR(LOWER($K70)="vrai",LOWER($K70)="true"),popcorrect(BA70,$AT70,fiscalyear,fiscalyear,fiscalyear+timeperiod,$X70,discount),0),popcorrect(IF(OR(LOWER($K70)="vrai",LOWER($K70)="true"),BA70,L70),$AT70,fiscalyear,$E70,$F70,$X70,discount))) -> 0 | AV70: =IF($U70="",0,IF(MID($D70,1,1)="1",IF(OR(LOWER($K70)="vrai",LOWER($K70)="true"),popcorrect(BB70,$AT70,fiscalyear,fiscalyear,fiscalyear+timeperiod,$X70,discount),0),popcorrect(IF(OR(LOWER($K70)="vrai",LOWER($K70)="true"),BB70,M70),$AT70,fiscalyear,$E70,$F70,$X70,discount))) -> 0 | AW70: =IF($U70="",0,IF(MID($D70,1,1)="1",IF(OR(LOWER($K70)="vrai",LOWER($K70)="true"),popcorrect(BC70,$AT70,fiscalyear,fiscalyear,fiscalyear+timeperiod,$X70,discount),0),popcorrect(IF(OR(LOWER($K70)="vrai",LOWER($K70)="true"),BC70,N70),$AT70,fiscalyear,$E70,$F70,$X70,discount))) -> 0 | AX70: =IF($P70="",0,IF(MID($D70,1,1)="1",IF(OR(LOWER($K70)="vraiI",LOWER($K70)="true"),popcorrect(BD70,$AT70,fiscalyear,fiscalyear,fiscalyear+timeperiod,$R70,discount),0),popcorrect(IF(OR(LOWER($K70)="vrai",LOWER($K70)="true"),BD70,L70),$AT70,fiscalyear,$E70,$F70,$R70,discount))) -> 0 | AY70: =IF($P70="",0,IF(MID($D70,1,1)="1",IF(OR(LOWER($K70)="vraiI",LOWER($K70)="true"),popcorrect(BE70,$AT70,fiscalyear,fiscalyear,fiscalyear+timeperiod,$R70,discount),0),popcorrect(IF(OR(LOWER($K70)="vrai",LOWER($K70)="true"),BE70,M70),$AT70,fiscalyear,$E70,$F70,$R70,discount))) -> 0 | AZ70: =IF($P70="",0,IF(MID($D70,1,1)="1",IF(OR(LOWER($K70)="vraiI",LOWER($K70)="true"),popcorrect(BF70,$AT70,fiscalyear,fiscalyear,fiscalyear+timeperiod,$R70,discount),0),popcorrect(IF(OR(LOWER($K70)="vrai",LOWER($K70)="true"),BF70,N70),$AT70,fiscalyear,$E70,$F70,$R70,discount))) -> 0 | BA70: =IF(AND($AT70<>0,$X70>0),(L70*(1+PeriodRate($AT70,$X70))-L70)/(1+PeriodRate($AT70,$X70)),0) -> 0 | BB70: =IF(AND($AT70<>0,$X70>0),(M70*(1+PeriodRate($AT70,$X70))-M70)/(1+PeriodRate($AT70,$X70)),0) -> 0 | BC70: =IF(AND($AT70<>0,$X70>0),(N70*(1+PeriodRate($AT70,$X70))-N70)/(1+PeriodRate($AT70,$X70)),0) -> 0 | BD70: =IF(AND($AT70<>0,$R70>0),(L70*(1+PeriodRate($AT70,$R70))-L70)/(1+PeriodRate($AT70,$R70)),0) -> 0 | BE70: =IF(AND($AT70<>0,$R70>0),(M70*(1+PeriodRate($AT70,$R70))-M70)/(1+PeriodRate($AT70,$R70)),0) -> 0 | BF70: =IF(AND($AT70<>0,$R70>0),(N70*(1+PeriodRate($AT70,$R70))-N70)/(1+PeriodRate($AT70,$R70)),0) -> 0
A71: 64 | L71: =IF(ISBLANK($H71),"",(IF(OR(MID($I71,1,1)="1",MID($I71,1,1)="3"),INDEX(Profile!$C$23:$E$35,MATCH($H71,Profile!$B$23:$B$35,0),1),0)*$J71)) ->  | M71: =IF(ISBLANK($H71),"",(IF(OR(MID($I71,1,1)="2",MID($I71,1,1)="3"),INDEX(Profile!$C$23:$E$35,MATCH($H71,Profile!$B$23:$B$35,0),2),0))*$J71) ->  | Y71: =IF(OR(ISBLANK(U71),ISBLANK(V71)),"",(IF(MID(U71,1,1)="E",Premium,overhead)+1)*INDEX('Labour Costs'!$C$4:$C$51,MATCH(MID(V71,1,2),'Labour Costs'!$F$4:$F$51,0))) ->  | AD71: =IF(ISNUMBER(IF(S71="",0,PeriodRate(discount,R71))),IF(S71="",0,PeriodRate(discount,R71)),0) -> 0 | AE71: 0 | AF71: =IF(ISNUMBER(IF(Y71="",0,PeriodRate(discount,X71))),IF(Y71="",0,PeriodRate(discount,X71)),0) -> 0 | AG71: 0 | AH71: 0 | AI71: 0 | AJ71: 0 | AL71: 0 | AM71: 0 | AN71: 0 | AP71: 0 | AQ71: 0 | AR71: 0 | AT71: =IF(H71<>"",OFFSET(Profile!$F$24,MATCH(H71,Profile!$B$25:$B$35,0),0),0) -> 0 | AU71: =IF($U71="",0,IF(MID($D71,1,1)="1",IF(OR(LOWER($K71)="vrai",LOWER($K71)="true"),popcorrect(BA71,$AT71,fiscalyear,fiscalyear,fiscalyear+timeperiod,$X71,discount),0),popcorrect(IF(OR(LOWER($K71)="vrai",LOWER($K71)="true"),BA71,L71),$AT71,fiscalyear,$E71,$F71,$X71,discount))) -> 0 | AV71: =IF($U71="",0,IF(MID($D71,1,1)="1",IF(OR(LOWER($K71)="vrai",LOWER($K71)="true"),popcorrect(BB71,$AT71,fiscalyear,fiscalyear,fiscalyear+timeperiod,$X71,discount),0),popcorrect(IF(OR(LOWER($K71)="vrai",LOWER($K71)="true"),BB71,M71),$AT71,fiscalyear,$E71,$F71,$X71,discount))) -> 0 | AW71: =IF($U71="",0,IF(MID($D71,1,1)="1",IF(OR(LOWER($K71)="vrai",LOWER($K71)="true"),popcorrect(BC71,$AT71,fiscalyear,fiscalyear,fiscalyear+timeperiod,$X71,discount),0),popcorrect(IF(OR(LOWER($K71)="vrai",LOWER($K71)="true"),BC71,N71),$AT71,fiscalyear,$E71,$F71,$X71,discount))) -> 0 | AX71: =IF($P71="",0,IF(MID($D71,1,1)="1",IF(OR(LOWER($K71)="vraiI",LOWER($K71)="true"),popcorrect(BD71,$AT71,fiscalyear,fiscalyear,fiscalyear+timeperiod,$R71,discount),0),popcorrect(IF(OR(LOWER($K71)="vrai",LOWER($K71)="true"),BD71,L71),$AT71,fiscalyear,$E71,$F71,$R71,discount))) -> 0 | AY71: =IF($P71="",0,IF(MID($D71,1,1)="1",IF(OR(LOWER($K71)="vraiI",LOWER($K71)="true"),popcorrect(BE71,$AT71,fiscalyear,fiscalyear,fiscalyear+timeperiod,$R71,discount),0),popcorrect(IF(OR(LOWER($K71)="vrai",LOWER($K71)="true"),BE71,M71),$AT71,fiscalyear,$E71,$F71,$R71,discount))) -> 0 | AZ71: =IF($P71="",0,IF(MID($D71,1,1)="1",IF(OR(LOWER($K71)="vraiI",LOWER($K71)="true"),popcorrect(BF71,$AT71,fiscalyear,fiscalyear,fiscalyear+timeperiod,$R71,discount),0),popcorrect(IF(OR(LOWER($K71)="vrai",LOWER($K71)="true"),BF71,N71),$AT71,fiscalyear,$E71,$F71,$R71,discount))) -> 0 | BA71: =IF(AND($AT71<>0,$X71>0),(L71*(1+PeriodRate($AT71,$X71))-L71)/(1+PeriodRate($AT71,$X71)),0) -> 0 | BB71: =IF(AND($AT71<>0,$X71>0),(M71*(1+PeriodRate($AT71,$X71))-M71)/(1+PeriodRate($AT71,$X71)),0) -> 0 | BC71: =IF(AND($AT71<>0,$X71>0),(N71*(1+PeriodRate($AT71,$X71))-N71)/(1+PeriodRate($AT71,$X71)),0) -> 0 | BD71: =IF(AND($AT71<>0,$R71>0),(L71*(1+PeriodRate($AT71,$R71))-L71)/(1+PeriodRate($AT71,$R71)),0) -> 0 | BE71: =IF(AND($AT71<>0,$R71>0),(M71*(1+PeriodRate($AT71,$R71))-M71)/(1+PeriodRate($AT71,$R71)),0) -> 0 | BF71: =IF(AND($AT71<>0,$R71>0),(N71*(1+PeriodRate($AT71,$R71))-N71)/(1+PeriodRate($AT71,$R71)),0) -> 0
A72: 65 | L72: =IF(ISBLANK($H72),"",(IF(OR(MID($I72,1,1)="1",MID($I72,1,1)="3"),INDEX(Profile!$C$23:$E$35,MATCH($H72,Profile!$B$23:$B$35,0),1),0)*$J72)) ->  | M72: =IF(ISBLANK($H72),"",(IF(OR(MID($I72,1,1)="2",MID($I72,1,1)="3"),INDEX(Profile!$C$23:$E$35,MATCH($H72,Profile!$B$23:$B$35,0),2),0))*$J72) ->  | Y72: =IF(OR(ISBLANK(U72),ISBLANK(V72)),"",(IF(MID(U72,1,1)="E",Premium,overhead)+1)*INDEX('Labour Costs'!$C$4:$C$51,MATCH(MID(V72,1,2),'Labour Costs'!$F$4:$F$51,0))) ->  | AD72: =IF(ISNUMBER(IF(S72="",0,PeriodRate(discount,R72))),IF(S72="",0,PeriodRate(discount,R72)),0) -> 0 | AE72: 0 | AF72: =IF(ISNUMBER(IF(Y72="",0,PeriodRate(discount,X72))),IF(Y72="",0,PeriodRate(discount,X72)),0) -> 0 | AG72: 0 | AH72: 0 | AI72: 0 | AJ72: 0 | AL72: 0 | AM72: 0 | AN72: 0 | AP72: 0 | AQ72: 0 | AR72: 0 | AT72: =IF(H72<>"",OFFSET(Profile!$F$24,MATCH(H72,Profile!$B$25:$B$35,0),0),0) -> 0 | AU72: =IF($U72="",0,IF(MID($D72,1,1)="1",IF(OR(LOWER($K72)="vrai",LOWER($K72)="true"),popcorrect(BA72,$AT72,fiscalyear,fiscalyear,fiscalyear+timeperiod,$X72,discount),0),popcorrect(IF(OR(LOWER($K72)="vrai",LOWER($K72)="true"),BA72,L72),$AT72,fiscalyear,$E72,$F72,$X72,discount))) -> 0 | AV72: =IF($U72="",0,IF(MID($D72,1,1)="1",IF(OR(LOWER($K72)="vrai",LOWER($K72)="true"),popcorrect(BB72,$AT72,fiscalyear,fiscalyear,fiscalyear+timeperiod,$X72,discount),0),popcorrect(IF(OR(LOWER($K72)="vrai",LOWER($K72)="true"),BB72,M72),$AT72,fiscalyear,$E72,$F72,$X72,discount))) -> 0 | AW72: =IF($U72="",0,IF(MID($D72,1,1)="1",IF(OR(LOWER($K72)="vrai",LOWER($K72)="true"),popcorrect(BC72,$AT72,fiscalyear,fiscalyear,fiscalyear+timeperiod,$X72,discount),0),popcorrect(IF(OR(LOWER($K72)="vrai",LOWER($K72)="true"),BC72,N72),$AT72,fiscalyear,$E72,$F72,$X72,discount))) -> 0 | AX72: =IF($P72="",0,IF(MID($D72,1,1)="1",IF(OR(LOWER($K72)="vraiI",LOWER($K72)="true"),popcorrect(BD72,$AT72,fiscalyear,fiscalyear,fiscalyear+timeperiod,$R72,discount),0),popcorrect(IF(OR(LOWER($K72)="vrai",LOWER($K72)="true"),BD72,L72),$AT72,fiscalyear,$E72,$F72,$R72,discount))) -> 0 | AY72: =IF($P72="",0,IF(MID($D72,1,1)="1",IF(OR(LOWER($K72)="vraiI",LOWER($K72)="true"),popcorrect(BE72,$AT72,fiscalyear,fiscalyear,fiscalyear+timeperiod,$R72,discount),0),popcorrect(IF(OR(LOWER($K72)="vrai",LOWER($K72)="true"),BE72,M72),$AT72,fiscalyear,$E72,$F72,$R72,discount))) -> 0 | AZ72: =IF($P72="",0,IF(MID($D72,1,1)="1",IF(OR(LOWER($K72)="vraiI",LOWER($K72)="true"),popcorrect(BF72,$AT72,fiscalyear,fiscalyear,fiscalyear+timeperiod,$R72,discount),0),popcorrect(IF(OR(LOWER($K72)="vrai",LOWER($K72)="true"),BF72,N72),$AT72,fiscalyear,$E72,$F72,$R72,discount))) -> 0 | BA72: =IF(AND($AT72<>0,$X72>0),(L72*(1+PeriodRate($AT72,$X72))-L72)/(1+PeriodRate($AT72,$X72)),0) -> 0 | BB72: =IF(AND($AT72<>0,$X72>0),(M72*(1+PeriodRate($AT72,$X72))-M72)/(1+PeriodRate($AT72,$X72)),0) -> 0 | BC72: =IF(AND($AT72<>0,$X72>0),(N72*(1+PeriodRate($AT72,$X72))-N72)/(1+PeriodRate($AT72,$X72)),0) -> 0 | BD72: =IF(AND($AT72<>0,$R72>0),(L72*(1+PeriodRate($AT72,$R72))-L72)/(1+PeriodRate($AT72,$R72)),0) -> 0 | BE72: =IF(AND($AT72<>0,$R72>0),(M72*(1+PeriodRate($AT72,$R72))-M72)/(1+PeriodRate($AT72,$R72)),0) -> 0 | BF72: =IF(AND($AT72<>0,$R72>0),(N72*(1+PeriodRate($AT72,$R72))-N72)/(1+PeriodRate($AT72,$R72)),0) -> 0
A73: 66 | L73: =IF(ISBLANK($H73),"",(IF(OR(MID($I73,1,1)="1",MID($I73,1,1)="3"),INDEX(Profile!$C$23:$E$35,MATCH($H73,Profile!$B$23:$B$35,0),1),0)*$J73)) ->  | M73: =IF(ISBLANK($H73),"",(IF(OR(MID($I73,1,1)="2",MID($I73,1,1)="3"),INDEX(Profile!$C$23:$E$35,MATCH($H73,Profile!$B$23:$B$35,0),2),0))*$J73) ->  | S73: =IF(P73="","",P73*Q73) ->  | Y73: =IF(OR(ISBLANK(U73),ISBLANK(V73)),"",(IF(MID(U73,1,1)="E",Premium,overhead)+1)*INDEX('Labour Costs'!$C$4:$C$51,MATCH(MID(V73,1,2),'Labour Costs'!$F$4:$F$51,0))) ->  | AD73: =IF(ISNUMBER(IF(S73="",0,PeriodRate(discount,R73))),IF(S73="",0,PeriodRate(discount,R73)),0) -> 0 | AE73: 0 | AF73: =IF(ISNUMBER(IF(Y73="",0,PeriodRate(discount,X73))),IF(Y73="",0,PeriodRate(discount,X73)),0) -> 0 | AG73: 0 | AH73: 0 | AI73: 0 | AJ73: 0 | AL73: 0 | AM73: 0 | AN73: 0 | AP73: 0 | AQ73: 0 | AR73: 0 | AT73: =IF(H73<>"",OFFSET(Profile!$F$24,MATCH(H73,Profile!$B$25:$B$35,0),0),0) -> 0 | AU73: =IF($U73="",0,IF(MID($D73,1,1)="1",IF(OR(LOWER($K73)="vrai",LOWER($K73)="true"),popcorrect(BA73,$AT73,fiscalyear,fiscalyear,fiscalyear+timeperiod,$X73,discount),0),popcorrect(IF(OR(LOWER($K73)="vrai",LOWER($K73)="true"),BA73,L73),$AT73,fiscalyear,$E73,$F73,$X73,discount))) -> 0 | AV73: =IF($U73="",0,IF(MID($D73,1,1)="1",IF(OR(LOWER($K73)="vrai",LOWER($K73)="true"),popcorrect(BB73,$AT73,fiscalyear,fiscalyear,fiscalyear+timeperiod,$X73,discount),0),popcorrect(IF(OR(LOWER($K73)="vrai",LOWER($K73)="true"),BB73,M73),$AT73,fiscalyear,$E73,$F73,$X73,discount))) -> 0 | AW73: =IF($U73="",0,IF(MID($D73,1,1)="1",IF(OR(LOWER($K73)="vrai",LOWER($K73)="true"),popcorrect(BC73,$AT73,fiscalyear,fiscalyear,fiscalyear+timeperiod,$X73,discount),0),popcorrect(IF(OR(LOWER($K73)="vrai",LOWER($K73)="true"),BC73,N73),$AT73,fiscalyear,$E73,$F73,$X73,discount))) -> 0 | AX73: =IF($P73="",0,IF(MID($D73,1,1)="1",IF(OR(LOWER($K73)="vraiI",LOWER($K73)="true"),popcorrect(BD73,$AT73,fiscalyear,fiscalyear,fiscalyear+timeperiod,$R73,discount),0),popcorrect(IF(OR(LOWER($K73)="vrai",LOWER($K73)="true"),BD73,L73),$AT73,fiscalyear,$E73,$F73,$R73,discount))) -> 0 | AY73: =IF($P73="",0,IF(MID($D73,1,1)="1",IF(OR(LOWER($K73)="vraiI",LOWER($K73)="true"),popcorrect(BE73,$AT73,fiscalyear,fiscalyear,fiscalyear+timeperiod,$R73,discount),0),popcorrect(IF(OR(LOWER($K73)="vrai",LOWER($K73)="true"),BE73,M73),$AT73,fiscalyear,$E73,$F73,$R73,discount))) -> 0 | AZ73: =IF($P73="",0,IF(MID($D73,1,1)="1",IF(OR(LOWER($K73)="vraiI",LOWER($K73)="true"),popcorrect(BF73,$AT73,fiscalyear,fiscalyear,fiscalyear+timeperiod,$R73,discount),0),popcorrect(IF(OR(LOWER($K73)="vrai",LOWER($K73)="true"),BF73,N73),$AT73,fiscalyear,$E73,$F73,$R73,discount))) -> 0 | BA73: =IF(AND($AT73<>0,$X73>0),(L73*(1+PeriodRate($AT73,$X73))-L73)/(1+PeriodRate($AT73,$X73)),0) -> 0 | BB73: =IF(AND($AT73<>0,$X73>0),(M73*(1+PeriodRate($AT73,$X73))-M73)/(1+PeriodRate($AT73,$X73)),0) -> 0 | BC73: =IF(AND($AT73<>0,$X73>0),(N73*(1+PeriodRate($AT73,$X73))-N73)/(1+PeriodRate($AT73,$X73)),0) -> 0 | BD73: =IF(AND($AT73<>0,$R73>0),(L73*(1+PeriodRate($AT73,$R73))-L73)/(1+PeriodRate($AT73,$R73)),0) -> 0 | BE73: =IF(AND($AT73<>0,$R73>0),(M73*(1+PeriodRate($AT73,$R73))-M73)/(1+PeriodRate($AT73,$R73)),0) -> 0 | BF73: =IF(AND($AT73<>0,$R73>0),(N73*(1+PeriodRate($AT73,$R73))-N73)/(1+PeriodRate($AT73,$R73)),0) -> 0
A74: 67 | L74: =IF(ISBLANK($H74),"",(IF(OR(MID($I74,1,1)="1",MID($I74,1,1)="3"),INDEX(Profile!$C$23:$E$35,MATCH($H74,Profile!$B$23:$B$35,0),1),0)*$J74)) ->  | M74: =IF(ISBLANK($H74),"",(IF(OR(MID($I74,1,1)="2",MID($I74,1,1)="3"),INDEX(Profile!$C$23:$E$35,MATCH($H74,Profile!$B$23:$B$35,0),2),0))*$J74) ->  | Y74: =IF(OR(ISBLANK(U74),ISBLANK(V74)),"",(IF(MID(U74,1,1)="E",Premium,overhead)+1)*INDEX('Labour Costs'!$C$4:$C$51,MATCH(MID(V74,1,2),'Labour Costs'!$F$4:$F$51,0))) ->  | Z74: =IF(Y74="","",Y74*W74) ->  | AD74: =IF(ISNUMBER(IF(S74="",0,PeriodRate(discount,R74))),IF(S74="",0,PeriodRate(discount,R74)),0) -> 0 | AE74: 0 | AF74: =IF(ISNUMBER(IF(Y74="",0,PeriodRate(discount,X74))),IF(Y74="",0,PeriodRate(discount,X74)),0) -> 0 | AG74: 0 | AH74: 0 | AI74: 0 | AJ74: 0 | AL74: 0 | AM74: 0 | AN74: 0 | AP74: 0 | AQ74: 0 | AR74: 0 | AT74: =IF(H74<>"",OFFSET(Profile!$F$24,MATCH(H74,Profile!$B$25:$B$35,0),0),0) -> 0 | AU74: =IF($U74="",0,IF(MID($D74,1,1)="1",IF(OR(LOWER($K74)="vrai",LOWER($K74)="true"),popcorrect(BA74,$AT74,fiscalyear,fiscalyear,fiscalyear+timeperiod,$X74,discount),0),popcorrect(IF(OR(LOWER($K74)="vrai",LOWER($K74)="true"),BA74,L74),$AT74,fiscalyear,$E74,$F74,$X74,discount))) -> 0 | AV74: =IF($U74="",0,IF(MID($D74,1,1)="1",IF(OR(LOWER($K74)="vrai",LOWER($K74)="true"),popcorrect(BB74,$AT74,fiscalyear,fiscalyear,fiscalyear+timeperiod,$X74,discount),0),popcorrect(IF(OR(LOWER($K74)="vrai",LOWER($K74)="true"),BB74,M74),$AT74,fiscalyear,$E74,$F74,$X74,discount))) -> 0 | AW74: =IF($U74="",0,IF(MID($D74,1,1)="1",IF(OR(LOWER($K74)="vrai",LOWER($K74)="true"),popcorrect(BC74,$AT74,fiscalyear,fiscalyear,fiscalyear+timeperiod,$X74,discount),0),popcorrect(IF(OR(LOWER($K74)="vrai",LOWER($K74)="true"),BC74,N74),$AT74,fiscalyear,$E74,$F74,$X74,discount))) -> 0 | AX74: =IF($P74="",0,IF(MID($D74,1,1)="1",IF(OR(LOWER($K74)="vraiI",LOWER($K74)="true"),popcorrect(BD74,$AT74,fiscalyear,fiscalyear,fiscalyear+timeperiod,$R74,discount),0),popcorrect(IF(OR(LOWER($K74)="vrai",LOWER($K74)="true"),BD74,L74),$AT74,fiscalyear,$E74,$F74,$R74,discount))) -> 0 | AY74: =IF($P74="",0,IF(MID($D74,1,1)="1",IF(OR(LOWER($K74)="vraiI",LOWER($K74)="true"),popcorrect(BE74,$AT74,fiscalyear,fiscalyear,fiscalyear+timeperiod,$R74,discount),0),popcorrect(IF(OR(LOWER($K74)="vrai",LOWER($K74)="true"),BE74,M74),$AT74,fiscalyear,$E74,$F74,$R74,discount))) -> 0 | AZ74: =IF($P74="",0,IF(MID($D74,1,1)="1",IF(OR(LOWER($K74)="vraiI",LOWER($K74)="true"),popcorrect(BF74,$AT74,fiscalyear,fiscalyear,fiscalyear+timeperiod,$R74,discount),0),popcorrect(IF(OR(LOWER($K74)="vrai",LOWER($K74)="true"),BF74,N74),$AT74,fiscalyear,$E74,$F74,$R74,discount))) -> 0 | BA74: =IF(AND($AT74<>0,$X74>0),(L74*(1+PeriodRate($AT74,$X74))-L74)/(1+PeriodRate($AT74,$X74)),0) -> 0 | BB74: =IF(AND($AT74<>0,$X74>0),(M74*(1+PeriodRate($AT74,$X74))-M74)/(1+PeriodRate($AT74,$X74)),0) -> 0 | BC74: =IF(AND($AT74<>0,$X74>0),(N74*(1+PeriodRate($AT74,$X74))-N74)/(1+PeriodRate($AT74,$X74)),0) -> 0 | BD74: =IF(AND($AT74<>0,$R74>0),(L74*(1+PeriodRate($AT74,$R74))-L74)/(1+PeriodRate($AT74,$R74)),0) -> 0 | BE74: =IF(AND($AT74<>0,$R74>0),(M74*(1+PeriodRate($AT74,$R74))-M74)/(1+PeriodRate($AT74,$R74)),0) -> 0 | BF74: =IF(AND($AT74<>0,$R74>0),(N74*(1+PeriodRate($AT74,$R74))-N74)/(1+PeriodRate($AT74,$R74)),0) -> 0
A75: 68 | L75: =IF(ISBLANK($H75),"",(IF(OR(MID($I75,1,1)="1",MID($I75,1,1)="3"),INDEX(Profile!$C$23:$E$35,MATCH($H75,Profile!$B$23:$B$35,0),1),0)*$J75)) ->  | M75: =IF(ISBLANK($H75),"",(IF(OR(MID($I75,1,1)="2",MID($I75,1,1)="3"),INDEX(Profile!$C$23:$E$35,MATCH($H75,Profile!$B$23:$B$35,0),2),0))*$J75) ->  | Y75: =IF(OR(ISBLANK(U75),ISBLANK(V75)),"",(IF(MID(U75,1,1)="E",Premium,overhead)+1)*INDEX('Labour Costs'!$C$4:$C$51,MATCH(MID(V75,1,2),'Labour Costs'!$F$4:$F$51,0))) ->  | AD75: =IF(ISNUMBER(IF(S75="",0,PeriodRate(discount,R75))),IF(S75="",0,PeriodRate(discount,R75)),0) -> 0 | AE75: 0 | AF75: =IF(ISNUMBER(IF(Y75="",0,PeriodRate(discount,X75))),IF(Y75="",0,PeriodRate(discount,X75)),0) -> 0 | AG75: 0 | AH75: 0 | AI75: 0 | AJ75: 0 | AL75: 0 | AM75: 0 | AN75: 0 | AP75: 0 | AQ75: 0 | AR75: 0 | AT75: =IF(H75<>"",OFFSET(Profile!$F$24,MATCH(H75,Profile!$B$25:$B$35,0),0),0) -> 0 | AU75: =IF($U75="",0,IF(MID($D75,1,1)="1",IF(OR(LOWER($K75)="vrai",LOWER($K75)="true"),popcorrect(BA75,$AT75,fiscalyear,fiscalyear,fiscalyear+timeperiod,$X75,discount),0),popcorrect(IF(OR(LOWER($K75)="vrai",LOWER($K75)="true"),BA75,L75),$AT75,fiscalyear,$E75,$F75,$X75,discount))) -> 0 | AV75: =IF($U75="",0,IF(MID($D75,1,1)="1",IF(OR(LOWER($K75)="vrai",LOWER($K75)="true"),popcorrect(BB75,$AT75,fiscalyear,fiscalyear,fiscalyear+timeperiod,$X75,discount),0),popcorrect(IF(OR(LOWER($K75)="vrai",LOWER($K75)="true"),BB75,M75),$AT75,fiscalyear,$E75,$F75,$X75,discount))) -> 0 | AW75: =IF($U75="",0,IF(MID($D75,1,1)="1",IF(OR(LOWER($K75)="vrai",LOWER($K75)="true"),popcorrect(BC75,$AT75,fiscalyear,fiscalyear,fiscalyear+timeperiod,$X75,discount),0),popcorrect(IF(OR(LOWER($K75)="vrai",LOWER($K75)="true"),BC75,N75),$AT75,fiscalyear,$E75,$F75,$X75,discount))) -> 0 | AX75: =IF($P75="",0,IF(MID($D75,1,1)="1",IF(OR(LOWER($K75)="vraiI",LOWER($K75)="true"),popcorrect(BD75,$AT75,fiscalyear,fiscalyear,fiscalyear+timeperiod,$R75,discount),0),popcorrect(IF(OR(LOWER($K75)="vrai",LOWER($K75)="true"),BD75,L75),$AT75,fiscalyear,$E75,$F75,$R75,discount))) -> 0 | AY75: =IF($P75="",0,IF(MID($D75,1,1)="1",IF(OR(LOWER($K75)="vraiI",LOWER($K75)="true"),popcorrect(BE75,$AT75,fiscalyear,fiscalyear,fiscalyear+timeperiod,$R75,discount),0),popcorrect(IF(OR(LOWER($K75)="vrai",LOWER($K75)="true"),BE75,M75),$AT75,fiscalyear,$E75,$F75,$R75,discount))) -> 0 | AZ75: =IF($P75="",0,IF(MID($D75,1,1)="1",IF(OR(LOWER($K75)="vraiI",LOWER($K75)="true"),popcorrect(BF75,$AT75,fiscalyear,fiscalyear,fiscalyear+timeperiod,$R75,discount),0),popcorrect(IF(OR(LOWER($K75)="vrai",LOWER($K75)="true"),BF75,N75),$AT75,fiscalyear,$E75,$F75,$R75,discount))) -> 0 | BA75: =IF(AND($AT75<>0,$X75>0),(L75*(1+PeriodRate($AT75,$X75))-L75)/(1+PeriodRate($AT75,$X75)),0) -> 0 | BB75: =IF(AND($AT75<>0,$X75>0),(M75*(1+PeriodRate($AT75,$X75))-M75)/(1+PeriodRate($AT75,$X75)),0) -> 0 | BC75: =IF(AND($AT75<>0,$X75>0),(N75*(1+PeriodRate($AT75,$X75))-N75)/(1+PeriodRate($AT75,$X75)),0) -> 0 | BD75: =IF(AND($AT75<>0,$R75>0),(L75*(1+PeriodRate($AT75,$R75))-L75)/(1+PeriodRate($AT75,$R75)),0) -> 0 | BE75: =IF(AND($AT75<>0,$R75>0),(M75*(1+PeriodRate($AT75,$R75))-M75)/(1+PeriodRate($AT75,$R75)),0) -> 0 | BF75: =IF(AND($AT75<>0,$R75>0),(N75*(1+PeriodRate($AT75,$R75))-N75)/(1+PeriodRate($AT75,$R75)),0) -> 0
A76: 69 | L76: =IF(ISBLANK($H76),"",(IF(OR(MID($I76,1,1)="1",MID($I76,1,1)="3"),INDEX(Profile!$C$23:$E$35,MATCH($H76,Profile!$B$23:$B$35,0),1),0)*$J76)) ->  | M76: =IF(ISBLANK($H76),"",(IF(OR(MID($I76,1,1)="2",MID($I76,1,1)="3"),INDEX(Profile!$C$23:$E$35,MATCH($H76,Profile!$B$23:$B$35,0),2),0))*$J76) ->  | Y76: =IF(OR(ISBLANK(U76),ISBLANK(V76)),"",(IF(MID(U76,1,1)="E",Premium,overhead)+1)*INDEX('Labour Costs'!$C$4:$C$51,MATCH(MID(V76,1,2),'Labour Costs'!$F$4:$F$51,0))) ->  | AD76: =IF(ISNUMBER(IF(S76="",0,PeriodRate(discount,R76))),IF(S76="",0,PeriodRate(discount,R76)),0) -> 0 | AE76: 0 | AF76: =IF(ISNUMBER(IF(Y76="",0,PeriodRate(discount,X76))),IF(Y76="",0,PeriodRate(discount,X76)),0) -> 0 | AG76: 0 | AH76: 0 | AI76: 0 | AJ76: 0 | AL76: 0 | AM76: 0 | AN76: 0 | AP76: 0 | AQ76: 0 | AR76: =IF(NOT(ISNUMBER(AQ76)),"",(AQ76/AF)) -> 0 | AT76: =IF(H76<>"",OFFSET(Profile!$F$24,MATCH(H76,Profile!$B$25:$B$35,0),0),0) -> 0 | AU76: =IF($U76="",0,IF(MID($D76,1,1)="1",IF(OR(LOWER($K76)="vrai",LOWER($K76)="true"),popcorrect(BA76,$AT76,fiscalyear,fiscalyear,fiscalyear+timeperiod,$X76,discount),0),popcorrect(IF(OR(LOWER($K76)="vrai",LOWER($K76)="true"),BA76,L76),$AT76,fiscalyear,$E76,$F76,$X76,discount))) -> 0 | AV76: =IF($U76="",0,IF(MID($D76,1,1)="1",IF(OR(LOWER($K76)="vrai",LOWER($K76)="true"),popcorrect(BB76,$AT76,fiscalyear,fiscalyear,fiscalyear+timeperiod,$X76,discount),0),popcorrect(IF(OR(LOWER($K76)="vrai",LOWER($K76)="true"),BB76,M76),$AT76,fiscalyear,$E76,$F76,$X76,discount))) -> 0 | AW76: =IF($U76="",0,IF(MID($D76,1,1)="1",IF(OR(LOWER($K76)="vrai",LOWER($K76)="true"),popcorrect(BC76,$AT76,fiscalyear,fiscalyear,fiscalyear+timeperiod,$X76,discount),0),popcorrect(IF(OR(LOWER($K76)="vrai",LOWER($K76)="true"),BC76,N76),$AT76,fiscalyear,$E76,$F76,$X76,discount))) -> 0 | AX76: =IF($P76="",0,IF(MID($D76,1,1)="1",IF(OR(LOWER($K76)="vraiI",LOWER($K76)="true"),popcorrect(BD76,$AT76,fiscalyear,fiscalyear,fiscalyear+timeperiod,$R76,discount),0),popcorrect(IF(OR(LOWER($K76)="vrai",LOWER($K76)="true"),BD76,L76),$AT76,fiscalyear,$E76,$F76,$R76,discount))) -> 0 | AY76: =IF($P76="",0,IF(MID($D76,1,1)="1",IF(OR(LOWER($K76)="vraiI",LOWER($K76)="true"),popcorrect(BE76,$AT76,fiscalyear,fiscalyear,fiscalyear+timeperiod,$R76,discount),0),popcorrect(IF(OR(LOWER($K76)="vrai",LOWER($K76)="true"),BE76,M76),$AT76,fiscalyear,$E76,$F76,$R76,discount))) -> 0 | AZ76: =IF($P76="",0,IF(MID($D76,1,1)="1",IF(OR(LOWER($K76)="vraiI",LOWER($K76)="true"),popcorrect(BF76,$AT76,fiscalyear,fiscalyear,fiscalyear+timeperiod,$R76,discount),0),popcorrect(IF(OR(LOWER($K76)="vrai",LOWER($K76)="true"),BF76,N76),$AT76,fiscalyear,$E76,$F76,$R76,discount))) -> 0 | BA76: =IF(AND($AT76<>0,$X76>0),(L76*(1+PeriodRate($AT76,$X76))-L76)/(1+PeriodRate($AT76,$X76)),0) -> 0 | BB76: =IF(AND($AT76<>0,$X76>0),(M76*(1+PeriodRate($AT76,$X76))-M76)/(1+PeriodRate($AT76,$X76)),0) -> 0 | BC76: =IF(AND($AT76<>0,$X76>0),(N76*(1+PeriodRate($AT76,$X76))-N76)/(1+PeriodRate($AT76,$X76)),0) -> 0 | BD76: =IF(AND($AT76<>0,$R76>0),(L76*(1+PeriodRate($AT76,$R76))-L76)/(1+PeriodRate($AT76,$R76)),0) -> 0 | BE76: =IF(AND($AT76<>0,$R76>0),(M76*(1+PeriodRate($AT76,$R76))-M76)/(1+PeriodRate($AT76,$R76)),0) -> 0 | BF76: =IF(AND($AT76<>0,$R76>0),(N76*(1+PeriodRate($AT76,$R76))-N76)/(1+PeriodRate($AT76,$R76)),0) -> 0
A77: 70 | L77: =IF(ISBLANK($H77),"",(IF(OR(MID($I77,1,1)="1",MID($I77,1,1)="3"),INDEX(Profile!$C$23:$E$35,MATCH($H77,Profile!$B$23:$B$35,0),1),0)*$J77)) ->  | M77: =IF(ISBLANK($H77),"",(IF(OR(MID($I77,1,1)="2",MID($I77,1,1)="3"),INDEX(Profile!$C$23:$E$35,MATCH($H77,Profile!$B$23:$B$35,0),2),0))*$J77) ->  | Y77: =IF(OR(ISBLANK(U77),ISBLANK(V77)),"",(IF(MID(U77,1,1)="E",Premium,overhead)+1)*INDEX('Labour Costs'!$C$4:$C$51,MATCH(MID(V77,1,2),'Labour Costs'!$F$4:$F$51,0))) ->  | AD77: =IF(ISNUMBER(IF(S77="",0,PeriodRate(discount,R77))),IF(S77="",0,PeriodRate(discount,R77)),0) -> 0 | AE77: 0 | AF77: =IF(ISNUMBER(IF(Y77="",0,PeriodRate(discount,X77))),IF(Y77="",0,PeriodRate(discount,X77)),0) -> 0 | AG77: 0 | AH77: 0 | AI77: 0 | AJ77: 0 | AL77: 0 | AM77: 0 | AN77: 0 | AP77: 0 | AQ77: 0 | AR77: 0 | AT77: =IF(H77<>"",OFFSET(Profile!$F$24,MATCH(H77,Profile!$B$25:$B$35,0),0),0) -> 0 | AU77: =IF($U77="",0,IF(MID($D77,1,1)="1",IF(OR(LOWER($K77)="vrai",LOWER($K77)="true"),popcorrect(BA77,$AT77,fiscalyear,fiscalyear,fiscalyear+timeperiod,$X77,discount),0),popcorrect(IF(OR(LOWER($K77)="vrai",LOWER($K77)="true"),BA77,L77),$AT77,fiscalyear,$E77,$F77,$X77,discount))) -> 0 | AV77: =IF($U77="",0,IF(MID($D77,1,1)="1",IF(OR(LOWER($K77)="vrai",LOWER($K77)="true"),popcorrect(BB77,$AT77,fiscalyear,fiscalyear,fiscalyear+timeperiod,$X77,discount),0),popcorrect(IF(OR(LOWER($K77)="vrai",LOWER($K77)="true"),BB77,M77),$AT77,fiscalyear,$E77,$F77,$X77,discount))) -> 0 | AW77: =IF($U77="",0,IF(MID($D77,1,1)="1",IF(OR(LOWER($K77)="vrai",LOWER($K77)="true"),popcorrect(BC77,$AT77,fiscalyear,fiscalyear,fiscalyear+timeperiod,$X77,discount),0),popcorrect(IF(OR(LOWER($K77)="vrai",LOWER($K77)="true"),BC77,N77),$AT77,fiscalyear,$E77,$F77,$X77,discount))) -> 0 | AX77: =IF($P77="",0,IF(MID($D77,1,1)="1",IF(OR(LOWER($K77)="vraiI",LOWER($K77)="true"),popcorrect(BD77,$AT77,fiscalyear,fiscalyear,fiscalyear+timeperiod,$R77,discount),0),popcorrect(IF(OR(LOWER($K77)="vrai",LOWER($K77)="true"),BD77,L77),$AT77,fiscalyear,$E77,$F77,$R77,discount))) -> 0 | AY77: =IF($P77="",0,IF(MID($D77,1,1)="1",IF(OR(LOWER($K77)="vraiI",LOWER($K77)="true"),popcorrect(BE77,$AT77,fiscalyear,fiscalyear,fiscalyear+timeperiod,$R77,discount),0),popcorrect(IF(OR(LOWER($K77)="vrai",LOWER($K77)="true"),BE77,M77),$AT77,fiscalyear,$E77,$F77,$R77,discount))) -> 0 | AZ77: =IF($P77="",0,IF(MID($D77,1,1)="1",IF(OR(LOWER($K77)="vraiI",LOWER($K77)="true"),popcorrect(BF77,$AT77,fiscalyear,fiscalyear,fiscalyear+timeperiod,$R77,discount),0),popcorrect(IF(OR(LOWER($K77)="vrai",LOWER($K77)="true"),BF77,N77),$AT77,fiscalyear,$E77,$F77,$R77,discount))) -> 0 | BA77: =IF(AND($AT77<>0,$X77>0),(L77*(1+PeriodRate($AT77,$X77))-L77)/(1+PeriodRate($AT77,$X77)),0) -> 0 | BB77: =IF(AND($AT77<>0,$X77>0),(M77*(1+PeriodRate($AT77,$X77))-M77)/(1+PeriodRate($AT77,$X77)),0) -> 0 | BC77: =IF(AND($AT77<>0,$X77>0),(N77*(1+PeriodRate($AT77,$X77))-N77)/(1+PeriodRate($AT77,$X77)),0) -> 0 | BD77: =IF(AND($AT77<>0,$R77>0),(L77*(1+PeriodRate($AT77,$R77))-L77)/(1+PeriodRate($AT77,$R77)),0) -> 0 | BE77: =IF(AND($AT77<>0,$R77>0),(M77*(1+PeriodRate($AT77,$R77))-M77)/(1+PeriodRate($AT77,$R77)),0) -> 0 | BF77: =IF(AND($AT77<>0,$R77>0),(N77*(1+PeriodRate($AT77,$R77))-N77)/(1+PeriodRate($AT77,$R77)),0) -> 0
A78: 71 | L78: =IF(ISBLANK($H78),"",(IF(OR(MID($I78,1,1)="1",MID($I78,1,1)="3"),INDEX(Profile!$C$23:$E$35,MATCH($H78,Profile!$B$23:$B$35,0),1),0)*$J78)) ->  | M78: =IF(ISBLANK($H78),"",(IF(OR(MID($I78,1,1)="2",MID($I78,1,1)="3"),INDEX(Profile!$C$23:$E$35,MATCH($H78,Profile!$B$23:$B$35,0),2),0))*$J78) ->  | Y78: =IF(OR(ISBLANK(U78),ISBLANK(V78)),"",(IF(MID(U78,1,1)="E",Premium,overhead)+1)*INDEX('Labour Costs'!$C$4:$C$51,MATCH(MID(V78,1,2),'Labour Costs'!$F$4:$F$51,0))) ->  | AD78: =IF(ISNUMBER(IF(S78="",0,PeriodRate(discount,R78))),IF(S78="",0,PeriodRate(discount,R78)),0) -> 0 | AE78: =IF(ISNUMBER(IF(S78="",0,PeriodFactor(AD78,(R78*(timeperiod))))),IF(S78="",0,PeriodFactor(AD78,(R78*(timeperiod)))),0) -> 0 | AF78: =IF(ISNUMBER(IF(Y78="",0,PeriodRate(discount,X78))),IF(Y78="",0,PeriodRate(discount,X78)),0) -> 0 | AG78: =IF(Z78="",0,PeriodFactor(AF78,(X78*(timeperiod)))) -> 0 | AH78: 0 | AI78: 0 | AJ78: =IF(NOT(ISNUMBER(AI78)),"",(AI78/AF)) -> 0 | AL78: 0 | AM78: 0 | AN78: =IF(NOT(ISNUMBER(AM78)),"",(AM78/AF)) -> 0 | AP78: 0 | AQ78: 0 | AR78: 0 | AT78: =IF(H78<>"",OFFSET(Profile!$F$24,MATCH(H78,Profile!$B$25:$B$35,0),0),0) -> 0 | AU78: =IF($U78="",0,IF(MID($D78,1,1)="1",IF(OR(LOWER($K78)="vrai",LOWER($K78)="true"),popcorrect(BA78,$AT78,fiscalyear,fiscalyear,fiscalyear+timeperiod,$X78,discount),0),popcorrect(IF(OR(LOWER($K78)="vrai",LOWER($K78)="true"),BA78,L78),$AT78,fiscalyear,$E78,$F78,$X78,discount))) -> 0 | AV78: =IF($U78="",0,IF(MID($D78,1,1)="1",IF(OR(LOWER($K78)="vrai",LOWER($K78)="true"),popcorrect(BB78,$AT78,fiscalyear,fiscalyear,fiscalyear+timeperiod,$X78,discount),0),popcorrect(IF(OR(LOWER($K78)="vrai",LOWER($K78)="true"),BB78,M78),$AT78,fiscalyear,$E78,$F78,$X78,discount))) -> 0 | AW78: =IF($U78="",0,IF(MID($D78,1,1)="1",IF(OR(LOWER($K78)="vrai",LOWER($K78)="true"),popcorrect(BC78,$AT78,fiscalyear,fiscalyear,fiscalyear+timeperiod,$X78,discount),0),popcorrect(IF(OR(LOWER($K78)="vrai",LOWER($K78)="true"),BC78,N78),$AT78,fiscalyear,$E78,$F78,$X78,discount))) -> 0 | AX78: =IF($P78="",0,IF(MID($D78,1,1)="1",IF(OR(LOWER($K78)="vraiI",LOWER($K78)="true"),popcorrect(BD78,$AT78,fiscalyear,fiscalyear,fiscalyear+timeperiod,$R78,discount),0),popcorrect(IF(OR(LOWER($K78)="vrai",LOWER($K78)="true"),BD78,L78),$AT78,fiscalyear,$E78,$F78,$R78,discount))) -> 0 | AY78: =IF($P78="",0,IF(MID($D78,1,1)="1",IF(OR(LOWER($K78)="vraiI",LOWER($K78)="true"),popcorrect(BE78,$AT78,fiscalyear,fiscalyear,fiscalyear+timeperiod,$R78,discount),0),popcorrect(IF(OR(LOWER($K78)="vrai",LOWER($K78)="true"),BE78,M78),$AT78,fiscalyear,$E78,$F78,$R78,discount))) -> 0 | AZ78: =IF($P78="",0,IF(MID($D78,1,1)="1",IF(OR(LOWER($K78)="vraiI",LOWER($K78)="true"),popcorrect(BF78,$AT78,fiscalyear,fiscalyear,fiscalyear+timeperiod,$R78,discount),0),popcorrect(IF(OR(LOWER($K78)="vrai",LOWER($K78)="true"),BF78,N78),$AT78,fiscalyear,$E78,$F78,$R78,discount))) -> 0 | BA78: =IF(AND($AT78<>0,$X78>0),(L78*(1+PeriodRate($AT78,$X78))-L78)/(1+PeriodRate($AT78,$X78)),0) -> 0 | BB78: =IF(AND($AT78<>0,$X78>0),(M78*(1+PeriodRate($AT78,$X78))-M78)/(1+PeriodRate($AT78,$X78)),0) -> 0 | BC78: =IF(AND($AT78<>0,$X78>0),(N78*(1+PeriodRate($AT78,$X78))-N78)/(1+PeriodRate($AT78,$X78)),0) -> 0 | BD78: =IF(AND($AT78<>0,$R78>0),(L78*(1+PeriodRate($AT78,$R78))-L78)/(1+PeriodRate($AT78,$R78)),0) -> 0 | BE78: =IF(AND($AT78<>0,$R78>0),(M78*(1+PeriodRate($AT78,$R78))-M78)/(1+PeriodRate($AT78,$R78)),0) -> 0 | BF78: =IF(AND($AT78<>0,$R78>0),(N78*(1+PeriodRate($AT78,$R78))-N78)/(1+PeriodRate($AT78,$R78)),0) -> 0
A79: 72 | L79: =IF(ISBLANK($H79),"",(IF(OR(MID($I79,1,1)="1",MID($I79,1,1)="3"),INDEX(Profile!$C$23:$E$35,MATCH($H79,Profile!$B$23:$B$35,0),1),0)*$J79)) ->  | M79: =IF(ISBLANK($H79),"",(IF(OR(MID($I79,1,1)="2",MID($I79,1,1)="3"),INDEX(Profile!$C$23:$E$35,MATCH($H79,Profile!$B$23:$B$35,0),2),0))*$J79) ->  | Y79: =IF(OR(ISBLANK(U79),ISBLANK(V79)),"",(IF(MID(U79,1,1)="E",Premium,overhead)+1)*INDEX('Labour Costs'!$C$4:$C$51,MATCH(MID(V79,1,2),'Labour Costs'!$F$4:$F$51,0))) ->  | AD79: =IF(ISNUMBER(IF(S79="",0,PeriodRate(discount,R79))),IF(S79="",0,PeriodRate(discount,R79)),0) -> 0 | AE79: 0 | AF79: =IF(ISNUMBER(IF(Y79="",0,PeriodRate(discount,X79))),IF(Y79="",0,PeriodRate(discount,X79)),0) -> 0 | AG79: 0 | AH79: 0 | AI79: 0 | AJ79: 0 | AL79: 0 | AM79: 0 | AN79: 0 | AP79: 0 | AQ79: 0 | AR79: 0 | AT79: =IF(H79<>"",OFFSET(Profile!$F$24,MATCH(H79,Profile!$B$25:$B$35,0),0),0) -> 0 | AU79: =IF($U79="",0,IF(MID($D79,1,1)="1",IF(OR(LOWER($K79)="vrai",LOWER($K79)="true"),popcorrect(BA79,$AT79,fiscalyear,fiscalyear,fiscalyear+timeperiod,$X79,discount),0),popcorrect(IF(OR(LOWER($K79)="vrai",LOWER($K79)="true"),BA79,L79),$AT79,fiscalyear,$E79,$F79,$X79,discount))) -> 0 | AV79: =IF($U79="",0,IF(MID($D79,1,1)="1",IF(OR(LOWER($K79)="vrai",LOWER($K79)="true"),popcorrect(BB79,$AT79,fiscalyear,fiscalyear,fiscalyear+timeperiod,$X79,discount),0),popcorrect(IF(OR(LOWER($K79)="vrai",LOWER($K79)="true"),BB79,M79),$AT79,fiscalyear,$E79,$F79,$X79,discount))) -> 0 | AW79: =IF($U79="",0,IF(MID($D79,1,1)="1",IF(OR(LOWER($K79)="vrai",LOWER($K79)="true"),popcorrect(BC79,$AT79,fiscalyear,fiscalyear,fiscalyear+timeperiod,$X79,discount),0),popcorrect(IF(OR(LOWER($K79)="vrai",LOWER($K79)="true"),BC79,N79),$AT79,fiscalyear,$E79,$F79,$X79,discount))) -> 0 | AX79: =IF($P79="",0,IF(MID($D79,1,1)="1",IF(OR(LOWER($K79)="vraiI",LOWER($K79)="true"),popcorrect(BD79,$AT79,fiscalyear,fiscalyear,fiscalyear+timeperiod,$R79,discount),0),popcorrect(IF(OR(LOWER($K79)="vrai",LOWER($K79)="true"),BD79,L79),$AT79,fiscalyear,$E79,$F79,$R79,discount))) -> 0 | AY79: =IF($P79="",0,IF(MID($D79,1,1)="1",IF(OR(LOWER($K79)="vraiI",LOWER($K79)="true"),popcorrect(BE79,$AT79,fiscalyear,fiscalyear,fiscalyear+timeperiod,$R79,discount),0),popcorrect(IF(OR(LOWER($K79)="vrai",LOWER($K79)="true"),BE79,M79),$AT79,fiscalyear,$E79,$F79,$R79,discount))) -> 0 | AZ79: =IF($P79="",0,IF(MID($D79,1,1)="1",IF(OR(LOWER($K79)="vraiI",LOWER($K79)="true"),popcorrect(BF79,$AT79,fiscalyear,fiscalyear,fiscalyear+timeperiod,$R79,discount),0),popcorrect(IF(OR(LOWER($K79)="vrai",LOWER($K79)="true"),BF79,N79),$AT79,fiscalyear,$E79,$F79,$R79,discount))) -> 0 | BA79: =IF(AND($AT79<>0,$X79>0),(L79*(1+PeriodRate($AT79,$X79))-L79)/(1+PeriodRate($AT79,$X79)),0) -> 0 | BB79: =IF(AND($AT79<>0,$X79>0),(M79*(1+PeriodRate($AT79,$X79))-M79)/(1+PeriodRate($AT79,$X79)),0) -> 0 | BC79: =IF(AND($AT79<>0,$X79>0),(N79*(1+PeriodRate($AT79,$X79))-N79)/(1+PeriodRate($AT79,$X79)),0) -> 0 | BD79: =IF(AND($AT79<>0,$R79>0),(L79*(1+PeriodRate($AT79,$R79))-L79)/(1+PeriodRate($AT79,$R79)),0) -> 0 | BE79: =IF(AND($AT79<>0,$R79>0),(M79*(1+PeriodRate($AT79,$R79))-M79)/(1+PeriodRate($AT79,$R79)),0) -> 0 | BF79: =IF(AND($AT79<>0,$R79>0),(N79*(1+PeriodRate($AT79,$R79))-N79)/(1+PeriodRate($AT79,$R79)),0) -> 0
A80: 73 | L80: =IF(ISBLANK($H80),"",(IF(OR(MID($I80,1,1)="1",MID($I80,1,1)="3"),INDEX(Profile!$C$23:$E$35,MATCH($H80,Profile!$B$23:$B$35,0),1),0)*$J80)) ->  | M80: =IF(ISBLANK($H80),"",(IF(OR(MID($I80,1,1)="2",MID($I80,1,1)="3"),INDEX(Profile!$C$23:$E$35,MATCH($H80,Profile!$B$23:$B$35,0),2),0))*$J80) ->  | Y80: =IF(OR(ISBLANK(U80),ISBLANK(V80)),"",(IF(MID(U80,1,1)="E",Premium,overhead)+1)*INDEX('Labour Costs'!$C$4:$C$51,MATCH(MID(V80,1,2),'Labour Costs'!$F$4:$F$51,0))) ->  | AD80: =IF(ISNUMBER(IF(S80="",0,PeriodRate(discount,R80))),IF(S80="",0,PeriodRate(discount,R80)),0) -> 0 | AE80: 0 | AF80: =IF(ISNUMBER(IF(Y80="",0,PeriodRate(discount,X80))),IF(Y80="",0,PeriodRate(discount,X80)),0) -> 0 | AG80: 0 | AH80: 0 | AI80: 0 | AJ80: 0 | AL80: 0 | AM80: 0 | AN80: 0 | AP80: 0 | AQ80: 0 | AR80: 0 | AT80: =IF(H80<>"",OFFSET(Profile!$F$24,MATCH(H80,Profile!$B$25:$B$35,0),0),0) -> 0 | AU80: =IF($U80="",0,IF(MID($D80,1,1)="1",IF(OR(LOWER($K80)="vrai",LOWER($K80)="true"),popcorrect(BA80,$AT80,fiscalyear,fiscalyear,fiscalyear+timeperiod,$X80,discount),0),popcorrect(IF(OR(LOWER($K80)="vrai",LOWER($K80)="true"),BA80,L80),$AT80,fiscalyear,$E80,$F80,$X80,discount))) -> 0 | AV80: =IF($U80="",0,IF(MID($D80,1,1)="1",IF(OR(LOWER($K80)="vrai",LOWER($K80)="true"),popcorrect(BB80,$AT80,fiscalyear,fiscalyear,fiscalyear+timeperiod,$X80,discount),0),popcorrect(IF(OR(LOWER($K80)="vrai",LOWER($K80)="true"),BB80,M80),$AT80,fiscalyear,$E80,$F80,$X80,discount))) -> 0 | AW80: =IF($U80="",0,IF(MID($D80,1,1)="1",IF(OR(LOWER($K80)="vrai",LOWER($K80)="true"),popcorrect(BC80,$AT80,fiscalyear,fiscalyear,fiscalyear+timeperiod,$X80,discount),0),popcorrect(IF(OR(LOWER($K80)="vrai",LOWER($K80)="true"),BC80,N80),$AT80,fiscalyear,$E80,$F80,$X80,discount))) -> 0 | AX80: =IF($P80="",0,IF(MID($D80,1,1)="1",IF(OR(LOWER($K80)="vraiI",LOWER($K80)="true"),popcorrect(BD80,$AT80,fiscalyear,fiscalyear,fiscalyear+timeperiod,$R80,discount),0),popcorrect(IF(OR(LOWER($K80)="vrai",LOWER($K80)="true"),BD80,L80),$AT80,fiscalyear,$E80,$F80,$R80,discount))) -> 0 | AY80: =IF($P80="",0,IF(MID($D80,1,1)="1",IF(OR(LOWER($K80)="vraiI",LOWER($K80)="true"),popcorrect(BE80,$AT80,fiscalyear,fiscalyear,fiscalyear+timeperiod,$R80,discount),0),popcorrect(IF(OR(LOWER($K80)="vrai",LOWER($K80)="true"),BE80,M80),$AT80,fiscalyear,$E80,$F80,$R80,discount))) -> 0 | AZ80: =IF($P80="",0,IF(MID($D80,1,1)="1",IF(OR(LOWER($K80)="vraiI",LOWER($K80)="true"),popcorrect(BF80,$AT80,fiscalyear,fiscalyear,fiscalyear+timeperiod,$R80,discount),0),popcorrect(IF(OR(LOWER($K80)="vrai",LOWER($K80)="true"),BF80,N80),$AT80,fiscalyear,$E80,$F80,$R80,discount))) -> 0 | BA80: =IF(AND($AT80<>0,$X80>0),(L80*(1+PeriodRate($AT80,$X80))-L80)/(1+PeriodRate($AT80,$X80)),0) -> 0 | BB80: =IF(AND($AT80<>0,$X80>0),(M80*(1+PeriodRate($AT80,$X80))-M80)/(1+PeriodRate($AT80,$X80)),0) -> 0 | BC80: =IF(AND($AT80<>0,$X80>0),(N80*(1+PeriodRate($AT80,$X80))-N80)/(1+PeriodRate($AT80,$X80)),0) -> 0 | BD80: =IF(AND($AT80<>0,$R80>0),(L80*(1+PeriodRate($AT80,$R80))-L80)/(1+PeriodRate($AT80,$R80)),0) -> 0 | BE80: =IF(AND($AT80<>0,$R80>0),(M80*(1+PeriodRate($AT80,$R80))-M80)/(1+PeriodRate($AT80,$R80)),0) -> 0 | BF80: =IF(AND($AT80<>0,$R80>0),(N80*(1+PeriodRate($AT80,$R80))-N80)/(1+PeriodRate($AT80,$R80)),0) -> 0
A81: 74 | L81: =IF(ISBLANK($H81),"",(IF(OR(MID($I81,1,1)="1",MID($I81,1,1)="3"),INDEX(Profile!$C$23:$E$35,MATCH($H81,Profile!$B$23:$B$35,0),1),0)*$J81)) ->  | M81: =IF(ISBLANK($H81),"",(IF(OR(MID($I81,1,1)="2",MID($I81,1,1)="3"),INDEX(Profile!$C$23:$E$35,MATCH($H81,Profile!$B$23:$B$35,0),2),0))*$J81) ->  | Y81: =IF(OR(ISBLANK(U81),ISBLANK(V81)),"",(IF(MID(U81,1,1)="E",Premium,overhead)+1)*INDEX('Labour Costs'!$C$4:$C$51,MATCH(MID(V81,1,2),'Labour Costs'!$F$4:$F$51,0))) ->  | AD81: =IF(ISNUMBER(IF(S81="",0,PeriodRate(discount,R81))),IF(S81="",0,PeriodRate(discount,R81)),0) -> 0 | AE81: 0 | AF81: =IF(ISNUMBER(IF(Y81="",0,PeriodRate(discount,X81))),IF(Y81="",0,PeriodRate(discount,X81)),0) -> 0 | AG81: 0 | AH81: 0 | AI81: 0 | AJ81: 0 | AL81: 0 | AM81: 0 | AN81: 0 | AP81: 0 | AQ81: 0 | AR81: 0 | AT81: =IF(H81<>"",OFFSET(Profile!$F$24,MATCH(H81,Profile!$B$25:$B$35,0),0),0) -> 0 | AU81: =IF($U81="",0,IF(MID($D81,1,1)="1",IF(OR(LOWER($K81)="vrai",LOWER($K81)="true"),popcorrect(BA81,$AT81,fiscalyear,fiscalyear,fiscalyear+timeperiod,$X81,discount),0),popcorrect(IF(OR(LOWER($K81)="vrai",LOWER($K81)="true"),BA81,L81),$AT81,fiscalyear,$E81,$F81,$X81,discount))) -> 0 | AV81: =IF($U81="",0,IF(MID($D81,1,1)="1",IF(OR(LOWER($K81)="vrai",LOWER($K81)="true"),popcorrect(BB81,$AT81,fiscalyear,fiscalyear,fiscalyear+timeperiod,$X81,discount),0),popcorrect(IF(OR(LOWER($K81)="vrai",LOWER($K81)="true"),BB81,M81),$AT81,fiscalyear,$E81,$F81,$X81,discount))) -> 0 | AW81: =IF($U81="",0,IF(MID($D81,1,1)="1",IF(OR(LOWER($K81)="vrai",LOWER($K81)="true"),popcorrect(BC81,$AT81,fiscalyear,fiscalyear,fiscalyear+timeperiod,$X81,discount),0),popcorrect(IF(OR(LOWER($K81)="vrai",LOWER($K81)="true"),BC81,N81),$AT81,fiscalyear,$E81,$F81,$X81,discount))) -> 0 | AX81: =IF($P81="",0,IF(MID($D81,1,1)="1",IF(OR(LOWER($K81)="vraiI",LOWER($K81)="true"),popcorrect(BD81,$AT81,fiscalyear,fiscalyear,fiscalyear+timeperiod,$R81,discount),0),popcorrect(IF(OR(LOWER($K81)="vrai",LOWER($K81)="true"),BD81,L81),$AT81,fiscalyear,$E81,$F81,$R81,discount))) -> 0 | AY81: =IF($P81="",0,IF(MID($D81,1,1)="1",IF(OR(LOWER($K81)="vraiI",LOWER($K81)="true"),popcorrect(BE81,$AT81,fiscalyear,fiscalyear,fiscalyear+timeperiod,$R81,discount),0),popcorrect(IF(OR(LOWER($K81)="vrai",LOWER($K81)="true"),BE81,M81),$AT81,fiscalyear,$E81,$F81,$R81,discount))) -> 0 | AZ81: =IF($P81="",0,IF(MID($D81,1,1)="1",IF(OR(LOWER($K81)="vraiI",LOWER($K81)="true"),popcorrect(BF81,$AT81,fiscalyear,fiscalyear,fiscalyear+timeperiod,$R81,discount),0),popcorrect(IF(OR(LOWER($K81)="vrai",LOWER($K81)="true"),BF81,N81),$AT81,fiscalyear,$E81,$F81,$R81,discount))) -> 0 | BA81: =IF(AND($AT81<>0,$X81>0),(L81*(1+PeriodRate($AT81,$X81))-L81)/(1+PeriodRate($AT81,$X81)),0) -> 0 | BB81: =IF(AND($AT81<>0,$X81>0),(M81*(1+PeriodRate($AT81,$X81))-M81)/(1+PeriodRate($AT81,$X81)),0) -> 0 | BC81: =IF(AND($AT81<>0,$X81>0),(N81*(1+PeriodRate($AT81,$X81))-N81)/(1+PeriodRate($AT81,$X81)),0) -> 0 | BD81: =IF(AND($AT81<>0,$R81>0),(L81*(1+PeriodRate($AT81,$R81))-L81)/(1+PeriodRate($AT81,$R81)),0) -> 0 | BE81: =IF(AND($AT81<>0,$R81>0),(M81*(1+PeriodRate($AT81,$R81))-M81)/(1+PeriodRate($AT81,$R81)),0) -> 0 | BF81: =IF(AND($AT81<>0,$R81>0),(N81*(1+PeriodRate($AT81,$R81))-N81)/(1+PeriodRate($AT81,$R81)),0) -> 0
A82: 75 | L82: =IF(ISBLANK($H82),"",(IF(OR(MID($I82,1,1)="1",MID($I82,1,1)="3"),INDEX(Profile!$C$23:$E$35,MATCH($H82,Profile!$B$23:$B$35,0),1),0)*$J82)) ->  | M82: =IF(ISBLANK($H82),"",(IF(OR(MID($I82,1,1)="2",MID($I82,1,1)="3"),INDEX(Profile!$C$23:$E$35,MATCH($H82,Profile!$B$23:$B$35,0),2),0))*$J82) ->  | Y82: =IF(OR(ISBLANK(U82),ISBLANK(V82)),"",(IF(MID(U82,1,1)="E",Premium,overhead)+1)*INDEX('Labour Costs'!$C$4:$C$51,MATCH(MID(V82,1,2),'Labour Costs'!$F$4:$F$51,0))) ->  | AD82: =IF(ISNUMBER(IF(S82="",0,PeriodRate(discount,R82))),IF(S82="",0,PeriodRate(discount,R82)),0) -> 0 | AE82: 0 | AF82: =IF(ISNUMBER(IF(Y82="",0,PeriodRate(discount,X82))),IF(Y82="",0,PeriodRate(discount,X82)),0) -> 0 | AG82: 0 | AH82: 0 | AI82: 0 | AJ82: 0 | AL82: 0 | AM82: 0 | AN82: 0 | AP82: 0 | AQ82: 0 | AR82: 0 | AT82: =IF(H82<>"",OFFSET(Profile!$F$24,MATCH(H82,Profile!$B$25:$B$35,0),0),0) -> 0 | AU82: =IF($U82="",0,IF(MID($D82,1,1)="1",IF(OR(LOWER($K82)="vrai",LOWER($K82)="true"),popcorrect(BA82,$AT82,fiscalyear,fiscalyear,fiscalyear+timeperiod,$X82,discount),0),popcorrect(IF(OR(LOWER($K82)="vrai",LOWER($K82)="true"),BA82,L82),$AT82,fiscalyear,$E82,$F82,$X82,discount))) -> 0 | AV82: =IF($U82="",0,IF(MID($D82,1,1)="1",IF(OR(LOWER($K82)="vrai",LOWER($K82)="true"),popcorrect(BB82,$AT82,fiscalyear,fiscalyear,fiscalyear+timeperiod,$X82,discount),0),popcorrect(IF(OR(LOWER($K82)="vrai",LOWER($K82)="true"),BB82,M82),$AT82,fiscalyear,$E82,$F82,$X82,discount))) -> 0 | AW82: =IF($U82="",0,IF(MID($D82,1,1)="1",IF(OR(LOWER($K82)="vrai",LOWER($K82)="true"),popcorrect(BC82,$AT82,fiscalyear,fiscalyear,fiscalyear+timeperiod,$X82,discount),0),popcorrect(IF(OR(LOWER($K82)="vrai",LOWER($K82)="true"),BC82,N82),$AT82,fiscalyear,$E82,$F82,$X82,discount))) -> 0 | AX82: =IF($P82="",0,IF(MID($D82,1,1)="1",IF(OR(LOWER($K82)="vraiI",LOWER($K82)="true"),popcorrect(BD82,$AT82,fiscalyear,fiscalyear,fiscalyear+timeperiod,$R82,discount),0),popcorrect(IF(OR(LOWER($K82)="vrai",LOWER($K82)="true"),BD82,L82),$AT82,fiscalyear,$E82,$F82,$R82,discount))) -> 0 | AY82: =IF($P82="",0,IF(MID($D82,1,1)="1",IF(OR(LOWER($K82)="vraiI",LOWER($K82)="true"),popcorrect(BE82,$AT82,fiscalyear,fiscalyear,fiscalyear+timeperiod,$R82,discount),0),popcorrect(IF(OR(LOWER($K82)="vrai",LOWER($K82)="true"),BE82,M82),$AT82,fiscalyear,$E82,$F82,$R82,discount))) -> 0 | AZ82: =IF($P82="",0,IF(MID($D82,1,1)="1",IF(OR(LOWER($K82)="vraiI",LOWER($K82)="true"),popcorrect(BF82,$AT82,fiscalyear,fiscalyear,fiscalyear+timeperiod,$R82,discount),0),popcorrect(IF(OR(LOWER($K82)="vrai",LOWER($K82)="true"),BF82,N82),$AT82,fiscalyear,$E82,$F82,$R82,discount))) -> 0 | BA82: =IF(AND($AT82<>0,$X82>0),(L82*(1+PeriodRate($AT82,$X82))-L82)/(1+PeriodRate($AT82,$X82)),0) -> 0 | BB82: =IF(AND($AT82<>0,$X82>0),(M82*(1+PeriodRate($AT82,$X82))-M82)/(1+PeriodRate($AT82,$X82)),0) -> 0 | BC82: =IF(AND($AT82<>0,$X82>0),(N82*(1+PeriodRate($AT82,$X82))-N82)/(1+PeriodRate($AT82,$X82)),0) -> 0 | BD82: =IF(AND($AT82<>0,$R82>0),(L82*(1+PeriodRate($AT82,$R82))-L82)/(1+PeriodRate($AT82,$R82)),0) -> 0 | BE82: =IF(AND($AT82<>0,$R82>0),(M82*(1+PeriodRate($AT82,$R82))-M82)/(1+PeriodRate($AT82,$R82)),0) -> 0 | BF82: =IF(AND($AT82<>0,$R82>0),(N82*(1+PeriodRate($AT82,$R82))-N82)/(1+PeriodRate($AT82,$R82)),0) -> 0
A83: 76 | L83: =IF(ISBLANK($H83),"",(IF(OR(MID($I83,1,1)="1",MID($I83,1,1)="3"),INDEX(Profile!$C$23:$E$35,MATCH($H83,Profile!$B$23:$B$35,0),1),0)*$J83)) ->  | M83: =IF(ISBLANK($H83),"",(IF(OR(MID($I83,1,1)="2",MID($I83,1,1)="3"),INDEX(Profile!$C$23:$E$35,MATCH($H83,Profile!$B$23:$B$35,0),2),0))*$J83) ->  | Y83: =IF(OR(ISBLANK(U83),ISBLANK(V83)),"",(IF(MID(U83,1,1)="E",Premium,overhead)+1)*INDEX('Labour Costs'!$C$4:$C$51,MATCH(MID(V83,1,2),'Labour Costs'!$F$4:$F$51,0))) ->  | AD83: =IF(ISNUMBER(IF(S83="",0,PeriodRate(discount,R83))),IF(S83="",0,PeriodRate(discount,R83)),0) -> 0 | AE83: 0 | AF83: =IF(ISNUMBER(IF(Y83="",0,PeriodRate(discount,X83))),IF(Y83="",0,PeriodRate(discount,X83)),0) -> 0 | AG83: 0 | AH83: 0 | AI83: 0 | AJ83: 0 | AL83: 0 | AM83: 0 | AN83: 0 | AP83: 0 | AQ83: 0 | AR83: 0 | AT83: =IF(H83<>"",OFFSET(Profile!$F$24,MATCH(H83,Profile!$B$25:$B$35,0),0),0) -> 0 | AU83: =IF($U83="",0,IF(MID($D83,1,1)="1",IF(OR(LOWER($K83)="vrai",LOWER($K83)="true"),popcorrect(BA83,$AT83,fiscalyear,fiscalyear,fiscalyear+timeperiod,$X83,discount),0),popcorrect(IF(OR(LOWER($K83)="vrai",LOWER($K83)="true"),BA83,L83),$AT83,fiscalyear,$E83,$F83,$X83,discount))) -> 0 | AV83: =IF($U83="",0,IF(MID($D83,1,1)="1",IF(OR(LOWER($K83)="vrai",LOWER($K83)="true"),popcorrect(BB83,$AT83,fiscalyear,fiscalyear,fiscalyear+timeperiod,$X83,discount),0),popcorrect(IF(OR(LOWER($K83)="vrai",LOWER($K83)="true"),BB83,M83),$AT83,fiscalyear,$E83,$F83,$X83,discount))) -> 0 | AW83: =IF($U83="",0,IF(MID($D83,1,1)="1",IF(OR(LOWER($K83)="vrai",LOWER($K83)="true"),popcorrect(BC83,$AT83,fiscalyear,fiscalyear,fiscalyear+timeperiod,$X83,discount),0),popcorrect(IF(OR(LOWER($K83)="vrai",LOWER($K83)="true"),BC83,N83),$AT83,fiscalyear,$E83,$F83,$X83,discount))) -> 0 | AX83: =IF($P83="",0,IF(MID($D83,1,1)="1",IF(OR(LOWER($K83)="vraiI",LOWER($K83)="true"),popcorrect(BD83,$AT83,fiscalyear,fiscalyear,fiscalyear+timeperiod,$R83,discount),0),popcorrect(IF(OR(LOWER($K83)="vrai",LOWER($K83)="true"),BD83,L83),$AT83,fiscalyear,$E83,$F83,$R83,discount))) -> 0 | AY83: =IF($P83="",0,IF(MID($D83,1,1)="1",IF(OR(LOWER($K83)="vraiI",LOWER($K83)="true"),popcorrect(BE83,$AT83,fiscalyear,fiscalyear,fiscalyear+timeperiod,$R83,discount),0),popcorrect(IF(OR(LOWER($K83)="vrai",LOWER($K83)="true"),BE83,M83),$AT83,fiscalyear,$E83,$F83,$R83,discount))) -> 0 | AZ83: =IF($P83="",0,IF(MID($D83,1,1)="1",IF(OR(LOWER($K83)="vraiI",LOWER($K83)="true"),popcorrect(BF83,$AT83,fiscalyear,fiscalyear,fiscalyear+timeperiod,$R83,discount),0),popcorrect(IF(OR(LOWER($K83)="vrai",LOWER($K83)="true"),BF83,N83),$AT83,fiscalyear,$E83,$F83,$R83,discount))) -> 0 | BA83: =IF(AND($AT83<>0,$X83>0),(L83*(1+PeriodRate($AT83,$X83))-L83)/(1+PeriodRate($AT83,$X83)),0) -> 0 | BB83: =IF(AND($AT83<>0,$X83>0),(M83*(1+PeriodRate($AT83,$X83))-M83)/(1+PeriodRate($AT83,$X83)),0) -> 0 | BC83: =IF(AND($AT83<>0,$X83>0),(N83*(1+PeriodRate($AT83,$X83))-N83)/(1+PeriodRate($AT83,$X83)),0) -> 0 | BD83: =IF(AND($AT83<>0,$R83>0),(L83*(1+PeriodRate($AT83,$R83))-L83)/(1+PeriodRate($AT83,$R83)),0) -> 0 | BE83: =IF(AND($AT83<>0,$R83>0),(M83*(1+PeriodRate($AT83,$R83))-M83)/(1+PeriodRate($AT83,$R83)),0) -> 0 | BF83: =IF(AND($AT83<>0,$R83>0),(N83*(1+PeriodRate($AT83,$R83))-N83)/(1+PeriodRate($AT83,$R83)),0) -> 0
A84: 77 | L84: =IF(ISBLANK($H84),"",(IF(OR(MID($I84,1,1)="1",MID($I84,1,1)="3"),INDEX(Profile!$C$23:$E$35,MATCH($H84,Profile!$B$23:$B$35,0),1),0)*$J84)) ->  | M84: =IF(ISBLANK($H84),"",(IF(OR(MID($I84,1,1)="2",MID($I84,1,1)="3"),INDEX(Profile!$C$23:$E$35,MATCH($H84,Profile!$B$23:$B$35,0),2),0))*$J84) ->  | Y84: =IF(OR(ISBLANK(U84),ISBLANK(V84)),"",(IF(MID(U84,1,1)="E",Premium,overhead)+1)*INDEX('Labour Costs'!$C$4:$C$51,MATCH(MID(V84,1,2),'Labour Costs'!$F$4:$F$51,0))) ->  | AD84: =IF(ISNUMBER(IF(S84="",0,PeriodRate(discount,R84))),IF(S84="",0,PeriodRate(discount,R84)),0) -> 0 | AE84: 0 | AF84: =IF(ISNUMBER(IF(Y84="",0,PeriodRate(discount,X84))),IF(Y84="",0,PeriodRate(discount,X84)),0) -> 0 | AG84: 0 | AH84: 0 | AI84: 0 | AJ84: 0 | AL84: 0 | AM84: 0 | AN84: 0 | AP84: 0 | AQ84: 0 | AR84: 0 | AT84: =IF(H84<>"",OFFSET(Profile!$F$24,MATCH(H84,Profile!$B$25:$B$35,0),0),0) -> 0 | AU84: =IF($U84="",0,IF(MID($D84,1,1)="1",IF(OR(LOWER($K84)="vrai",LOWER($K84)="true"),popcorrect(BA84,$AT84,fiscalyear,fiscalyear,fiscalyear+timeperiod,$X84,discount),0),popcorrect(IF(OR(LOWER($K84)="vrai",LOWER($K84)="true"),BA84,L84),$AT84,fiscalyear,$E84,$F84,$X84,discount))) -> 0 | AV84: =IF($U84="",0,IF(MID($D84,1,1)="1",IF(OR(LOWER($K84)="vrai",LOWER($K84)="true"),popcorrect(BB84,$AT84,fiscalyear,fiscalyear,fiscalyear+timeperiod,$X84,discount),0),popcorrect(IF(OR(LOWER($K84)="vrai",LOWER($K84)="true"),BB84,M84),$AT84,fiscalyear,$E84,$F84,$X84,discount))) -> 0 | AW84: =IF($U84="",0,IF(MID($D84,1,1)="1",IF(OR(LOWER($K84)="vrai",LOWER($K84)="true"),popcorrect(BC84,$AT84,fiscalyear,fiscalyear,fiscalyear+timeperiod,$X84,discount),0),popcorrect(IF(OR(LOWER($K84)="vrai",LOWER($K84)="true"),BC84,N84),$AT84,fiscalyear,$E84,$F84,$X84,discount))) -> 0 | AX84: =IF($P84="",0,IF(MID($D84,1,1)="1",IF(OR(LOWER($K84)="vraiI",LOWER($K84)="true"),popcorrect(BD84,$AT84,fiscalyear,fiscalyear,fiscalyear+timeperiod,$R84,discount),0),popcorrect(IF(OR(LOWER($K84)="vrai",LOWER($K84)="true"),BD84,L84),$AT84,fiscalyear,$E84,$F84,$R84,discount))) -> 0 | AY84: =IF($P84="",0,IF(MID($D84,1,1)="1",IF(OR(LOWER($K84)="vraiI",LOWER($K84)="true"),popcorrect(BE84,$AT84,fiscalyear,fiscalyear,fiscalyear+timeperiod,$R84,discount),0),popcorrect(IF(OR(LOWER($K84)="vrai",LOWER($K84)="true"),BE84,M84),$AT84,fiscalyear,$E84,$F84,$R84,discount))) -> 0 | AZ84: =IF($P84="",0,IF(MID($D84,1,1)="1",IF(OR(LOWER($K84)="vraiI",LOWER($K84)="true"),popcorrect(BF84,$AT84,fiscalyear,fiscalyear,fiscalyear+timeperiod,$R84,discount),0),popcorrect(IF(OR(LOWER($K84)="vrai",LOWER($K84)="true"),BF84,N84),$AT84,fiscalyear,$E84,$F84,$R84,discount))) -> 0 | BA84: =IF(AND($AT84<>0,$X84>0),(L84*(1+PeriodRate($AT84,$X84))-L84)/(1+PeriodRate($AT84,$X84)),0) -> 0 | BB84: =IF(AND($AT84<>0,$X84>0),(M84*(1+PeriodRate($AT84,$X84))-M84)/(1+PeriodRate($AT84,$X84)),0) -> 0 | BC84: =IF(AND($AT84<>0,$X84>0),(N84*(1+PeriodRate($AT84,$X84))-N84)/(1+PeriodRate($AT84,$X84)),0) -> 0 | BD84: =IF(AND($AT84<>0,$R84>0),(L84*(1+PeriodRate($AT84,$R84))-L84)/(1+PeriodRate($AT84,$R84)),0) -> 0 | BE84: =IF(AND($AT84<>0,$R84>0),(M84*(1+PeriodRate($AT84,$R84))-M84)/(1+PeriodRate($AT84,$R84)),0) -> 0 | BF84: =IF(AND($AT84<>0,$R84>0),(N84*(1+PeriodRate($AT84,$R84))-N84)/(1+PeriodRate($AT84,$R84)),0) -> 0
A85: 78 | L85: =IF(ISBLANK($H85),"",(IF(OR(MID($I85,1,1)="1",MID($I85,1,1)="3"),INDEX(Profile!$C$23:$E$35,MATCH($H85,Profile!$B$23:$B$35,0),1),0)*$J85)) ->  | M85: =IF(ISBLANK($H85),"",(IF(OR(MID($I85,1,1)="2",MID($I85,1,1)="3"),INDEX(Profile!$C$23:$E$35,MATCH($H85,Profile!$B$23:$B$35,0),2),0))*$J85) ->  | Y85: =IF(OR(ISBLANK(U85),ISBLANK(V85)),"",(IF(MID(U85,1,1)="E",Premium,overhead)+1)*INDEX('Labour Costs'!$C$4:$C$51,MATCH(MID(V85,1,2),'Labour Costs'!$F$4:$F$51,0))) ->  | AD85: =IF(ISNUMBER(IF(S85="",0,PeriodRate(discount,R85))),IF(S85="",0,PeriodRate(discount,R85)),0) -> 0 | AE85: 0 | AF85: =IF(ISNUMBER(IF(Y85="",0,PeriodRate(discount,X85))),IF(Y85="",0,PeriodRate(discount,X85)),0) -> 0 | AG85: 0 | AH85: 0 | AI85: 0 | AJ85: 0 | AL85: 0 | AM85: 0 | AN85: 0 | AP85: 0 | AQ85: 0 | AR85: 0 | AT85: =IF(H85<>"",OFFSET(Profile!$F$24,MATCH(H85,Profile!$B$25:$B$35,0),0),0) -> 0 | AU85: =IF($U85="",0,IF(MID($D85,1,1)="1",IF(OR(LOWER($K85)="vrai",LOWER($K85)="true"),popcorrect(BA85,$AT85,fiscalyear,fiscalyear,fiscalyear+timeperiod,$X85,discount),0),popcorrect(IF(OR(LOWER($K85)="vrai",LOWER($K85)="true"),BA85,L85),$AT85,fiscalyear,$E85,$F85,$X85,discount))) -> 0 | AV85: =IF($U85="",0,IF(MID($D85,1,1)="1",IF(OR(LOWER($K85)="vrai",LOWER($K85)="true"),popcorrect(BB85,$AT85,fiscalyear,fiscalyear,fiscalyear+timeperiod,$X85,discount),0),popcorrect(IF(OR(LOWER($K85)="vrai",LOWER($K85)="true"),BB85,M85),$AT85,fiscalyear,$E85,$F85,$X85,discount))) -> 0 | AW85: =IF($U85="",0,IF(MID($D85,1,1)="1",IF(OR(LOWER($K85)="vrai",LOWER($K85)="true"),popcorrect(BC85,$AT85,fiscalyear,fiscalyear,fiscalyear+timeperiod,$X85,discount),0),popcorrect(IF(OR(LOWER($K85)="vrai",LOWER($K85)="true"),BC85,N85),$AT85,fiscalyear,$E85,$F85,$X85,discount))) -> 0 | AX85: =IF($P85="",0,IF(MID($D85,1,1)="1",IF(OR(LOWER($K85)="vraiI",LOWER($K85)="true"),popcorrect(BD85,$AT85,fiscalyear,fiscalyear,fiscalyear+timeperiod,$R85,discount),0),popcorrect(IF(OR(LOWER($K85)="vrai",LOWER($K85)="true"),BD85,L85),$AT85,fiscalyear,$E85,$F85,$R85,discount))) -> 0 | AY85: =IF($P85="",0,IF(MID($D85,1,1)="1",IF(OR(LOWER($K85)="vraiI",LOWER($K85)="true"),popcorrect(BE85,$AT85,fiscalyear,fiscalyear,fiscalyear+timeperiod,$R85,discount),0),popcorrect(IF(OR(LOWER($K85)="vrai",LOWER($K85)="true"),BE85,M85),$AT85,fiscalyear,$E85,$F85,$R85,discount))) -> 0 | AZ85: =IF($P85="",0,IF(MID($D85,1,1)="1",IF(OR(LOWER($K85)="vraiI",LOWER($K85)="true"),popcorrect(BF85,$AT85,fiscalyear,fiscalyear,fiscalyear+timeperiod,$R85,discount),0),popcorrect(IF(OR(LOWER($K85)="vrai",LOWER($K85)="true"),BF85,N85),$AT85,fiscalyear,$E85,$F85,$R85,discount))) -> 0 | BA85: =IF(AND($AT85<>0,$X85>0),(L85*(1+PeriodRate($AT85,$X85))-L85)/(1+PeriodRate($AT85,$X85)),0) -> 0 | BB85: =IF(AND($AT85<>0,$X85>0),(M85*(1+PeriodRate($AT85,$X85))-M85)/(1+PeriodRate($AT85,$X85)),0) -> 0 | BC85: =IF(AND($AT85<>0,$X85>0),(N85*(1+PeriodRate($AT85,$X85))-N85)/(1+PeriodRate($AT85,$X85)),0) -> 0 | BD85: =IF(AND($AT85<>0,$R85>0),(L85*(1+PeriodRate($AT85,$R85))-L85)/(1+PeriodRate($AT85,$R85)),0) -> 0 | BE85: =IF(AND($AT85<>0,$R85>0),(M85*(1+PeriodRate($AT85,$R85))-M85)/(1+PeriodRate($AT85,$R85)),0) -> 0 | BF85: =IF(AND($AT85<>0,$R85>0),(N85*(1+PeriodRate($AT85,$R85))-N85)/(1+PeriodRate($AT85,$R85)),0) -> 0
A86: 79 | L86: =IF(ISBLANK($H86),"",(IF(OR(MID($I86,1,1)="1",MID($I86,1,1)="3"),INDEX(Profile!$C$23:$E$35,MATCH($H86,Profile!$B$23:$B$35,0),1),0)*$J86)) ->  | M86: =IF(ISBLANK($H86),"",(IF(OR(MID($I86,1,1)="2",MID($I86,1,1)="3"),INDEX(Profile!$C$23:$E$35,MATCH($H86,Profile!$B$23:$B$35,0),2),0))*$J86) ->  | Y86: =IF(OR(ISBLANK(U86),ISBLANK(V86)),"",(IF(MID(U86,1,1)="E",Premium,overhead)+1)*INDEX('Labour Costs'!$C$4:$C$51,MATCH(MID(V86,1,2),'Labour Costs'!$F$4:$F$51,0))) ->  | AD86: =IF(ISNUMBER(IF(S86="",0,PeriodRate(discount,R86))),IF(S86="",0,PeriodRate(discount,R86)),0) -> 0 | AE86: 0 | AF86: =IF(ISNUMBER(IF(Y86="",0,PeriodRate(discount,X86))),IF(Y86="",0,PeriodRate(discount,X86)),0) -> 0 | AG86: 0 | AH86: 0 | AI86: 0 | AJ86: 0 | AL86: 0 | AM86: 0 | AN86: 0 | AP86: 0 | AQ86: 0 | AR86: 0 | AT86: =IF(H86<>"",OFFSET(Profile!$F$24,MATCH(H86,Profile!$B$25:$B$35,0),0),0) -> 0 | AU86: =IF($U86="",0,IF(MID($D86,1,1)="1",IF(OR(LOWER($K86)="vrai",LOWER($K86)="true"),popcorrect(BA86,$AT86,fiscalyear,fiscalyear,fiscalyear+timeperiod,$X86,discount),0),popcorrect(IF(OR(LOWER($K86)="vrai",LOWER($K86)="true"),BA86,L86),$AT86,fiscalyear,$E86,$F86,$X86,discount))) -> 0 | AV86: =IF($U86="",0,IF(MID($D86,1,1)="1",IF(OR(LOWER($K86)="vrai",LOWER($K86)="true"),popcorrect(BB86,$AT86,fiscalyear,fiscalyear,fiscalyear+timeperiod,$X86,discount),0),popcorrect(IF(OR(LOWER($K86)="vrai",LOWER($K86)="true"),BB86,M86),$AT86,fiscalyear,$E86,$F86,$X86,discount))) -> 0 | AW86: =IF($U86="",0,IF(MID($D86,1,1)="1",IF(OR(LOWER($K86)="vrai",LOWER($K86)="true"),popcorrect(BC86,$AT86,fiscalyear,fiscalyear,fiscalyear+timeperiod,$X86,discount),0),popcorrect(IF(OR(LOWER($K86)="vrai",LOWER($K86)="true"),BC86,N86),$AT86,fiscalyear,$E86,$F86,$X86,discount))) -> 0 | AX86: =IF($P86="",0,IF(MID($D86,1,1)="1",IF(OR(LOWER($K86)="vraiI",LOWER($K86)="true"),popcorrect(BD86,$AT86,fiscalyear,fiscalyear,fiscalyear+timeperiod,$R86,discount),0),popcorrect(IF(OR(LOWER($K86)="vrai",LOWER($K86)="true"),BD86,L86),$AT86,fiscalyear,$E86,$F86,$R86,discount))) -> 0 | AY86: =IF($P86="",0,IF(MID($D86,1,1)="1",IF(OR(LOWER($K86)="vraiI",LOWER($K86)="true"),popcorrect(BE86,$AT86,fiscalyear,fiscalyear,fiscalyear+timeperiod,$R86,discount),0),popcorrect(IF(OR(LOWER($K86)="vrai",LOWER($K86)="true"),BE86,M86),$AT86,fiscalyear,$E86,$F86,$R86,discount))) -> 0 | AZ86: =IF($P86="",0,IF(MID($D86,1,1)="1",IF(OR(LOWER($K86)="vraiI",LOWER($K86)="true"),popcorrect(BF86,$AT86,fiscalyear,fiscalyear,fiscalyear+timeperiod,$R86,discount),0),popcorrect(IF(OR(LOWER($K86)="vrai",LOWER($K86)="true"),BF86,N86),$AT86,fiscalyear,$E86,$F86,$R86,discount))) -> 0 | BA86: =IF(AND($AT86<>0,$X86>0),(L86*(1+PeriodRate($AT86,$X86))-L86)/(1+PeriodRate($AT86,$X86)),0) -> 0 | BB86: =IF(AND($AT86<>0,$X86>0),(M86*(1+PeriodRate($AT86,$X86))-M86)/(1+PeriodRate($AT86,$X86)),0) -> 0 | BC86: =IF(AND($AT86<>0,$X86>0),(N86*(1+PeriodRate($AT86,$X86))-N86)/(1+PeriodRate($AT86,$X86)),0) -> 0 | BD86: =IF(AND($AT86<>0,$R86>0),(L86*(1+PeriodRate($AT86,$R86))-L86)/(1+PeriodRate($AT86,$R86)),0) -> 0 | BE86: =IF(AND($AT86<>0,$R86>0),(M86*(1+PeriodRate($AT86,$R86))-M86)/(1+PeriodRate($AT86,$R86)),0) -> 0 | BF86: =IF(AND($AT86<>0,$R86>0),(N86*(1+PeriodRate($AT86,$R86))-N86)/(1+PeriodRate($AT86,$R86)),0) -> 0
A87: 80 | L87: =IF(ISBLANK($H87),"",(IF(OR(MID($I87,1,1)="1",MID($I87,1,1)="3"),INDEX(Profile!$C$23:$E$35,MATCH($H87,Profile!$B$23:$B$35,0),1),0)*$J87)) ->  | M87: =IF(ISBLANK($H87),"",(IF(OR(MID($I87,1,1)="2",MID($I87,1,1)="3"),INDEX(Profile!$C$23:$E$35,MATCH($H87,Profile!$B$23:$B$35,0),2),0))*$J87) ->  | Y87: =IF(OR(ISBLANK(U87),ISBLANK(V87)),"",(IF(MID(U87,1,1)="E",Premium,overhead)+1)*INDEX('Labour Costs'!$C$4:$C$51,MATCH(MID(V87,1,2),'Labour Costs'!$F$4:$F$51,0))) ->  | AD87: =IF(ISNUMBER(IF(S87="",0,PeriodRate(discount,R87))),IF(S87="",0,PeriodRate(discount,R87)),0) -> 0 | AE87: 0 | AF87: =IF(ISNUMBER(IF(Y87="",0,PeriodRate(discount,X87))),IF(Y87="",0,PeriodRate(discount,X87)),0) -> 0 | AG87: 0 | AH87: 0 | AI87: 0 | AJ87: 0 | AL87: 0 | AM87: 0 | AN87: 0 | AP87: 0 | AQ87: 0 | AR87: 0 | AT87: =IF(H87<>"",OFFSET(Profile!$F$24,MATCH(H87,Profile!$B$25:$B$35,0),0),0) -> 0 | AU87: =IF($U87="",0,IF(MID($D87,1,1)="1",IF(OR(LOWER($K87)="vrai",LOWER($K87)="true"),popcorrect(BA87,$AT87,fiscalyear,fiscalyear,fiscalyear+timeperiod,$X87,discount),0),popcorrect(IF(OR(LOWER($K87)="vrai",LOWER($K87)="true"),BA87,L87),$AT87,fiscalyear,$E87,$F87,$X87,discount))) -> 0 | AV87: =IF($U87="",0,IF(MID($D87,1,1)="1",IF(OR(LOWER($K87)="vrai",LOWER($K87)="true"),popcorrect(BB87,$AT87,fiscalyear,fiscalyear,fiscalyear+timeperiod,$X87,discount),0),popcorrect(IF(OR(LOWER($K87)="vrai",LOWER($K87)="true"),BB87,M87),$AT87,fiscalyear,$E87,$F87,$X87,discount))) -> 0 | AW87: =IF($U87="",0,IF(MID($D87,1,1)="1",IF(OR(LOWER($K87)="vrai",LOWER($K87)="true"),popcorrect(BC87,$AT87,fiscalyear,fiscalyear,fiscalyear+timeperiod,$X87,discount),0),popcorrect(IF(OR(LOWER($K87)="vrai",LOWER($K87)="true"),BC87,N87),$AT87,fiscalyear,$E87,$F87,$X87,discount))) -> 0 | AX87: =IF($P87="",0,IF(MID($D87,1,1)="1",IF(OR(LOWER($K87)="vraiI",LOWER($K87)="true"),popcorrect(BD87,$AT87,fiscalyear,fiscalyear,fiscalyear+timeperiod,$R87,discount),0),popcorrect(IF(OR(LOWER($K87)="vrai",LOWER($K87)="true"),BD87,L87),$AT87,fiscalyear,$E87,$F87,$R87,discount))) -> 0 | AY87: =IF($P87="",0,IF(MID($D87,1,1)="1",IF(OR(LOWER($K87)="vraiI",LOWER($K87)="true"),popcorrect(BE87,$AT87,fiscalyear,fiscalyear,fiscalyear+timeperiod,$R87,discount),0),popcorrect(IF(OR(LOWER($K87)="vrai",LOWER($K87)="true"),BE87,M87),$AT87,fiscalyear,$E87,$F87,$R87,discount))) -> 0 | AZ87: =IF($P87="",0,IF(MID($D87,1,1)="1",IF(OR(LOWER($K87)="vraiI",LOWER($K87)="true"),popcorrect(BF87,$AT87,fiscalyear,fiscalyear,fiscalyear+timeperiod,$R87,discount),0),popcorrect(IF(OR(LOWER($K87)="vrai",LOWER($K87)="true"),BF87,N87),$AT87,fiscalyear,$E87,$F87,$R87,discount))) -> 0 | BA87: =IF(AND($AT87<>0,$X87>0),(L87*(1+PeriodRate($AT87,$X87))-L87)/(1+PeriodRate($AT87,$X87)),0) -> 0 | BB87: =IF(AND($AT87<>0,$X87>0),(M87*(1+PeriodRate($AT87,$X87))-M87)/(1+PeriodRate($AT87,$X87)),0) -> 0 | BC87: =IF(AND($AT87<>0,$X87>0),(N87*(1+PeriodRate($AT87,$X87))-N87)/(1+PeriodRate($AT87,$X87)),0) -> 0 | BD87: =IF(AND($AT87<>0,$R87>0),(L87*(1+PeriodRate($AT87,$R87))-L87)/(1+PeriodRate($AT87,$R87)),0) -> 0 | BE87: =IF(AND($AT87<>0,$R87>0),(M87*(1+PeriodRate($AT87,$R87))-M87)/(1+PeriodRate($AT87,$R87)),0) -> 0 | BF87: =IF(AND($AT87<>0,$R87>0),(N87*(1+PeriodRate($AT87,$R87))-N87)/(1+PeriodRate($AT87,$R87)),0) -> 0
A88: 81 | L88: =IF(ISBLANK($H88),"",(IF(OR(MID($I88,1,1)="1",MID($I88,1,1)="3"),INDEX(Profile!$C$23:$E$35,MATCH($H88,Profile!$B$23:$B$35,0),1),0)*$J88)) ->  | M88: =IF(ISBLANK($H88),"",(IF(OR(MID($I88,1,1)="2",MID($I88,1,1)="3"),INDEX(Profile!$C$23:$E$35,MATCH($H88,Profile!$B$23:$B$35,0),2),0))*$J88) ->  | Y88: =IF(OR(ISBLANK(U88),ISBLANK(V88)),"",(IF(MID(U88,1,1)="E",Premium,overhead)+1)*INDEX('Labour Costs'!$C$4:$C$51,MATCH(MID(V88,1,2),'Labour Costs'!$F$4:$F$51,0))) ->  | AD88: =IF(ISNUMBER(IF(S88="",0,PeriodRate(discount,R88))),IF(S88="",0,PeriodRate(discount,R88)),0) -> 0 | AE88: 0 | AF88: =IF(ISNUMBER(IF(Y88="",0,PeriodRate(discount,X88))),IF(Y88="",0,PeriodRate(discount,X88)),0) -> 0 | AG88: 0 | AH88: 0 | AI88: 0 | AJ88: 0 | AL88: 0 | AM88: 0 | AN88: 0 | AP88: 0 | AQ88: 0 | AR88: 0 | AT88: =IF(H88<>"",OFFSET(Profile!$F$24,MATCH(H88,Profile!$B$25:$B$35,0),0),0) -> 0 | AU88: =IF($U88="",0,IF(MID($D88,1,1)="1",IF(OR(LOWER($K88)="vrai",LOWER($K88)="true"),popcorrect(BA88,$AT88,fiscalyear,fiscalyear,fiscalyear+timeperiod,$X88,discount),0),popcorrect(IF(OR(LOWER($K88)="vrai",LOWER($K88)="true"),BA88,L88),$AT88,fiscalyear,$E88,$F88,$X88,discount))) -> 0 | AV88: =IF($U88="",0,IF(MID($D88,1,1)="1",IF(OR(LOWER($K88)="vrai",LOWER($K88)="true"),popcorrect(BB88,$AT88,fiscalyear,fiscalyear,fiscalyear+timeperiod,$X88,discount),0),popcorrect(IF(OR(LOWER($K88)="vrai",LOWER($K88)="true"),BB88,M88),$AT88,fiscalyear,$E88,$F88,$X88,discount))) -> 0 | AW88: =IF($U88="",0,IF(MID($D88,1,1)="1",IF(OR(LOWER($K88)="vrai",LOWER($K88)="true"),popcorrect(BC88,$AT88,fiscalyear,fiscalyear,fiscalyear+timeperiod,$X88,discount),0),popcorrect(IF(OR(LOWER($K88)="vrai",LOWER($K88)="true"),BC88,N88),$AT88,fiscalyear,$E88,$F88,$X88,discount))) -> 0 | AX88: =IF($P88="",0,IF(MID($D88,1,1)="1",IF(OR(LOWER($K88)="vraiI",LOWER($K88)="true"),popcorrect(BD88,$AT88,fiscalyear,fiscalyear,fiscalyear+timeperiod,$R88,discount),0),popcorrect(IF(OR(LOWER($K88)="vrai",LOWER($K88)="true"),BD88,L88),$AT88,fiscalyear,$E88,$F88,$R88,discount))) -> 0 | AY88: =IF($P88="",0,IF(MID($D88,1,1)="1",IF(OR(LOWER($K88)="vraiI",LOWER($K88)="true"),popcorrect(BE88,$AT88,fiscalyear,fiscalyear,fiscalyear+timeperiod,$R88,discount),0),popcorrect(IF(OR(LOWER($K88)="vrai",LOWER($K88)="true"),BE88,M88),$AT88,fiscalyear,$E88,$F88,$R88,discount))) -> 0 | AZ88: =IF($P88="",0,IF(MID($D88,1,1)="1",IF(OR(LOWER($K88)="vraiI",LOWER($K88)="true"),popcorrect(BF88,$AT88,fiscalyear,fiscalyear,fiscalyear+timeperiod,$R88,discount),0),popcorrect(IF(OR(LOWER($K88)="vrai",LOWER($K88)="true"),BF88,N88),$AT88,fiscalyear,$E88,$F88,$R88,discount))) -> 0 | BA88: =IF(AND($AT88<>0,$X88>0),(L88*(1+PeriodRate($AT88,$X88))-L88)/(1+PeriodRate($AT88,$X88)),0) -> 0 | BB88: =IF(AND($AT88<>0,$X88>0),(M88*(1+PeriodRate($AT88,$X88))-M88)/(1+PeriodRate($AT88,$X88)),0) -> 0 | BC88: =IF(AND($AT88<>0,$X88>0),(N88*(1+PeriodRate($AT88,$X88))-N88)/(1+PeriodRate($AT88,$X88)),0) -> 0 | BD88: =IF(AND($AT88<>0,$R88>0),(L88*(1+PeriodRate($AT88,$R88))-L88)/(1+PeriodRate($AT88,$R88)),0) -> 0 | BE88: =IF(AND($AT88<>0,$R88>0),(M88*(1+PeriodRate($AT88,$R88))-M88)/(1+PeriodRate($AT88,$R88)),0) -> 0 | BF88: =IF(AND($AT88<>0,$R88>0),(N88*(1+PeriodRate($AT88,$R88))-N88)/(1+PeriodRate($AT88,$R88)),0) -> 0
A89: 82 | L89: =IF(ISBLANK($H89),"",(IF(OR(MID($I89,1,1)="1",MID($I89,1,1)="3"),INDEX(Profile!$C$23:$E$35,MATCH($H89,Profile!$B$23:$B$35,0),1),0)*$J89)) ->  | M89: =IF(ISBLANK($H89),"",(IF(OR(MID($I89,1,1)="2",MID($I89,1,1)="3"),INDEX(Profile!$C$23:$E$35,MATCH($H89,Profile!$B$23:$B$35,0),2),0))*$J89) ->  | Y89: =IF(OR(ISBLANK(U89),ISBLANK(V89)),"",(IF(MID(U89,1,1)="E",Premium,overhead)+1)*INDEX('Labour Costs'!$C$4:$C$51,MATCH(MID(V89,1,2),'Labour Costs'!$F$4:$F$51,0))) ->  | AD89: =IF(ISNUMBER(IF(S89="",0,PeriodRate(discount,R89))),IF(S89="",0,PeriodRate(discount,R89)),0) -> 0 | AE89: 0 | AF89: =IF(ISNUMBER(IF(Y89="",0,PeriodRate(discount,X89))),IF(Y89="",0,PeriodRate(discount,X89)),0) -> 0 | AG89: 0 | AH89: 0 | AI89: 0 | AJ89: 0 | AL89: 0 | AM89: 0 | AN89: 0 | AP89: 0 | AQ89: 0 | AR89: 0 | AT89: =IF(H89<>"",OFFSET(Profile!$F$24,MATCH(H89,Profile!$B$25:$B$35,0),0),0) -> 0 | AU89: =IF($U89="",0,IF(MID($D89,1,1)="1",IF(OR(LOWER($K89)="vrai",LOWER($K89)="true"),popcorrect(BA89,$AT89,fiscalyear,fiscalyear,fiscalyear+timeperiod,$X89,discount),0),popcorrect(IF(OR(LOWER($K89)="vrai",LOWER($K89)="true"),BA89,L89),$AT89,fiscalyear,$E89,$F89,$X89,discount))) -> 0 | AV89: =IF($U89="",0,IF(MID($D89,1,1)="1",IF(OR(LOWER($K89)="vrai",LOWER($K89)="true"),popcorrect(BB89,$AT89,fiscalyear,fiscalyear,fiscalyear+timeperiod,$X89,discount),0),popcorrect(IF(OR(LOWER($K89)="vrai",LOWER($K89)="true"),BB89,M89),$AT89,fiscalyear,$E89,$F89,$X89,discount))) -> 0 | AW89: =IF($U89="",0,IF(MID($D89,1,1)="1",IF(OR(LOWER($K89)="vrai",LOWER($K89)="true"),popcorrect(BC89,$AT89,fiscalyear,fiscalyear,fiscalyear+timeperiod,$X89,discount),0),popcorrect(IF(OR(LOWER($K89)="vrai",LOWER($K89)="true"),BC89,N89),$AT89,fiscalyear,$E89,$F89,$X89,discount))) -> 0 | AX89: =IF($P89="",0,IF(MID($D89,1,1)="1",IF(OR(LOWER($K89)="vraiI",LOWER($K89)="true"),popcorrect(BD89,$AT89,fiscalyear,fiscalyear,fiscalyear+timeperiod,$R89,discount),0),popcorrect(IF(OR(LOWER($K89)="vrai",LOWER($K89)="true"),BD89,L89),$AT89,fiscalyear,$E89,$F89,$R89,discount))) -> 0 | AY89: =IF($P89="",0,IF(MID($D89,1,1)="1",IF(OR(LOWER($K89)="vraiI",LOWER($K89)="true"),popcorrect(BE89,$AT89,fiscalyear,fiscalyear,fiscalyear+timeperiod,$R89,discount),0),popcorrect(IF(OR(LOWER($K89)="vrai",LOWER($K89)="true"),BE89,M89),$AT89,fiscalyear,$E89,$F89,$R89,discount))) -> 0 | AZ89: =IF($P89="",0,IF(MID($D89,1,1)="1",IF(OR(LOWER($K89)="vraiI",LOWER($K89)="true"),popcorrect(BF89,$AT89,fiscalyear,fiscalyear,fiscalyear+timeperiod,$R89,discount),0),popcorrect(IF(OR(LOWER($K89)="vrai",LOWER($K89)="true"),BF89,N89),$AT89,fiscalyear,$E89,$F89,$R89,discount))) -> 0 | BA89: =IF(AND($AT89<>0,$X89>0),(L89*(1+PeriodRate($AT89,$X89))-L89)/(1+PeriodRate($AT89,$X89)),0) -> 0 | BB89: =IF(AND($AT89<>0,$X89>0),(M89*(1+PeriodRate($AT89,$X89))-M89)/(1+PeriodRate($AT89,$X89)),0) -> 0 | BC89: =IF(AND($AT89<>0,$X89>0),(N89*(1+PeriodRate($AT89,$X89))-N89)/(1+PeriodRate($AT89,$X89)),0) -> 0 | BD89: =IF(AND($AT89<>0,$R89>0),(L89*(1+PeriodRate($AT89,$R89))-L89)/(1+PeriodRate($AT89,$R89)),0) -> 0 | BE89: =IF(AND($AT89<>0,$R89>0),(M89*(1+PeriodRate($AT89,$R89))-M89)/(1+PeriodRate($AT89,$R89)),0) -> 0 | BF89: =IF(AND($AT89<>0,$R89>0),(N89*(1+PeriodRate($AT89,$R89))-N89)/(1+PeriodRate($AT89,$R89)),0) -> 0
A90: 83 | L90: =IF(ISBLANK($H90),"",(IF(OR(MID($I90,1,1)="1",MID($I90,1,1)="3"),INDEX(Profile!$C$23:$E$35,MATCH($H90,Profile!$B$23:$B$35,0),1),0)*$J90)) ->  | M90: =IF(ISBLANK($H90),"",(IF(OR(MID($I90,1,1)="2",MID($I90,1,1)="3"),INDEX(Profile!$C$23:$E$35,MATCH($H90,Profile!$B$23:$B$35,0),2),0))*$J90) ->  | Y90: =IF(OR(ISBLANK(U90),ISBLANK(V90)),"",(IF(MID(U90,1,1)="E",Premium,overhead)+1)*INDEX('Labour Costs'!$C$4:$C$51,MATCH(MID(V90,1,2),'Labour Costs'!$F$4:$F$51,0))) ->  | AD90: =IF(ISNUMBER(IF(S90="",0,PeriodRate(discount,R90))),IF(S90="",0,PeriodRate(discount,R90)),0) -> 0 | AE90: 0 | AF90: =IF(ISNUMBER(IF(Y90="",0,PeriodRate(discount,X90))),IF(Y90="",0,PeriodRate(discount,X90)),0) -> 0 | AG90: 0 | AH90: 0 | AI90: 0 | AJ90: 0 | AL90: 0 | AM90: 0 | AN90: 0 | AP90: 0 | AQ90: 0 | AR90: 0 | AT90: =IF(H90<>"",OFFSET(Profile!$F$24,MATCH(H90,Profile!$B$25:$B$35,0),0),0) -> 0 | AU90: =IF($U90="",0,IF(MID($D90,1,1)="1",IF(OR(LOWER($K90)="vrai",LOWER($K90)="true"),popcorrect(BA90,$AT90,fiscalyear,fiscalyear,fiscalyear+timeperiod,$X90,discount),0),popcorrect(IF(OR(LOWER($K90)="vrai",LOWER($K90)="true"),BA90,L90),$AT90,fiscalyear,$E90,$F90,$X90,discount))) -> 0 | AV90: =IF($U90="",0,IF(MID($D90,1,1)="1",IF(OR(LOWER($K90)="vrai",LOWER($K90)="true"),popcorrect(BB90,$AT90,fiscalyear,fiscalyear,fiscalyear+timeperiod,$X90,discount),0),popcorrect(IF(OR(LOWER($K90)="vrai",LOWER($K90)="true"),BB90,M90),$AT90,fiscalyear,$E90,$F90,$X90,discount))) -> 0 | AW90: =IF($U90="",0,IF(MID($D90,1,1)="1",IF(OR(LOWER($K90)="vrai",LOWER($K90)="true"),popcorrect(BC90,$AT90,fiscalyear,fiscalyear,fiscalyear+timeperiod,$X90,discount),0),popcorrect(IF(OR(LOWER($K90)="vrai",LOWER($K90)="true"),BC90,N90),$AT90,fiscalyear,$E90,$F90,$X90,discount))) -> 0 | AX90: =IF($P90="",0,IF(MID($D90,1,1)="1",IF(OR(LOWER($K90)="vraiI",LOWER($K90)="true"),popcorrect(BD90,$AT90,fiscalyear,fiscalyear,fiscalyear+timeperiod,$R90,discount),0),popcorrect(IF(OR(LOWER($K90)="vrai",LOWER($K90)="true"),BD90,L90),$AT90,fiscalyear,$E90,$F90,$R90,discount))) -> 0 | AY90: =IF($P90="",0,IF(MID($D90,1,1)="1",IF(OR(LOWER($K90)="vraiI",LOWER($K90)="true"),popcorrect(BE90,$AT90,fiscalyear,fiscalyear,fiscalyear+timeperiod,$R90,discount),0),popcorrect(IF(OR(LOWER($K90)="vrai",LOWER($K90)="true"),BE90,M90),$AT90,fiscalyear,$E90,$F90,$R90,discount))) -> 0 | AZ90: =IF($P90="",0,IF(MID($D90,1,1)="1",IF(OR(LOWER($K90)="vraiI",LOWER($K90)="true"),popcorrect(BF90,$AT90,fiscalyear,fiscalyear,fiscalyear+timeperiod,$R90,discount),0),popcorrect(IF(OR(LOWER($K90)="vrai",LOWER($K90)="true"),BF90,N90),$AT90,fiscalyear,$E90,$F90,$R90,discount))) -> 0 | BA90: =IF(AND($AT90<>0,$X90>0),(L90*(1+PeriodRate($AT90,$X90))-L90)/(1+PeriodRate($AT90,$X90)),0) -> 0 | BB90: =IF(AND($AT90<>0,$X90>0),(M90*(1+PeriodRate($AT90,$X90))-M90)/(1+PeriodRate($AT90,$X90)),0) -> 0 | BC90: =IF(AND($AT90<>0,$X90>0),(N90*(1+PeriodRate($AT90,$X90))-N90)/(1+PeriodRate($AT90,$X90)),0) -> 0 | BD90: =IF(AND($AT90<>0,$R90>0),(L90*(1+PeriodRate($AT90,$R90))-L90)/(1+PeriodRate($AT90,$R90)),0) -> 0 | BE90: =IF(AND($AT90<>0,$R90>0),(M90*(1+PeriodRate($AT90,$R90))-M90)/(1+PeriodRate($AT90,$R90)),0) -> 0 | BF90: =IF(AND($AT90<>0,$R90>0),(N90*(1+PeriodRate($AT90,$R90))-N90)/(1+PeriodRate($AT90,$R90)),0) -> 0
A91: 84 | L91: =IF(ISBLANK($H91),"",(IF(OR(MID($I91,1,1)="1",MID($I91,1,1)="3"),INDEX(Profile!$C$23:$E$35,MATCH($H91,Profile!$B$23:$B$35,0),1),0)*$J91)) ->  | M91: =IF(ISBLANK($H91),"",(IF(OR(MID($I91,1,1)="2",MID($I91,1,1)="3"),INDEX(Profile!$C$23:$E$35,MATCH($H91,Profile!$B$23:$B$35,0),2),0))*$J91) ->  | Y91: =IF(OR(ISBLANK(U91),ISBLANK(V91)),"",(IF(MID(U91,1,1)="E",Premium,overhead)+1)*INDEX('Labour Costs'!$C$4:$C$51,MATCH(MID(V91,1,2),'Labour Costs'!$F$4:$F$51,0))) ->  | AD91: =IF(ISNUMBER(IF(S91="",0,PeriodRate(discount,R91))),IF(S91="",0,PeriodRate(discount,R91)),0) -> 0 | AE91: 0 | AF91: =IF(ISNUMBER(IF(Y91="",0,PeriodRate(discount,X91))),IF(Y91="",0,PeriodRate(discount,X91)),0) -> 0 | AG91: 0 | AH91: 0 | AI91: 0 | AJ91: 0 | AL91: 0 | AM91: 0 | AN91: 0 | AP91: 0 | AQ91: 0 | AR91: 0 | AT91: =IF(H91<>"",OFFSET(Profile!$F$24,MATCH(H91,Profile!$B$25:$B$35,0),0),0) -> 0 | AU91: =IF($U91="",0,IF(MID($D91,1,1)="1",IF(OR(LOWER($K91)="vrai",LOWER($K91)="true"),popcorrect(BA91,$AT91,fiscalyear,fiscalyear,fiscalyear+timeperiod,$X91,discount),0),popcorrect(IF(OR(LOWER($K91)="vrai",LOWER($K91)="true"),BA91,L91),$AT91,fiscalyear,$E91,$F91,$X91,discount))) -> 0 | AV91: =IF($U91="",0,IF(MID($D91,1,1)="1",IF(OR(LOWER($K91)="vrai",LOWER($K91)="true"),popcorrect(BB91,$AT91,fiscalyear,fiscalyear,fiscalyear+timeperiod,$X91,discount),0),popcorrect(IF(OR(LOWER($K91)="vrai",LOWER($K91)="true"),BB91,M91),$AT91,fiscalyear,$E91,$F91,$X91,discount))) -> 0 | AW91: =IF($U91="",0,IF(MID($D91,1,1)="1",IF(OR(LOWER($K91)="vrai",LOWER($K91)="true"),popcorrect(BC91,$AT91,fiscalyear,fiscalyear,fiscalyear+timeperiod,$X91,discount),0),popcorrect(IF(OR(LOWER($K91)="vrai",LOWER($K91)="true"),BC91,N91),$AT91,fiscalyear,$E91,$F91,$X91,discount))) -> 0 | AX91: =IF($P91="",0,IF(MID($D91,1,1)="1",IF(OR(LOWER($K91)="vraiI",LOWER($K91)="true"),popcorrect(BD91,$AT91,fiscalyear,fiscalyear,fiscalyear+timeperiod,$R91,discount),0),popcorrect(IF(OR(LOWER($K91)="vrai",LOWER($K91)="true"),BD91,L91),$AT91,fiscalyear,$E91,$F91,$R91,discount))) -> 0 | AY91: =IF($P91="",0,IF(MID($D91,1,1)="1",IF(OR(LOWER($K91)="vraiI",LOWER($K91)="true"),popcorrect(BE91,$AT91,fiscalyear,fiscalyear,fiscalyear+timeperiod,$R91,discount),0),popcorrect(IF(OR(LOWER($K91)="vrai",LOWER($K91)="true"),BE91,M91),$AT91,fiscalyear,$E91,$F91,$R91,discount))) -> 0 | AZ91: =IF($P91="",0,IF(MID($D91,1,1)="1",IF(OR(LOWER($K91)="vraiI",LOWER($K91)="true"),popcorrect(BF91,$AT91,fiscalyear,fiscalyear,fiscalyear+timeperiod,$R91,discount),0),popcorrect(IF(OR(LOWER($K91)="vrai",LOWER($K91)="true"),BF91,N91),$AT91,fiscalyear,$E91,$F91,$R91,discount))) -> 0 | BA91: =IF(AND($AT91<>0,$X91>0),(L91*(1+PeriodRate($AT91,$X91))-L91)/(1+PeriodRate($AT91,$X91)),0) -> 0 | BB91: =IF(AND($AT91<>0,$X91>0),(M91*(1+PeriodRate($AT91,$X91))-M91)/(1+PeriodRate($AT91,$X91)),0) -> 0 | BC91: =IF(AND($AT91<>0,$X91>0),(N91*(1+PeriodRate($AT91,$X91))-N91)/(1+PeriodRate($AT91,$X91)),0) -> 0 | BD91: =IF(AND($AT91<>0,$R91>0),(L91*(1+PeriodRate($AT91,$R91))-L91)/(1+PeriodRate($AT91,$R91)),0) -> 0 | BE91: =IF(AND($AT91<>0,$R91>0),(M91*(1+PeriodRate($AT91,$R91))-M91)/(1+PeriodRate($AT91,$R91)),0) -> 0 | BF91: =IF(AND($AT91<>0,$R91>0),(N91*(1+PeriodRate($AT91,$R91))-N91)/(1+PeriodRate($AT91,$R91)),0) -> 0
A92: 85 | L92: =IF(ISBLANK($H92),"",(IF(OR(MID($I92,1,1)="1",MID($I92,1,1)="3"),INDEX(Profile!$C$23:$E$35,MATCH($H92,Profile!$B$23:$B$35,0),1),0)*$J92)) ->  | M92: =IF(ISBLANK($H92),"",(IF(OR(MID($I92,1,1)="2",MID($I92,1,1)="3"),INDEX(Profile!$C$23:$E$35,MATCH($H92,Profile!$B$23:$B$35,0),2),0))*$J92) ->  | Y92: =IF(OR(ISBLANK(U92),ISBLANK(V92)),"",(IF(MID(U92,1,1)="E",Premium,overhead)+1)*INDEX('Labour Costs'!$C$4:$C$51,MATCH(MID(V92,1,2),'Labour Costs'!$F$4:$F$51,0))) ->  | AD92: =IF(ISNUMBER(IF(S92="",0,PeriodRate(discount,R92))),IF(S92="",0,PeriodRate(discount,R92)),0) -> 0 | AE92: 0 | AF92: =IF(ISNUMBER(IF(Y92="",0,PeriodRate(discount,X92))),IF(Y92="",0,PeriodRate(discount,X92)),0) -> 0 | AG92: 0 | AH92: 0 | AI92: 0 | AJ92: 0 | AL92: 0 | AM92: 0 | AN92: 0 | AP92: 0 | AQ92: 0 | AR92: 0 | AT92: =IF(H92<>"",OFFSET(Profile!$F$24,MATCH(H92,Profile!$B$25:$B$35,0),0),0) -> 0 | AU92: =IF($U92="",0,IF(MID($D92,1,1)="1",IF(OR(LOWER($K92)="vrai",LOWER($K92)="true"),popcorrect(BA92,$AT92,fiscalyear,fiscalyear,fiscalyear+timeperiod,$X92,discount),0),popcorrect(IF(OR(LOWER($K92)="vrai",LOWER($K92)="true"),BA92,L92),$AT92,fiscalyear,$E92,$F92,$X92,discount))) -> 0 | AV92: =IF($U92="",0,IF(MID($D92,1,1)="1",IF(OR(LOWER($K92)="vrai",LOWER($K92)="true"),popcorrect(BB92,$AT92,fiscalyear,fiscalyear,fiscalyear+timeperiod,$X92,discount),0),popcorrect(IF(OR(LOWER($K92)="vrai",LOWER($K92)="true"),BB92,M92),$AT92,fiscalyear,$E92,$F92,$X92,discount))) -> 0 | AW92: =IF($U92="",0,IF(MID($D92,1,1)="1",IF(OR(LOWER($K92)="vrai",LOWER($K92)="true"),popcorrect(BC92,$AT92,fiscalyear,fiscalyear,fiscalyear+timeperiod,$X92,discount),0),popcorrect(IF(OR(LOWER($K92)="vrai",LOWER($K92)="true"),BC92,N92),$AT92,fiscalyear,$E92,$F92,$X92,discount))) -> 0 | AX92: =IF($P92="",0,IF(MID($D92,1,1)="1",IF(OR(LOWER($K92)="vraiI",LOWER($K92)="true"),popcorrect(BD92,$AT92,fiscalyear,fiscalyear,fiscalyear+timeperiod,$R92,discount),0),popcorrect(IF(OR(LOWER($K92)="vrai",LOWER($K92)="true"),BD92,L92),$AT92,fiscalyear,$E92,$F92,$R92,discount))) -> 0 | AY92: =IF($P92="",0,IF(MID($D92,1,1)="1",IF(OR(LOWER($K92)="vraiI",LOWER($K92)="true"),popcorrect(BE92,$AT92,fiscalyear,fiscalyear,fiscalyear+timeperiod,$R92,discount),0),popcorrect(IF(OR(LOWER($K92)="vrai",LOWER($K92)="true"),BE92,M92),$AT92,fiscalyear,$E92,$F92,$R92,discount))) -> 0 | AZ92: =IF($P92="",0,IF(MID($D92,1,1)="1",IF(OR(LOWER($K92)="vraiI",LOWER($K92)="true"),popcorrect(BF92,$AT92,fiscalyear,fiscalyear,fiscalyear+timeperiod,$R92,discount),0),popcorrect(IF(OR(LOWER($K92)="vrai",LOWER($K92)="true"),BF92,N92),$AT92,fiscalyear,$E92,$F92,$R92,discount))) -> 0 | BA92: =IF(AND($AT92<>0,$X92>0),(L92*(1+PeriodRate($AT92,$X92))-L92)/(1+PeriodRate($AT92,$X92)),0) -> 0 | BB92: =IF(AND($AT92<>0,$X92>0),(M92*(1+PeriodRate($AT92,$X92))-M92)/(1+PeriodRate($AT92,$X92)),0) -> 0 | BC92: =IF(AND($AT92<>0,$X92>0),(N92*(1+PeriodRate($AT92,$X92))-N92)/(1+PeriodRate($AT92,$X92)),0) -> 0 | BD92: =IF(AND($AT92<>0,$R92>0),(L92*(1+PeriodRate($AT92,$R92))-L92)/(1+PeriodRate($AT92,$R92)),0) -> 0 | BE92: =IF(AND($AT92<>0,$R92>0),(M92*(1+PeriodRate($AT92,$R92))-M92)/(1+PeriodRate($AT92,$R92)),0) -> 0 | BF92: =IF(AND($AT92<>0,$R92>0),(N92*(1+PeriodRate($AT92,$R92))-N92)/(1+PeriodRate($AT92,$R92)),0) -> 0
A93: 86 | L93: =IF(ISBLANK($H93),"",(IF(OR(MID($I93,1,1)="1",MID($I93,1,1)="3"),INDEX(Profile!$C$23:$E$35,MATCH($H93,Profile!$B$23:$B$35,0),1),0)*$J93)) ->  | M93: =IF(ISBLANK($H93),"",(IF(OR(MID($I93,1,1)="2",MID($I93,1,1)="3"),INDEX(Profile!$C$23:$E$35,MATCH($H93,Profile!$B$23:$B$35,0),2),0))*$J93) ->  | Y93: =IF(OR(ISBLANK(U93),ISBLANK(V93)),"",(IF(MID(U93,1,1)="E",Premium,overhead)+1)*INDEX('Labour Costs'!$C$4:$C$51,MATCH(MID(V93,1,2),'Labour Costs'!$F$4:$F$51,0))) ->  | AD93: =IF(ISNUMBER(IF(S93="",0,PeriodRate(discount,R93))),IF(S93="",0,PeriodRate(discount,R93)),0) -> 0 | AE93: 0 | AF93: =IF(ISNUMBER(IF(Y93="",0,PeriodRate(discount,X93))),IF(Y93="",0,PeriodRate(discount,X93)),0) -> 0 | AG93: 0 | AH93: 0 | AI93: 0 | AJ93: 0 | AL93: 0 | AM93: 0 | AN93: 0 | AP93: 0 | AQ93: 0 | AR93: 0 | AT93: =IF(H93<>"",OFFSET(Profile!$F$24,MATCH(H93,Profile!$B$25:$B$35,0),0),0) -> 0 | AU93: =IF($U93="",0,IF(MID($D93,1,1)="1",IF(OR(LOWER($K93)="vrai",LOWER($K93)="true"),popcorrect(BA93,$AT93,fiscalyear,fiscalyear,fiscalyear+timeperiod,$X93,discount),0),popcorrect(IF(OR(LOWER($K93)="vrai",LOWER($K93)="true"),BA93,L93),$AT93,fiscalyear,$E93,$F93,$X93,discount))) -> 0 | AV93: =IF($U93="",0,IF(MID($D93,1,1)="1",IF(OR(LOWER($K93)="vrai",LOWER($K93)="true"),popcorrect(BB93,$AT93,fiscalyear,fiscalyear,fiscalyear+timeperiod,$X93,discount),0),popcorrect(IF(OR(LOWER($K93)="vrai",LOWER($K93)="true"),BB93,M93),$AT93,fiscalyear,$E93,$F93,$X93,discount))) -> 0 | AW93: =IF($U93="",0,IF(MID($D93,1,1)="1",IF(OR(LOWER($K93)="vrai",LOWER($K93)="true"),popcorrect(BC93,$AT93,fiscalyear,fiscalyear,fiscalyear+timeperiod,$X93,discount),0),popcorrect(IF(OR(LOWER($K93)="vrai",LOWER($K93)="true"),BC93,N93),$AT93,fiscalyear,$E93,$F93,$X93,discount))) -> 0 | AX93: =IF($P93="",0,IF(MID($D93,1,1)="1",IF(OR(LOWER($K93)="vraiI",LOWER($K93)="true"),popcorrect(BD93,$AT93,fiscalyear,fiscalyear,fiscalyear+timeperiod,$R93,discount),0),popcorrect(IF(OR(LOWER($K93)="vrai",LOWER($K93)="true"),BD93,L93),$AT93,fiscalyear,$E93,$F93,$R93,discount))) -> 0 | AY93: =IF($P93="",0,IF(MID($D93,1,1)="1",IF(OR(LOWER($K93)="vraiI",LOWER($K93)="true"),popcorrect(BE93,$AT93,fiscalyear,fiscalyear,fiscalyear+timeperiod,$R93,discount),0),popcorrect(IF(OR(LOWER($K93)="vrai",LOWER($K93)="true"),BE93,M93),$AT93,fiscalyear,$E93,$F93,$R93,discount))) -> 0 | AZ93: =IF($P93="",0,IF(MID($D93,1,1)="1",IF(OR(LOWER($K93)="vraiI",LOWER($K93)="true"),popcorrect(BF93,$AT93,fiscalyear,fiscalyear,fiscalyear+timeperiod,$R93,discount),0),popcorrect(IF(OR(LOWER($K93)="vrai",LOWER($K93)="true"),BF93,N93),$AT93,fiscalyear,$E93,$F93,$R93,discount))) -> 0 | BA93: =IF(AND($AT93<>0,$X93>0),(L93*(1+PeriodRate($AT93,$X93))-L93)/(1+PeriodRate($AT93,$X93)),0) -> 0 | BB93: =IF(AND($AT93<>0,$X93>0),(M93*(1+PeriodRate($AT93,$X93))-M93)/(1+PeriodRate($AT93,$X93)),0) -> 0 | BC93: =IF(AND($AT93<>0,$X93>0),(N93*(1+PeriodRate($AT93,$X93))-N93)/(1+PeriodRate($AT93,$X93)),0) -> 0 | BD93: =IF(AND($AT93<>0,$R93>0),(L93*(1+PeriodRate($AT93,$R93))-L93)/(1+PeriodRate($AT93,$R93)),0) -> 0 | BE93: =IF(AND($AT93<>0,$R93>0),(M93*(1+PeriodRate($AT93,$R93))-M93)/(1+PeriodRate($AT93,$R93)),0) -> 0 | BF93: =IF(AND($AT93<>0,$R93>0),(N93*(1+PeriodRate($AT93,$R93))-N93)/(1+PeriodRate($AT93,$R93)),0) -> 0
A94: 87 | L94: =IF(ISBLANK($H94),"",(IF(OR(MID($I94,1,1)="1",MID($I94,1,1)="3"),INDEX(Profile!$C$23:$E$35,MATCH($H94,Profile!$B$23:$B$35,0),1),0)*$J94)) ->  | M94: =IF(ISBLANK($H94),"",(IF(OR(MID($I94,1,1)="2",MID($I94,1,1)="3"),INDEX(Profile!$C$23:$E$35,MATCH($H94,Profile!$B$23:$B$35,0),2),0))*$J94) ->  | Y94: =IF(OR(ISBLANK(U94),ISBLANK(V94)),"",(IF(MID(U94,1,1)="E",Premium,overhead)+1)*INDEX('Labour Costs'!$C$4:$C$51,MATCH(MID(V94,1,2),'Labour Costs'!$F$4:$F$51,0))) ->  | AD94: =IF(ISNUMBER(IF(S94="",0,PeriodRate(discount,R94))),IF(S94="",0,PeriodRate(discount,R94)),0) -> 0 | AE94: 0 | AF94: =IF(ISNUMBER(IF(Y94="",0,PeriodRate(discount,X94))),IF(Y94="",0,PeriodRate(discount,X94)),0) -> 0 | AG94: 0 | AH94: 0 | AI94: 0 | AJ94: 0 | AL94: 0 | AM94: 0 | AN94: 0 | AP94: 0 | AQ94: 0 | AR94: 0 | AT94: =IF(H94<>"",OFFSET(Profile!$F$24,MATCH(H94,Profile!$B$25:$B$35,0),0),0) -> 0 | AU94: =IF($U94="",0,IF(MID($D94,1,1)="1",IF(OR(LOWER($K94)="vrai",LOWER($K94)="true"),popcorrect(BA94,$AT94,fiscalyear,fiscalyear,fiscalyear+timeperiod,$X94,discount),0),popcorrect(IF(OR(LOWER($K94)="vrai",LOWER($K94)="true"),BA94,L94),$AT94,fiscalyear,$E94,$F94,$X94,discount))) -> 0 | AV94: =IF($U94="",0,IF(MID($D94,1,1)="1",IF(OR(LOWER($K94)="vrai",LOWER($K94)="true"),popcorrect(BB94,$AT94,fiscalyear,fiscalyear,fiscalyear+timeperiod,$X94,discount),0),popcorrect(IF(OR(LOWER($K94)="vrai",LOWER($K94)="true"),BB94,M94),$AT94,fiscalyear,$E94,$F94,$X94,discount))) -> 0 | AW94: =IF($U94="",0,IF(MID($D94,1,1)="1",IF(OR(LOWER($K94)="vrai",LOWER($K94)="true"),popcorrect(BC94,$AT94,fiscalyear,fiscalyear,fiscalyear+timeperiod,$X94,discount),0),popcorrect(IF(OR(LOWER($K94)="vrai",LOWER($K94)="true"),BC94,N94),$AT94,fiscalyear,$E94,$F94,$X94,discount))) -> 0 | AX94: =IF($P94="",0,IF(MID($D94,1,1)="1",IF(OR(LOWER($K94)="vraiI",LOWER($K94)="true"),popcorrect(BD94,$AT94,fiscalyear,fiscalyear,fiscalyear+timeperiod,$R94,discount),0),popcorrect(IF(OR(LOWER($K94)="vrai",LOWER($K94)="true"),BD94,L94),$AT94,fiscalyear,$E94,$F94,$R94,discount))) -> 0 | AY94: =IF($P94="",0,IF(MID($D94,1,1)="1",IF(OR(LOWER($K94)="vraiI",LOWER($K94)="true"),popcorrect(BE94,$AT94,fiscalyear,fiscalyear,fiscalyear+timeperiod,$R94,discount),0),popcorrect(IF(OR(LOWER($K94)="vrai",LOWER($K94)="true"),BE94,M94),$AT94,fiscalyear,$E94,$F94,$R94,discount))) -> 0 | AZ94: =IF($P94="",0,IF(MID($D94,1,1)="1",IF(OR(LOWER($K94)="vraiI",LOWER($K94)="true"),popcorrect(BF94,$AT94,fiscalyear,fiscalyear,fiscalyear+timeperiod,$R94,discount),0),popcorrect(IF(OR(LOWER($K94)="vrai",LOWER($K94)="true"),BF94,N94),$AT94,fiscalyear,$E94,$F94,$R94,discount))) -> 0 | BA94: =IF(AND($AT94<>0,$X94>0),(L94*(1+PeriodRate($AT94,$X94))-L94)/(1+PeriodRate($AT94,$X94)),0) -> 0 | BB94: =IF(AND($AT94<>0,$X94>0),(M94*(1+PeriodRate($AT94,$X94))-M94)/(1+PeriodRate($AT94,$X94)),0) -> 0 | BC94: =IF(AND($AT94<>0,$X94>0),(N94*(1+PeriodRate($AT94,$X94))-N94)/(1+PeriodRate($AT94,$X94)),0) -> 0 | BD94: =IF(AND($AT94<>0,$R94>0),(L94*(1+PeriodRate($AT94,$R94))-L94)/(1+PeriodRate($AT94,$R94)),0) -> 0 | BE94: =IF(AND($AT94<>0,$R94>0),(M94*(1+PeriodRate($AT94,$R94))-M94)/(1+PeriodRate($AT94,$R94)),0) -> 0 | BF94: =IF(AND($AT94<>0,$R94>0),(N94*(1+PeriodRate($AT94,$R94))-N94)/(1+PeriodRate($AT94,$R94)),0) -> 0
